Workbook

Sheet codes (hidden)
A2: codes to | B2: codes to | C2: codes to
A3: add to | B3: add to | C3: add to
A4: 436 receiving | B4: 436 sending | C4: detail1415
A5: 2 | B5: 2 | C5: 5086
A6: 3 | B6: 4 | C6: 5309
A7: 4 | B7: 6 | C7: 5860
A8: 6 | B8: 11 | C8: 7105
A9: 9 | B9: 12 | C9: 7144
A10: 10 | B10: 13 | C10: 8061
A11: 11 | B11: 15 | C11: 8154
A12: 12 | B12: 19 | C12: 8227
A13: 13 | B13: 21 | C13: 8337
A14: 15 | B14: 29 | C14: 8728
A15: 16 | B15: 32 | C15: 14170
A16: 19 | B16: 34 | C16: 14321
A17: 21 | B17: 37 | C17: 17064
A18: 22 | B18: 42 | C18: 17271
A19: 23 | B19: 47 | C19: 20300
A20: 26 | B20: 51 | C20: 24043
A21: 29 | B21: 53 | C21: 25139
A22: 31 | B22: 54 | C22: 25177
A23: 32 | B23: 55 | C23: 25199
A24: 33 | B24: 58 | C24: 25635
A25: 34 | B25: 59 | C25: 25690
A26: 35 | B26: 60 | C26: 25710
A27: 37 | B27: 62 | C27: 27182
A28: 38 | B28: 65 | C28: 28170
A29: 40 | B29: 66 | C29: 30035
A30: 41 | B30: 69 | C30: 30246
A31: 42 | B31: 70 | C31: 36016
A32: 43 | B32: 75 | C32: 36201
A33: 46 | B33: 76 | C33: 44018
A34: 47 | B34: 78 | C34: 44073
A35: 49 | B35: 80 | C35: 44780
A36: 50 | B36: 81 | C36: 45043
A37: 51 | B37: 90 | C37: 48160
A38: 53 | B38: 92 | C38: 48295
A39: 54 | B39: 104 | C39: 52083
A40: 55 | B40: 106 | C40: 56149
A41: 57 | B41: 108 | C41: 56181
A42: 58 | B42: 109 | C42: 61005
A43: 59 | B43: 112 | C43: 61086
A44: 60 | B44: 113 | C44: 61680
A45: 62 | B45: 115 | C45: 61766
A46: 65 | B46: 116 | C46: 64162
A47: 66 | B47: 119 | C47: 64174
A48: 67 | B48: 120 | C48: 64271
A49: 69 | B49: 123 | C49: 64322
A50: 70 | B50: 124 | C50: 68008
A51: 71 | B51: 126 | C51: 74278
A52: 72 | B52: 129 | C52: 74332
A53: 73 | B53: 130 | C53: 74337
A54: 75 | B54: 132 | C54: 74685
A55: 76 | B55: 134 | C55: 77610
A56: 78 | B56: 140 | C56: 79031
A57: 80 | B57: 143 | C57: 83133
A58: 81 | B58: 145 | C58: 83251
A59: 82 | B59: 146 | C59: 89774
A60: 84 | B60: 147 | C60: 95650
A61: 85 | B61: 156 | C61: 95665
A62: 87 | B62: 164 | C62: 95810
A63: 88 | B63: 166 | C63: 96182
A64: 90 | B64: 179 | C64: 97031
A65: 91 | B65: 180 | C65: 97110
A66: 92 | B66: 183 | C66: 97128
A67: 93 | B67: 188 | C67: 97170
A68: 94 | B68: 192 | C68: 97673
A69: 99 | B69: 193 | C69: 101185
A70: 100 | B70: 194 | C70: 103616
A71: 102 | B71: 202 | C71: 105252
A72: 104 | B72: 203 | C72: 114210
A73: 106 | B73: 205 | C73: 114289
A74: 108 | B74: 206 | C74: 114632
A75: 109 | B75: 211 | C75: 114683
A76: 112 | B76: 216 | C76: 117272
A77: 113 | B77: 222 | C77: 117275
A78: 115 | B78: 225 | C78: 117289
A79: 116 | B79: 228 | C79: 117309
A80: 118 | B80: 232 | C80: 117325
A81: 119 | B81: 233 | C81: 121200
A82: 120 | B82: 235 | C82: 125321
A83: 122 | B83: 237 | C83: 127635
A84: 123 | B84: 238 | C84: 127672
A85: 124 | B85: 241 | C85: 128023
A86: 126 | B86: 245 | C86: 128616
A87: 129 | B87: 247 | C87: 133001
A88: 130 | B88: 254 | C88: 133018
A89: 131 | B89: 255 | C89: 133035
A90: 132 | B90: 256 | C90: 133040
A91: 134 | B91: 257 | C91: 135287
A92: 139 | B92: 259 | C92: 136212
A93: 140 | B93: 260 | C93: 137086
A94: 142 | B94: 267 | C94: 137683
A95: 143 | B95: 268 | C95: 141017
A96: 145 | B96: 269 | C96: 141174
A97: 146 | B97: 270 | C97: 141185
A98: 147 | B98: 279 | C98: 141213
A99: 149 | B99: 280 | C99: 141229
A100: 155 | B100: 282 | C100: 144745
A101: 156 | B101: 283 | C101: 148341
A102: 157 | B102: 286 | C102: 151153
A103: 160 | B103: 294 | C103: 151778
A104: 163 | B104: 297 | C104: 152148
A105: 164 | B105: 298 | C105: 153141
A106: 165 | B106: 299 | C106: 153322
A107: 166 | B107: 303 | C107: 153720
A108: 167 | B108: 311 | C108: 153725
A109: 168 | B109: 312 | C109: 153801
A110: 169 | B110: 313 | C110: 154337
A111: 170 | B111: 319 | C111: 158097
A112: 175 | B112: 320 | C112: 159191
A113: 176 | B113: 328 | C113: 162064
A114: 179 | B114: 329 | C114: 162100
A115: 180 | B115: 333 | C115: 162174
A116: 181 | B116: 334 | C116: 171219
A117: 183 | B117: 335 | C117: 172308
A118: 184 | B118: 338 | C118: 172645
A119: 186 | B119: 339 | C119: 173331
A120: 188 | B120: 345 | C120: 174026
A121: 189 | B121: 351 | C121: 174067
A122: 190 | B122: 406 | C122: 174141
A123: 192 | B123: 801 | C123: 174277
A124: 193 | B124: 805 | C124: 174308
A125: 194 | B125: 806 | C125: 174314
A126: 195 | B126: 829 | C126: 174616
A127: 196 | B127: 851 | C127: 177167
A128: 197 | B128: 910 | C128: 177170
A129: 199 | B129: 915 | C129: 177690
A130: 200 | B130: 3901 | C130: 177710
A131: 201 | B131: 3902 | C131: 182088
A132: 202 | C132: 182239
A133: 203 | C133: 185014
A134: 205 | C134: 185100
A135: 206 | C135: 185198
A136: 207 | C136: 185276
A137: 208 | C137: 185317
A138: 211 | C138: 187018
A139: 212 | C139: 187035
A140: 213 | C140: 187136
A141: 216 | C141: 187207
A142: 217 | C142: 187350
A143: 219 | C143: 198138
A144: 220 | C144: 198139
A145: 222 | C145: 198213
A146: 225 | C146: 198288
A147: 228 | C147: 209341
A148: 231 | C148: 210008
A149: 232 | C149: 210024
A150: 233 | C150: 210074
A151: 235 | C151: 210227
A152: 237 | C152: 210275
A153: 238 | C153: 214100
A154: 239 | C154: 215001
A155: 241 | C155: 215309
A156: 243 | C156: 223114
A157: 245 | C157: 226151
A158: 246 | C158: 226348
A159: 247 | C159: 227061
A160: 248 | C160: 227680
A161: 250 | C161: 229305
A162: 254 | C162: 230111
A163: 255 | C163: 230117
A164: 256 | C164: 230223
A165: 257 | C165: 230309
A166: 258 | C166: 234309
A167: 259 | C167: 236209
A168: 260 | C168: 236685
A169: 262 | C169: 236851
A170: 264 | C170: 242261
A171: 265 | C171: 242645
A172: 266 | C172: 249603
A173: 267 | C173: 251095
A174: 268 | C174: 251171
A175: 269 | C175: 263635
A176: 270 | C176: 263717
A177: 271 | C177: 271110
A178: 272 | C178: 277770
A179: 273 | C179: 281278
A180: 274 | C180: 290658
A181: 276 | C181: 290710
A182: 279 | C182: 290775
A183: 280 | C183: 293014
A184: 282 | C184: 293052
A185: 283 | C185: 293083
A186: 284 | C186: 293212
A187: 285 | C187: 293879
A188: 286 | C188: 300085
A189: 287 | C189: 301031
A190: 288 | C190: 301326
A191: 291 | C191: 301342
A192: 292 | C192: 304177
A193: 294 | C193: 306137
A194: 295 | C194: 306227
A195: 297 | C195: 306277
A196: 298 | C196: 309024
A197: 299 | C197: 309043
A198: 302 | C198: 309111
A199: 303 | C199: 310095
A200: 305 | C200: 310172
A201: 307 | C201: 310690
... 166 more rows

Sheet cs scatter (hidden)
C86: cs receipts | D86: actual receipts | G86: ch sheet assessments | H86: actual assessments
A87: 1 | B87: ABINGTON | C87: =distributions!C10 -> 10000 | D87: =distributions!D10 -> 5000 | G87: =distributions!T10 -> 141707 | H87: =distributions!U10 -> 231077
A88: 2 | B88: ACTON | C88: =distributions!C11 -> 0 | D88: =distributions!D11 -> 0 | G88: =distributions!T11 -> 5561 | H88: =distributions!U11 -> 0
A89: 3 | B89: ACUSHNET | C89: =distributions!C12 -> 0 | D89: =distributions!D12 -> 0 | G89: =distributions!T12 -> 62652 | H89: =distributions!U12 -> 76700
A90: 4 | B90: ADAMS | C90: =distributions!C13 -> 0 | D90: =distributions!D13 -> 0 | G90: =distributions!T13 -> 0 | H90: =distributions!U13 -> 0
A91: 5 | B91: AGAWAM | C91: =distributions!C14 -> 425326 | D91: =distributions!D14 -> 429476 | G91: =distributions!T14 -> 290838 | H91: =distributions!U14 -> 294983
A92: 6 | B92: ALFORD | C92: =distributions!C15 -> 0 | D92: =distributions!D15 -> 0 | G92: =distributions!T15 -> 0 | H92: =distributions!U15 -> 0
A93: 7 | B93: AMESBURY | C93: =distributions!C16 -> 196514 | D93: =distributions!D16 -> 121524 | G93: =distributions!T16 -> 494598 | H93: =distributions!U16 -> 394457
A94: 8 | B94: AMHERST | C94: =distributions!C17 -> 338073 | D94: =distributions!D17 -> 319432 | G94: =distributions!T17 -> 157400 | H94: =distributions!U17 -> 134194
A95: 9 | B95: ANDOVER | C95: =distributions!C18 -> 0 | D95: =distributions!D18 -> 0 | G95: =distributions!T18 -> 25326 | H95: =distributions!U18 -> 29100
A96: 10 | B96: ARLINGTON | C96: =distributions!C19 -> 0 | D96: =distributions!D19 -> 0 | G96: =distributions!T19 -> 5561 | H96: =distributions!U19 -> 21400
A97: 11 | B97: ASHBURNHAM | C97: =distributions!C20 -> 0 | D97: =distributions!D20 -> 0 | G97: =distributions!T20 -> 0 | H97: =distributions!U20 -> 0
A98: 12 | B98: ASHBY | C98: =distributions!C21 -> 0 | D98: =distributions!D21 -> 0 | G98: =distributions!T21 -> 0 | H98: =distributions!U21 -> 0
A99: 13 | B99: ASHFIELD | C99: =distributions!C22 -> 0 | D99: =distributions!D22 -> 0 | G99: =distributions!T22 -> 0 | H99: =distributions!U22 -> 0
A100: 14 | B100: ASHLAND | C100: =distributions!C23 -> 212748 | D100: =distributions!D23 -> 287724 | G100: =distributions!T23 -> 91418 | H100: =distributions!U23 -> 84632
A101: 15 | B101: ATHOL | C101: =distributions!C24 -> 0 | D101: =distributions!D24 -> 0 | G101: =distributions!T24 -> 0 | H101: =distributions!U24 -> 0
A102: 16 | B102: ATTLEBORO | C102: =distributions!C25 -> 0 | D102: =distributions!D25 -> 0 | G102: =distributions!T25 -> 98305 | H102: =distributions!U25 -> 183900
A103: 17 | B103: AUBURN | C103: =distributions!C26 -> 249438 | D103: =distributions!D26 -> 327404 | G103: =distributions!T26 -> 127289 | H103: =distributions!U26 -> 112071
A104: 18 | B104: AVON | C104: =distributions!C27 -> 949225 | D104: =distributions!D27 -> 1024920 | G104: =distributions!T27 -> 25000 | H104: =distributions!U27 -> 10000
A105: 19 | B105: AYER | C105: =distributions!C28 -> 0 | D105: =distributions!D28 -> 0 | G105: =distributions!T28 -> 0 | H105: =distributions!U28 -> 0
A106: 20 | B106: BARNSTABLE | C106: =distributions!C29 -> 616894 | D106: =distributions!D29 -> 658306 | G106: =distributions!T29 -> 918231 | H106: =distributions!U29 -> 934327
A107: 21 | B107: BARRE | C107: =distributions!C30 -> 0 | D107: =distributions!D30 -> 0 | G107: =distributions!T30 -> 0 | H107: =distributions!U30 -> 0
A108: 22 | B108: BECKET | C108: =distributions!C31 -> 0 | D108: =distributions!D31 -> 0 | G108: =distributions!T31 -> 10000 | H108: =distributions!U31 -> 15000
A109: 23 | B109: BEDFORD | C109: =distributions!C32 -> 0 | D109: =distributions!D32 -> 0 | G109: =distributions!T32 -> 5000 | H109: =distributions!U32 -> 23400
A110: 24 | B110: BELCHERTOWN | C110: =distributions!C33 -> 580989 | D110: =distributions!D33 -> 760087 | G110: =distributions!T33 -> 544940 | H110: =distributions!U33 -> 659834
A111: 25 | B111: BELLINGHAM | C111: =distributions!C34 -> 257806 | D111: =distributions!D34 -> 202459 | G111: =distributions!T34 -> 703458 | H111: =distributions!U34 -> 831394
A112: 26 | B112: BELMONT | C112: =distributions!C35 -> 0 | D112: =distributions!D35 -> 0 | G112: =distributions!T35 -> 4653 | H112: =distributions!U35 -> 0
A113: 27 | B113: BERKLEY | C113: =distributions!C36 -> 396688 | D113: =distributions!D36 -> 582114 | G113: =distributions!T36 -> 10000 | H113: =distributions!U36 -> 10000
A114: 28 | B114: BERLIN | C114: =distributions!C37 -> 145629 | D114: =distributions!D37 -> 149051 | G114: =distributions!T37 -> 0 | H114: =distributions!U37 -> 0
A115: 29 | B115: BERNARDSTON | C115: =distributions!C38 -> 0 | D115: =distributions!D38 -> 0 | G115: =distributions!T38 -> 0 | H115: =distributions!U38 -> 0
A116: 30 | B116: BEVERLY | C116: =distributions!C39 -> 524477 | D116: =distributions!D39 -> 601926 | G116: =distributions!T39 -> 336687 | H116: =distributions!U39 -> 340184
A117: 31 | B117: BILLERICA | C117: =distributions!C40 -> 0 | D117: =distributions!D40 -> 0 | G117: =distributions!T40 -> 74634 | H117: =distributions!U40 -> 105600
A118: 32 | B118: BLACKSTONE | C118: =distributions!C41 -> 0 | D118: =distributions!D41 -> 0 | G118: =distributions!T41 -> 0 | H118: =distributions!U41 -> 0
A119: 33 | B119: BLANDFORD | C119: =distributions!C42 -> 0 | D119: =distributions!D42 -> 0 | G119: =distributions!T42 -> 0 | H119: =distributions!U42 -> 12120
A120: 34 | B120: BOLTON | C120: =distributions!C43 -> 0 | D120: =distributions!D43 -> 0 | G120: =distributions!T43 -> 0 | H120: =distributions!U43 -> 0
A121: 35 | B121: BOSTON | C121: =distributions!C44 -> 0 | D121: =distributions!D44 -> 0 | G121: =distributions!T44 -> 555312 | H121: =distributions!U44 -> 608120
A122: 36 | B122: BOURNE | C122: =distributions!C45 -> 723869 | D122: =distributions!D45 -> 696677 | G122: =distributions!T45 -> 622519 | H122: =distributions!U45 -> 584253
A123: 37 | B123: BOXBOROUGH | C123: =distributions!C46 -> 0 | D123: =distributions!D46 -> 0 | G123: =distributions!T46 -> 0 | H123: =distributions!U46 -> 0
A124: 38 | B124: BOXFORD | C124: =distributions!C47 -> 0 | D124: =distributions!D47 -> 0 | G124: =distributions!T47 -> 5561 | H124: =distributions!U47 -> 16700
A125: 39 | B125: BOYLSTON | C125: =distributions!C48 -> 70513 | D125: =distributions!D48 -> 90513 | G125: =distributions!T48 -> 83867 | H125: =distributions!U48 -> 91045
A126: 40 | B126: BRAINTREE | C126: =distributions!C49 -> 0 | D126: =distributions!D49 -> 0 | G126: =distributions!T49 -> 27420 | H126: =distributions!U49 -> 18400
A127: 41 | B127: BREWSTER | C127: =distributions!C50 -> 0 | D127: =distributions!D50 -> 0 | G127: =distributions!T50 -> 158226 | H127: =distributions!U50 -> 166964
A128: 42 | B128: BRIDGEWATER | C128: =distributions!C51 -> 0 | D128: =distributions!D51 -> 0 | G128: =distributions!T51 -> 0 | H128: =distributions!U51 -> 0
A129: 43 | B129: BRIMFIELD | C129: =distributions!C52 -> 0 | D129: =distributions!D52 -> 0 | G129: =distributions!T52 -> 102550 | H129: =distributions!U52 -> 64508
A130: 44 | B130: BROCKTON | C130: =distributions!C53 -> 115000 | D130: =distributions!D53 -> 136000 | G130: =distributions!T53 -> 1037038 | H130: =distributions!U53 -> 1328445
A131: 45 | B131: BROOKFIELD | C131: =distributions!C54 -> 389284 | D131: =distributions!D54 -> 350618 | G131: =distributions!T54 -> 14677 | H131: =distributions!U54 -> 5000
A132: 46 | B132: BROOKLINE | C132: =distributions!C55 -> 0 | D132: =distributions!D55 -> 0 | G132: =distributions!T55 -> 3953 | H132: =distributions!U55 -> 6700
A133: 47 | B133: BUCKLAND | C133: =distributions!C56 -> 0 | D133: =distributions!D56 -> 0 | G133: =distributions!T56 -> 0 | H133: =distributions!U56 -> 0
A134: 48 | B134: BURLINGTON | C134: =distributions!C57 -> 125100 | D134: =distributions!D57 -> 153000 | G134: =distributions!T57 -> 15812 | H134: =distributions!U57 -> 20100
A135: 49 | B135: CAMBRIDGE | C135: =distributions!C58 -> 0 | D135: =distributions!D58 -> 0 | G135: =distributions!T58 -> 19028 | H135: =distributions!U58 -> 33500
A136: 50 | B136: CANTON | C136: =distributions!C59 -> 0 | D136: =distributions!D59 -> 0 | G136: =distributions!T59 -> 7906 | H136: =distributions!U59 -> 6700
A137: 51 | B137: CARLISLE | C137: =distributions!C60 -> 0 | D137: =distributions!D60 -> 0 | G137: =distributions!T60 -> 0 | H137: =distributions!U60 -> 0
A138: 52 | B138: CARVER | C138: =distributions!C61 -> 155991 | D138: =distributions!D61 -> 167791 | G138: =distributions!T61 -> 30075 | H138: =distributions!U61 -> 40200
A139: 53 | B139: CHARLEMONT | C139: =distributions!C62 -> 0 | D139: =distributions!D62 -> 0 | G139: =distributions!T62 -> 0 | H139: =distributions!U62 -> 0
A140: 54 | B140: CHARLTON | C140: =distributions!C63 -> 0 | D140: =distributions!D63 -> 0 | G140: =distributions!T63 -> 0 | H140: =distributions!U63 -> 0
A141: 55 | B141: CHATHAM | C141: =distributions!C64 -> 0 | D141: =distributions!D64 -> 0 | G141: =distributions!T64 -> 0 | H141: =distributions!U64 -> 0
A142: 56 | B142: CHELMSFORD | C142: =distributions!C65 -> 326523 | D142: =distributions!D65 -> 375373 | G142: =distributions!T65 -> 193494 | H142: =distributions!U65 -> 207601
A143: 57 | B143: CHELSEA | C143: =distributions!C66 -> 0 | D143: =distributions!D66 -> 0 | G143: =distributions!T66 -> 28542 | H143: =distributions!U66 -> 51900
A144: 58 | B144: CHESHIRE | C144: =distributions!C67 -> 0 | D144: =distributions!D67 -> 0 | G144: =distributions!T67 -> 0 | H144: =distributions!U67 -> 0
A145: 59 | B145: CHESTER | C145: =distributions!C68 -> 0 | D145: =distributions!D68 -> 0 | G145: =distributions!T68 -> 0 | H145: =distributions!U68 -> 0
A146: 60 | B146: CHESTERFIELD | C146: =distributions!C69 -> 0 | D146: =distributions!D69 -> 0 | G146: =distributions!T69 -> 0 | H146: =distributions!U69 -> 0
A147: 61 | B147: CHICOPEE | C147: =distributions!C70 -> 941627 | D147: =distributions!D70 -> 1009093 | G147: =distributions!T70 -> 754391 | H147: =distributions!U70 -> 777720
A148: 62 | B148: CHILMARK | C148: =distributions!C71 -> 0 | D148: =distributions!D71 -> 0 | G148: =distributions!T71 -> 0 | H148: =distributions!U71 -> 0
A149: 63 | B149: CLARKSBURG | C149: =distributions!C72 -> 159657 | D149: =distributions!D72 -> 203974 | G149: =distributions!T72 -> 90681 | H149: =distributions!U72 -> 107823
A150: 64 | B150: CLINTON | C150: =distributions!C73 -> 843868 | D150: =distributions!D73 -> 585285 | G150: =distributions!T73 -> 637998 | H150: =distributions!U73 -> 675727
A151: 65 | B151: COHASSET | C151: =distributions!C74 -> 0 | D151: =distributions!D74 -> 0 | G151: =distributions!T74 -> 0 | H151: =distributions!U74 -> 0
A152: 66 | B152: COLRAIN | C152: =distributions!C75 -> 0 | D152: =distributions!D75 -> 0 | G152: =distributions!T75 -> 0 | H152: =distributions!U75 -> 0
A153: 67 | B153: CONCORD | C153: =distributions!C76 -> 0 | D153: =distributions!D76 -> 0 | G153: =distributions!T76 -> 20812 | H153: =distributions!U76 -> 18400
A154: 68 | B154: CONWAY | C154: =distributions!C77 -> 126837 | D154: =distributions!D77 -> 148737 | G154: =distributions!T77 -> 76433 | H154: =distributions!U77 -> 72060
A155: 69 | B155: CUMMINGTON | C155: =distributions!C78 -> 0 | D155: =distributions!D78 -> 0 | G155: =distributions!T78 -> 0 | H155: =distributions!U78 -> 0
A156: 70 | B156: DALTON | C156: =distributions!C79 -> 0 | D156: =distributions!D79 -> 0 | G156: =distributions!T79 -> 0 | H156: =distributions!U79 -> 0
A157: 71 | B157: DANVERS | C157: =distributions!C80 -> 0 | D157: =distributions!D80 -> 0 | G157: =distributions!T80 -> 223719 | H157: =distributions!U80 -> 278474
A158: 72 | B158: DARTMOUTH | C158: =distributions!C81 -> 0 | D158: =distributions!D81 -> 0 | G158: =distributions!T81 -> 22420 | H158: =distributions!U81 -> 20100
A159: 73 | B159: DEDHAM | C159: =distributions!C82 -> 0 | D159: =distributions!D82 -> 0 | G159: =distributions!T82 -> 9514 | H159: =distributions!U82 -> 36400
A160: 74 | B160: DEERFIELD | C160: =distributions!C83 -> 711861 | D160: =distributions!D83 -> 572511 | G160: =distributions!T83 -> 114130 | H160: =distributions!U83 -> 126100
A161: 75 | B161: DENNIS | C161: =distributions!C84 -> 0 | D161: =distributions!D84 -> 0 | G161: =distributions!T84 -> 0 | H161: =distributions!U84 -> 0
A162: 76 | B162: DIGHTON | C162: =distributions!C85 -> 0 | D162: =distributions!D85 -> 0 | G162: =distributions!T85 -> 0 | H162: =distributions!U85 -> 0
A163: 77 | B163: DOUGLAS | C163: =distributions!C86 -> 677565 | D163: =distributions!D86 -> 614852 | G163: =distributions!T86 -> 265630 | H163: =distributions!U86 -> 284393
A164: 78 | B164: DOVER | C164: =distributions!C87 -> 0 | D164: =distributions!D87 -> 0 | G164: =distributions!T87 -> 9514 | H164: =distributions!U87 -> 0
A165: 79 | B165: DRACUT | C165: =distributions!C88 -> 140340 | D165: =distributions!D88 -> 157640 | G165: =distributions!T88 -> 108837 | H165: =distributions!U88 -> 158017
A166: 80 | B166: DUDLEY | C166: =distributions!C89 -> 0 | D166: =distributions!D89 -> 0 | G166: =distributions!T89 -> 0 | H166: =distributions!U89 -> 0
A167: 81 | B167: DUNSTABLE | C167: =distributions!C90 -> 0 | D167: =distributions!D90 -> 0 | G167: =distributions!T90 -> 0 | H167: =distributions!U90 -> 0
A168: 82 | B168: DUXBURY | C168: =distributions!C91 -> 0 | D168: =distributions!D91 -> 0 | G168: =distributions!T91 -> 7906 | H168: =distributions!U91 -> 6700
A169: 83 | B169: EAST BRIDGEWATER | C169: =distributions!C92 -> 73450 | D169: =distributions!D92 -> 201000 | G169: =distributions!T92 -> 167141 | H169: =distributions!U92 -> 154021
A170: 84 | B170: EAST BROOKFIELD | C170: =distributions!C93 -> 0 | D170: =distributions!D93 -> 0 | G170: =distributions!T93 -> 30000 | H170: =distributions!U93 -> 30000
A171: 85 | B171: EASTHAM | C171: =distributions!C94 -> 0 | D171: =distributions!D94 -> 0 | G171: =distributions!T94 -> 36124 | H171: =distributions!U94 -> 37560
A172: 86 | B172: EASTHAMPTON | C172: =distributions!C95 -> 429763 | D172: =distributions!D95 -> 467402 | G172: =distributions!T95 -> 1291064 | H172: =distributions!U95 -> 1154611
A173: 87 | B173: EAST LONGMEADOW | C173: =distributions!C96 -> 0 | D173: =distributions!D96 -> 0 | G173: =distributions!T96 -> 33467 | H173: =distributions!U96 -> 62800
A174: 88 | B174: EASTON | C174: =distributions!C97 -> 0 | D174: =distributions!D97 -> 0 | G174: =distributions!T97 -> 26914 | H174: =distributions!U97 -> 54921
A175: 89 | B175: EDGARTOWN | C175: =distributions!C98 -> 74997 | D175: =distributions!D98 -> 51028 | G175: =distributions!T98 -> 180161 | H175: =distributions!U98 -> 189337
A176: 90 | B176: EGREMONT | C176: =distributions!C99 -> 0 | D176: =distributions!D99 -> 0 | G176: =distributions!T99 -> 0 | H176: =distributions!U99 -> 0
A177: 91 | B177: ERVING | C177: =distributions!C100 -> 0 | D177: =distributions!D100 -> 0 | G177: =distributions!T100 -> 289481 | H177: =distributions!U100 -> 183768
A178: 92 | B178: ESSEX | C178: =distributions!C101 -> 0 | D178: =distributions!D101 -> 0 | G178: =distributions!T101 -> 0 | H178: =distributions!U101 -> 0
A179: 93 | B179: EVERETT | C179: =distributions!C102 -> 0 | D179: =distributions!D102 -> 0 | G179: =distributions!T102 -> 93873 | H179: =distributions!U102 -> 100274
A180: 94 | B180: FAIRHAVEN | C180: =distributions!C103 -> 0 | D180: =distributions!D103 -> 0 | G180: =distributions!T103 -> 75861 | H180: =distributions!U103 -> 72646
A181: 95 | B181: FALL RIVER | C181: =distributions!C104 -> 82050 | D181: =distributions!D104 -> 213000 | G181: =distributions!T104 -> 394695 | H181: =distributions!U104 -> 633074
A182: 96 | B182: FALMOUTH | C182: =distributions!C105 -> 581601 | D182: =distributions!D105 -> 696289 | G182: =distributions!T105 -> 261955 | H182: =distributions!U105 -> 200977
A183: 97 | B183: FITCHBURG | C183: =distributions!C106 -> 1048411 | D183: =distributions!D106 -> 973989 | G183: =distributions!T106 -> 2451589 | H183: =distributions!U106 -> 2504850
A184: 98 | B184: FLORIDA | C184: =distributions!C107 -> 11708 | D184: =distributions!D107 -> 5000 | G184: =distributions!T107 -> 20000 | H184: =distributions!U107 -> 47000
A185: 99 | B185: FOXBOROUGH | C185: =distributions!C108 -> 0 | D185: =distributions!D108 -> 0 | G185: =distributions!T108 -> 3953 | H185: =distributions!U108 -> 28400
A186: 100 | B186: FRAMINGHAM | C186: =distributions!C109 -> 0 | D186: =distributions!D109 -> 0 | G186: =distributions!T109 -> 312643 | H186: =distributions!U109 -> 377803
A187: 101 | B187: FRANKLIN | C187: =distributions!C110 -> 50468 | D187: =distributions!D110 -> 39000 | G187: =distributions!T110 -> 141344 | H187: =distributions!U110 -> 203953
A188: 102 | B188: FREETOWN | C188: =distributions!C111 -> 0 | D188: =distributions!D111 -> 0 | G188: =distributions!T111 -> 0 | H188: =distributions!U111 -> 5000
A189: 103 | B189: GARDNER | C189: =distributions!C112 -> 773133 | D189: =distributions!D112 -> 667591 | G189: =distributions!T112 -> 1002576 | H189: =distributions!U112 -> 1311559
A190: 104 | B190: AQUINNAH | C190: =distributions!C113 -> 0 | D190: =distributions!D113 -> 0 | G190: =distributions!T113 -> 0 | H190: =distributions!U113 -> 0
A191: 105 | B191: GEORGETOWN | C191: =distributions!C114 -> 196130 | D191: =distributions!D114 -> 190439 | G191: =distributions!T114 -> 197267 | H191: =distributions!U114 -> 191661
A192: 106 | B192: GILL | C192: =distributions!C115 -> 0 | D192: =distributions!D115 -> 0 | G192: =distributions!T115 -> 0 | H192: =distributions!U115 -> 0
A193: 107 | B193: GLOUCESTER | C193: =distributions!C116 -> 214791 | D193: =distributions!D116 -> 193525 | G193: =distributions!T116 -> 1651567 | H193: =distributions!U116 -> 1675296
A194: 108 | B194: GOSHEN | C194: =distributions!C117 -> 0 | D194: =distributions!D117 -> 0 | G194: =distributions!T117 -> 0 | H194: =distributions!U117 -> 0
A195: 109 | B195: GOSNOLD | C195: =distributions!C118 -> 0 | D195: =distributions!D118 -> 0 | G195: =distributions!T118 -> 0 | H195: =distributions!U118 -> 0
A196: 110 | B196: GRAFTON | C196: =distributions!C119 -> 191757 | D196: =distributions!D119 -> 266367 | G196: =distributions!T119 -> 143393 | H196: =distributions!U119 -> 202296
A197: 111 | B197: GRANBY | C197: =distributions!C120 -> 750306 | D197: =distributions!D120 -> 667038 | G197: =distributions!T120 -> 286171 | H197: =distributions!U120 -> 303479
A198: 112 | B198: GRANVILLE | C198: =distributions!C121 -> 0 | D198: =distributions!D121 -> 0 | G198: =distributions!T121 -> 0 | H198: =distributions!U121 -> 0
A199: 113 | B199: GREAT BARRINGTON | C199: =distributions!C122 -> 0 | D199: =distributions!D122 -> 0 | G199: =distributions!T122 -> 0 | H199: =distributions!U122 -> 0
A200: 114 | B200: GREENFIELD | C200: =distributions!C123 -> 578152 | D200: =distributions!D123 -> 661041 | G200: =distributions!T123 -> 2309748 | H200: =distributions!U123 -> 2219044
A201: 115 | B201: GROTON | C201: =distributions!C124 -> 0 | D201: =distributions!D124 -> 0 | G201: =distributions!T124 -> 0 | H201: =distributions!U124 -> 0
A202: 116 | B202: GROVELAND | C202: =distributions!C125 -> 0 | D202: =distributions!D125 -> 0 | G202: =distributions!T125 -> 0 | H202: =distributions!U125 -> 0
A203: 117 | B203: HADLEY | C203: =distributions!C126 -> 589766 | D203: =distributions!D126 -> 545205 | G203: =distributions!T126 -> 385346 | H203: =distributions!U126 -> 314228
A204: 118 | B204: HALIFAX | C204: =distributions!C127 -> 0 | D204: =distributions!D127 -> 0 | G204: =distributions!T127 -> 5000 | H204: =distributions!U127 -> 5000
A205: 119 | B205: HAMILTON | C205: =distributions!C128 -> 0 | D205: =distributions!D128 -> 0 | G205: =distributions!T128 -> 0 | H205: =distributions!U128 -> 0
A206: 120 | B206: HAMPDEN | C206: =distributions!C129 -> 0 | D206: =distributions!D129 -> 0 | G206: =distributions!T129 -> 0 | H206: =distributions!U129 -> 0
A207: 121 | B207: HANCOCK | C207: =distributions!C130 -> 15000 | D207: =distributions!D130 -> 24000 | G207: =distributions!T130 -> 55000 | H207: =distributions!U130 -> 25000
A208: 122 | B208: HANOVER | C208: =distributions!C131 -> 0 | D208: =distributions!D131 -> 0 | G208: =distributions!T131 -> 0 | H208: =distributions!U131 -> 10000
A209: 123 | B209: HANSON | C209: =distributions!C132 -> 0 | D209: =distributions!D132 -> 0 | G209: =distributions!T132 -> 0 | H209: =distributions!U132 -> 0
A210: 124 | B210: HARDWICK | C210: =distributions!C133 -> 0 | D210: =distributions!D133 -> 0 | G210: =distributions!T133 -> 0 | H210: =distributions!U133 -> 0
A211: 125 | B211: HARVARD | C211: =distributions!C134 -> 368354 | D211: =distributions!D134 -> 358354 | G211: =distributions!T134 -> 31314 | H211: =distributions!U134 -> 20000
A212: 126 | B212: HARWICH | C212: =distributions!C135 -> 0 | D212: =distributions!D135 -> 0 | G212: =distributions!T135 -> 7906 | H212: =distributions!U135 -> 0
A213: 127 | B213: HATFIELD | C213: =distributions!C136 -> 838623 | D213: =distributions!D136 -> 850119 | G213: =distributions!T136 -> 202217 | H213: =distributions!U136 -> 205121
A214: 128 | B214: HAVERHILL | C214: =distributions!C137 -> 247501 | D214: =distributions!D137 -> 191343 | G214: =distributions!T137 -> 1190061 | H214: =distributions!U137 -> 1095599
A215: 129 | B215: HAWLEY | C215: =distributions!C138 -> 0 | D215: =distributions!D138 -> 0 | G215: =distributions!T138 -> 0 | H215: =distributions!U138 -> 0
A216: 130 | B216: HEATH | C216: =distributions!C139 -> 0 | D216: =distributions!D139 -> 0 | G216: =distributions!T139 -> 0 | H216: =distributions!U139 -> 0
A217: 131 | B217: HINGHAM | C217: =distributions!C140 -> 0 | D217: =distributions!D140 -> 0 | G217: =distributions!T140 -> 0 | H217: =distributions!U140 -> 28100
A218: 132 | B218: HINSDALE | C218: =distributions!C141 -> 0 | D218: =distributions!D141 -> 0 | G218: =distributions!T141 -> 0 | H218: =distributions!U141 -> 0
A219: 133 | B219: HOLBROOK | C219: =distributions!C142 -> 305871 | D219: =distributions!D142 -> 306291 | G219: =distributions!T142 -> 76997 | H219: =distributions!U142 -> 85200
A220: 134 | B220: HOLDEN | C220: =distributions!C143 -> 0 | D220: =distributions!D143 -> 0 | G220: =distributions!T143 -> 0 | H220: =distributions!U143 -> 0
A221: 135 | B221: HOLLAND | C221: =distributions!C144 -> 246248 | D221: =distributions!D144 -> 275872 | G221: =distributions!T144 -> 8953 | H221: =distributions!U144 -> 5000
A222: 136 | B222: HOLLISTON | C222: =distributions!C145 -> 1038241 | D222: =distributions!D145 -> 1058438 | G222: =distributions!T145 -> 49554 | H222: =distributions!U145 -> 94295
A223: 137 | B223: HOLYOKE | C223: =distributions!C146 -> 274673 | D223: =distributions!D146 -> 316976 | G223: =distributions!T146 -> 2055893 | H223: =distributions!U146 -> 2020196
A224: 138 | B224: HOPEDALE | C224: =distributions!C147 -> 709439 | D224: =distributions!D147 -> 666244 | G224: =distributions!T147 -> 290034 | H224: =distributions!U147 -> 260019
A225: 139 | B225: HOPKINTON | C225: =distributions!C148 -> 0 | D225: =distributions!D148 -> 0 | G225: =distributions!T148 -> 88021 | H225: =distributions!U148 -> 104415
A226: 140 | B226: HUBBARDSTON | C226: =distributions!C149 -> 0 | D226: =distributions!D149 -> 0 | G226: =distributions!T149 -> 0 | H226: =distributions!U149 -> 0
A227: 141 | B227: HUDSON | C227: =distributions!C150 -> 546944 | D227: =distributions!D150 -> 554577 | G227: =distributions!T150 -> 111154 | H227: =distributions!U150 -> 104422
A228: 142 | B228: HULL | C228: =distributions!C151 -> 0 | D228: =distributions!D151 -> 0 | G228: =distributions!T151 -> 22981 | H228: =distributions!U151 -> 38189
A229: 143 | B229: HUNTINGTON | C229: =distributions!C152 -> 0 | D229: =distributions!D152 -> 0 | G229: =distributions!T152 -> 0 | H229: =distributions!U152 -> 5000
A230: 144 | B230: IPSWICH | C230: =distributions!C153 -> 383036 | D230: =distributions!D153 -> 365038 | G230: =distributions!T153 -> 109839 | H230: =distributions!U153 -> 99253
A231: 145 | B231: KINGSTON | C231: =distributions!C154 -> 0 | D231: =distributions!D154 -> 0 | G231: =distributions!T154 -> 3953 | H231: =distributions!U154 -> 0
A232: 146 | B232: LAKEVILLE | C232: =distributions!C155 -> 0 | D232: =distributions!D155 -> 0 | G232: =distributions!T155 -> 0 | H232: =distributions!U155 -> 0
A233: 147 | B233: LANCASTER | C233: =distributions!C156 -> 0 | D233: =distributions!D156 -> 0 | G233: =distributions!T156 -> 0 | H233: =distributions!U156 -> 0
A234: 148 | B234: LANESBOROUGH | C234: =distributions!C157 -> 120999 | D234: =distributions!D157 -> 115999 | G234: =distributions!T157 -> 114496 | H234: =distributions!U157 -> 111635
A235: 149 | B235: LAWRENCE | C235: =distributions!C158 -> 0 | D235: =distributions!D158 -> 0 | G235: =distributions!T158 -> 372271 | H235: =distributions!U158 -> 444484
A236: 150 | B236: LEE | C236: =distributions!C159 -> 731075 | D236: =distributions!D159 -> 729588 | G236: =distributions!T159 -> 482824 | H236: =distributions!U159 -> 561288
A237: 151 | B237: LEICESTER | C237: =distributions!C160 -> 544663 | D237: =distributions!D160 -> 558265 | G237: =distributions!T160 -> 162376 | H237: =distributions!U160 -> 190973
A238: 152 | B238: LENOX | C238: =distributions!C161 -> 1279101 | D238: =distributions!D161 -> 1329856 | G238: =distributions!T161 -> 308326 | H238: =distributions!U161 -> 285344
A239: 153 | B239: LEOMINSTER | C239: =distributions!C162 -> 1401012 | D239: =distributions!D162 -> 1367932 | G239: =distributions!T162 -> 1875141 | H239: =distributions!U162 -> 1886475
A240: 154 | B240: LEVERETT | C240: =distributions!C163 -> 163072 | D240: =distributions!D163 -> 139816 | G240: =distributions!T163 -> 35971 | H240: =distributions!U163 -> 31700
A241: 155 | B241: LEXINGTON | C241: =distributions!C164 -> 0 | D241: =distributions!D164 -> 0 | G241: =distributions!T164 -> 16859 | H241: =distributions!U164 -> 38500
A242: 156 | B242: LEYDEN | C242: =distributions!C165 -> 0 | D242: =distributions!D165 -> 0 | G242: =distributions!T165 -> 0 | H242: =distributions!U165 -> 0
A243: 157 | B243: LINCOLN | C243: =distributions!C166 -> 0 | D243: =distributions!D166 -> 0 | G243: =distributions!T166 -> 0 | H243: =distributions!U166 -> 20100
A244: 158 | B244: LITTLETON | C244: =distributions!C167 -> 373331 | D244: =distributions!D167 -> 453343 | G244: =distributions!T167 -> 102084 | H244: =distributions!U167 -> 145578
A245: 159 | B245: LONGMEADOW | C245: =distributions!C168 -> 364404 | D245: =distributions!D168 -> 284642 | G245: =distributions!T168 -> 8953 | H245: =distributions!U168 -> 5000
A246: 160 | B246: LOWELL | C246: =distributions!C169 -> 0 | D246: =distributions!D169 -> 0 | G246: =distributions!T169 -> 685289 | H246: =distributions!U169 -> 889811
A247: 161 | B247: LUDLOW | C247: =distributions!C170 -> 499229 | D247: =distributions!D170 -> 611083 | G247: =distributions!T170 -> 204660 | H247: =distributions!U170 -> 212834
A248: 162 | B248: LUNENBURG | C248: =distributions!C171 -> 227741 | D248: =distributions!D171 -> 303389 | G248: =distributions!T171 -> 517649 | H248: =distributions!U171 -> 439103
A249: 163 | B249: LYNN | C249: =distributions!C172 -> 0 | D249: =distributions!D172 -> 0 | G249: =distributions!T172 -> 457634 | H249: =distributions!U172 -> 606998
A250: 164 | B250: LYNNFIELD | C250: =distributions!C173 -> 0 | D250: =distributions!D173 -> 0 | G250: =distributions!T173 -> 0 | H250: =distributions!U173 -> 0
A251: 165 | B251: MALDEN | C251: =distributions!C174 -> 0 | D251: =distributions!D174 -> 0 | G251: =distributions!T174 -> 32981 | H251: =distributions!U174 -> 50800
A252: 166 | B252: MANCHESTER | C252: =distributions!C175 -> 0 | D252: =distributions!D175 -> 0 | G252: =distributions!T175 -> 0 | H252: =distributions!U175 -> 0
A253: 167 | B253: MANSFIELD | C253: =distributions!C176 -> 0 | D253: =distributions!D176 -> 0 | G253: =distributions!T176 -> 34028 | H253: =distributions!U176 -> 37600
A254: 168 | B254: MARBLEHEAD | C254: =distributions!C177 -> 0 | D254: =distributions!D177 -> 0 | G254: =distributions!T177 -> 13467 | H254: =distributions!U177 -> 34100
A255: 169 | B255: MARION | C255: =distributions!C178 -> 0 | D255: =distributions!D178 -> 0 | G255: =distributions!T178 -> 9514 | H255: =distributions!U178 -> 0
A256: 170 | B256: MARLBOROUGH | C256: =distributions!C179 -> 0 | D256: =distributions!D179 -> 0 | G256: =distributions!T179 -> 560509 | H256: =distributions!U179 -> 526099
A257: 171 | B257: MARSHFIELD | C257: =distributions!C180 -> 34000 | D257: =distributions!D180 -> 25000 | G257: =distributions!T180 -> 37942 | H257: =distributions!U180 -> 33500
A258: 172 | B258: MASHPEE | C258: =distributions!C181 -> 442050 | D258: =distributions!D181 -> 397671 | G258: =distributions!T181 -> 389807 | H258: =distributions!U181 -> 476511
A259: 173 | B259: MATTAPOISETT | C259: =distributions!C182 -> 42512 | D259: =distributions!D182 -> 37512 | G259: =distributions!T182 -> 11859 | H259: =distributions!U182 -> 14481
A260: 174 | B260: MAYNARD | C260: =distributions!C183 -> 264647 | D260: =distributions!D183 -> 335347 | G260: =distributions!T183 -> 80595 | H260: =distributions!U183 -> 52445
A261: 175 | B261: MEDFIELD | C261: =distributions!C184 -> 0 | D261: =distributions!D184 -> 0 | G261: =distributions!T184 -> 28450 | H261: =distributions!U184 -> 34100
A262: 176 | B262: MEDFORD | C262: =distributions!C185 -> 0 | D262: =distributions!D185 -> 0 | G262: =distributions!T185 -> 16712 | H262: =distributions!U185 -> 62200
A263: 177 | B263: MEDWAY | C263: =distributions!C186 -> 347095 | D263: =distributions!D186 -> 549040 | G263: =distributions!T186 -> 265066 | H263: =distributions!U186 -> 261598
A264: 178 | B264: MELROSE | C264: =distributions!C187 -> 53150 | D264: =distributions!D187 -> 130000 | G264: =distributions!T187 -> 14514 | H264: =distributions!U187 -> 20103
A265: 179 | B265: MENDON | C265: =distributions!C188 -> 0 | D265: =distributions!D188 -> 0 | G265: =distributions!T188 -> 0 | H265: =distributions!U188 -> 0
A266: 180 | B266: MERRIMAC | C266: =distributions!C189 -> 0 | D266: =distributions!D189 -> 0 | G266: =distributions!T189 -> 0 | H266: =distributions!U189 -> 0
A267: 181 | B267: METHUEN | C267: =distributions!C190 -> 0 | D267: =distributions!D190 -> 0 | G267: =distributions!T190 -> 95709 | H267: =distributions!U190 -> 142700
A268: 182 | B268: MIDDLEBOROUGH | C268: =distributions!C191 -> 15000 | D268: =distributions!D191 -> 25000 | G268: =distributions!T191 -> 231623 | H268: =distributions!U191 -> 245319
A269: 183 | B269: MIDDLEFIELD | C269: =distributions!C192 -> 0 | D269: =distributions!D192 -> 0 | G269: =distributions!T192 -> 0 | H269: =distributions!U192 -> 0
A270: 184 | B270: MIDDLETON | C270: =distributions!C193 -> 0 | D270: =distributions!D193 -> 0 | G270: =distributions!T193 -> 5561 | H270: =distributions!U193 -> 6700
A271: 185 | B271: MILFORD | C271: =distributions!C194 -> 459014 | D271: =distributions!D194 -> 442124 | G271: =distributions!T194 -> 1042782 | H271: =distributions!U194 -> 1178463
A272: 186 | B272: MILLBURY | C272: =distributions!C195 -> 0 | D272: =distributions!D195 -> 0 | G272: =distributions!T195 -> 118671 | H272: =distributions!U195 -> 159604
A273: 187 | B273: MILLIS | C273: =distributions!C196 -> 419555 | D273: =distributions!D196 -> 376474 | G273: =distributions!T196 -> 168883 | H273: =distributions!U196 -> 197848
A274: 188 | B274: MILLVILLE | C274: =distributions!C197 -> 0 | D274: =distributions!D197 -> 0 | G274: =distributions!T197 -> 0 | H274: =distributions!U197 -> 0
A275: 189 | B275: MILTON | C275: =distributions!C198 -> 0 | D275: =distributions!D198 -> 0 | G275: =distributions!T198 -> 19028 | H275: =distributions!U198 -> 26800
A276: 190 | B276: MONROE | C276: =distributions!C199 -> 0 | D276: =distributions!D199 -> 0 | G276: =distributions!T199 -> 1850 | H276: =distributions!U199 -> 5000
A277: 191 | B277: MONSON | C277: =distributions!C200 -> 239656 | D277: =distributions!D200 -> 308926 | G277: =distributions!T200 -> 170503 | H277: =distributions!U200 -> 207987
A278: 192 | B278: MONTAGUE | C278: =distributions!C201 -> 0 | D278: =distributions!D201 -> 0 | G278: =distributions!T201 -> 0 | H278: =distributions!U201 -> 0
A279: 193 | B279: MONTEREY | C279: =distributions!C202 -> 0 | D279: =distributions!D202 -> 0 | G279: =distributions!T202 -> 0 | H279: =distributions!U202 -> 0
A280: 194 | B280: MONTGOMERY | C280: =distributions!C203 -> 0 | D280: =distributions!D203 -> 0 | G280: =distributions!T203 -> 0 | H280: =distributions!U203 -> 0
A281: 195 | B281: MOUNT WASHINGTON | C281: =distributions!C204 -> 0 | D281: =distributions!D204 -> 0 | G281: =distributions!T204 -> 5000 | H281: =distributions!U204 -> 5000
A282: 196 | B282: NAHANT | C282: =distributions!C205 -> 0 | D282: =distributions!D205 -> 0 | G282: =distributions!T205 -> 0 | H282: =distributions!U205 -> 0
A283: 197 | B283: NANTUCKET | C283: =distributions!C206 -> 0 | D283: =distributions!D206 -> 0 | G283: =distributions!T206 -> 0 | H283: =distributions!U206 -> 6700
A284: 198 | B284: NATICK | C284: =distributions!C207 -> 245600 | D284: =distributions!D207 -> 261473 | G284: =distributions!T207 -> 70718 | H284: =distributions!U207 -> 74094
A285: 199 | B285: NEEDHAM | C285: =distributions!C208 -> 0 | D285: =distributions!D208 -> 0 | G285: =distributions!T208 -> 30663 | H285: =distributions!U208 -> 42500
... 243 more rows

Sheet fte10yr (hidden)
H1: chosum10finalnov | I1: chosum11final | J1: chosum12finaldec | K1: chosum13final | L1: chosum14final | M1: choice15final | N1: this file | V1: chosum10finalnov | W1: chosum11final | X1: chosum12finaldec | Y1: chosum13final | Z1: chosum14final | AA1: choice15final
J2: dec 20 2012 | K2: jun16 2014 | L2: dec 23 2014 | M2: june 15 2016 | X2: dec 20 2012 | Y2: jun16 2014 | Z2: dec 23 2014 | AA2: june 15 2016
D5: receiving fte's, final
A9: lea | B9: district | C9: FY05 | D9: FY06 | E9: FY07 | F9: FY08 | G9: FY09 | H9: FY10 | I9: FY11 | J9: FY12 | K9: FY13 | L9: FY14 | M9: FY15 | N9: FY16 | Q9: FY05 | R9: FY06 | S9: FY07 | T9: FY08 | U9: FY09 | V9: FY10 | W9: FY11 | X9: FY12 | Y9: FY13 | Z9: FY14 | AA9: FY15 | AB9: FY16
A10: 1 | B10: ABINGTON | C10: 0 | D10: 0 | E10: 0 | F10: 0 | G10: 0 | H10: 0 | I10: 0 | J10: 0 | K10: 0 | L10: 2 | M10: 2 | N10: =june!E10 -> 1 | Q10: 1 | R10: 2 | S10: 2 | T10: 3 | U10: 3 | V10: 1.2 | W10: 2 | X10: 6 | Y10: 5.21 | Z10: 9.7 | AA10: 29.2 | AB10: =june!G10 -> 33.49
A11: 2 | B11: ACTON | C11: 0 | D11: 0 | E11: 0 | F11: 0 | G11: 0 | H11: 0 | I11: 0 | J11: 0 | K11: 0 | L11: 0 | M11: 0 | N11: =june!E11 -> 0 | Q11: 3 | R11: 0.39 | S11: 1.78 | T11: 3 | U11: 1.53 | V11: 3 | W11: 2 | X11: 11.04 | Y11: 5.79 | Z11: 10.36 | AA11: 0 | AB11: =june!G11 -> 0
A12: 3 | B12: ACUSHNET | C12: 0 | D12: 0 | E12: 0 | F12: 0 | G12: 0 | H12: 0 | I12: 0 | J12: 0 | K12: 0 | L12: 0 | M12: 0 | N12: =june!E12 -> 0 | Q12: 3 | R12: 2.3 | S12: 1 | T12: 0 | U12: 0 | V12: 1 | W12: 4 | X12: 5 | Y12: 7 | Z12: 11.5 | AA12: 11.12 | AB12: =june!G12 -> 18.63
A13: 4 | B13: ADAMS | C13: 0 | D13: 0 | E13: 0 | F13: 0 | G13: 0 | H13: 0 | I13: 0 | J13: 0 | K13: 0 | L13: 0 | M13: 0 | N13: =june!E13 -> 0 | Q13: 0 | R13: 0 | S13: 0 | T13: 0 | U13: 0 | V13: 0 | W13: 0 | X13: 0 | Y13: 0 | Z13: 0 | AA13: 0 | AB13: =june!G13 -> 0
A14: 5 | B14: AGAWAM | C14: 65.47 | D14: 68.75 | E14: 73.72 | F14: 76.5 | G14: 78.22 | H14: 71.03 | I14: 78.89 | J14: 80.77 | K14: 74.89 | L14: 82 | M14: 80.57 | N14: =june!E14 -> 76.02 | Q14: 36.29 | R14: 36.43 | S14: 34.47 | T14: 43.03 | U14: 28.66 | V14: 34.37 | W14: 40.13 | X14: 38.24 | Y14: 43.33 | Z14: 54.18 | AA14: 43.25 | AB14: =june!G14 -> 46.1
A15: 6 | B15: ALFORD | C15: 0 | D15: 0 | E15: 0 | F15: 0 | G15: 0 | H15: 0 | I15: 0 | J15: 0 | K15: 0 | L15: 0 | M15: 0 | N15: =june!E15 -> 0 | Q15: 0 | R15: 0 | S15: 0 | T15: 0 | U15: 0 | V15: 0 | W15: 0 | X15: 0 | Y15: 0 | Z15: 0 | AA15: 0 | AB15: =june!G15 -> 0
A16: 7 | B16: AMESBURY | C16: 106.75 | D16: 87.6 | E16: 101.98 | F16: 111.33 | G16: 112.17 | H16: 103.15 | I16: 86.45 | J16: 69.33 | K16: 55.16 | L16: 41.43 | M16: 30 | N16: =june!E16 -> 12.36 | Q16: 129.57 | R16: 112.735 | S16: 115.315 | T16: 95.35 | U16: 82.51 | V16: 72.94 | W16: 74.01 | X16: 72.97 | Y16: 78.59 | Z16: 75.5 | AA16: 73.9 | AB16: =june!G16 -> 59.69
A17: 8 | B17: AMHERST | C17: 0 | D17: 0 | E17: 0 | F17: 0 | G17: 0 | H17: 0 | I17: 0 | J17: 0 | K17: 36.1 | L17: 39.12 | M17: 53.85 | N17: =june!E17 -> 49.96 | Q17: 15.15 | R17: 14.75 | S17: 24.36 | T17: 26.48 | U17: 33.18 | V17: 30.83 | W17: 27.11 | X17: 28.64 | Y17: 28.64 | Z17: 24.41 | AA17: 22.13 | AB17: =june!G17 -> 25.07
A18: 9 | B18: ANDOVER | C18: 0 | D18: 0 | E18: 0 | F18: 0 | G18: 0 | H18: 0 | I18: 0 | J18: 0 | K18: 0 | L18: 0 | M18: 0 | N18: =june!E18 -> 0 | Q18: 2.73 | R18: 1 | S18: 1 | T18: 1 | U18: 2 | V18: 1.57 | W18: 2 | X18: 1 | Y18: 1 | Z18: 0.83 | AA18: 5.34 | AB18: =june!G18 -> 4
A19: 10 | B19: ARLINGTON | C19: 0 | D19: 0 | E19: 0 | F19: 0 | G19: 0 | H19: 0 | I19: 0 | J19: 0 | K19: 0 | L19: 0 | M19: 0 | N19: =june!E19 -> 0 | Q19: 6 | R19: 6 | S19: 5 | T19: 0 | U19: 0 | V19: 0 | W19: 0 | X19: 0 | Y19: 0 | Z19: 0 | AA19: 0.91 | AB19: =june!G19 -> 1.96
A20: 11 | B20: ASHBURNHAM | C20: 0 | D20: 0 | E20: 0 | F20: 0 | G20: 0 | H20: 0 | I20: 0 | J20: 0 | K20: 0 | L20: 0 | M20: 0 | N20: =june!E20 -> 0 | Q20: 0 | R20: 0 | S20: 0 | T20: 0 | U20: 0 | V20: 0 | W20: 0 | X20: 0 | Y20: 0 | Z20: 0 | AA20: 0 | AB20: =june!G20 -> 0
A21: 12 | B21: ASHBY | C21: 0 | D21: 0 | E21: 0 | F21: 0 | G21: 0 | H21: 0 | I21: 0 | J21: 0 | K21: 0 | L21: 0 | M21: 0 | N21: =june!E21 -> 0 | Q21: 0 | R21: 0 | S21: 0 | T21: 0 | U21: 0 | V21: 0 | W21: 0 | X21: 0 | Y21: 0 | Z21: 0 | AA21: 0 | AB21: =june!G21 -> 0
A22: 13 | B22: ASHFIELD | C22: 0 | D22: 0 | E22: 0 | F22: 0 | G22: 0 | H22: 0 | I22: 0 | J22: 0 | K22: 0 | L22: 0 | M22: 0 | N22: =june!E22 -> 0 | Q22: 0 | R22: 0 | S22: 0 | T22: 0 | U22: 0 | V22: 0 | W22: 0 | X22: 0 | Y22: 0 | Z22: 0 | AA22: 0 | AB22: =june!G22 -> 0
A23: 14 | B23: ASHLAND | C23: 12.55 | D23: 11.15 | E23: 13.88 | F23: 11.775 | G23: 18.6 | H23: 15 | I23: 22.61 | J23: 24.47 | K23: 28.73 | L23: 26.1 | M23: 31.76 | N23: =june!E23 -> 43.43 | Q23: 14 | R23: 10.78 | S23: 9 | T23: 8.26 | U23: 7 | V23: 9.19 | W23: 9.5 | X23: 9.96 | Y23: 11.24 | Z23: 12.44 | AA23: 15.78 | AB23: =june!G23 -> 13.86
A24: 15 | B24: ATHOL | C24: 0 | D24: 0 | E24: 0 | F24: 0 | G24: 0 | H24: 0 | I24: 0 | J24: 0 | K24: 0 | L24: 0 | M24: 0 | N24: =june!E24 -> 0 | Q24: 0 | R24: 0 | S24: 0 | T24: 0 | U24: 0 | V24: 0 | W24: 0 | X24: 0 | Y24: 0 | Z24: 0 | AA24: 0 | AB24: =june!G24 -> 0
A25: 16 | B25: ATTLEBORO | C25: 0 | D25: 0 | E25: 0 | F25: 0 | G25: 0 | H25: 0 | I25: 0 | J25: 0 | K25: 0 | L25: 0 | M25: 0 | N25: =june!E25 -> 0 | Q25: 2.58 | R25: 5 | S25: 2.49 | T25: 3.67 | U25: 4.37 | V25: 6 | W25: 7.5 | X25: 10.68 | Y25: 11.13 | Z25: 7.48 | AA25: 18.78 | AB25: =june!G25 -> 26.33
A26: 17 | B26: AUBURN | C26: 0 | D26: 0 | E26: 13.91 | F26: 17.11 | G26: 18.98 | H26: 22.04 | I26: 21 | J26: 35.89 | K26: 34.89 | L26: 40.74 | M26: 46.91 | N26: =june!E26 -> 62.09 | Q26: 13.11 | R26: 12.23 | S26: 10.48 | T26: 11.12 | U26: 17.15 | V26: 22.49 | W26: 23.71 | X26: 32.92 | Y26: 28.66 | Z26: 21.27 | AA26: 23.87 | AB26: =june!G26 -> 17.8
A27: 18 | B27: AVON | C27: 145.24 | D27: 158.15 | E27: 185.49 | F27: 191.31 | G27: 180.18 | H27: 174.41 | I27: 185.61 | J27: 169.64 | K27: 175.18 | L27: 184.97 | M27: 182.16 | N27: =june!E27 -> 188.18 | Q27: 1 | R27: 1 | S27: 2.75 | T27: 1 | U27: 4 | V27: 3 | W27: 3 | X27: 0.86 | Y27: 1 | Z27: 3 | AA27: 5.49 | AB27: =june!G27 -> 1.69
A28: 19 | B28: AYER | C28: 229.02 | D28: 184 | E28: 164.86 | F28: 152.35 | G28: 149.72 | H28: 163.52 | I28: 119.72 | J28: 0 | K28: 0 | L28: 0 | M28: 0 | N28: =june!E28 -> 0 | Q28: 27.7 | R28: 28.17 | S28: 28.22 | T28: 35.36 | U28: 37.52 | V28: 45.83 | W28: 55.49 | X28: 0 | Y28: 0 | Z28: 0 | AA28: 0 | AB28: =june!G28 -> 0
A29: 20 | B29: BARNSTABLE | C29: 14.67 | D29: 24.19 | E29: 28.86 | F29: 38.11 | G29: 77.34 | H29: 66.6 | I29: 72.97 | J29: 82.03 | K29: 95.39 | L29: 115.79 | M29: 104.86 | N29: =june!E29 -> 101.78 | Q29: 63.545 | R29: 74.975 | S29: 61.38 | T29: 63.71 | U29: 57.47 | V29: 67.57 | W29: 82.23 | X29: 105.49 | Y29: 123.6 | Z29: 111.49 | AA29: 153.61 | AB29: =june!G29 -> 155.45
A30: 21 | B30: BARRE | C30: 0 | D30: 0 | E30: 0 | F30: 0 | G30: 0 | H30: 0 | I30: 0 | J30: 0 | K30: 0 | L30: 0 | M30: 0 | N30: =june!E30 -> 0 | Q30: 0 | R30: 0 | S30: 0 | T30: 0 | U30: 0 | V30: 0 | W30: 0 | X30: 0 | Y30: 0 | Z30: 0 | AA30: 0 | AB30: =june!G30 -> 0
A31: 22 | B31: BECKET | C31: 0 | D31: 0 | E31: 0 | F31: 0 | G31: 0 | H31: 0 | I31: 0 | J31: 0 | K31: 0 | L31: 0 | M31: 0 | N31: =june!E31 -> 0 | Q31: 1 | R31: 3 | S31: 3 | T31: 1 | U31: 0 | V31: 2 | W31: 0 | X31: 2 | Y31: 2 | Z31: 5 | AA31: 2 | AB31: =june!G31 -> 3
A32: 23 | B32: BEDFORD | C32: 0 | D32: 0 | E32: 0 | F32: 0 | G32: 0 | H32: 0 | I32: 0 | J32: 0 | K32: 0 | L32: 0 | M32: 0 | N32: =june!E32 -> 0 | Q32: 1.09 | R32: 1 | S32: 0 | T32: 0 | U32: 0 | V32: 1 | W32: 1.34 | X32: 6.2 | Y32: 2 | Z32: 4 | AA32: 1.9 | AB32: =june!G32 -> 4.16
A33: 24 | B33: BELCHERTOWN | C33: 58.65 | D33: 60.78 | E33: 52.12 | F33: 39.75 | G33: 34.05 | H33: 24.86 | I33: 28.73 | J33: 33 | K33: 49 | L33: 53.26 | M33: 99.51 | N33: =june!E33 -> 123.49 | Q33: 44.36 | R33: 39.09 | S33: 49.14 | T33: 52.29 | U33: 48.99 | V33: 46.73 | W33: 56.01 | X33: 67.68 | Y33: 71.49 | Z33: 77.6 | AA33: 85.86 | AB33: =june!G33 -> 95.69
A34: 25 | B34: BELLINGHAM | C34: 0 | D34: 0 | E34: 15.745 | F34: 42.41 | G34: 45.18 | H34: 32.69 | I34: 38.34 | J34: 38.31 | K34: 41.48 | L34: 41.8 | M34: 45.33 | N34: =june!E34 -> 39.19 | Q34: 52.6 | R34: 56.15 | S34: 56.165 | T34: 72.81 | U34: 76.505 | V34: 84.84 | W34: 83.2 | X34: 75.67 | Y34: 68.17 | Z34: 89.38 | AA34: 122.36 | AB34: =june!G34 -> 135.85
A35: 26 | B35: BELMONT | C35: 51.47 | D35: 44 | E35: 18 | F35: 0 | G35: 0 | H35: 0 | I35: 0 | J35: 0 | K35: 0 | L35: 0 | M35: 0 | N35: =june!E35 -> 0 | Q35: 0 | R35: 0 | S35: 0 | T35: 0 | U35: 1 | V35: 0 | W35: 0 | X35: 3 | Y35: 0 | Z35: 0 | AA35: 0.14 | AB35: =june!G35 -> 1.3
A36: 27 | B36: BERKLEY | C36: 10.5 | D36: 7 | E36: 13 | F36: 13.8 | G36: 19.6 | H36: 22.62 | I36: 22.98 | J36: 36.14 | K36: 48.41 | L36: 64.22 | M36: 78.6 | N36: =june!E36 -> 104.16 | Q36: 18.05 | R36: 15.9 | S36: 17.4 | T36: 19.28 | U36: 17.15 | V36: 19.6 | W36: 16.46 | X36: 7 | Y36: 3.85 | Z36: 3.53 | AA36: 2 | AB36: =june!G36 -> 1.85
A37: 28 | B37: BERLIN | C37: 8.21 | D37: 9.67 | E37: 9 | F37: 10 | G37: 11 | H37: 10.5 | I37: 12 | J37: 22.2 | K37: 36 | L37: 27.96 | M37: 18 | N37: =june!E37 -> 19.41 | Q37: 1 | R37: 1 | S37: 1 | T37: 3 | U37: 3 | V37: 3 | W37: 14.77 | X37: 10.12 | Y37: 6.77 | Z37: 3 | AA37: 0 | AB37: =june!G37 -> 1
A38: 29 | B38: BERNARDSTON | C38: 0 | D38: 0 | E38: 0 | F38: 0 | G38: 0 | H38: 0 | I38: 0 | J38: 0 | K38: 0 | L38: 0 | M38: 0 | N38: =june!E38 -> 0 | Q38: 0 | R38: 0 | S38: 0 | T38: 0 | U38: 0 | V38: 0 | W38: 0 | X38: 0 | Y38: 0 | Z38: 0 | AA38: 0 | AB38: =june!G38 -> 0
A39: 30 | B39: BEVERLY | C39: 75.37 | D39: 62.35 | E39: 71.025 | F39: 68.785 | G39: 67.5 | H39: 68.31 | I39: 53.76 | J39: 48.52 | K39: 64.04 | L39: 92.12 | M39: 95.32 | N39: =june!E39 -> 103.3 | Q39: 106.67 | R39: 106.42 | S39: 107.82 | T39: 110.9 | U39: 117.3 | V39: 94.06 | W39: 80.72 | X39: 77.72 | Y39: 74.51 | Z39: 67.23 | AA39: 67.29 | AB39: =june!G39 -> 59.34
A40: 31 | B40: BILLERICA | C40: 0 | D40: 0 | E40: 0 | F40: 0 | G40: 0 | H40: 0 | I40: 0 | J40: 0 | K40: 0 | L40: 0 | M40: 0 | N40: =june!E40 -> 0 | Q40: 2.78 | R40: 3 | S40: 1 | T40: 1.5 | U40: 2 | V40: 2 | W40: 7 | X40: 11.1 | Y40: 10.22 | Z40: 10.43 | AA40: 18.3 | AB40: =june!G40 -> 17.97
A41: 32 | B41: BLACKSTONE | C41: 0 | D41: 0 | E41: 0 | F41: 0 | G41: 0 | H41: 0 | I41: 0 | J41: 0 | K41: 0 | L41: 0 | M41: 0 | N41: =june!E41 -> 0 | Q41: 0 | R41: 0 | S41: 0 | T41: 0 | U41: 0 | V41: 0 | W41: 0 | X41: 0 | Y41: 0 | Z41: 0 | AA41: 0 | AB41: =june!G41 -> 0
A42: 33 | B42: BLANDFORD | C42: 0 | D42: 0 | E42: 0 | F42: 0 | G42: 0 | H42: 0 | I42: 0 | J42: 0 | K42: 0 | L42: 0 | M42: 0 | N42: =june!E42 -> 0 | Q42: 0 | R42: 1 | S42: 1 | T42: 0 | U42: 0 | V42: 0 | W42: 0 | X42: 0 | Y42: 0 | Z42: 0 | AA42: 0 | AB42: =june!G42 -> 2
A43: 34 | B43: BOLTON | C43: 0 | D43: 0 | E43: 0 | F43: 0 | G43: 0 | H43: 0 | I43: 0 | J43: 0 | K43: 0 | L43: 0 | M43: 0 | N43: =june!E43 -> 0 | Q43: 0 | R43: 0 | S43: 0 | T43: 0 | U43: 0 | V43: 0 | W43: 0 | X43: 0 | Y43: 0 | Z43: 0 | AA43: 0 | AB43: =june!G43 -> 0
A44: 35 | B44: BOSTON | C44: 0 | D44: 0 | E44: 0 | F44: 0 | G44: 0 | H44: 0 | I44: 0 | J44: 0 | K44: 0 | L44: 0 | M44: 0 | N44: =june!E44 -> 0 | Q44: 59.45 | R44: 49.66 | S44: 48.3 | T44: 43.01 | U44: 38.21 | V44: 35.48 | W44: 27.99 | X44: 61.93 | Y44: 40.17 | Z44: 48.02 | AA44: 76.94 | AB44: =june!G44 -> 93.08
A45: 36 | B45: BOURNE | C45: 0 | D45: 9.33 | E45: 17.26 | F45: 33.38 | G45: 18.86 | H45: 36.41 | I45: 44.04 | J45: 42.78 | K45: 40.77 | L45: 73.29 | M45: 126.46 | N45: =june!E45 -> 134.9 | Q45: 6.83 | R45: 5.88 | S45: 5.64 | T45: 10.31 | U45: 20.63 | V45: 27.46 | W45: 33.205 | X45: 48.53 | Y45: 64.25 | Z45: 81.83 | AA45: 94.72 | AB45: =june!G45 -> 95.58
A46: 37 | B46: BOXBOROUGH | C46: 0 | D46: 0 | E46: 0 | F46: 24.5 | G46: 31 | H46: 30.5 | I46: 25.5 | J46: 26.26 | K46: 20 | L46: 27 | M46: 0 | N46: =june!E46 -> 0 | Q46: 0 | R46: 0 | S46: 0.25 | T46: 0.11 | U46: 0 | V46: 0 | W46: 0 | X46: 0 | Y46: 0.38 | Z46: 0 | AA46: 0 | AB46: =june!G46 -> 0
A47: 38 | B47: BOXFORD | C47: 0 | D47: 0 | E47: 0 | F47: 0 | G47: 0 | H47: 0 | I47: 0 | J47: 0 | K47: 0 | L47: 0 | M47: 0 | N47: =june!E47 -> 0 | Q47: 1 | R47: 0 | S47: 0 | T47: 2.4 | U47: 1 | V47: 0 | W47: 0.57 | X47: 0.51 | Y47: 0.67 | Z47: 1 | AA47: 1 | AB47: =june!G47 -> 3
A48: 39 | B48: BOYLSTON | C48: 10 | D48: 10.5 | E48: 16 | F48: 20.5 | G48: 25.51 | H48: 23 | I48: 15.7 | J48: 12 | K48: 21.5 | L48: 17 | M48: 13 | N48: =june!E48 -> 17 | Q48: 0 | R48: 1 | S48: 1 | T48: 3 | U48: 3.5 | V48: 4 | W48: 6 | X48: 8.5 | Y48: 11.5 | Z48: 6 | AA48: 7.66 | AB48: =june!G48 -> 5.6
A49: 40 | B49: BRAINTREE | C49: 0 | D49: 0 | E49: 0 | F49: 0 | G49: 0 | H49: 0 | I49: 0 | J49: 0 | K49: 0 | L49: 0 | M49: 0 | N49: =june!E49 -> 0 | Q49: 0 | R49: 0 | S49: 0.94 | T49: 1 | U49: 1.38 | V49: 2 | W49: 0 | X49: 6.08 | Y49: 5.79 | Z49: 5.81 | AA49: 6.23 | AB49: =june!G49 -> 5.19
A50: 41 | B50: BREWSTER | C50: 0 | D50: 0 | E50: 0 | F50: 0 | G50: 0 | H50: 0 | I50: 0 | J50: 0 | K50: 0 | L50: 0 | M50: 0 | N50: =june!E50 -> 0 | Q50: 18.36 | R50: 26.01 | S50: 16.745 | T50: 19.04 | U50: 16.71 | V50: 16.11 | W50: 17.18 | X50: 13.53 | Y50: 17.74 | Z50: 17 | AA50: 22.8 | AB50: =june!G50 -> 32.25
A51: 42 | B51: BRIDGEWATER | C51: 0 | D51: 0 | E51: 0 | F51: 0 | G51: 0 | H51: 0 | I51: 0 | J51: 0 | K51: 0 | L51: 0 | M51: 0 | N51: =june!E51 -> 0 | Q51: 0 | R51: 0 | S51: 0 | T51: 0 | U51: 0 | V51: 0 | W51: 0 | X51: 0 | Y51: 0 | Z51: 0 | AA51: 0 | AB51: =june!G51 -> 0
A52: 43 | B52: BRIMFIELD | C52: 0 | D52: 0 | E52: 0 | F52: 0 | G52: 0 | H52: 0 | I52: 0 | J52: 0 | K52: 0 | L52: 0 | M52: 0 | N52: =june!E52 -> 0 | Q52: 1.84 | R52: 3.21 | S52: 1 | T52: 3.02 | U52: 3.91 | V52: 3.16 | W52: 0.24 | X52: 3.88 | Y52: 5.1 | Z52: 6.05 | AA52: 9.37 | AB52: =june!G52 -> 7.13
A53: 44 | B53: BROCKTON | C53: 0 | D53: 0 | E53: 0 | F53: 3 | G53: 11.74 | H53: 12 | I53: 12.12 | J53: 16.16 | K53: 15.03 | L53: 18.96 | M53: 23 | N53: =june!E53 -> 23.43 | Q53: 156.86 | R53: 172.41 | S53: 183.94 | T53: 186.67 | U53: 179.52 | V53: 158.95 | W53: 160.07 | X53: 155.95 | Y53: 180.5 | Z53: 185.34 | AA53: 191.08 | AB53: =june!G53 -> 235.67
A54: 45 | B54: BROOKFIELD | C54: 6.58 | D54: 14.51 | E54: 21.01 | F54: 26.86 | G54: 28.88 | H54: 30.8 | I54: 44.66 | J54: 55.3 | K54: 54.15 | L54: 57.66 | M54: 60.86 | N54: =june!E54 -> 56.91 | Q54: 15.44 | R54: 18.16 | S54: 26.66 | T54: 20.79 | U54: 16.91 | V54: 14.13 | W54: 16.04 | X54: 7.94 | Y54: 7.94 | Z54: 7.35 | AA54: 2.28 | AB54: =june!G54 -> 2.63
A55: 46 | B55: BROOKLINE | C55: 0 | D55: 0 | E55: 0 | F55: 0 | G55: 0 | H55: 0 | I55: 0 | J55: 0 | K55: 0 | L55: 0 | M55: 0 | N55: =june!E55 -> 0 | Q55: 1 | R55: 0 | S55: 0 | T55: 0 | U55: 0 | V55: 0 | W55: 0.18 | X55: 1 | Y55: 2 | Z55: 2 | AA55: 0 | AB55: =june!G55 -> 1.31
A56: 47 | B56: BUCKLAND | C56: 0 | D56: 0 | E56: 0 | F56: 0 | G56: 0 | H56: 0 | I56: 0 | J56: 0 | K56: 0 | L56: 0 | M56: 0 | N56: =june!E56 -> 0 | Q56: 0 | R56: 0 | S56: 0 | T56: 0 | U56: 0 | V56: 0 | W56: 0 | X56: 0 | Y56: 0 | Z56: 0 | AA56: 0 | AB56: =june!G56 -> 0
A57: 48 | B57: BURLINGTON | C57: 0 | D57: 0 | E57: 0 | F57: 0 | G57: 0 | H57: 0 | I57: 10.98 | J57: 16.16 | K57: 20.41 | L57: 23.31 | M57: 25.02 | N57: =june!E57 -> 28.93 | Q57: 0 | R57: 1.72 | S57: 1 | T57: 2 | U57: 1 | V57: 1.34 | W57: 0.45 | X57: 0 | Y57: 1 | Z57: 0 | AA57: 3.5 | AB57: =june!G57 -> 3.88
A58: 49 | B58: CAMBRIDGE | C58: 0 | D58: 0 | E58: 0 | F58: 0 | G58: 0 | H58: 0 | I58: 0 | J58: 0 | K58: 0 | L58: 0 | M58: 0 | N58: =june!E58 -> 0 | Q58: 11.48 | R58: 10 | S58: 5.19 | T58: 0.44 | U58: 0 | V58: 0 | W58: 0.45 | X58: 1 | Y58: 0 | Z58: 1.08 | AA58: 4.9 | AB58: =june!G58 -> 5.41
A59: 50 | B59: CANTON | C59: 0 | D59: 0 | E59: 0 | F59: 0 | G59: 0 | H59: 0 | I59: 0 | J59: 0 | K59: 0 | L59: 0 | M59: 0 | N59: =june!E59 -> 0 | Q59: 0 | R59: 0 | S59: 0 | T59: 1 | U59: 0 | V59: 0 | W59: 0 | X59: 2 | Y59: 2 | Z59: 0 | AA59: 0.03 | AB59: =june!G59 -> 1.4
A60: 51 | B60: CARLISLE | C60: 0 | D60: 0 | E60: 0 | F60: 0 | G60: 0 | H60: 0 | I60: 0 | J60: 0 | K60: 0 | L60: 0 | M60: 0 | N60: =june!E60 -> 0 | Q60: 0 | R60: 0 | S60: 0 | T60: 1 | U60: 0 | V60: 0 | W60: 0 | X60: 0 | Y60: 1.6 | Z60: 0 | AA60: 0 | AB60: =june!G60 -> 0
A61: 52 | B61: CARVER | C61: 0 | D61: 0 | E61: 0 | F61: 0 | G61: 0 | H61: 0 | I61: 0 | J61: 12 | K61: 10.63 | L61: 16.74 | M61: 20.64 | N61: =june!E61 -> 22.56 | Q61: 1 | R61: 1 | S61: 0.73 | T61: 0 | U61: 5.88 | V61: 2.24 | W61: 3.6 | X61: 7.97 | Y61: 4 | Z61: 6.84 | AA61: 6.71 | AB61: =june!G61 -> 4.81
A62: 53 | B62: CHARLEMONT | C62: 0 | D62: 0 | E62: 0 | F62: 0 | G62: 0 | H62: 0 | I62: 0 | J62: 0 | K62: 0 | L62: 0 | M62: 0 | N62: =june!E62 -> 0 | Q62: 0 | R62: 0 | S62: 0 | T62: 0 | U62: 0 | V62: 0 | W62: 0 | X62: 0 | Y62: 0 | Z62: 0 | AA62: 0 | AB62: =june!G62 -> 0
A63: 54 | B63: CHARLTON | C63: 0 | D63: 0 | E63: 0 | F63: 0 | G63: 0 | H63: 0 | I63: 0 | J63: 0 | K63: 0 | L63: 0 | M63: 0 | N63: =june!E63 -> 0 | Q63: 0 | R63: 0 | S63: 0 | T63: 0 | U63: 0 | V63: 0 | W63: 0 | X63: 0 | Y63: 0 | Z63: 0 | AA63: 0 | AB63: =june!G63 -> 0
A64: 55 | B64: CHATHAM | C64: 147.1 | D64: 168.04 | E64: 157.66 | F64: 168.86 | G64: 170 | H64: 171.02 | I64: 200.89 | J64: 200.94 | K64: 0 | L64: 0 | M64: 0 | N64: =june!E64 -> 0 | Q64: 16 | R64: 26.83 | S64: 26.18 | T64: 38.49 | U64: 42.46 | V64: 51.585 | W64: 57 | X64: 71.96 | Y64: 0 | Z64: 0 | AA64: 0 | AB64: =june!G64 -> 0
A65: 56 | B65: CHELMSFORD | C65: 0 | D65: 0 | E65: 0 | F65: 0 | G65: 0 | H65: 0 | I65: 13.17 | J65: 20.7 | K65: 24.77 | L65: 29.37 | M65: 44 | N65: =june!E65 -> 57.89 | Q65: 5.23 | R65: 6.29 | S65: 4.96 | T65: 10.72 | U65: 5.54 | V65: 10.64 | W65: 13.105 | X65: 21.5 | Y65: 32.92 | Z65: 37.41 | AA65: 27.55 | AB65: =june!G65 -> 29.66
A66: 57 | B66: CHELSEA | C66: 0 | D66: 0 | E66: 0 | F66: 0 | G66: 0 | H66: 0 | I66: 0 | J66: 0 | K66: 0 | L66: 0 | M66: 0 | N66: =june!E66 -> 0 | Q66: 0.28 | R66: 1 | S66: 2 | T66: 1 | U66: 2 | V66: 2.53 | W66: 0 | X66: 3.92 | Y66: 4 | Z66: 1 | AA66: 3.98 | AB66: =june!G66 -> 10.27
A67: 58 | B67: CHESHIRE | C67: 0 | D67: 0 | E67: 0 | F67: 0 | G67: 0 | H67: 0 | I67: 0 | J67: 0 | K67: 0 | L67: 0 | M67: 0 | N67: =june!E67 -> 0 | Q67: 0 | R67: 0 | S67: 0 | T67: 0 | U67: 0 | V67: 0 | W67: 0 | X67: 0 | Y67: 0 | Z67: 0 | AA67: 0 | AB67: =june!G67 -> 0
A68: 59 | B68: CHESTER | C68: 0 | D68: 0 | E68: 0 | F68: 0 | G68: 0 | H68: 0 | I68: 0 | J68: 0 | K68: 0 | L68: 0 | M68: 0 | N68: =june!E68 -> 0 | Q68: 0 | R68: 0 | S68: 0 | T68: 0 | U68: 0 | V68: 0 | W68: 0 | X68: 0 | Y68: 0 | Z68: 0 | AA68: 0 | AB68: =june!G68 -> 0
A69: 60 | B69: CHESTERFIELD | C69: 0 | D69: 0 | E69: 0 | F69: 0 | G69: 0 | H69: 0 | I69: 0 | J69: 0 | K69: 0 | L69: 0 | M69: 0 | N69: =june!E69 -> 0 | Q69: 0 | R69: 0 | S69: 0 | T69: 0 | U69: 0 | V69: 0 | W69: 0 | X69: 0 | Y69: 0 | Z69: 0 | AA69: 0 | AB69: =june!G69 -> 0
A70: 61 | B70: CHICOPEE | C70: 148.83 | D70: 167.63 | E70: 183.08 | F70: 199.78 | G70: 224.57 | H70: 228.87 | I70: 191.02 | J70: 188.23 | K70: 177.51 | L70: 189.14 | M70: 179.17 | N70: =june!E70 -> 190.44 | Q70: 78.07 | R70: 83.84 | S70: 83.34 | T70: 77.845 | U70: 80.65 | V70: 84.5 | W70: 87.54 | X70: 97.77 | Y70: 124.46 | Z70: 135.04 | AA70: 129.35 | AB70: =june!G70 -> 139.67
A71: 62 | B71: CHILMARK | C71: 0 | D71: 0 | E71: 0 | F71: 0 | G71: 0 | H71: 0 | I71: 0 | J71: 0 | K71: 0 | L71: 0 | M71: 0 | N71: =june!E71 -> 0 | Q71: 0 | R71: 0 | S71: 0 | T71: 0 | U71: 0 | V71: 0 | W71: 0 | X71: 0 | Y71: 0 | Z71: 0 | AA71: 0 | AB71: =june!G71 -> 0
A72: 63 | B72: CLARKSBURG | C72: 0 | D72: 0 | E72: 0 | F72: 0 | G72: 0 | H72: 0 | I72: 14.39 | J72: 19 | K72: 20.69 | L72: 22 | M72: 26.96 | N72: =june!E72 -> 35.39 | Q72: 8.59 | R72: 7 | S72: 13.23 | T72: 10.47 | U72: 9.39 | V72: 13.6 | W72: 9.69 | X72: 7.19 | Y72: 13.3 | Z72: 8.49 | AA72: 13.03 | AB72: =june!G72 -> 17.78
A73: 64 | B73: CLINTON | C73: 120.655 | D73: 103.29 | E73: 113.79 | F73: 119.51 | G73: 136.58 | H73: 125.19 | I73: 125.81 | J73: 136.99 | K73: 138.51 | L73: 129.94 | M73: 115.98 | N73: =june!E73 -> 82.43 | Q73: 41.5 | R73: 45.54 | S73: 45.41 | T73: 56 | U73: 52.815 | V73: 52.6 | W73: 70.11 | X73: 104.59 | Y73: 129.5 | Z73: 124.02 | AA73: 118.54 | AB73: =june!G73 -> 117.37
A74: 65 | B74: COHASSET | C74: 0 | D74: 0 | E74: 0 | F74: 0 | G74: 0 | H74: 0 | I74: 0 | J74: 0 | K74: 0 | L74: 0 | M74: 0 | N74: =june!E74 -> 0 | Q74: 0 | R74: 0 | S74: 0 | T74: 0 | U74: 0 | V74: 0 | W74: 0 | X74: 0 | Y74: 0 | Z74: 0 | AA74: 0 | AB74: =june!G74 -> 0
A75: 66 | B75: COLRAIN | C75: 0 | D75: 0 | E75: 0 | F75: 0 | G75: 0 | H75: 0 | I75: 0 | J75: 0 | K75: 0 | L75: 0 | M75: 0 | N75: =june!E75 -> 0 | Q75: 0 | R75: 0 | S75: 0 | T75: 0 | U75: 0 | V75: 0 | W75: 0 | X75: 0 | Y75: 0 | Z75: 0 | AA75: 0 | AB75: =june!G75 -> 0
A76: 67 | B76: CONCORD | C76: 0 | D76: 0 | E76: 0 | F76: 0 | G76: 0 | H76: 0 | I76: 0 | J76: 0 | K76: 0 | L76: 0 | M76: 0 | N76: =june!E76 -> 0 | Q76: 0 | R76: 0 | S76: 0.58 | T76: 0 | U76: 0.67 | V76: 1.405 | W76: 1 | X76: 0.37 | Y76: 1.49 | Z76: 2 | AA76: 1.78 | AB76: =june!G76 -> 2
A77: 68 | B77: CONWAY | C77: 22.86 | D77: 25.43 | E77: 21 | F77: 21 | G77: 22.89 | H77: 19.65 | I77: 23.3 | J77: 12.04 | K77: 15 | L77: 20 | M77: 19.48 | N77: =june!E77 -> 19.21 | Q77: 7.46 | R77: 10 | S77: 10 | T77: 8.56 | U77: 7.94 | V77: 7.5 | W77: 6 | X77: 10.38 | Y77: 2 | Z77: 5.32 | AA77: 8 | AB77: =june!G77 -> 10.58
A78: 69 | B78: CUMMINGTON | C78: 0 | D78: 0 | E78: 0 | F78: 0 | G78: 0 | H78: 0 | I78: 0 | J78: 0 | K78: 0 | L78: 0 | M78: 0 | N78: =june!E78 -> 0 | Q78: 0 | R78: 0 | S78: 0 | T78: 0 | U78: 0 | V78: 0 | W78: 0 | X78: 0 | Y78: 0 | Z78: 0 | AA78: 0 | AB78: =june!G78 -> 0
A79: 70 | B79: DALTON | C79: 0 | D79: 0 | E79: 0 | F79: 0 | G79: 0 | H79: 0 | I79: 0 | J79: 0 | K79: 0 | L79: 0 | M79: 0 | N79: =june!E79 -> 0 | Q79: 0 | R79: 1.8 | S79: 0.82 | T79: 0 | U79: 0 | V79: 0 | W79: 0 | X79: 0 | Y79: 0 | Z79: 0 | AA79: 0 | AB79: =june!G79 -> 0
A80: 71 | B80: DANVERS | C80: 0 | D80: 0 | E80: 0 | F80: 0 | G80: 0 | H80: 0 | I80: 0 | J80: 0 | K80: 0 | L80: 0 | M80: 0 | N80: =june!E80 -> 0 | Q80: 12 | R80: 14.74 | S80: 17.27 | T80: 23.38 | U80: 30.33 | V80: 33.05 | W80: 22 | X80: 26.9 | Y80: 30.74 | Z80: 36.48 | AA80: 43.55 | AB80: =june!G80 -> 55.1
A81: 72 | B81: DARTMOUTH | C81: 0 | D81: 0 | E81: 0 | F81: 0 | G81: 0 | H81: 0 | I81: 0 | J81: 0 | K81: 0 | L81: 0 | M81: 0 | N81: =june!E81 -> 0 | Q81: 3.3 | R81: 4.49 | S81: 2 | T81: 1 | U81: 2 | V81: 3 | W81: 1 | X81: 2.16 | Y81: 1 | Z81: 4.69 | AA81: 3.7 | AB81: =june!G81 -> 5.47
A82: 73 | B82: DEDHAM | C82: 0 | D82: 0 | E82: 0 | F82: 0 | G82: 0 | H82: 0 | I82: 0 | J82: 0 | K82: 0 | L82: 0 | M82: 0 | N82: =june!E82 -> 0 | Q82: 0.07 | R82: 0 | S82: 0 | T82: 0 | U82: 0 | V82: 0 | W82: 0 | X82: 3 | Y82: 3.33 | Z82: 3.52 | AA82: 2.66 | AB82: =june!G82 -> 3.17
A83: 74 | B83: DEERFIELD | C83: 64.3 | D83: 68.82 | E83: 80.05 | F83: 80.05 | G83: 74.95 | H83: 76.44 | I83: 64 | J83: 68.81 | K83: 84.44 | L83: 90.7 | M83: 100.67 | N83: =june!E83 -> 89.79 | Q83: 14.92 | R83: 13.005 | S83: 15.33 | T83: 9.45 | U83: 9.96 | V83: 12 | W83: 16 | X83: 12.37 | Y83: 10.81 | Z83: 10.78 | AA83: 17.37 | AB83: =june!G83 -> 22.41
A84: 75 | B84: DENNIS | C84: 0 | D84: 0 | E84: 0 | F84: 0 | G84: 0 | H84: 0 | I84: 0 | J84: 0 | K84: 0 | L84: 0 | M84: 0 | N84: =june!E84 -> 0 | Q84: 0 | R84: 0 | S84: 0 | T84: 0 | U84: 0 | V84: 0 | W84: 0 | X84: 0 | Y84: 0 | Z84: 0 | AA84: 0 | AB84: =june!G84 -> 0
A85: 76 | B85: DIGHTON | C85: 0 | D85: 0 | E85: 0 | F85: 0 | G85: 0 | H85: 0 | I85: 0 | J85: 0 | K85: 0 | L85: 0 | M85: 0 | N85: =june!E85 -> 0 | Q85: 0 | R85: 0 | S85: 0 | T85: 0 | U85: 0 | V85: 0 | W85: 0 | X85: 0 | Y85: 0 | Z85: 0 | AA85: 0 | AB85: =june!G85 -> 0
A86: 77 | B86: DOUGLAS | C86: 98.11 | D86: 90.36 | E86: 82.47 | F86: 88.27 | G86: 89.69 | H86: 110.17 | I86: 100.61 | J86: 101.28 | K86: 110.58 | L86: 122.64 | M86: 121.81 | N86: =june!E86 -> 116.61 | Q86: 68.91 | R86: 68.23 | S86: 50.545 | T86: 54.51 | U86: 41.49 | V86: 40.37 | W86: 41.13 | X86: 42.25 | Y86: 48.61 | Z86: 57.95 | AA86: 47.28 | AB86: =june!G86 -> 47.12
A87: 78 | B87: DOVER | C87: 0 | D87: 0 | E87: 0 | F87: 0 | G87: 0 | H87: 0 | I87: 0 | J87: 0 | K87: 0 | L87: 0 | M87: 0 | N87: =june!E87 -> 0 | Q87: 0 | R87: 0 | S87: 0 | T87: 0 | U87: 0 | V87: 0 | W87: 0 | X87: 0 | Y87: 0 | Z87: 0 | AA87: 0 | AB87: =june!G87 -> 0
A88: 79 | B88: DRACUT | C88: 29.68 | D88: 26.75 | E88: 28.81 | F88: 25.74 | G88: 30.56 | H88: 23.9 | I88: 28.7 | J88: 29.52 | K88: 22.95 | L88: 25.95 | M88: 26.94 | N88: =june!E88 -> 35.85 | Q88: 15.75 | R88: 15.94 | S88: 12.01 | T88: 10.94 | U88: 12.97 | V88: 12 | W88: 15.23 | X88: 15.48 | Y88: 18.02 | Z88: 19.91 | AA88: 18.77 | AB88: =june!G88 -> 25.61
A89: 80 | B89: DUDLEY | C89: 0 | D89: 0 | E89: 0 | F89: 0 | G89: 0 | H89: 0 | I89: 0 | J89: 0 | K89: 0 | L89: 0 | M89: 0 | N89: =june!E89 -> 0 | Q89: 0 | R89: 0 | S89: 0 | T89: 0 | U89: 0 | V89: 0 | W89: 0 | X89: 0 | Y89: 0 | Z89: 0 | AA89: 0 | AB89: =june!G89 -> 0
A90: 81 | B90: DUNSTABLE | C90: 0 | D90: 0 | E90: 0 | F90: 0 | G90: 0 | H90: 0 | I90: 0 | J90: 0 | K90: 0 | L90: 0 | M90: 0 | N90: =june!E90 -> 0 | Q90: 0 | R90: 0 | S90: 0 | T90: 0 | U90: 0 | V90: 0 | W90: 0 | X90: 0 | Y90: 0 | Z90: 0 | AA90: 0 | AB90: =june!G90 -> 0
A91: 82 | B91: DUXBURY | C91: 0 | D91: 0 | E91: 0 | F91: 0 | G91: 0 | H91: 0 | I91: 0 | J91: 0 | K91: 0 | L91: 0 | M91: 0 | N91: =june!E91 -> 0 | Q91: 0 | R91: 0 | S91: 0 | T91: 0 | U91: 0.5 | V91: 0 | W91: 0 | X91: 0.9 | Y91: 1 | Z91: 1 | AA91: 0.71 | AB91: =june!G91 -> 1.77
A92: 83 | B92: EAST BRIDGEWATER | C92: 0 | D92: 0 | E92: 0 | F92: 0 | G92: 0 | H92: 5.59 | I92: 8 | J92: 7 | K92: 5 | L92: 2 | M92: 14.69 | N92: =june!E92 -> 26.01 | Q92: 1 | R92: 2.64 | S92: 6.84 | T92: 9.25 | U92: 15 | V92: 17 | W92: 20.68 | X92: 22 | Y92: 15.18 | Z92: 17.15 | AA92: 24.14 | AB92: =june!G92 -> 19.68
A93: 84 | B93: EAST BROOKFIELD | C93: 0 | D93: 0 | E93: 0 | F93: 0 | G93: 0 | H93: 0 | I93: 0 | J93: 0 | K93: 0 | L93: 0 | M93: 0 | N93: =june!E93 -> 0 | Q93: 1 | R93: 0 | S93: 0 | T93: 0 | U93: 0 | V93: 2 | W93: 4 | X93: 4 | Y93: 7 | Z93: 6.65 | AA93: 6 | AB93: =june!G93 -> 5
A94: 85 | B94: EASTHAM | C94: 0 | D94: 0 | E94: 0 | F94: 0 | G94: 0 | H94: 0 | I94: 0 | J94: 0 | K94: 0 | L94: 0 | M94: 0 | N94: =june!E94 -> 0 | Q94: 10 | R94: 9.11 | S94: 8 | T94: 8.51 | U94: 6.63 | V94: 8.32 | W94: 8.38 | X94: 7.09 | Y94: 2.51 | Z94: 6.51 | AA94: 6.14 | AB94: =june!G94 -> 7.91
A95: 86 | B95: EASTHAMPTON | C95: 68.605 | D95: 79.69 | E95: 88.9 | F95: 96.11 | G95: 89.76 | H95: 63.86 | I95: 60.89 | J95: 66.01 | K95: 68.48 | L95: 76.75 | M95: 84.16 | N95: =june!E95 -> 86.1 | Q95: 197.1 | R95: 200.01 | S95: 197.84 | T95: 179.84 | U95: 192.36 | V95: 211.37 | W95: 197.35 | X95: 193.62 | Y95: 188.88 | Z95: 186.81 | AA95: 188.71 | AB95: =june!G95 -> 174.98
A96: 87 | B96: EAST LONGMEADOW | C96: 1.73 | D96: 0 | E96: 0 | F96: 0 | G96: 0 | H96: 0 | I96: 0 | J96: 0 | K96: 0 | L96: 0 | M96: 0 | N96: =june!E96 -> 0 | Q96: 8.02 | R96: 10.72 | S96: 7.56 | T96: 8 | U96: 4 | V96: 9.58 | W96: 5 | X96: 9.73 | Y96: 6.97 | Z96: 4.75 | AA96: 7 | AB96: =june!G96 -> 9.97
A97: 88 | B97: EASTON | C97: 0 | D97: 0 | E97: 0 | F97: 0 | G97: 0 | H97: 0 | I97: 0 | J97: 0 | K97: 0 | L97: 0 | M97: 0 | N97: =june!E97 -> 0 | Q97: 4 | R97: 2.46 | S97: 3 | T97: 3.56 | U97: 5.84 | V97: 4.39 | W97: 6 | X97: 7.44 | Y97: 6 | Z97: 5.92 | AA97: 8.66 | AB97: =june!G97 -> 8.64
A98: 89 | B98: EDGARTOWN | C98: 12 | D98: 7.66 | E98: 10 | F98: 16 | G98: 11 | H98: 15 | I98: 16 | J98: 12 | K98: 17.66 | L98: 13.75 | M98: 12.64 | N98: =june!E98 -> 8 | Q98: 34.31 | R98: 31.55 | S98: 29.81 | T98: 34.7 | U98: 35.99 | V98: 45.13 | W98: 44.74 | X98: 45.83 | Y98: 33.51 | Z98: 36.02 | AA98: 32.45 | AB98: =june!G98 -> 33
A99: 90 | B99: EGREMONT | C99: 0 | D99: 0 | E99: 0 | F99: 0 | G99: 0 | H99: 0 | I99: 0 | J99: 0 | K99: 0 | L99: 0 | M99: 0 | N99: =june!E99 -> 0 | Q99: 0 | R99: 0 | S99: 0 | T99: 0 | U99: 0 | V99: 0 | W99: 0 | X99: 0 | Y99: 0 | Z99: 0 | AA99: 0 | AB99: =june!G99 -> 0
A100: 91 | B100: ERVING | C100: 0 | D100: 0 | E100: 0 | F100: 0 | G100: 0 | H100: 0 | I100: 0 | J100: 0 | K100: 0 | L100: 0 | M100: 0 | N100: =june!E100 -> 0 | Q100: 20.74 | R100: 22.62 | S100: 27.69 | T100: 26.58 | U100: 41.88 | V100: 51.36 | W100: 48.91 | X100: 40.28 | Y100: 44.72 | Z100: 40.22 | AA100: 40.01 | AB100: =june!G100 -> 35.16
A101: 92 | B101: ESSEX | C101: 0 | D101: 0 | E101: 0 | F101: 0 | G101: 0 | H101: 0 | I101: 0 | J101: 0 | K101: 0 | L101: 0 | M101: 0 | N101: =june!E101 -> 0 | Q101: 0 | R101: 0 | S101: 0 | T101: 0 | U101: 0 | V101: 0 | W101: 0 | X101: 0 | Y101: 0 | Z101: 0 | AA101: 0 | AB101: =june!G101 -> 0
A102: 93 | B102: EVERETT | C102: 0 | D102: 0 | E102: 0 | F102: 0 | G102: 0 | H102: 0 | I102: 0 | J102: 0 | K102: 0 | L102: 0 | M102: 0 | N102: =june!E102 -> 0 | Q102: 8.99 | R102: 11.22 | S102: 13.64 | T102: 12.11 | U102: 17 | V102: 20.43 | W102: 15 | X102: 12.44 | Y102: 9.92 | Z102: 7.38 | AA102: 16.31 | AB102: =june!G102 -> 16.22
A103: 94 | B103: FAIRHAVEN | C103: 0 | D103: 0 | E103: 0 | F103: 0 | G103: 0 | H103: 0 | I103: 0 | J103: 0 | K103: 0 | L103: 0 | M103: 0 | N103: =june!E103 -> 0 | Q103: 0 | R103: 0.49 | S103: 0.96 | T103: 0 | U103: 0 | V103: 4 | W103: 5.63 | X103: 12.46 | Y103: 14.75 | Z103: 17.33 | AA103: 10.75 | AB103: =june!G103 -> 13.35
A104: 95 | B104: FALL RIVER | C104: 0 | D104: 0 | E104: 0 | F104: 2 | G104: 3 | H104: 24.78 | I104: 21.02 | J104: 4.38 | K104: 22.86 | L104: 21.72 | M104: 16.41 | N104: =june!E104 -> 26.35 | Q104: 23.51 | R104: 21.65 | S104: 31.61 | T104: 22.84 | U104: 16.55 | V104: 15.61 | W104: 13.19 | X104: 22.49 | Y104: 27.05 | Z104: 42.32 | AA104: 78.23 | AB104: =june!G104 -> 102.34
A105: 96 | B105: FALMOUTH | C105: 20.35 | D105: 13.66 | E105: 14.2 | F105: 14.1 | G105: 21.12 | H105: 31.25 | I105: 34.44 | J105: 47.08 | K105: 65.48 | L105: 70.35 | M105: 91.45 | N105: =june!E105 -> 112.15 | Q105: 5.03 | R105: 4.68 | S105: 8.59 | T105: 8.17 | U105: 8.71 | V105: 16.05 | W105: 21.92 | X105: 37.12 | Y105: 39.4 | Z105: 35.31 | AA105: 49.11 | AB105: =june!G105 -> 40.19
A106: 97 | B106: FITCHBURG | C106: 158.415 | D106: 142.945 | E106: 142.51 | F106: 151.97 | G106: 150.885 | H106: 170.815 | I106: 179.86 | J106: 188.36 | K106: 200.1 | L106: 179.47 | M106: 180.12 | N106: =june!E106 -> 175.75 | Q106: 246.94 | R106: 261.94 | S106: 279.785 | T106: 281.54 | U106: 285.1 | V106: 339.64 | W106: 381.18 | X106: 396.48 | Y106: 425.83 | Z106: 416.62 | AA106: 420.35 | AB106: =june!G106 -> 430.61
A107: 98 | B107: FLORIDA | C107: 0 | D107: 0 | E107: 0 | F107: 0 | G107: 0 | H107: 0 | I107: 2 | J107: 4 | K107: 4 | L107: 7 | M107: 2 | N107: =june!E107 -> 3.42 | Q107: 3.67 | R107: 3 | S107: 4.18 | T107: 5.17 | U107: 5.91 | V107: 2.41 | W107: 2 | X107: 1 | Y107: 0 | Z107: 3.49 | AA107: 4 | AB107: =june!G107 -> 7
A108: 99 | B108: FOXBOROUGH | C108: 0 | D108: 0 | E108: 0 | F108: 0 | G108: 0 | H108: 0 | I108: 0 | J108: 0 | K108: 0 | L108: 0 | M108: 0 | N108: =june!E108 -> 0 | Q108: 0 | R108: 1 | S108: 1.4 | T108: 0 | U108: 0.07 | V108: 0 | W108: 0 | X108: 0 | Y108: 1 | Z108: 0 | AA108: 0.17 | AB108: =june!G108 -> 4.7
A109: 100 | B109: FRAMINGHAM | C109: 0 | D109: 0 | E109: 0 | F109: 0 | G109: 0 | H109: 0 | I109: 0 | J109: 0 | K109: 0 | L109: 0 | M109: 0 | N109: =june!E109 -> 0 | Q109: 16.35 | R109: 19.41 | S109: 16.94 | T109: 18.76 | U109: 25.98 | V109: 20.51 | W109: 29.08 | X109: 35.39 | Y109: 36.3 | Z109: 40.14 | AA109: 45.33 | AB109: =june!G109 -> 54.69
A110: 101 | B110: FRANKLIN | C110: 26.28 | D110: 28.42 | E110: 46.04 | F110: 71.79 | G110: 56.01 | H110: 40.77 | I110: 30 | J110: 20 | K110: 17 | L110: 13 | M110: 10 | N110: =june!E110 -> 7 | Q110: 30.38 | R110: 27.26 | S110: 25.68 | T110: 29.37 | U110: 31.03 | V110: 27.51 | W110: 29.5 | X110: 30.13 | Y110: 34.53 | Z110: 23.92 | AA110: 29 | AB110: =june!G110 -> 34.29
A111: 102 | B111: FREETOWN | C111: 0 | D111: 0 | E111: 0 | F111: 0 | G111: 0 | H111: 0 | I111: 0 | J111: 0 | K111: 0 | L111: 0 | M111: 0 | N111: =june!E111 -> 0 | Q111: 1 | R111: 0 | S111: 0.62 | T111: 0 | U111: 1 | V111: 3.5 | W111: 5.72 | X111: 0 | Y111: 0 | Z111: 0 | AA111: 0 | AB111: =june!G111 -> 2
A112: 103 | B112: GARDNER | C112: 127.41 | D112: 144.19 | E112: 199.955 | F112: 239.835 | G112: 162.32 | H112: 168.56 | I112: 166.3 | J112: 176.73 | K112: 156.4 | L112: 150.7 | M112: 140.23 | N112: =june!E112 -> 121.98 | Q112: 89.1 | R112: 91.835 | S112: 102.98 | T112: 104.965 | U112: 119.23 | V112: 115.5 | W112: 109.44 | X112: 122.22 | Y112: 143.41 | Z112: 158.24 | AA112: 188.68 | AB112: =june!G112 -> 252.4
A113: 104 | B113: AQUINNAH | C113: 0 | D113: 0 | E113: 0 | F113: 0 | G113: 0 | H113: 0 | I113: 0 | J113: 0 | K113: 0 | L113: 0 | M113: 0 | N113: =june!E113 -> 0 | Q113: 0 | R113: 0 | S113: 0 | T113: 0 | U113: 0 | V113: 0 | W113: 0 | X113: 0 | Y113: 0 | Z113: 0 | AA113: 0 | AB113: =june!G113 -> 0
A114: 105 | B114: GEORGETOWN | C114: 64.37 | D114: 60.475 | E114: 64.62 | F114: 55 | G114: 59.22 | H114: 47 | I114: 37.9 | J114: 28 | K114: 26 | L114: 27.82 | M114: 38 | N114: =june!E114 -> 40 | Q114: 26.57 | R114: 28.95 | S114: 28.53 | T114: 33.62 | U114: 23.12 | V114: 28.525 | W114: 25.03 | X114: 30.56 | Y114: 22.1 | Z114: 26.93 | AA114: 24.11 | AB114: =june!G114 -> 23.87
A115: 106 | B115: GILL | C115: 0 | D115: 0 | E115: 0 | F115: 0 | G115: 0 | H115: 0 | I115: 0 | J115: 0 | K115: 0 | L115: 0 | M115: 0 | N115: =june!E115 -> 0 | Q115: 0 | R115: 0 | S115: 0 | T115: 0 | U115: 0 | V115: 0 | W115: 0 | X115: 0 | Y115: 0 | Z115: 0 | AA115: 0 | AB115: =june!G115 -> 0
A116: 107 | B116: GLOUCESTER | C116: 64.39 | D116: 55.02 | E116: 43.57 | F116: 46.79 | G116: 40.62 | H116: 35.17 | I116: 31.53 | J116: 33.52 | K116: 39.65 | L116: 43.87 | M116: 39.2 | N116: =june!E116 -> 38.54 | Q116: 154.4 | R116: 180.645 | S116: 192.64 | T116: 215.01 | U116: 205.14 | V116: 210.37 | W116: 231.93 | X116: 240 | Y116: 260.07 | Z116: 291.74 | AA116: 302.96 | AB116: =june!G116 -> 312.14
A117: 108 | B117: GOSHEN | C117: 0 | D117: 0 | E117: 0 | F117: 0 | G117: 0 | H117: 0 | I117: 0 | J117: 0 | K117: 0 | L117: 0 | M117: 0 | N117: =june!E117 -> 0 | Q117: 0 | R117: 0 | S117: 0 | T117: 0 | U117: 0 | V117: 0 | W117: 0 | X117: 0 | Y117: 0 | Z117: 0 | AA117: 0 | AB117: =june!G117 -> 0
A118: 109 | B118: GOSNOLD | C118: 0 | D118: 0 | E118: 0 | F118: 0 | G118: 0 | H118: 0 | I118: 0 | J118: 0 | K118: 0 | L118: 0 | M118: 0 | N118: =june!E118 -> 0 | Q118: 0 | R118: 0 | S118: 0 | T118: 0 | U118: 0 | V118: 0 | W118: 0 | X118: 0 | Y118: 0 | Z118: 0 | AA118: 0 | AB118: =june!G118 -> 0
A119: 110 | B119: GRAFTON | C119: 0 | D119: 0 | E119: 0 | F119: 0 | G119: 0 | H119: 0 | I119: 0 | J119: 0 | K119: 0 | L119: 18.27 | M119: 31.53 | N119: =june!E119 -> 42.56 | Q119: 18.55 | R119: 12.97 | S119: 13.14 | T119: 17.43 | U119: 23.74 | V119: 16.47 | W119: 26.17 | X119: 36.62 | Y119: 20.58 | Z119: 20.37 | AA119: 27.93 | AB119: =june!G119 -> 37.1
A120: 111 | B120: GRANBY | C120: 106.75 | D120: 103.77 | E120: 103.6 | F120: 100.475 | G120: 109.29 | H120: 131.96 | I120: 132.25 | J120: 140.21 | K120: 114.12 | L120: 113.3 | M120: 132.75 | N120: =june!E120 -> 117.09 | Q120: 19 | R120: 27.9 | S120: 31.49 | T120: 30 | U120: 32.44 | V120: 27.89 | W120: 26.26 | X120: 32.01 | Y120: 35.82 | Z120: 38.58 | AA120: 48.63 | AB120: =june!G120 -> 52.09
A121: 112 | B121: GRANVILLE | C121: 0 | D121: 0 | E121: 0 | F121: 0 | G121: 0 | H121: 0 | I121: 0 | J121: 0 | K121: 0 | L121: 0 | M121: 0 | N121: =june!E121 -> 0 | Q121: 5.45 | R121: 4.38 | S121: 7.8 | T121: 9.47 | U121: 14 | V121: 15 | W121: 20.32 | X121: 21.5 | Y121: 0 | Z121: 0 | AA121: 0 | AB121: =june!G121 -> 0
A122: 113 | B122: GREAT BARRINGTON | C122: 0 | D122: 0 | E122: 0 | F122: 0 | G122: 0 | H122: 0 | I122: 0 | J122: 0 | K122: 0 | L122: 0 | M122: 0 | N122: =june!E122 -> 0 | Q122: 0 | R122: 0 | S122: 0 | T122: 0 | U122: 0 | V122: 0 | W122: 0 | X122: 0 | Y122: 0 | Z122: 0 | AA122: 0 | AB122: =june!G122 -> 0
A123: 114 | B123: GREENFIELD | C123: 62.08 | D123: 57.795 | E123: 69.03 | F123: 58.49 | G123: 38.4 | H123: 48.24 | I123: 59.24 | J123: 508.4 | K123: 506.59 | L123: 65.17 | M123: 92.59 | N123: =june!E123 -> 116.55 | Q123: 201.29 | R123: 222.63 | S123: 249.12 | T123: 256.3 | U123: 339.51 | V123: 380.53 | W123: 357.44 | X123: 341.54 | Y123: 338.89 | Z123: 333.7 | AA123: 331.95 | AB123: =june!G123 -> 323.16
A124: 115 | B124: GROTON | C124: 0 | D124: 0 | E124: 0 | F124: 0 | G124: 0 | H124: 0 | I124: 0 | J124: 0 | K124: 0 | L124: 0 | M124: 0 | N124: =june!E124 -> 0 | Q124: 0 | R124: 0 | S124: 0 | T124: 0 | U124: 0 | V124: 0 | W124: 0 | X124: 0 | Y124: 0 | Z124: 0 | AA124: 0 | AB124: =june!G124 -> 0
A125: 116 | B125: GROVELAND | C125: 0 | D125: 0 | E125: 0 | F125: 0 | G125: 0 | H125: 0 | I125: 0 | J125: 0 | K125: 0 | L125: 0 | M125: 0 | N125: =june!E125 -> 0 | Q125: 0 | R125: 0 | S125: 0 | T125: 0 | U125: 0 | V125: 0 | W125: 0 | X125: 0 | Y125: 0 | Z125: 0 | AA125: 0 | AB125: =june!G125 -> 0
A126: 117 | B126: HADLEY | C126: 16.14 | D126: 34.06 | E126: 43.57 | F126: 55.07 | G126: 79.19 | H126: 75.52 | I126: 75.62 | J126: 77.67 | K126: 75.56 | L126: 78.47 | M126: 102.43 | N126: =june!E126 -> 98.47 | Q126: 24.42 | R126: 21.38 | S126: 32.39 | T126: 26.92 | U126: 31.34 | V126: 36.3 | W126: 30.07 | X126: 47.03 | Y126: 61.47 | Z126: 58.52 | AA126: 58.58 | AB126: =june!G126 -> 47.48
A127: 118 | B127: HALIFAX | C127: 0 | D127: 0 | E127: 0 | F127: 0 | G127: 0 | H127: 0 | I127: 0 | J127: 0 | K127: 0 | L127: 0 | M127: 0 | N127: =june!E127 -> 0 | Q127: 0 | R127: 0 | S127: 0 | T127: 1 | U127: 3.16 | V127: 3 | W127: 2 | X127: 1 | Y127: 1 | Z127: 1 | AA127: 1 | AB127: =june!G127 -> 1
A128: 119 | B128: HAMILTON | C128: 0 | D128: 0 | E128: 0 | F128: 0 | G128: 0 | H128: 0 | I128: 0 | J128: 0 | K128: 0 | L128: 0 | M128: 0 | N128: =june!E128 -> 0 | Q128: 0 | R128: 0 | S128: 0 | T128: 0 | U128: 0 | V128: 0 | W128: 0 | X128: 0 | Y128: 0 | Z128: 0 | AA128: 0 | AB128: =june!G128 -> 0
A129: 120 | B129: HAMPDEN | C129: 0 | D129: 0 | E129: 0 | F129: 0 | G129: 0 | H129: 0 | I129: 0 | J129: 0 | K129: 0 | L129: 0 | M129: 0 | N129: =june!E129 -> 0 | Q129: 0 | R129: 0 | S129: 0 | T129: 0 | U129: 0 | V129: 0 | W129: 0 | X129: 0 | Y129: 0 | Z129: 0 | AA129: 0 | AB129: =june!G129 -> 0
A130: 121 | B130: HANCOCK | C130: 4.42 | D130: 6 | E130: 5 | F130: 6.5 | G130: 3.81 | H130: 6 | I130: 8.34 | J130: 7 | K130: 3 | L130: 4 | M130: 3 | N130: =june!E130 -> 5 | Q130: 19 | R130: 20.74 | S130: 14.17 | T130: 18 | U130: 16 | V130: 15.72 | W130: 9.67 | X130: 9 | Y130: 14.55 | Z130: 9.65 | AA130: 11 | AB130: =june!G130 -> 4.69
A131: 122 | B131: HANOVER | C131: 0 | D131: 0 | E131: 0 | F131: 0 | G131: 0 | H131: 0 | I131: 0 | J131: 0 | K131: 0 | L131: 0 | M131: 0 | N131: =june!E131 -> 0 | Q131: 2 | R131: 2 | S131: 2 | T131: 2.48 | U131: 2 | V131: 1 | W131: 1 | X131: 0 | Y131: 0 | Z131: 1 | AA131: 0 | AB131: =june!G131 -> 2.74
A132: 123 | B132: HANSON | C132: 0 | D132: 0 | E132: 0 | F132: 0 | G132: 0 | H132: 0 | I132: 0 | J132: 0 | K132: 0 | L132: 0 | M132: 0 | N132: =june!E132 -> 0 | Q132: 0 | R132: 0 | S132: 0 | T132: 0 | U132: 0 | V132: 0 | W132: 0 | X132: 0 | Y132: 0 | Z132: 0 | AA132: 0 | AB132: =june!G132 -> 0
A133: 124 | B133: HARDWICK | C133: 0 | D133: 0 | E133: 0 | F133: 0 | G133: 0 | H133: 0 | I133: 0 | J133: 0 | K133: 0 | L133: 0 | M133: 0 | N133: =june!E133 -> 0 | Q133: 0 | R133: 0 | S133: 0 | T133: 0 | U133: 0 | V133: 0 | W133: 0 | X133: 0 | Y133: 0 | Z133: 0 | AA133: 0 | AB133: =june!G133 -> 0
A134: 125 | B134: HARVARD | C134: 63.8 | D134: 74.53 | E134: 91.27 | F134: 76.14 | G134: 73.21 | H134: 71 | I134: 69.72 | J134: 77 | K134: 74.28 | L134: 73.14 | M134: 70 | N134: =june!E134 -> 67.38 | Q134: 4 | R134: 9 | S134: 11.04 | T134: 9.48 | U134: 8 | V134: 8.98 | W134: 10.55 | X134: 9.02 | Y134: 8.93 | Z134: 5.3 | AA134: 5 | AB134: =june!G134 -> 3
A135: 126 | B135: HARWICH | C135: 61.5 | D135: 72.91 | E135: 81.75 | F135: 107.94 | G135: 120.92 | H135: 138.145 | I135: 156.25 | J135: 158.64 | K135: 0 | L135: 0 | M135: 0 | N135: =june!E135 -> 0 | Q135: 122.43 | R135: 145.17 | S135: 148.89 | T135: 176.63 | U135: 180.38 | V135: 175.96 | W135: 193.83 | X135: 206.72 | Y135: 0 | Z135: 0 | AA135: 0 | AB135: =june!G135 -> 0
A136: 127 | B136: HATFIELD | C136: 26.97 | D136: 27.77 | E136: 43.12 | F136: 50.64 | G136: 66 | H136: 123.24 | I136: 123.94 | J136: 134.4 | K136: 124.94 | L136: 124.89 | M136: 124 | N136: =june!E136 -> 130.8 | Q136: 27.87 | R136: 25.42 | S136: 32.24 | T136: 35.22 | U136: 44.24 | V136: 45.24 | W136: 35.19 | X136: 33.39 | Y136: 42.92 | Z136: 37.69 | AA136: 28.32 | AB136: =june!G136 -> 30.78
A137: 128 | B137: HAVERHILL | C137: 60.33 | D137: 53.89 | E137: 54.435 | F137: 54.02 | G137: 55.33 | H137: 52.925 | I137: 54.79 | J137: 55.08 | K137: 57.34 | L137: 56.42 | M137: 42.49 | N137: =june!E137 -> 36.6 | Q137: 159.535 | R137: 154.21 | S137: 143.06 | T137: 155.08 | U137: 169.73 | V137: 194.13 | W137: 211.875 | X137: 216.13 | Y137: 233.78 | Z137: 216.11 | AA137: 210.38 | AB137: =june!G137 -> 189.82
A138: 129 | B138: HAWLEY | C138: 0 | D138: 0 | E138: 0 | F138: 0 | G138: 0 | H138: 0 | I138: 0 | J138: 0 | K138: 0 | L138: 0 | M138: 0 | N138: =june!E138 -> 0 | Q138: 0 | R138: 0 | S138: 0 | T138: 0 | U138: 0 | V138: 0 | W138: 0 | X138: 0 | Y138: 0 | Z138: 0 | AA138: 0 | AB138: =june!G138 -> 0
A139: 130 | B139: HEATH | C139: 0 | D139: 0 | E139: 0 | F139: 0 | G139: 0 | H139: 0 | I139: 0 | J139: 0 | K139: 0 | L139: 0 | M139: 0 | N139: =june!E139 -> 0 | Q139: 0 | R139: 0 | S139: 0 | T139: 0 | U139: 0 | V139: 0 | W139: 0 | X139: 0 | Y139: 0 | Z139: 0 | AA139: 0 | AB139: =june!G139 -> 0
A140: 131 | B140: HINGHAM | C140: 0 | D140: 0 | E140: 0 | F140: 0 | G140: 0 | H140: 0 | I140: 0 | J140: 0 | K140: 0 | L140: 0 | M140: 0 | N140: =june!E140 -> 0 | Q140: 0 | R140: 0 | S140: 0 | T140: 0 | U140: 0 | V140: 0 | W140: 0 | X140: 0 | Y140: 1 | Z140: 0.72 | AA140: 0 | AB140: =june!G140 -> 3.48
A141: 132 | B141: HINSDALE | C141: 0 | D141: 0 | E141: 0 | F141: 0 | G141: 0 | H141: 0 | I141: 0 | J141: 0 | K141: 0 | L141: 0 | M141: 0 | N141: =june!E141 -> 0 | Q141: 0 | R141: 0 | S141: 0 | T141: 0 | U141: 0 | V141: 0 | W141: 0 | X141: 0 | Y141: 1 | Z141: 0 | AA141: 0 | AB141: =june!G141 -> 0
A142: 133 | B142: HOLBROOK | C142: 0 | D142: 0 | E142: 0 | F142: 0 | G142: 0 | H142: 0 | I142: 11 | J142: 27.63 | K142: 61.16 | L142: 65.43 | M142: 57.48 | N142: =june!E142 -> 57.87 | Q142: 3 | R142: 3.5 | S142: 6.42 | T142: 5 | U142: 5 | V142: 7.23 | W142: 8.83 | X142: 10.24 | Y142: 9 | Z142: 9.9 | AA142: 16.6 | AB142: =june!G142 -> 17.5
A143: 134 | B143: HOLDEN | C143: 0 | D143: 0 | E143: 0 | F143: 0 | G143: 0 | H143: 0 | I143: 0 | J143: 0 | K143: 0 | L143: 0 | M143: 0 | N143: =june!E143 -> 0 | Q143: 0 | R143: 0 | S143: 0 | T143: 0 | U143: 0 | V143: 0 | W143: 0 | X143: 0 | Y143: 0 | Z143: 0 | AA143: 0 | AB143: =june!G143 -> 0
A144: 135 | B144: HOLLAND | C144: 6.37 | D144: 11.355 | E144: 12.52 | F144: 14.065 | G144: 19.18 | H144: 20.54 | I144: 20.34 | J144: 21.98 | K144: 18.5 | L144: 28.36 | M144: 40.31 | N144: =june!E144 -> 52.93 | Q144: 0.82 | R144: 2.46 | S144: 1.59 | T144: 1 | U144: 2 | V144: 2 | W144: 2.69 | X144: 3.31 | Y144: 3 | Z144: 1 | AA144: 1 | AB144: =june!G144 -> 2.52
A145: 136 | B145: HOLLISTON | C145: 105.435 | D145: 97.35 | E145: 106.125 | F145: 106.74 | G145: 103.97 | H145: 111.22 | I145: 119.995 | J145: 125.14 | K145: 121.03 | L145: 132.01 | M145: 158.83 | N145: =june!E145 -> 158.46 | Q145: 5.42 | R145: 4.075 | S145: 8.29 | T145: 3.34 | U145: 4.08 | V145: 6.62 | W145: 4.77 | X145: 9.43 | Y145: 7.2 | Z145: 4.82 | AA145: 8.57 | AB145: =june!G145 -> 14.33
A146: 137 | B146: HOLYOKE | C146: 14.42 | D146: 24.75 | E146: 27.21 | F146: 20.34 | G146: 22 | H146: 18 | I146: 12.64 | J146: 19.44 | K146: 32.16 | L146: 50.19 | M146: 51.7 | N146: =june!E146 -> 52.69 | Q146: 203.1 | R146: 207.67 | S146: 217.12 | T146: 219.44 | U146: 226.64 | V146: 219.72 | W146: 258.9 | X146: 259.55 | Y146: 291.42 | Z146: 311.62 | AA146: 334.25 | AB146: =june!G146 -> 337.02
A147: 138 | B147: HOPEDALE | C147: 139.41 | D147: 134.56 | E147: 117.39 | F147: 111.39 | G147: 97.31 | H147: 106.11 | I147: 111.67 | J147: 120.5 | K147: 124.6 | L147: 139.91 | M147: 129.58 | N147: =june!E147 -> 122.77 | Q147: 84.51 | R147: 74.76 | S147: 59.03 | T147: 60.735 | U147: 56.32 | V147: 41.38 | W147: 47.42 | X147: 47.42 | Y147: 41.88 | Z147: 44.97 | AA147: 49.21 | AB147: =june!G147 -> 48.56
A148: 139 | B148: HOPKINTON | C148: 3 | D148: 0 | E148: 0 | F148: 0 | G148: 0 | H148: 0 | I148: 0 | J148: 0 | K148: 0 | L148: 0 | M148: 0 | N148: =june!E148 -> 0 | Q148: 8.99 | R148: 4.5 | S148: 7.51 | T148: 8.77 | U148: 12.21 | V148: 13.19 | W148: 16.12 | X148: 13.13 | Y148: 14.42 | Z148: 17.74 | AA148: 15.46 | AB148: =june!G148 -> 18.37
A149: 140 | B149: HUBBARDSTON | C149: 0 | D149: 0 | E149: 0 | F149: 0 | G149: 0 | H149: 0 | I149: 0 | J149: 0 | K149: 0 | L149: 0 | M149: 0 | N149: =june!E149 -> 0 | Q149: 0 | R149: 0 | S149: 0 | T149: 0 | U149: 0 | V149: 0 | W149: 0 | X149: 0 | Y149: 0 | Z149: 0 | AA149: 0 | AB149: =june!G149 -> 0
A150: 141 | B150: HUDSON | C150: 110.2 | D150: 109.6 | E150: 117.75 | F150: 139.99 | G150: 155.31 | H150: 179.57 | I150: 161.6 | J150: 139.05 | K150: 123.36 | L150: 125.08 | M150: 101.62 | N150: =june!E150 -> 96.14 | Q150: 14.92 | R150: 11.67 | S150: 13.97 | T150: 16.55 | U150: 14.78 | V150: 16.53 | W150: 19.89 | X150: 22.29 | Y150: 29.08 | Z150: 22.89 | AA150: 19 | AB150: =june!G150 -> 21.26
A151: 142 | B151: HULL | C151: 0 | D151: 0 | E151: 0 | F151: 0 | G151: 0 | H151: 0 | I151: 0 | J151: 0 | K151: 0 | L151: 0 | M151: 0 | N151: =june!E151 -> 0 | Q151: 0 | R151: 0 | S151: 0 | T151: 0 | U151: 0 | V151: 0 | W151: 0 | X151: 1.53 | Y151: 1 | Z151: 2.1 | AA151: 4.5 | AB151: =june!G151 -> 6
A152: 143 | B152: HUNTINGTON | C152: 0 | D152: 0 | E152: 0 | F152: 0 | G152: 0 | H152: 0 | I152: 0 | J152: 0 | K152: 0 | L152: 0 | M152: 0 | N152: =june!E152 -> 0 | Q152: 0 | R152: 0 | S152: 0 | T152: 0 | U152: 0 | V152: 0 | W152: 0 | X152: 0 | Y152: 0 | Z152: 0 | AA152: 0 | AB152: =june!G152 -> 0
A153: 144 | B153: IPSWICH | C153: 87.14 | D153: 98.445 | E153: 147.4 | F153: 151.515 | G153: 166.68 | H153: 161.57 | I153: 155.35 | J153: 150.77 | K153: 113.58 | L153: 83.29 | M153: 70 | N153: =june!E153 -> 67.97 | Q153: 16.16 | R153: 16.61 | S153: 12.16 | T153: 11.72 | U153: 6 | V153: 3.68 | W153: 2.55 | X153: 11 | Y153: 21.32 | Z153: 19.88 | AA153: 20.1 | AB153: =june!G153 -> 16.66
A154: 145 | B154: KINGSTON | C154: 0 | D154: 0 | E154: 0 | F154: 0 | G154: 0 | H154: 0 | I154: 0 | J154: 0 | K154: 0 | L154: 0 | M154: 0 | N154: =june!E154 -> 0 | Q154: 0 | R154: 0 | S154: 0 | T154: 0 | U154: 0 | V154: 0 | W154: 0 | X154: 0 | Y154: 0 | Z154: 0 | AA154: 0 | AB154: =june!G154 -> 0
A155: 146 | B155: LAKEVILLE | C155: 0 | D155: 0 | E155: 0 | F155: 0 | G155: 0 | H155: 0 | I155: 0 | J155: 0 | K155: 0 | L155: 0 | M155: 0 | N155: =june!E155 -> 0 | Q155: 2 | R155: 1.84 | S155: 1 | T155: 0 | U155: 0.41 | V155: 1.41 | W155: 0 | X155: 0 | Y155: 0 | Z155: 0 | AA155: 0 | AB155: =june!G155 -> 0
A156: 147 | B156: LANCASTER | C156: 0 | D156: 0 | E156: 0 | F156: 0 | G156: 0 | H156: 0 | I156: 0 | J156: 0 | K156: 0 | L156: 0 | M156: 0 | N156: =june!E156 -> 0 | Q156: 0 | R156: 0 | S156: 0 | T156: 0 | U156: 0 | V156: 0 | W156: 0 | X156: 0 | Y156: 0 | Z156: 0 | AA156: 0 | AB156: =june!G156 -> 0
A157: 148 | B157: LANESBOROUGH | C157: 22.76 | D157: 27.14 | E157: 20.75 | F157: 13.36 | G157: 22.39 | H157: 26 | I157: 16.16 | J157: 15 | K157: 12.85 | L157: 15 | M157: 20 | N157: =june!E157 -> 19 | Q157: 5.74 | R157: 5.54 | S157: 17 | T157: 15.41 | U157: 14.73 | V157: 11.57 | W157: 15.08 | X157: 18.34 | Y157: 22.91 | Z157: 21.21 | AA157: 21.28 | AB157: =june!G157 -> 24.09
A158: 149 | B158: LAWRENCE | C158: 0 | D158: 0 | E158: 0 | F158: 0 | G158: 0 | H158: 0 | I158: 0 | J158: 0 | K158: 0 | L158: 0 | M158: 0 | N158: =june!E158 -> 0 | Q158: 97.93 | R158: 81.63 | S158: 74.955 | T158: 84.07 | U158: 79.89 | V158: 81.57 | W158: 68.72 | X158: 66.35 | Y158: 53.59 | Z158: 48.82 | AA158: 54.8 | AB158: =june!G158 -> 65.93
A159: 150 | B159: LEE | C159: 114.7 | D159: 122.88 | E159: 113.05 | F159: 117.39 | G159: 123.62 | H159: 108.52 | I159: 106.37 | J159: 95.42 | K159: 103.01 | L159: 112.66 | M159: 127.98 | N159: =june!E159 -> 128.54 | Q159: 69.63 | R159: 76.41 | S159: 79.52 | T159: 72.1 | U159: 68.45 | V159: 74.55 | W159: 71.23 | X159: 76.81 | Y159: 81.07 | Z159: 90.42 | AA159: 89.71 | AB159: =june!G159 -> 98.38
A160: 151 | B160: LEICESTER | C160: 25.82 | D160: 54.63 | E160: 45.75 | F160: 59.65 | G160: 67.51 | H160: 73.305 | I160: 69.98 | J160: 73.05 | K160: 70.5 | L160: 67.28 | M160: 92 | N160: =june!E160 -> 103.14 | Q160: 12.06 | R160: 11.81 | S160: 24.64 | T160: 29.08 | U160: 31.27 | V160: 27.05 | W160: 23.6 | X160: 25.29 | Y160: 35.68 | Z160: 30.39 | AA160: 31.23 | AB160: =june!G160 -> 35.34
A161: 152 | B161: LENOX | C161: 114.31 | D161: 134.84 | E161: 145.73 | F161: 149.81 | G161: 170.66 | H161: 191.47 | I161: 205.26 | J161: 216.34 | K161: 221.43 | L161: 222 | M161: 246.79 | N161: =june!E161 -> 253.16 | Q161: 35.48 | R161: 37.49 | S161: 39.32 | T161: 38.12 | U161: 40.8 | V161: 42.93 | W161: 39.7 | X161: 41.74 | Y161: 44.42 | Z161: 53.79 | AA161: 51.5 | AB161: =june!G161 -> 47.02
A162: 153 | B162: LEOMINSTER | C162: 110.46 | D162: 117.76 | E162: 140.45 | F162: 150.55 | G162: 164.45 | H162: 181.56 | I162: 200.99 | J162: 215.76 | K162: 238.49 | L162: 257.75 | M162: 246.88 | N162: =june!E162 -> 246.16 | Q162: 208.625 | R162: 188.91 | S162: 204.55 | T162: 210.67 | U162: 240.535 | V162: 246.705 | W162: 314.86 | X162: 338.91 | Y162: 350.84 | Z162: 341.8 | AA162: 334.88 | AB162: =june!G162 -> 323.7
A163: 154 | B163: LEVERETT | C163: 15.45 | D163: 24.58 | E163: 35.36 | F163: 26.06 | G163: 25.44 | H163: 29.22 | I163: 26.71 | J163: 22.52 | K163: 26 | L163: 20.57 | M163: 20.49 | N163: =june!E163 -> 21.2 | Q163: 0.11 | R163: 0 | S163: 0 | T163: 0 | U163: 3 | V163: 3.58 | W163: 3.42 | X163: 5 | Y163: 7.63 | Z163: 6.98 | AA163: 7.34 | AB163: =june!G163 -> 5.37
A164: 155 | B164: LEXINGTON | C164: 0 | D164: 0 | E164: 0 | F164: 0 | G164: 0 | H164: 0 | I164: 0 | J164: 0 | K164: 0 | L164: 0 | M164: 0 | N164: =june!E164 -> 0 | Q164: 2 | R164: 3 | S164: 2 | T164: 1 | U164: 0 | V164: 0.52 | W164: 2 | X164: 5 | Y164: 2.99 | Z164: 1 | AA164: 2.43 | AB164: =june!G164 -> 6.34
A165: 156 | B165: LEYDEN | C165: 0 | D165: 0 | E165: 0 | F165: 0 | G165: 0 | H165: 0 | I165: 0 | J165: 0 | K165: 0 | L165: 0 | M165: 0 | N165: =june!E165 -> 0 | Q165: 0 | R165: 0 | S165: 0 | T165: 0 | U165: 0 | V165: 0 | W165: 0 | X165: 0 | Y165: 0 | Z165: 0 | AA165: 0 | AB165: =june!G165 -> 0
A166: 157 | B166: LINCOLN | C166: 0 | D166: 0 | E166: 0 | F166: 0 | G166: 0 | H166: 0 | I166: 0 | J166: 0 | K166: 0 | L166: 0 | M166: 0 | N166: =june!E166 -> 0 | Q166: 0 | R166: 0 | S166: 0 | T166: 0 | U166: 0 | V166: 0 | W166: 0.1 | X166: 0 | Y166: 4 | Z166: 2.7 | AA166: 0.42 | AB166: =june!G166 -> 2.22
A167: 158 | B167: LITTLETON | C167: 28.2 | D167: 27.15 | E167: 27.18 | F167: 33.22 | G167: 41.4 | H167: 43.325 | I167: 54.18 | J167: 69.91 | K167: 75.02 | L167: 72.5 | M167: 68.49 | N167: =june!E167 -> 78.39 | Q167: 19.34 | R167: 30 | S167: 37.88 | T167: 41.17 | U167: 42.45 | V167: 35.55 | W167: 36.14 | X167: 38.64 | Y167: 33.09 | Z167: 24.58 | AA167: 19.4 | AB167: =june!G167 -> 22.16
A168: 159 | B168: LONGMEADOW | C168: 121.49 | D168: 123.12 | E168: 103 | F168: 66.41 | G168: 56 | H168: 50.27 | I168: 39.93 | J168: 39.5 | K168: 44 | L168: 43 | M168: 45 | N168: =june!E168 -> 39.63 | Q168: 0 | R168: 1 | S168: 3.37 | T168: 2.91 | U168: 3.78 | V168: 4 | W168: 0.17 | X168: 4 | Y168: 2 | Z168: 2 | AA168: 2 | AB168: =june!G168 -> 2.06
A169: 160 | B169: LOWELL | C169: 0 | D169: 0 | E169: 0 | F169: 0 | G169: 0 | H169: 0 | I169: 0 | J169: 0 | K169: 0 | L169: 0 | M169: 0 | N169: =june!E169 -> 0 | Q169: 40.45 | R169: 39.01 | S169: 43.22 | T169: 36.95 | U169: 50.66 | V169: 48.03 | W169: 57.98 | X169: 76.93 | Y169: 78.7 | Z169: 88.64 | AA169: 106.85 | AB169: =june!G169 -> 141.95
A170: 161 | B170: LUDLOW | C170: 86.86 | D170: 107.97 | E170: 104.05 | F170: 102.05 | G170: 109.59 | H170: 105.46 | I170: 94.67 | J170: 89.3 | K170: 94.75 | L170: 89.11 | M170: 80.17 | N170: =june!E170 -> 93.99 | Q170: 27.9 | R170: 33.58 | S170: 26.02 | T170: 20.69 | U170: 13.9 | V170: 14.7 | W170: 18.99 | X170: 22.96 | Y170: 24.14 | Z170: 31.8 | AA170: 38.55 | AB170: =june!G170 -> 40.08
A171: 162 | B171: LUNENBURG | C171: 81.87 | D171: 85.94 | E171: 83.74 | F171: 79.51 | G171: 62.87 | H171: 70.9 | I171: 66.3 | J171: 55.09 | K171: 53.96 | L171: 46.3 | M171: 38.94 | N171: =june!E171 -> 51.27 | Q171: 37.47 | R171: 50.125 | S171: 45.79 | T171: 54.78 | U171: 43.51 | V171: 51.67 | W171: 57.3 | X171: 75.22 | Y171: 71.84 | Z171: 69.54 | AA171: 85.48 | AB171: =june!G171 -> 80.18
A172: 163 | B172: LYNN | C172: 0 | D172: 0 | E172: 0 | F172: 0 | G172: 0 | H172: 0 | I172: 0 | J172: 0 | K172: 0 | L172: 0 | M172: 0 | N172: =june!E172 -> 0 | Q172: 47.25 | R172: 29.71 | S172: 28.59 | T172: 21.53 | U172: 26.3 | V172: 25.78 | W172: 24.12 | X172: 34.19 | Y172: 36.4 | Z172: 62.34 | AA172: 79.01 | AB172: =june!G172 -> 99.25
A173: 164 | B173: LYNNFIELD | C173: 0 | D173: 0 | E173: 0 | F173: 0 | G173: 0 | H173: 0 | I173: 0 | J173: 0 | K173: 0 | L173: 0 | M173: 0 | N173: =june!E173 -> 0 | Q173: 0.71 | R173: 0 | S173: 0 | T173: 0.4 | U173: 0 | V173: 1 | W173: 0 | X173: 2.26 | Y173: 2 | Z173: 1 | AA173: 0 | AB173: =june!G173 -> 0
A174: 165 | B174: MALDEN | C174: 0 | D174: 0 | E174: 0 | F174: 0 | G174: 0 | H174: 0 | I174: 0 | J174: 0 | K174: 0 | L174: 0 | M174: 0 | N174: =june!E174 -> 0 | Q174: 0 | R174: 0 | S174: 0 | T174: 0 | U174: 1 | V174: 1 | W174: 1 | X174: 3.61 | Y174: 4.12 | Z174: 0.65 | AA174: 7.37 | AB174: =june!G174 -> 9.94
A175: 166 | B175: MANCHESTER | C175: 0 | D175: 0 | E175: 0 | F175: 0 | G175: 0 | H175: 0 | I175: 0 | J175: 0 | K175: 0 | L175: 0 | M175: 0 | N175: =june!E175 -> 0 | Q175: 0 | R175: 0 | S175: 0 | T175: 0 | U175: 0 | V175: 0 | W175: 0 | X175: 0 | Y175: 0 | Z175: 0 | AA175: 0 | AB175: =june!G175 -> 0
A176: 167 | B176: MANSFIELD | C176: 0 | D176: 0 | E176: 0 | F176: 0 | G176: 0 | H176: 0 | I176: 0 | J176: 0 | K176: 0 | L176: 0 | M176: 0 | N176: =june!E176 -> 0 | Q176: 1.72 | R176: 1 | S176: 1 | T176: 4.6 | U176: 5 | V176: 5.92 | W176: 4 | X176: 7 | Y176: 3.56 | Z176: 5 | AA176: 5.27 | AB176: =june!G176 -> 6.43
A177: 168 | B177: MARBLEHEAD | C177: 15 | D177: 13.47 | E177: 11 | F177: 3 | G177: 0 | H177: 1 | I177: 0 | J177: 0 | K177: 0 | L177: 0 | M177: 0 | N177: =june!E177 -> 0 | Q177: 2 | R177: 2 | S177: 0.42 | T177: 0 | U177: 0.66 | V177: 0 | W177: 1 | X177: 6.43 | Y177: 4.65 | Z177: 0.59 | AA177: 0.6 | AB177: =june!G177 -> 5.41
A178: 169 | B178: MARION | C178: 0 | D178: 0 | E178: 0 | F178: 0 | G178: 0 | H178: 0 | I178: 0 | J178: 0 | K178: 0 | L178: 0 | M178: 0 | N178: =june!E178 -> 0 | Q178: 0 | R178: 0 | S178: 0 | T178: 0 | U178: 0 | V178: 0 | W178: 0 | X178: 0 | Y178: 0 | Z178: 0 | AA178: 1 | AB178: =june!G178 -> 0.72
A179: 170 | B179: MARLBOROUGH | C179: 0 | D179: 0 | E179: 0 | F179: 0 | G179: 0 | H179: 0 | I179: 0 | J179: 0 | K179: 0 | L179: 0 | M179: 0 | N179: =june!E179 -> 0 | Q179: 59.09 | R179: 52.05 | S179: 63.15 | T179: 73.58 | U179: 87.94 | V179: 106.68 | W179: 111 | X179: 105.63 | Y179: 96.7 | Z179: 92.13 | AA179: 93.87 | AB179: =june!G179 -> 91.36
A180: 171 | B180: MARSHFIELD | C180: 0 | D180: 0.98 | E180: 1.5 | F180: 2 | G180: 2 | H180: 2.5 | I180: 3 | J180: 4 | K180: 4 | L180: 4.5 | M180: 6 | N180: =june!E180 -> 5 | Q180: 0 | R180: 0 | S180: 0 | T180: 0 | U180: 0 | V180: 0 | W180: 2 | X180: 1.02 | Y180: 0 | Z180: 0.46 | AA180: 6.54 | AB180: =june!G180 -> 6.14
A181: 172 | B181: MASHPEE | C181: 0 | D181: 0 | E181: 0 | F181: 0 | G181: 0 | H181: 0 | I181: 3 | J181: 28.15 | K181: 48.58 | L181: 37.5 | M181: 72.42 | N181: =june!E181 -> 64.75 | Q181: 14.91 | R181: 12.36 | S181: 17.38 | T181: 26.59 | U181: 33.93 | V181: 33.22 | W181: 43.77 | X181: 52.1 | Y181: 74.82 | Z181: 66.12 | AA181: 65.2 | AB181: =june!G181 -> 81.1
A182: 173 | B182: MATTAPOISETT | C182: 0 | D182: 0 | E182: 0 | F182: 0 | G182: 0 | H182: 0 | I182: 0 | J182: 0 | K182: 0 | L182: 3 | M182: 3 | N182: =june!E182 -> 2 | Q182: 0 | R182: 0.5 | S182: 0 | T182: 0 | U182: 0 | V182: 0 | W182: 0 | X182: 0 | Y182: 0 | Z182: 0 | AA182: 0.39 | AB182: =june!G182 -> 1.33
A183: 174 | B183: MAYNARD | C183: 34.93 | D183: 31.23 | E183: 22.99 | F183: 30.11 | G183: 27.94 | H183: 18.32 | I183: 15.84 | J183: 18.76 | K183: 37.46 | L183: 37.5 | M183: 35.16 | N183: =june!E183 -> 39.52 | Q183: 9 | R183: 14.88 | S183: 27.95 | T183: 45.415 | U183: 42.96 | V183: 52.43 | W183: 45.71 | X183: 33.7 | Y183: 29 | Z183: 24.16 | AA183: 15.63 | AB183: =june!G183 -> 9
A184: 175 | B184: MEDFIELD | C184: 0 | D184: 0 | E184: 0 | F184: 0 | G184: 0 | H184: 0 | I184: 0 | J184: 0 | K184: 0 | L184: 0 | M184: 0 | N184: =june!E184 -> 0 | Q184: 0.5 | R184: 1 | S184: 2.58 | T184: 4.21 | U184: 5.41 | V184: 9.49 | W184: 6.4 | X184: 2.13 | Y184: 1.99 | Z184: 1.67 | AA184: 5.91 | AB184: =june!G184 -> 7.45
A185: 176 | B185: MEDFORD | C185: 0 | D185: 0 | E185: 0 | F185: 0 | G185: 0 | H185: 0 | I185: 0 | J185: 0 | K185: 0 | L185: 0 | M185: 0 | N185: =june!E185 -> 0 | Q185: 4.7 | R185: 2.38 | S185: 7.56 | T185: 7 | U185: 4.15 | V185: 4 | W185: 1 | X185: 1 | Y185: 0.31 | Z185: 2.25 | AA185: 3.93 | AB185: =june!G185 -> 7.41
A186: 177 | B186: MEDWAY | C186: 24.26 | D186: 41.855 | E186: 37.17 | F186: 32.28 | G186: 27.91 | H186: 34.815 | I186: 55.62 | J186: 58.66 | K186: 71.7 | L186: 75.21 | M186: 71.15 | N186: =june!E186 -> 89.18 | Q186: 32.22 | R186: 31.18 | S186: 35.28 | T186: 39.645 | U186: 42.17 | V186: 49.41 | W186: 44.35 | X186: 45.91 | Y186: 47.66 | Z186: 50.56 | AA186: 42.32 | AB186: =june!G186 -> 49.63
A187: 178 | B187: MELROSE | C187: 0 | D187: 0 | E187: 0 | F187: 0 | G187: 0 | H187: 0 | I187: 0 | J187: 0 | K187: 0 | L187: 1 | M187: 10.63 | N187: =june!E187 -> 25.29 | Q187: 0 | R187: 0 | S187: 0 | T187: 0 | U187: 0 | V187: 0 | W187: 0 | X187: 0.94 | Y187: 0 | Z187: 0 | AA187: 3.84 | AB187: =june!G187 -> 2.08
A188: 179 | B188: MENDON | C188: 0 | D188: 0 | E188: 0 | F188: 0 | G188: 0 | H188: 0 | I188: 0 | J188: 0 | K188: 0 | L188: 0 | M188: 0 | N188: =june!E188 -> 0 | Q188: 0 | R188: 0 | S188: 0 | T188: 0 | U188: 0 | V188: 0 | W188: 0 | X188: 0 | Y188: 0 | Z188: 0 | AA188: 0 | AB188: =june!G188 -> 0
A189: 180 | B189: MERRIMAC | C189: 0 | D189: 0 | E189: 0 | F189: 0 | G189: 0 | H189: 0 | I189: 0 | J189: 0 | K189: 0 | L189: 0 | M189: 0 | N189: =june!E189 -> 0 | Q189: 0 | R189: 0 | S189: 0 | T189: 0 | U189: 0 | V189: 0 | W189: 0 | X189: 0 | Y189: 0 | Z189: 0 | AA189: 0 | AB189: =june!G189 -> 0
A190: 181 | B190: METHUEN | C190: 0 | D190: 0 | E190: 0 | F190: 0 | G190: 0 | H190: 0 | I190: 0 | J190: 0 | K190: 0 | L190: 0 | M190: 0 | N190: =june!E190 -> 0 | Q190: 14 | R190: 11.71 | S190: 12.31 | T190: 9.84 | U190: 14.95 | V190: 10.82 | W190: 13.77 | X190: 19.34 | Y190: 21.31 | Z190: 24.78 | AA190: 16.99 | AB190: =june!G190 -> 24.69
A191: 182 | B191: MIDDLEBOROUGH | C191: 13.02 | D191: 13.41 | E191: 9.2 | F191: 7.19 | G191: 4 | H191: 3 | I191: 3 | J191: 8 | K191: 4 | L191: 6.38 | M191: 3 | N191: =june!E191 -> 3 | Q191: 3.84 | R191: 1.54 | S191: 2.17 | T191: 5.13 | U191: 10.76 | V191: 9.19 | W191: 21.25 | X191: 32.72 | Y191: 35.09 | Z191: 33.94 | AA191: 46.59 | AB191: =june!G191 -> 51.73
A192: 183 | B192: MIDDLEFIELD | C192: 0 | D192: 0 | E192: 0 | F192: 0 | G192: 0 | H192: 0 | I192: 0 | J192: 0 | K192: 0 | L192: 0 | M192: 0 | N192: =june!E192 -> 0 | Q192: 0 | R192: 0 | S192: 0 | T192: 0 | U192: 0 | V192: 0 | W192: 0 | X192: 0 | Y192: 0 | Z192: 0 | AA192: 0 | AB192: =june!G192 -> 0
A193: 184 | B193: MIDDLETON | C193: 0 | D193: 0 | E193: 0 | F193: 0 | G193: 0 | H193: 0 | I193: 0 | J193: 0 | K193: 0 | L193: 0 | M193: 0 | N193: =june!E193 -> 0 | Q193: 0.2 | R193: 0 | S193: 0.2 | T193: 0 | U193: 0 | V193: 0 | W193: 0 | X193: 0 | Y193: 0 | Z193: 0 | AA193: 0 | AB193: =june!G193 -> 1
A194: 185 | B194: MILFORD | C194: 140.69 | D194: 130.33 | E194: 109.695 | F194: 113.505 | G194: 117.69 | H194: 99.3 | I194: 85.69 | J194: 94.26 | K194: 89.92 | L194: 84.49 | M194: 82.65 | N194: =june!E194 -> 86.8 | Q194: 133.375 | R194: 119.95 | S194: 110.4 | T194: 103.86 | U194: 100.14 | V194: 108.81 | W194: 121.65 | X194: 139.99 | Y194: 150.82 | Z194: 169.48 | AA194: 184.21 | AB194: =june!G194 -> 198.76
A195: 186 | B195: MILLBURY | C195: 0 | D195: 0 | E195: 0 | F195: 0 | G195: 0 | H195: 0 | I195: 0 | J195: 0 | K195: 0 | L195: 0 | M195: 0 | N195: =june!E195 -> 0 | Q195: 18.18 | R195: 12.96 | S195: 15.19 | T195: 14.58 | U195: 15 | V195: 8.5 | W195: 16.14 | X195: 15.03 | Y195: 14.68 | Z195: 17.74 | AA195: 20.19 | AB195: =june!G195 -> 24.34
A196: 187 | B196: MILLIS | C196: 47.55 | D196: 35.73 | E196: 30.02 | F196: 36.25 | G196: 41.87 | H196: 60.58 | I196: 64.93 | J196: 68.56 | K196: 63.68 | L196: 74.68 | M196: 76.03 | N196: =june!E196 -> 79.26 | Q196: 31.66 | R196: 36.14 | S196: 35.465 | T196: 34.65 | U196: 29.34 | V196: 29.555 | W196: 36.155 | X196: 35.1 | Y196: 31.26 | Z196: 31.01 | AA196: 31.69 | AB196: =june!G196 -> 28.61
A197: 188 | B197: MILLVILLE | C197: 0 | D197: 0 | E197: 0 | F197: 0 | G197: 0 | H197: 0 | I197: 0 | J197: 0 | K197: 0 | L197: 0 | M197: 0 | N197: =june!E197 -> 0 | Q197: 0 | R197: 0 | S197: 0 | T197: 0 | U197: 0 | V197: 0 | W197: 0 | X197: 0 | Y197: 0 | Z197: 0 | AA197: 0 | AB197: =june!G197 -> 0
A198: 189 | B198: MILTON | C198: 0 | D198: 0 | E198: 0 | F198: 0 | G198: 0 | H198: 0 | I198: 0 | J198: 0 | K198: 0 | L198: 0 | M198: 0 | N198: =june!E198 -> 0 | Q198: 0 | R198: 0 | S198: 0 | T198: 1 | U198: 0 | V198: 0 | W198: 0 | X198: 0 | Y198: 3.22 | Z198: 2 | AA198: 2.7 | AB198: =june!G198 -> 4
A199: 190 | B199: MONROE | C199: 0 | D199: 0 | E199: 0 | F199: 0 | G199: 0 | H199: 0 | I199: 0 | J199: 0 | K199: 0 | L199: 0 | M199: 0 | N199: =june!E199 -> 0 | Q199: 1 | R199: 1.3 | S199: 3 | T199: 4.36 | U199: 6.2 | V199: 1.52 | W199: 1 | X199: 1.7 | Y199: 1 | Z199: 1 | AA199: 0.37 | AB199: =june!G199 -> 0.74
A200: 191 | B200: MONSON | C200: 0 | D200: 0 | E200: 0 | F200: 0 | G200: 0 | H200: 0 | I200: 7.72 | J200: 28.88 | K200: 42.2 | L200: 31.29 | M200: 42.96 | N200: =june!E200 -> 52 | Q200: 5.15 | R200: 10.83 | S200: 10.5 | T200: 12.78 | U200: 20.61 | V200: 22.98 | W200: 17 | X200: 32.8 | Y200: 35.61 | Z200: 35.38 | AA200: 34.77 | AB200: =june!G200 -> 36.68
A201: 192 | B201: MONTAGUE | C201: 0 | D201: 0 | E201: 0 | F201: 0 | G201: 0 | H201: 0 | I201: 0 | J201: 0 | K201: 0 | L201: 0 | M201: 0 | N201: =june!E201 -> 0 | Q201: 0 | R201: 0 | S201: 0 | T201: 0 | U201: 0 | V201: 0 | W201: 0 | X201: 0 | Y201: 0 | Z201: 0 | AA201: 0 | AB201: =june!G201 -> 0
A202: 193 | B202: MONTEREY | C202: 0 | D202: 0 | E202: 0 | F202: 0 | G202: 0 | H202: 0 | I202: 0 | J202: 0 | K202: 0 | L202: 0 | M202: 0 | N202: =june!E202 -> 0 | Q202: 0 | R202: 0 | S202: 0 | T202: 0 | U202: 0 | V202: 0 | W202: 0 | X202: 0 | Y202: 0 | Z202: 0 | AA202: 0 | AB202: =june!G202 -> 0
A203: 194 | B203: MONTGOMERY | C203: 0 | D203: 0 | E203: 0 | F203: 0 | G203: 0 | H203: 0 | I203: 0 | J203: 0 | K203: 0 | L203: 0 | M203: 0 | N203: =june!E203 -> 0 | Q203: 0 | R203: 0 | S203: 0 | T203: 0 | U203: 0 | V203: 0 | W203: 0 | X203: 0 | Y203: 0 | Z203: 0 | AA203: 0 | AB203: =june!G203 -> 0
A204: 195 | B204: MOUNT WASHINGTON | C204: 0 | D204: 0 | E204: 0 | F204: 0 | G204: 0 | H204: 0 | I204: 0 | J204: 0 | K204: 0 | L204: 0 | M204: 0 | N204: =june!E204 -> 0 | Q204: 0 | R204: 0 | S204: 1 | T204: 2 | U204: 2.58 | V204: 1 | W204: 1 | X204: 1 | Y204: 2 | Z204: 2 | AA204: 1 | AB204: =june!G204 -> 1
A205: 196 | B205: NAHANT | C205: 0 | D205: 0 | E205: 0 | F205: 0 | G205: 0 | H205: 0 | I205: 0 | J205: 0 | K205: 0 | L205: 0 | M205: 0 | N205: =june!E205 -> 0 | Q205: 0 | R205: 1 | S205: 1 | T205: 0 | U205: 0 | V205: 0 | W205: 0 | X205: 0 | Y205: 0 | Z205: 0 | AA205: 0 | AB205: =june!G205 -> 1.48
... 247 more rows

Sheet notes (hidden)
A1: source: chosum16proj, nov 19 2015

Sheet proj16jul (hidden)
A2: Massachusetts Department of Elementary and Secondary Education
A3: Office of School Finance
A5: School Choice Pupils and Tuition, Projected FY16, July 2015
S7: choicecalc15jun, after removing mava and tecca
C8: receiving | D8: receiving | E8: sending | F8: sending | I8: mava | L8: ffte chg | M8: tuition chg | N8: ffte chg | O8: tuition chg
A9: LEA | B9: district | C9: fte | D9: tuition | E9: fte | F9: tuition | H9: lea | I9: n of kids | J9: tecca | L9: june to proj | M9: proj to june | N9: june to proj | O9: proj to june
A10: 1 | B10: ABINGTON | C10: 2 | D10: 10000 | E10: =S10+(0.83*I10)+0.59*J10 -> 26.25 | F10: =T10+(0.83*I10)*6700+0.59*J10*6700 -> 141707 | H10: 1 | I10: 3 | J10: 4 | L10: =C10-june!E10 -> 1 | M10: =D10-june!F10 -> 5000 | N10: =E10-june!G10 -> -7.24 | O10: =F10-june!H10 -> -60914 | Q10: =R10-A10 -> 0 | R10: 1 | S10: 21.4 | T10: 109212 | U10: =S10-june!G10 -> -12.09 | V10: =T10-june!H10 -> -93409
A11: 2 | B11: ACTON | C11: 0 | D11: 0 | E11: =S11+(0.83*I11)+0.59*J11 -> 0.83 | F11: =T11+(0.83*I11)*6700+0.59*J11*6700 -> 5561 | H11: 2 | I11: 1 | L11: =C11-june!E11 -> 0 | M11: =D11-june!F11 -> 0 | N11: =E11-june!G11 -> 0.83 | O11: =F11-june!H11 -> 5561 | Q11: =R11-A11 -> 0 | R11: 2 | U11: =S11-june!G11 -> 0 | V11: =T11-june!H11 -> 0
A12: 3 | B12: ACUSHNET | C12: 0 | D12: 0 | E12: 11.12 | F12: 62652 | H12: 3 | L12: =C12-june!E12 -> 0 | M12: =D12-june!F12 -> 0 | N12: =E12-june!G12 -> -7.51 | O12: =F12-june!H12 -> -35933 | Q12: 0 | R12: 3 | S12: 11.12 | T12: 62652 | U12: =S12-june!G12 -> -7.51 | V12: =T12-june!H12 -> -35933
A13: 4 | B13: ADAMS | C13: 0 | D13: 0 | E13: 0 | F13: 0 | H13: 4 | L13: =C13-june!E13 -> 0 | M13: =D13-june!F13 -> 0 | N13: =E13-june!G13 -> 0 | O13: =F13-june!H13 -> 0 | Q13: 0 | R13: 4 | U13: =S13-june!G13 -> 0 | V13: =T13-june!H13 -> 0
A14: 5 | B14: AGAWAM | C14: 80.57 | D14: 425326 | E14: 42.49 | F14: 290838 | H14: 5 | I14: 3 | J14: 2 | L14: =C14-june!E14 -> 4.55 | M14: =D14-june!F14 -> -12590 | N14: =E14-june!G14 -> -3.61 | O14: =F14-june!H14 -> -1221 | Q14: 0 | R14: 5 | S14: 38.82 | T14: 266249 | U14: =S14-june!G14 -> -7.28 | V14: =T14-june!H14 -> -25810
A15: 6 | B15: ALFORD | C15: 0 | D15: 0 | E15: 0 | F15: 0 | H15: 6 | L15: =C15-june!E15 -> 0 | M15: =D15-june!F15 -> 0 | N15: =E15-june!G15 -> 0 | O15: =F15-june!H15 -> 0 | Q15: 0 | R15: 6 | U15: =S15-june!G15 -> 0 | V15: =T15-june!H15 -> 0
A16: 7 | B16: AMESBURY | C16: 30 | D16: 196514 | E16: 74.48 | F16: 494598 | H16: 7 | I16: 2 | J16: 8 | L16: =C16-june!E16 -> 17.64 | M16: =D16-june!F16 -> 102001 | N16: =E16-june!G16 -> 14.79 | O16: =F16-june!H16 -> 115117 | Q16: 0 | R16: 7 | S16: 68.1 | T16: 451852 | U16: =S16-june!G16 -> 8.41 | V16: =T16-june!H16 -> 72371
A17: 8 | B17: AMHERST | C17: 53.85 | D17: 338073 | E17: 23.91 | F17: 157400 | H17: 8 | I17: 2 | J17: 1 | L17: =C17-june!E17 -> 3.89 | M17: =D17-june!F17 -> 1940 | N17: =E17-june!G17 -> -1.16 | O17: =F17-june!H17 -> -81488 | Q17: 0 | R17: 8 | S17: 21.66 | T17: 142325 | U17: =S17-june!G17 -> -3.41 | V17: =T17-june!H17 -> -96563
A18: 9 | B18: ANDOVER | C18: 0 | D18: 0 | E18: 3.78 | F18: 25326 | H18: 9 | I18: 1 | J18: 5 | L18: =C18-june!E18 -> 0 | M18: =D18-june!F18 -> 0 | N18: =E18-june!G18 -> -0.22 | O18: =F18-june!H18 -> -1141 | Q18: 0 | R18: 9 | U18: =S18-june!G18 -> -4 | V18: =T18-june!H18 -> -26467
A19: 10 | B19: ARLINGTON | C19: 0 | D19: 0 | E19: 0.83 | F19: 5561 | H19: 10 | I19: 1 | L19: =C19-june!E19 -> 0 | M19: =D19-june!F19 -> 0 | N19: =E19-june!G19 -> -1.13 | O19: =F19-june!H19 -> -9245 | Q19: 0 | R19: 10 | U19: =S19-june!G19 -> -1.96 | V19: =T19-june!H19 -> -14806
A20: 11 | B20: ASHBURNHAM | C20: 0 | D20: 0 | E20: 0 | F20: 0 | H20: 11 | L20: =C20-june!E20 -> 0 | M20: =D20-june!F20 -> 0 | N20: =E20-june!G20 -> 0 | O20: =F20-june!H20 -> 0 | Q20: 0 | R20: 11 | U20: =S20-june!G20 -> 0 | V20: =T20-june!H20 -> 0
A21: 12 | B21: ASHBY | C21: 0 | D21: 0 | E21: 0 | F21: 0 | H21: 12 | L21: =C21-june!E21 -> 0 | M21: =D21-june!F21 -> 0 | N21: =E21-june!G21 -> 0 | O21: =F21-june!H21 -> 0 | Q21: 0 | R21: 12 | U21: =S21-june!G21 -> 0 | V21: =T21-june!H21 -> 0
A22: 13 | B22: ASHFIELD | C22: 0 | D22: 0 | E22: 0 | F22: 0 | H22: 13 | L22: =C22-june!E22 -> 0 | M22: =D22-june!F22 -> 0 | N22: =E22-june!G22 -> 0 | O22: =F22-june!H22 -> 0 | Q22: 0 | R22: 13 | U22: =S22-june!G22 -> 0 | V22: =T22-june!H22 -> 0
A23: 14 | B23: ASHLAND | C23: 31.76 | D23: 212748 | E23: 15.37 | F23: 91418 | H23: 14 | J23: 1 | L23: =C23-june!E23 -> -11.67 | M23: =D23-june!F23 -> -53867 | N23: =E23-june!G23 -> 1.51 | O23: =F23-june!H23 -> 1487 | Q23: 0 | R23: 14 | S23: 14.78 | T23: 87465 | U23: =S23-june!G23 -> 0.92 | V23: =T23-june!H23 -> -2466
A24: 15 | B24: ATHOL | C24: 0 | D24: 0 | E24: 0 | F24: 0 | H24: 15 | L24: =C24-june!E24 -> 0 | M24: =D24-june!F24 -> 0 | N24: =E24-june!G24 -> 0 | O24: =F24-june!H24 -> 0 | Q24: 0 | R24: 15 | U24: =S24-june!G24 -> 0 | V24: =T24-june!H24 -> 0
A25: 16 | B25: ATTLEBORO | C25: 0 | D25: 0 | E25: 16.89 | F25: 98305 | H25: 16 | I25: 2 | J25: 11 | L25: =C25-june!E25 -> 0 | M25: =D25-june!F25 -> 0 | N25: =E25-june!G25 -> -9.44 | O25: =F25-june!H25 -> -65086 | Q25: 0 | R25: 16 | S25: 8.74 | T25: 43700 | U25: =S25-june!G25 -> -17.59 | V25: =T25-june!H25 -> -119691
A26: 17 | B26: AUBURN | C26: 46.91 | D26: 249438 | E26: 20.36 | F26: 127289 | H26: 17 | L26: =C26-june!E26 -> -15.18 | M26: =D26-june!F26 -> -78172 | N26: =E26-june!G26 -> 2.56 | O26: =F26-june!H26 -> 24866 | Q26: 0 | R26: 17 | S26: 20.36 | T26: 127289 | U26: =S26-june!G26 -> 2.56 | V26: =T26-june!H26 -> 24866
A27: 18 | B27: AVON | C27: 182.16 | D27: 949225 | E27: 5 | F27: 25000 | H27: 18 | L27: =C27-june!E27 -> -6.02 | M27: =D27-june!F27 -> -31445 | N27: =E27-june!G27 -> 3.31 | O27: =F27-june!H27 -> 14933 | Q27: 0 | R27: 18 | S27: 5 | T27: 25000 | U27: =S27-june!G27 -> 3.31 | V27: =T27-june!H27 -> 14933
A28: 19 | B28: AYER | C28: 0 | D28: 0 | E28: 0 | F28: 0 | H28: 19 | L28: =C28-june!E28 -> 0 | M28: =D28-june!F28 -> 0 | N28: =E28-june!G28 -> 0 | O28: =F28-june!H28 -> 0 | Q28: 0 | R28: 19 | U28: =S28-june!G28 -> 0 | V28: =T28-june!H28 -> 0
A29: 20 | B29: BARNSTABLE | C29: 104.86 | D29: 616894 | E29: 155.75 | F29: 918231 | H29: 20 | I29: 1 | J29: 14 | L29: =C29-june!E29 -> 3.08 | M29: =D29-june!F29 -> -33824 | N29: =E29-june!G29 -> 0.3 | O29: =F29-june!H29 -> 13338 | Q29: 0 | R29: 20 | S29: 146.66 | T29: 857328 | U29: =S29-june!G29 -> -8.79 | V29: =T29-june!H29 -> -47565
A30: 21 | B30: BARRE | C30: 0 | D30: 0 | E30: 0 | F30: 0 | H30: 21 | L30: =C30-june!E30 -> 0 | M30: =D30-june!F30 -> 0 | N30: =E30-june!G30 -> 0 | O30: =F30-june!H30 -> 0 | Q30: 0 | R30: 21 | U30: =S30-june!G30 -> 0 | V30: =T30-june!H30 -> 0
A31: 22 | B31: BECKET | C31: 0 | D31: 0 | E31: 2 | F31: 10000 | H31: 22 | L31: =C31-june!E31 -> 0 | M31: =D31-june!F31 -> 0 | N31: =E31-june!G31 -> -1 | O31: =F31-june!H31 -> -5000 | Q31: 0 | R31: 22 | S31: 2 | T31: 10000 | U31: =S31-june!G31 -> -1 | V31: =T31-june!H31 -> -5000
A32: 23 | B32: BEDFORD | C32: 0 | D32: 0 | E32: 1 | F32: 5000 | H32: 23 | L32: =C32-june!E32 -> 0 | M32: =D32-june!F32 -> 0 | N32: =E32-june!G32 -> -3.16 | O32: =F32-june!H32 -> -21665 | Q32: 0 | R32: 23 | S32: 1 | T32: 5000 | U32: =S32-june!G32 -> -3.16 | V32: =T32-june!H32 -> -21665
A33: 24 | B33: BELCHERTOWN | C33: 99.51 | D33: 580989 | E33: 82.73 | F33: 544940 | H33: 24 | J33: 4 | L33: =C33-june!E33 -> -23.98 | M33: =D33-june!F33 -> -168322 | N33: =E33-june!G33 -> -12.96 | O33: =F33-june!H33 -> -116779 | Q33: 0 | R33: 24 | S33: 80.37 | T33: 529128 | U33: =S33-june!G33 -> -15.32 | V33: =T33-june!H33 -> -132591
A34: 25 | B34: BELLINGHAM | C34: 45.33 | D34: 257806 | E34: 115.14 | F34: 703458 | H34: 25 | J34: 8 | L34: =C34-june!E34 -> 6.14 | M34: =D34-june!F34 -> 39136 | N34: =E34-june!G34 -> -20.71 | O34: =F34-june!H34 -> -140935 | Q34: 0 | R34: 25 | S34: 110.42 | T34: 671834 | U34: =S34-june!G34 -> -25.43 | V34: =T34-june!H34 -> -172559
A35: 26 | B35: BELMONT | C35: 0 | D35: 0 | E35: 0.73 | F35: 4653 | H35: 26 | J35: 1 | L35: =C35-june!E35 -> 0 | M35: =D35-june!F35 -> 0 | N35: =E35-june!G35 -> -0.57 | O35: =F35-june!H35 -> -4267 | Q35: 0 | R35: 26 | S35: 0.14 | T35: 700 | U35: =S35-june!G35 -> -1.16 | V35: =T35-june!H35 -> -8220
A36: 27 | B36: BERKLEY | C36: 78.6 | D36: 396688 | E36: 2 | F36: 10000 | H36: 27 | L36: =C36-june!E36 -> -25.56 | M36: =D36-june!F36 -> -124112 | N36: =E36-june!G36 -> 0.15 | O36: =F36-june!H36 -> 750 | Q36: 0 | R36: 27 | S36: 2 | T36: 10000 | U36: =S36-june!G36 -> 0.15 | V36: =T36-june!H36 -> 750
A37: 28 | B37: BERLIN | C37: 18 | D37: 145629 | E37: 0 | F37: 0 | H37: 28 | L37: =C37-june!E37 -> -1.41 | M37: =D37-june!F37 -> -2192 | N37: =E37-june!G37 -> -1 | O37: =F37-june!H37 -> -5000 | Q37: 0 | R37: 28 | U37: =S37-june!G37 -> -1 | V37: =T37-june!H37 -> -5000
A38: 29 | B38: BERNARDSTON | C38: 0 | D38: 0 | E38: 0 | F38: 0 | H38: 29 | L38: =C38-june!E38 -> 0 | M38: =D38-june!F38 -> 0 | N38: =E38-june!G38 -> 0 | O38: =F38-june!H38 -> 0 | Q38: 0 | R38: 29 | U38: =S38-june!G38 -> 0 | V38: =T38-june!H38 -> 0
A39: 30 | B39: BEVERLY | C39: 95.32 | D39: 524477 | E39: 62.12 | F39: 336687 | H39: 30 | I39: 7 | J39: 9 | L39: =C39-june!E39 -> -7.98 | M39: =D39-june!F39 -> -71601 | N39: =E39-june!G39 -> 2.78 | O39: =F39-june!H39 -> -1997 | Q39: 0 | R39: 30 | S39: 51 | T39: 262183 | U39: =S39-june!G39 -> -8.34 | V39: =T39-june!H39 -> -76501
A40: 31 | B40: BILLERICA | C40: 0 | D40: 0 | E40: 13.56 | F40: 74634 | H40: 31 | I40: 2 | J40: 4 | L40: =C40-june!E40 -> 0 | M40: =D40-june!F40 -> 0 | N40: =E40-june!G40 -> -4.41 | O40: =F40-june!H40 -> -42618 | Q40: 0 | R40: 31 | S40: 9.54 | T40: 47700 | U40: =S40-june!G40 -> -8.43 | V40: =T40-june!H40 -> -69552
A41: 32 | B41: BLACKSTONE | C41: 0 | D41: 0 | E41: 0 | F41: 0 | H41: 32 | L41: =C41-june!E41 -> 0 | M41: =D41-june!F41 -> 0 | N41: =E41-june!G41 -> 0 | O41: =F41-june!H41 -> 0 | Q41: 0 | R41: 32 | U41: =S41-june!G41 -> 0 | V41: =T41-june!H41 -> 0
A42: 33 | B42: BLANDFORD | C42: 0 | D42: 0 | E42: 0 | F42: 0 | H42: 33 | L42: =C42-june!E42 -> 0 | M42: =D42-june!F42 -> 0 | N42: =E42-june!G42 -> -2 | O42: =F42-june!H42 -> -11951 | Q42: 0 | R42: 33 | U42: =S42-june!G42 -> -2 | V42: =T42-june!H42 -> -11951
A43: 34 | B43: BOLTON | C43: 0 | D43: 0 | E43: 0 | F43: 0 | H43: 34 | L43: =C43-june!E43 -> 0 | M43: =D43-june!F43 -> 0 | N43: =E43-june!G43 -> 0 | O43: =F43-june!H43 -> 0 | Q43: 0 | R43: 34 | U43: =S43-june!G43 -> 0 | V43: =T43-june!H43 -> 0
A44: 35 | B44: BOSTON | C44: 0 | D44: 0 | E44: 86.54 | F44: 555312 | H44: 35 | I44: 24 | J44: 76 | L44: =C44-june!E44 -> 0 | M44: =D44-june!F44 -> 0 | N44: =E44-june!G44 -> -6.54 | O44: =F44-june!H44 -> -61463 | Q44: 0 | R44: 35 | S44: 21.78 | T44: 121420 | U44: =S44-june!G44 -> -71.3 | V44: =T44-june!H44 -> -495355
A45: 36 | B45: BOURNE | C45: 126.46 | D45: 723869 | E45: 91.77 | F45: 622519 | H45: 36 | I45: 2 | J45: 1 | L45: =C45-june!E45 -> -8.44 | M45: =D45-june!F45 -> -76651 | N45: =E45-june!G45 -> -3.81 | O45: =F45-june!H45 -> 57602 | Q45: 0 | R45: 36 | S45: 89.52 | T45: 607444 | U45: =S45-june!G45 -> -6.06 | V45: =T45-june!H45 -> 42527
A46: 37 | B46: BOXBOROUGH | C46: 0 | D46: 0 | E46: 0 | F46: 0 | H46: 37 | L46: =C46-june!E46 -> 0 | M46: =D46-june!F46 -> 0 | N46: =E46-june!G46 -> 0 | O46: =F46-june!H46 -> 0 | Q46: 0 | R46: 37 | U46: =S46-june!G46 -> 0 | V46: =T46-june!H46 -> 0
A47: 38 | B47: BOXFORD | C47: 0 | D47: 0 | E47: 0.83 | F47: 5561 | H47: 38 | I47: 1 | L47: =C47-june!E47 -> 0 | M47: =D47-june!F47 -> 0 | N47: =E47-june!G47 -> -2.17 | O47: =F47-june!H47 -> -11139 | Q47: 0 | R47: 38 | U47: =S47-june!G47 -> -3 | V47: =T47-june!H47 -> -16700
A48: 39 | B48: BOYLSTON | C48: 13 | D48: 70513 | E48: 7.4 | F48: 83867 | H48: 39 | I48: 2 | L48: =C48-june!E48 -> -4 | M48: =D48-june!F48 -> -24252 | N48: =E48-june!G48 -> 1.8 | O48: =F48-june!H48 -> 10179 | Q48: 0 | R48: 39 | S48: 5.74 | T48: 72745 | U48: =S48-june!G48 -> 0.14 | V48: =T48-june!H48 -> -943
A49: 40 | B49: BRAINTREE | C49: 0 | D49: 0 | E49: 4.6 | F49: 27420 | H49: 40 | I49: 1 | J49: 3 | L49: =C49-june!E49 -> 0 | M49: =D49-june!F49 -> 0 | N49: =E49-june!G49 -> -0.59 | O49: =F49-june!H49 -> -5910 | Q49: 0 | R49: 40 | S49: 2 | T49: 10000 | U49: =S49-june!G49 -> -3.19 | V49: =T49-june!H49 -> -23330
A50: 41 | B50: BREWSTER | C50: 0 | D50: 0 | E50: 23.39 | F50: 158226 | H50: 41 | J50: 1 | L50: =C50-june!E50 -> 0 | M50: =D50-june!F50 -> 0 | N50: =E50-june!G50 -> -8.86 | O50: =F50-june!H50 -> -37170 | Q50: 0 | R50: 41 | S50: 22.8 | T50: 154273 | U50: =S50-june!G50 -> -9.45 | V50: =T50-june!H50 -> -41123
A51: 42 | B51: BRIDGEWATER | C51: 0 | D51: 0 | E51: 0 | F51: 0 | H51: 42 | L51: =C51-june!E51 -> 0 | M51: =D51-june!F51 -> 0 | N51: =E51-june!G51 -> 0 | O51: =F51-june!H51 -> 0 | Q51: 0 | R51: 42 | U51: =S51-june!G51 -> 0 | V51: =T51-june!H51 -> 0
A52: 43 | B52: BRIMFIELD | C52: 0 | D52: 0 | E52: 9.37 | F52: 102550 | H52: 43 | L52: =C52-june!E52 -> 0 | M52: =D52-june!F52 -> 0 | N52: =E52-june!G52 -> 2.24 | O52: =F52-june!H52 -> 39790 | Q52: 0 | R52: 43 | S52: 9.37 | T52: 102550 | U52: =S52-june!G52 -> 2.24 | V52: =T52-june!H52 -> 39790
A53: 44 | B53: BROCKTON | C53: 23 | D53: 115000 | E53: 188.57 | F53: 1037038 | H53: 44 | I53: 10 | J53: 24 | L53: =C53-june!E53 -> -0.43 | M53: =D53-june!F53 -> -112944 | N53: =E53-june!G53 -> -47.1 | O53: =F53-june!H53 -> -231930 | Q53: 0 | R53: 44 | S53: 166.11 | T53: 886556 | U53: =S53-june!G53 -> -69.56 | V53: =T53-june!H53 -> -382412
A54: 45 | B54: BROOKFIELD | C54: 60.86 | D54: 389284 | E54: 2.28 | F54: 14677 | H54: 45 | L54: =C54-june!E54 -> 3.95 | M54: =D54-june!F54 -> 34511 | N54: =E54-june!G54 -> -0.35 | O54: =F54-june!H54 -> -8107 | Q54: 0 | R54: 45 | S54: 2.28 | T54: 14677 | U54: =S54-june!G54 -> -0.35 | V54: =T54-june!H54 -> -8107
A55: 46 | B55: BROOKLINE | C55: 0 | D55: 0 | E55: 0.59 | F55: 3953 | H55: 46 | J55: 1 | L55: =C55-june!E55 -> 0 | M55: =D55-june!F55 -> 0 | N55: =E55-june!G55 -> -0.72 | O55: =F55-june!H55 -> -4876 | Q55: 0 | R55: 46 | U55: =S55-june!G55 -> -1.31 | V55: =T55-june!H55 -> -8829
A56: 47 | B56: BUCKLAND | C56: 0 | D56: 0 | E56: 0 | F56: 0 | H56: 47 | L56: =C56-june!E56 -> 0 | M56: =D56-june!F56 -> 0 | N56: =E56-june!G56 -> 0 | O56: =F56-june!H56 -> 0 | Q56: 0 | R56: 47 | U56: =S56-june!G56 -> 0 | V56: =T56-june!H56 -> 0
A57: 48 | B57: BURLINGTON | C57: 25.02 | D57: 125100 | E57: 2.36 | F57: 15812 | H57: 48 | J57: 4 | L57: =C57-june!E57 -> -3.91 | M57: =D57-june!F57 -> -19550 | N57: =E57-june!G57 -> -1.52 | O57: =F57-june!H57 -> -10193 | Q57: 0 | R57: 48 | U57: =S57-june!G57 -> -3.88 | V57: =T57-june!H57 -> -26005
A58: 49 | B58: CAMBRIDGE | C58: 0 | D58: 0 | E58: 2.84 | F58: 19028 | H58: 49 | I58: 2 | J58: 2 | L58: =C58-june!E58 -> 0 | M58: =D58-june!F58 -> 0 | N58: =E58-june!G58 -> -2.57 | O58: =F58-june!H58 -> -17263 | Q58: 0 | R58: 49 | U58: =S58-june!G58 -> -5.41 | V58: =T58-june!H58 -> -36291
A59: 50 | B59: CANTON | C59: 0 | D59: 0 | E59: 1.18 | F59: 7906 | H59: 50 | J59: 2 | L59: =C59-june!E59 -> 0 | M59: =D59-june!F59 -> 0 | N59: =E59-june!G59 -> -0.22 | O59: =F59-june!H59 -> -1930 | Q59: 0 | R59: 50 | U59: =S59-june!G59 -> -1.4 | V59: =T59-june!H59 -> -9836
A60: 51 | B60: CARLISLE | C60: 0 | D60: 0 | E60: 0 | F60: 0 | H60: 51 | L60: =C60-june!E60 -> 0 | M60: =D60-june!F60 -> 0 | N60: =E60-june!G60 -> 0 | O60: =F60-june!H60 -> 0 | Q60: 0 | R60: 51 | U60: =S60-june!G60 -> 0 | V60: =T60-june!H60 -> 0
A61: 52 | B61: CARVER | C61: 20.64 | D61: 155991 | E61: 5.25 | F61: 30075 | H61: 52 | I61: 2 | J61: 1 | L61: =C61-june!E61 -> -1.92 | M61: =D61-june!F61 -> -18151 | N61: =E61-june!G61 -> 0.44 | O61: =F61-june!H61 -> 24 | Q61: 0 | R61: 52 | S61: 3 | T61: 15000 | U61: =S61-june!G61 -> -1.81 | V61: =T61-june!H61 -> -15051
A62: 53 | B62: CHARLEMONT | C62: 0 | D62: 0 | E62: 0 | F62: 0 | H62: 53 | L62: =C62-june!E62 -> 0 | M62: =D62-june!F62 -> 0 | N62: =E62-june!G62 -> 0 | O62: =F62-june!H62 -> 0 | Q62: 0 | R62: 53 | U62: =S62-june!G62 -> 0 | V62: =T62-june!H62 -> 0
A63: 54 | B63: CHARLTON | C63: 0 | D63: 0 | E63: 0 | F63: 0 | H63: 54 | L63: =C63-june!E63 -> 0 | M63: =D63-june!F63 -> 0 | N63: =E63-june!G63 -> 0 | O63: =F63-june!H63 -> 0 | Q63: 0 | R63: 54 | U63: =S63-june!G63 -> 0 | V63: =T63-june!H63 -> 0
A64: 55 | B64: CHATHAM | C64: 0 | D64: 0 | E64: 0 | F64: 0 | H64: 55 | L64: =C64-june!E64 -> 0 | M64: =D64-june!F64 -> 0 | N64: =E64-june!G64 -> 0 | O64: =F64-june!H64 -> 0 | Q64: 0 | R64: 55 | U64: =S64-june!G64 -> 0 | V64: =T64-june!H64 -> 0
A65: 56 | B65: CHELMSFORD | C65: 44 | D65: 326523 | E65: 27.68 | F65: 193494 | H65: 56 | I65: 2 | J65: 4 | L65: =C65-june!E65 -> -13.89 | M65: =D65-june!F65 -> -99198 | N65: =E65-june!G65 -> -1.98 | O65: =F65-june!H65 -> -21435 | Q65: 0 | R65: 56 | S65: 23.66 | T65: 166560 | U65: =S65-june!G65 -> -6 | V65: =T65-june!H65 -> -48369
A66: 57 | B66: CHELSEA | C66: 0 | D66: 0 | E66: 4.26 | F66: 28542 | H66: 57 | I66: 3 | J66: 3 | L66: =C66-june!E66 -> 0 | M66: =D66-june!F66 -> 0 | N66: =E66-june!G66 -> -6.01 | O66: =F66-june!H66 -> -38848 | Q66: 0 | R66: 57 | U66: =S66-june!G66 -> -10.27 | V66: =T66-june!H66 -> -67390
A67: 58 | B67: CHESHIRE | C67: 0 | D67: 0 | E67: 0 | F67: 0 | H67: 58 | L67: =C67-june!E67 -> 0 | M67: =D67-june!F67 -> 0 | N67: =E67-june!G67 -> 0 | O67: =F67-june!H67 -> 0 | Q67: 0 | R67: 58 | U67: =S67-june!G67 -> 0 | V67: =T67-june!H67 -> 0
A68: 59 | B68: CHESTER | C68: 0 | D68: 0 | E68: 0 | F68: 0 | H68: 59 | L68: =C68-june!E68 -> 0 | M68: =D68-june!F68 -> 0 | N68: =E68-june!G68 -> 0 | O68: =F68-june!H68 -> 0 | Q68: 0 | R68: 59 | U68: =S68-june!G68 -> 0 | V68: =T68-june!H68 -> 0
A69: 60 | B69: CHESTERFIELD | C69: 0 | D69: 0 | E69: 0 | F69: 0 | H69: 60 | L69: =C69-june!E69 -> 0 | M69: =D69-june!F69 -> 0 | N69: =E69-june!G69 -> 0 | O69: =F69-june!H69 -> 0 | Q69: 0 | R69: 60 | U69: =S69-june!G69 -> 0 | V69: =T69-june!H69 -> 0
A70: 61 | B70: CHICOPEE | C70: 179.17 | D70: 941627 | E70: 130.28 | F70: 754391 | H70: 61 | I70: 6 | J70: 11 | L70: =C70-june!E70 -> -11.27 | M70: =D70-june!F70 -> -47282 | N70: =E70-june!G70 -> -9.39 | O70: =F70-june!H70 -> -84583 | Q70: 0 | R70: 61 | S70: 118.81 | T70: 677542 | U70: =S70-june!G70 -> -20.86 | V70: =T70-june!H70 -> -161432
A71: 62 | B71: CHILMARK | C71: 0 | D71: 0 | E71: 0 | F71: 0 | H71: 62 | L71: =C71-june!E71 -> 0 | M71: =D71-june!F71 -> 0 | N71: =E71-june!G71 -> 0 | O71: =F71-june!H71 -> 0 | Q71: 0 | R71: 62 | U71: =S71-june!G71 -> 0 | V71: =T71-june!H71 -> 0
A72: 63 | B72: CLARKSBURG | C72: 26.96 | D72: 159657 | E72: 13.03 | F72: 90681 | H72: 63 | L72: =C72-june!E72 -> -8.43 | M72: =D72-june!F72 -> -43356 | N72: =E72-june!G72 -> -4.75 | O72: =F72-june!H72 -> -43253 | Q72: 0 | R72: 63 | S72: 13.03 | T72: 90681 | U72: =S72-june!G72 -> -4.75 | V72: =T72-june!H72 -> -43253
A73: 64 | B73: CLINTON | C73: 115.25 | D73: 843868 | E73: 113.7 | F73: 637998 | H73: 64 | I73: 4 | J73: 3 | L73: =C73-june!E73 -> 32.82 | M73: =D73-june!F73 -> 203716 | N73: =E73-june!G73 -> -3.67 | O73: =F73-june!H73 -> -47599 | Q73: 0 | R73: 64 | S73: 108.61 | T73: 603895 | U73: =S73-june!G73 -> -8.76 | V73: =T73-june!H73 -> -81702
A74: 65 | B74: COHASSET | C74: 0 | D74: 0 | E74: 0 | F74: 0 | H74: 65 | L74: =C74-june!E74 -> 0 | M74: =D74-june!F74 -> 0 | N74: =E74-june!G74 -> 0 | O74: =F74-june!H74 -> 0 | Q74: 0 | R74: 65 | U74: =S74-june!G74 -> 0 | V74: =T74-june!H74 -> 0
A75: 66 | B75: COLRAIN | C75: 0 | D75: 0 | E75: =S75+(0.83*I75)+0.59*J75 -> 0 | F75: =T75+(0.83*I75)*6700+0.59*J75*6700 -> 0 | H75: 66 | L75: =C75-june!E75 -> 0 | M75: =D75-june!F75 -> 0 | N75: =E75-june!G75 -> 0 | O75: =F75-june!H75 -> 0 | Q75: =R75-A75 -> 0 | R75: 66 | U75: =S75-june!G75 -> 0 | V75: =T75-june!H75 -> 0
A76: 67 | B76: CONCORD | C76: 0 | D76: 0 | E76: 3.36 | F76: 20812 | H76: 67 | J76: 4 | L76: =C76-june!E76 -> 0 | M76: =D76-june!F76 -> 0 | N76: =E76-june!G76 -> 1.36 | O76: =F76-june!H76 -> 7412 | Q76: 0 | R76: 67 | S76: 1 | T76: 5000 | U76: =S76-june!G76 -> -1 | V76: =T76-june!H76 -> -8400
A77: 68 | B77: CONWAY | C77: 19.82 | D77: 126837 | E77: 8 | F77: 76433 | H77: 68 | L77: =C77-june!E77 -> 0.61 | M77: =D77-june!F77 -> 2742 | N77: =E77-june!G77 -> -2.58 | O77: =F77-june!H77 -> -10760 | Q77: 0 | R77: 68 | S77: 8 | T77: 76433 | U77: =S77-june!G77 -> -2.58 | V77: =T77-june!H77 -> -10760
A78: 69 | B78: CUMMINGTON | C78: 0 | D78: 0 | E78: 0 | F78: 0 | H78: 69 | L78: =C78-june!E78 -> 0 | M78: =D78-june!F78 -> 0 | N78: =E78-june!G78 -> 0 | O78: =F78-june!H78 -> 0 | Q78: 0 | R78: 69 | U78: =S78-june!G78 -> 0 | V78: =T78-june!H78 -> 0
A79: 70 | B79: DALTON | C79: 0 | D79: 0 | E79: 0 | F79: 0 | H79: 70 | L79: =C79-june!E79 -> 0 | M79: =D79-june!F79 -> 0 | N79: =E79-june!G79 -> 0 | O79: =F79-june!H79 -> 0 | Q79: 0 | R79: 70 | U79: =S79-june!G79 -> 0 | V79: =T79-june!H79 -> 0
A80: 71 | B80: DANVERS | C80: 0 | D80: 0 | E80: 42.83 | F80: 223719 | H80: 71 | J80: 6 | L80: =C80-june!E80 -> 0 | M80: =D80-june!F80 -> 0 | N80: =E80-june!G80 -> -12.27 | O80: =F80-june!H80 -> -79756 | Q80: 0 | R80: 71 | S80: 39.29 | T80: 200001 | U80: =S80-june!G80 -> -15.81 | V80: =T80-june!H80 -> -103474
A81: 72 | B81: DARTMOUTH | C81: 0 | D81: 0 | E81: 3.6 | F81: 22420 | H81: 72 | I81: 1 | J81: 3 | L81: =C81-june!E81 -> 0 | M81: =D81-june!F81 -> 0 | N81: =E81-june!G81 -> -1.87 | O81: =F81-june!H81 -> -12644 | Q81: 0 | R81: 72 | S81: 1 | T81: 5000 | U81: =S81-june!G81 -> -4.47 | V81: =T81-june!H81 -> -30064
A82: 73 | B82: DEDHAM | C82: 0 | D82: 0 | E82: 1.42 | F82: 9514 | H82: 73 | I82: 1 | J82: 1 | L82: =C82-june!E82 -> 0 | M82: =D82-june!F82 -> 0 | N82: =E82-june!G82 -> -1.75 | O82: =F82-june!H82 -> -8339 | Q82: 0 | R82: 73 | U82: =S82-june!G82 -> -3.17 | V82: =T82-june!H82 -> -17853
A83: 74 | B83: DEERFIELD | C83: 100.67 | D83: 711861 | E83: 19.62 | F83: 114130 | H83: 74 | I83: 2 | J83: 1 | L83: =C83-june!E83 -> 10.88 | M83: =D83-june!F83 -> 64237 | N83: =E83-june!G83 -> -2.79 | O83: =F83-june!H83 -> -13809 | Q83: 0 | R83: 74 | S83: 17.37 | T83: 99055 | U83: =S83-june!G83 -> -5.04 | V83: =T83-june!H83 -> -28884
A84: 75 | B84: DENNIS | C84: 0 | D84: 0 | E84: 0 | F84: 0 | H84: 75 | L84: =C84-june!E84 -> 0 | M84: =D84-june!F84 -> 0 | N84: =E84-june!G84 -> 0 | O84: =F84-june!H84 -> 0 | Q84: 0 | R84: 75 | U84: =S84-june!G84 -> 0 | V84: =T84-june!H84 -> 0
A85: 76 | B85: DIGHTON | C85: 0 | D85: 0 | E85: 0 | F85: 0 | H85: 76 | L85: =C85-june!E85 -> 0 | M85: =D85-june!F85 -> 0 | N85: =E85-june!G85 -> 0 | O85: =F85-june!H85 -> 0 | Q85: 0 | R85: 76 | U85: =S85-june!G85 -> 0 | V85: =T85-june!H85 -> 0
A86: 77 | B86: DOUGLAS | C86: 121.81 | D86: 677565 | E86: 47.39 | F86: 265630 | H86: 77 | I86: 3 | J86: 2 | L86: =C86-june!E86 -> 5.2 | M86: =D86-june!F86 -> 21277 | N86: =E86-june!G86 -> 0.27 | O86: =F86-june!H86 -> -11623 | Q86: 0 | R86: 77 | S86: 43.72 | T86: 241041 | U86: =S86-june!G86 -> -3.4 | V86: =T86-june!H86 -> -36212
A87: 78 | B87: DOVER | C87: 0 | D87: 0 | E87: 1.42 | F87: 9514 | H87: 78 | I87: 1 | J87: 1 | L87: =C87-june!E87 -> 0 | M87: =D87-june!F87 -> 0 | N87: =E87-june!G87 -> 1.42 | O87: =F87-june!H87 -> 9514 | Q87: 0 | R87: 78 | U87: =S87-june!G87 -> 0 | V87: =T87-june!H87 -> 0
A88: 79 | B88: DRACUT | C88: 26.94 | D88: 140340 | E88: 19.6 | F88: 108837 | H88: 79 | I88: 1 | J88: 3 | L88: =C88-june!E88 -> -8.91 | M88: =D88-june!F88 -> -61030 | N88: =E88-june!G88 -> -6.01 | O88: =F88-june!H88 -> -60658 | Q88: 0 | R88: 79 | S88: 17 | T88: 91417 | U88: =S88-june!G88 -> -8.61 | V88: =T88-june!H88 -> -78078
A89: 80 | B89: DUDLEY | C89: 0 | D89: 0 | E89: 0 | F89: 0 | H89: 80 | L89: =C89-june!E89 -> 0 | M89: =D89-june!F89 -> 0 | N89: =E89-june!G89 -> 0 | O89: =F89-june!H89 -> 0 | Q89: 0 | R89: 80 | U89: =S89-june!G89 -> 0 | V89: =T89-june!H89 -> 0
A90: 81 | B90: DUNSTABLE | C90: 0 | D90: 0 | E90: 0 | F90: 0 | H90: 81 | L90: =C90-june!E90 -> 0 | M90: =D90-june!F90 -> 0 | N90: =E90-june!G90 -> 0 | O90: =F90-june!H90 -> 0 | Q90: 0 | R90: 81 | U90: =S90-june!G90 -> 0 | V90: =T90-june!H90 -> 0
A91: 82 | B91: DUXBURY | C91: 0 | D91: 0 | E91: 1.18 | F91: 7906 | H91: 82 | J91: 2 | L91: =C91-june!E91 -> 0 | M91: =D91-june!F91 -> 0 | N91: =E91-june!G91 -> -0.59 | O91: =F91-june!H91 -> -4571 | Q91: 0 | R91: 82 | U91: =S91-june!G91 -> -1.77 | V91: =T91-june!H91 -> -12477
A92: 83 | B92: EAST BRIDGEWATER | C92: 14.69 | D92: 73450 | E92: 22.44 | F92: 167141 | H92: 83 | I92: 3 | J92: 2 | L92: =C92-june!E92 -> -11.32 | M92: =D92-june!F92 -> -56600 | N92: =E92-june!G92 -> 2.76 | O92: =F92-june!H92 -> 14364 | Q92: 0 | R92: 83 | S92: 18.77 | T92: 142552 | U92: =S92-june!G92 -> -0.91 | V92: =T92-june!H92 -> -10225
A93: 84 | B93: EAST BROOKFIELD | C93: 0 | D93: 0 | E93: 6 | F93: 30000 | H93: 84 | L93: =C93-june!E93 -> 0 | M93: =D93-june!F93 -> 0 | N93: =E93-june!G93 -> 1 | O93: =F93-june!H93 -> 5000 | Q93: 0 | R93: 84 | S93: 6 | T93: 30000 | U93: =S93-june!G93 -> 1 | V93: =T93-june!H93 -> 5000
A94: 85 | B94: EASTHAM | C94: 0 | D94: 0 | E94: 6.14 | F94: 36124 | H94: 85 | L94: =C94-june!E94 -> 0 | M94: =D94-june!F94 -> 0 | N94: =E94-june!G94 -> -1.77 | O94: =F94-june!H94 -> -10155 | Q94: 0 | R94: 85 | S94: 6.14 | T94: 36124 | U94: =S94-june!G94 -> -1.77 | V94: =T94-june!H94 -> -10155
A95: 86 | B95: EASTHAMPTON | C95: 84.16 | D95: 429763 | E95: 189.24 | F95: 1291064 | H95: 86 | I95: 3 | J95: 2 | L95: =C95-june!E95 -> -1.94 | M95: =D95-june!F95 -> -61001 | N95: =E95-june!G95 -> 14.26 | O95: =F95-june!H95 -> 107888 | Q95: 0 | R95: 86 | S95: 185.57 | T95: 1266475 | U95: =S95-june!G95 -> 10.59 | V95: =T95-june!H95 -> 83299
A96: 87 | B96: EAST LONGMEADOW | C96: 0 | D96: 0 | E96: 6.01 | F96: 33467 | H96: 87 | I96: 1 | J96: 2 | L96: =C96-june!E96 -> 0 | M96: =D96-june!F96 -> 0 | N96: =E96-june!G96 -> -3.96 | O96: =F96-june!H96 -> -58058 | Q96: 0 | R96: 87 | S96: 4 | T96: 20000 | U96: =S96-june!G96 -> -5.97 | V96: =T96-june!H96 -> -71525
A97: 88 | B97: EASTON | C97: 0 | D97: 0 | E97: 4.9 | F97: 26914 | H97: 88 | I97: 1 | J97: 1 | L97: =C97-june!E97 -> 0 | M97: =D97-june!F97 -> 0 | N97: =E97-june!G97 -> -3.74 | O97: =F97-june!H97 -> -26869 | Q97: 0 | R97: 88 | S97: 3.48 | T97: 17400 | U97: =S97-june!G97 -> -5.16 | V97: =T97-june!H97 -> -36383
A98: 89 | B98: EDGARTOWN | C98: 12.64 | D98: 74997 | E98: 32.45 | F98: 180161 | H98: 89 | L98: =C98-june!E98 -> 4.64 | M98: =D98-june!F98 -> 11185 | N98: =E98-june!G98 -> -0.55 | O98: =F98-june!H98 -> -9103 | Q98: 0 | R98: 89 | S98: 32.45 | T98: 180161 | U98: =S98-june!G98 -> -0.55 | V98: =T98-june!H98 -> -9103
A99: 90 | B99: EGREMONT | C99: 0 | D99: 0 | E99: 0 | F99: 0 | H99: 90 | L99: =C99-june!E99 -> 0 | M99: =D99-june!F99 -> 0 | N99: =E99-june!G99 -> 0 | O99: =F99-june!H99 -> 0 | Q99: 0 | R99: 90 | U99: =S99-june!G99 -> 0 | V99: =T99-june!H99 -> 0
A100: 91 | B100: ERVING | C100: 0 | D100: 0 | E100: 40.84 | F100: 289481 | H100: 91 | I100: 1 | L100: =C100-june!E100 -> 0 | M100: =D100-june!F100 -> 0 | N100: =E100-june!G100 -> 5.68 | O100: =F100-june!H100 -> 97683 | Q100: 0 | R100: 91 | S100: 40.01 | T100: 283920 | U100: =S100-june!G100 -> 4.85 | V100: =T100-june!H100 -> 92122
A101: 92 | B101: ESSEX | C101: 0 | D101: 0 | E101: 0 | F101: 0 | H101: 92 | L101: =C101-june!E101 -> 0 | M101: =D101-june!F101 -> 0 | N101: =E101-june!G101 -> 0 | O101: =F101-june!H101 -> 0 | Q101: 0 | R101: 92 | U101: =S101-june!G101 -> 0 | V101: =T101-june!H101 -> 0
A102: 93 | B102: EVERETT | C102: 0 | D102: 0 | E102: 15.81 | F102: 93873 | H102: 93 | J102: 5 | L102: =C102-june!E102 -> 0 | M102: =D102-june!F102 -> 0 | N102: =E102-june!G102 -> -0.41 | O102: =F102-june!H102 -> -5603 | Q102: 0 | R102: 93 | S102: 12.86 | T102: 74108 | U102: =S102-june!G102 -> -3.36 | V102: =T102-june!H102 -> -25368
A103: 94 | B103: FAIRHAVEN | C103: 0 | D103: 0 | E103: 12.78 | F103: 75861 | H103: 94 | J103: 5 | L103: =C103-june!E103 -> 0 | M103: =D103-june!F103 -> 0 | N103: =E103-june!G103 -> -0.57 | O103: =F103-june!H103 -> -272 | Q103: 0 | R103: 94 | S103: 9.83 | T103: 56096 | U103: =S103-june!G103 -> -3.52 | V103: =T103-june!H103 -> -20037
A104: 95 | B104: FALL RIVER | C104: 16.41 | D104: 82050 | E104: 67.86 | F104: 394695 | H104: 95 | I104: 7 | J104: 11 | L104: =C104-june!E104 -> -9.94 | M104: =D104-june!F104 -> -49700 | N104: =E104-june!G104 -> -34.48 | O104: =F104-june!H104 -> -212989 | Q104: 0 | R104: 95 | S104: 55.56 | T104: 312285 | U104: =S104-june!G104 -> -46.78 | V104: =T104-june!H104 -> -295399
A105: 96 | B105: FALMOUTH | C105: 91.45 | D105: 581601 | E105: 46.58 | F105: 261955 | H105: 96 | J105: 3 | L105: =C105-june!E105 -> -20.7 | M105: =D105-june!F105 -> -80748 | N105: =E105-june!G105 -> 6.39 | O105: =F105-june!H105 -> 22606 | Q105: 0 | R105: 96 | S105: 44.81 | T105: 250096 | U105: =S105-june!G105 -> 4.62 | V105: =T105-june!H105 -> 10747
A106: 97 | B106: FITCHBURG | C106: 180.12 | D106: 1048411 | E106: 419.85 | F106: 2451589 | H106: 97 | I106: 4 | J106: 12 | L106: =C106-june!E106 -> 4.37 | M106: =D106-june!F106 -> 33853 | N106: =E106-june!G106 -> -10.76 | O106: =F106-june!H106 -> 863 | Q106: 0 | R106: 97 | S106: 409.45 | T106: 2381909 | U106: =S106-june!G106 -> -21.16 | V106: =T106-june!H106 -> -68817
A107: 98 | B107: FLORIDA | C107: 2 | D107: 11708 | E107: 4 | F107: 20000 | H107: 98 | L107: =C107-june!E107 -> -1.42 | M107: =D107-june!F107 -> -7798 | N107: =E107-june!G107 -> -3 | O107: =F107-june!H107 -> -19198 | Q107: 0 | R107: 98 | S107: 4 | T107: 20000 | U107: =S107-june!G107 -> -3 | V107: =T107-june!H107 -> -19198
A108: 99 | B108: FOXBOROUGH | C108: 0 | D108: 0 | E108: 0.59 | F108: 3953 | H108: 99 | J108: 1 | L108: =C108-june!E108 -> 0 | M108: =D108-june!F108 -> 0 | N108: =E108-june!G108 -> -4.11 | O108: =F108-june!H108 -> -24436 | Q108: 0 | R108: 99 | U108: =S108-june!G108 -> -4.7 | V108: =T108-june!H108 -> -28389
A109: 100 | B109: FRAMINGHAM | C109: 0 | D109: 0 | E109: 52.2 | F109: 312643 | H109: 100 | J109: 19 | L109: =C109-june!E109 -> 0 | M109: =D109-june!F109 -> 0 | N109: =E109-june!G109 -> -2.49 | O109: =F109-june!H109 -> -15245 | Q109: 0 | R109: 100 | S109: 40.99 | T109: 237536 | U109: =S109-june!G109 -> -13.7 | V109: =T109-june!H109 -> -90352
A110: 101 | B110: FRANKLIN | C110: 10 | D110: 50468 | E110: 26.06 | F110: 141344 | H110: 101 | J110: 8 | L110: =C110-june!E110 -> 3 | M110: =D110-june!F110 -> 10451 | N110: =E110-june!G110 -> -8.23 | O110: =F110-june!H110 -> -67321 | Q110: 0 | R110: 101 | S110: 21.34 | T110: 109720 | U110: =S110-june!G110 -> -12.95 | V110: =T110-june!H110 -> -98945
A111: 102 | B111: FREETOWN | C111: 0 | D111: 0 | E111: 0 | F111: 0 | H111: 102 | L111: =C111-june!E111 -> 0 | M111: =D111-june!F111 -> 0 | N111: =E111-june!G111 -> -2 | O111: =F111-june!H111 -> -10000 | Q111: 0 | R111: 102 | U111: =S111-june!G111 -> -2 | V111: =T111-june!H111 -> -10000
A112: 103 | B112: GARDNER | C112: 140.23 | D112: 773133 | E112: 188.07 | F112: 1002576 | H112: 103 | I112: 7 | J112: 4 | L112: =C112-june!E112 -> 18.25 | M112: =D112-june!F112 -> 91184 | N112: =E112-june!G112 -> -64.33 | O112: =F112-june!H112 -> -431869 | Q112: 0 | R112: 103 | S112: 179.9 | T112: 947837 | U112: =S112-june!G112 -> -72.5 | V112: =T112-june!H112 -> -486608
A113: 104 | B113: GAY HEAD | C113: 0 | D113: 0 | E113: 0 | F113: 0 | H113: 104 | L113: =C113-june!E113 -> 0 | M113: =D113-june!F113 -> 0 | N113: =E113-june!G113 -> 0 | O113: =F113-june!H113 -> 0 | Q113: 0 | R113: 104 | U113: =S113-june!G113 -> 0 | V113: =T113-june!H113 -> 0
A114: 105 | B114: GEORGETOWN | C114: 38 | D114: 196130 | E114: 22.77 | F114: 197267 | H114: 105 | J114: 3 | L114: =C114-june!E114 -> -2 | M114: =D114-june!F114 -> -7693 | N114: =E114-june!G114 -> -1.1 | O114: =F114-june!H114 -> 7069 | Q114: 0 | R114: 105 | S114: 21 | T114: 185408 | U114: =S114-june!G114 -> -2.87 | V114: =T114-june!H114 -> -4790
A115: 106 | B115: GILL | C115: 0 | D115: 0 | E115: 0 | F115: 0 | H115: 106 | L115: =C115-june!E115 -> 0 | M115: =D115-june!F115 -> 0 | N115: =E115-june!G115 -> 0 | O115: =F115-june!H115 -> 0 | Q115: 0 | R115: 106 | U115: =S115-june!G115 -> 0 | V115: =T115-june!H115 -> 0
A116: 107 | B116: GLOUCESTER | C116: 39.2 | D116: 214791 | E116: 303.86 | F116: 1651567 | H116: 107 | I116: 1 | J116: 3 | L116: =C116-june!E116 -> 0.66 | M116: =D116-june!F116 -> 12916 | N116: =E116-june!G116 -> -8.28 | O116: =F116-june!H116 -> -222109 | Q116: 0 | R116: 107 | S116: 301.26 | T116: 1634147 | U116: =S116-june!G116 -> -10.88 | V116: =T116-june!H116 -> -239529
A117: 108 | B117: GOSHEN | C117: 0 | D117: 0 | E117: 0 | F117: 0 | H117: 108 | L117: =C117-june!E117 -> 0 | M117: =D117-june!F117 -> 0 | N117: =E117-june!G117 -> 0 | O117: =F117-june!H117 -> 0 | Q117: 0 | R117: 108 | U117: =S117-june!G117 -> 0 | V117: =T117-june!H117 -> 0
A118: 109 | B118: GOSNOLD | C118: 0 | D118: 0 | E118: 0 | F118: 0 | H118: 109 | L118: =C118-june!E118 -> 0 | M118: =D118-june!F118 -> 0 | N118: =E118-june!G118 -> 0 | O118: =F118-june!H118 -> 0 | Q118: 0 | R118: 109 | U118: =S118-june!G118 -> 0 | V118: =T118-june!H118 -> 0
A119: 110 | B119: GRAFTON | C119: 31.53 | D119: 191757 | E119: 25.52 | F119: 143393 | H119: 110 | I119: 1 | J119: 5 | L119: =C119-june!E119 -> -11.03 | M119: =D119-june!F119 -> -94423 | N119: =E119-june!G119 -> -11.58 | O119: =F119-june!H119 -> -65901 | Q119: 0 | R119: 110 | S119: 21.74 | T119: 118067 | U119: =S119-june!G119 -> -15.36 | V119: =T119-june!H119 -> -91227
A120: 111 | B120: GRANBY | C120: 132.75 | D120: 750306 | E120: 48.22 | F120: 286171 | H120: 111 | J120: 1 | L120: =C120-june!E120 -> 15.66 | M120: =D120-june!F120 -> 87493 | N120: =E120-june!G120 -> -3.87 | O120: =F120-june!H120 -> -24688 | Q120: 0 | R120: 111 | S120: 47.63 | T120: 282218 | U120: =S120-june!G120 -> -4.46 | V120: =T120-june!H120 -> -28641
A121: 112 | B121: GRANVILLE | C121: 0 | D121: 0 | E121: 0 | F121: 0 | H121: 112 | L121: =C121-june!E121 -> 0 | M121: =D121-june!F121 -> 0 | N121: =E121-june!G121 -> 0 | O121: =F121-june!H121 -> 0 | Q121: 0 | R121: 112 | U121: =S121-june!G121 -> 0 | V121: =T121-june!H121 -> 0
A122: 113 | B122: GREAT BARRINGTON | C122: 0 | D122: 0 | E122: 0 | F122: 0 | H122: 113 | L122: =C122-june!E122 -> 0 | M122: =D122-june!F122 -> 0 | N122: =E122-june!G122 -> 0 | O122: =F122-june!H122 -> 0 | Q122: 0 | R122: 113 | U122: =S122-june!G122 -> 0 | V122: =T122-june!H122 -> 0
A123: 114 | B123: GREENFIELD | C123: 92.59 | D123: 578152 | E123: 326.22 | F123: 2309748 | H123: 114 | I123: 13 | J123: 3 | L123: =C123-june!E123 -> -23.96 | M123: =D123-june!F123 -> -132783 | N123: =E123-june!G123 -> 3.06 | O123: =F123-june!H123 -> -193701 | Q123: 0 | R123: 114 | S123: 313.66 | T123: 2225596 | U123: =S123-june!G123 -> -9.5 | V123: =T123-june!H123 -> -277853
A124: 115 | B124: GROTON | C124: 0 | D124: 0 | E124: 0 | F124: 0 | H124: 115 | L124: =C124-june!E124 -> 0 | M124: =D124-june!F124 -> 0 | N124: =E124-june!G124 -> 0 | O124: =F124-june!H124 -> 0 | Q124: 0 | R124: 115 | U124: =S124-june!G124 -> 0 | V124: =T124-june!H124 -> 0
A125: 116 | B125: GROVELAND | C125: 0 | D125: 0 | E125: 0 | F125: 0 | H125: 116 | L125: =C125-june!E125 -> 0 | M125: =D125-june!F125 -> 0 | N125: =E125-june!G125 -> 0 | O125: =F125-june!H125 -> 0 | Q125: 0 | R125: 116 | U125: =S125-june!G125 -> 0 | V125: =T125-june!H125 -> 0
A126: 117 | B126: HADLEY | C126: 102.43 | D126: 589766 | E126: 57.59 | F126: 385346 | H126: 117 | J126: 4 | L126: =C126-june!E126 -> 3.96 | M126: =D126-june!F126 -> -32913 | N126: =E126-june!G126 -> 10.11 | O126: =F126-june!H126 -> 82369 | Q126: 0 | R126: 117 | S126: 55.23 | T126: 369534 | U126: =S126-june!G126 -> 7.75 | V126: =T126-june!H126 -> 66557
A127: 118 | B127: HALIFAX | C127: 0 | D127: 0 | E127: 1 | F127: 5000 | H127: 118 | L127: =C127-june!E127 -> 0 | M127: =D127-june!F127 -> 0 | N127: =E127-june!G127 -> 0 | O127: =F127-june!H127 -> 0 | Q127: 0 | R127: 118 | S127: 1 | T127: 5000 | U127: =S127-june!G127 -> 0 | V127: =T127-june!H127 -> 0
A128: 119 | B128: HAMILTON | C128: 0 | D128: 0 | E128: 0 | F128: 0 | H128: 119 | L128: =C128-june!E128 -> 0 | M128: =D128-june!F128 -> 0 | N128: =E128-june!G128 -> 0 | O128: =F128-june!H128 -> 0 | Q128: 0 | R128: 119 | U128: =S128-june!G128 -> 0 | V128: =T128-june!H128 -> 0
A129: 120 | B129: HAMPDEN | C129: 0 | D129: 0 | E129: 0 | F129: 0 | H129: 120 | L129: =C129-june!E129 -> 0 | M129: =D129-june!F129 -> 0 | N129: =E129-june!G129 -> 0 | O129: =F129-june!H129 -> 0 | Q129: 0 | R129: 120 | U129: =S129-june!G129 -> 0 | V129: =T129-june!H129 -> 0
A130: 121 | B130: HANCOCK | C130: 3 | D130: 15000 | E130: 11 | F130: 55000 | H130: 121 | L130: =C130-june!E130 -> -2 | M130: =D130-june!F130 -> -13564 | N130: =E130-june!G130 -> 6.31 | O130: =F130-june!H130 -> 31550 | Q130: 0 | R130: 121 | S130: 11 | T130: 55000 | U130: =S130-june!G130 -> 6.31 | V130: =T130-june!H130 -> 31550
A131: 122 | B131: HANOVER | C131: 0 | D131: 0 | E131: 0 | F131: 0 | H131: 122 | L131: =C131-june!E131 -> 0 | M131: =D131-june!F131 -> 0 | N131: =E131-june!G131 -> -2.74 | O131: =F131-june!H131 -> -13700 | Q131: 0 | R131: 122 | U131: =S131-june!G131 -> -2.74 | V131: =T131-june!H131 -> -13700
A132: 123 | B132: HANSON | C132: 0 | D132: 0 | E132: 0 | F132: 0 | H132: 123 | L132: =C132-june!E132 -> 0 | M132: =D132-june!F132 -> 0 | N132: =E132-june!G132 -> 0 | O132: =F132-june!H132 -> 0 | Q132: 0 | R132: 123 | U132: =S132-june!G132 -> 0 | V132: =T132-june!H132 -> 0
A133: 124 | B133: HARDWICK | C133: 0 | D133: 0 | E133: 0 | F133: 0 | H133: 124 | L133: =C133-june!E133 -> 0 | M133: =D133-june!F133 -> 0 | N133: =E133-june!G133 -> 0 | O133: =F133-june!H133 -> 0 | Q133: 0 | R133: 124 | U133: =S133-june!G133 -> 0 | V133: =T133-june!H133 -> 0
A134: 125 | B134: HARVARD | C134: 70 | D134: 368354 | E134: 5 | F134: 31314 | H134: 125 | L134: =C134-june!E134 -> 2.62 | M134: =D134-june!F134 -> 12462 | N134: =E134-june!G134 -> 2 | O134: =F134-june!H134 -> 16314 | Q134: 0 | R134: 125 | S134: 5 | T134: 31314 | U134: =S134-june!G134 -> 2 | V134: =T134-june!H134 -> 16314
A135: 126 | B135: HARWICH | C135: 0 | D135: 0 | E135: 1.18 | F135: 7906 | H135: 126 | J135: 2 | L135: =C135-june!E135 -> 0 | M135: =D135-june!F135 -> 0 | N135: =E135-june!G135 -> 1.18 | O135: =F135-june!H135 -> 7906 | Q135: 0 | R135: 126 | U135: =S135-june!G135 -> 0 | V135: =T135-june!H135 -> 0
A136: 127 | B136: HATFIELD | C136: 124 | D136: 838623 | E136: 28.3 | F136: 202217 | H136: 127 | I136: 6 | L136: =C136-june!E136 -> -6.8 | M136: =D136-june!F136 -> -80568 | N136: =E136-june!G136 -> -2.48 | O136: =F136-june!H136 -> 7303 | Q136: 0 | R136: 127 | S136: 23.32 | T136: 168851 | U136: =S136-june!G136 -> -7.46 | V136: =T136-june!H136 -> -26063
A137: 128 | B137: HAVERHILL | C137: 42.49 | D137: 247501 | E137: 211.74 | F137: 1190061 | H137: 128 | I137: 3 | J137: 16 | L137: =C137-june!E137 -> 5.89 | M137: =D137-june!F137 -> 40726 | N137: =E137-june!G137 -> 21.92 | O137: =F137-june!H137 -> 105922 | Q137: 0 | R137: 128 | S137: 199.81 | T137: 1110130 | U137: =S137-june!G137 -> 9.99 | V137: =T137-june!H137 -> 25991
A138: 129 | B138: HAWLEY | C138: 0 | D138: 0 | E138: 0 | F138: 0 | H138: 129 | L138: =C138-june!E138 -> 0 | M138: =D138-june!F138 -> 0 | N138: =E138-june!G138 -> 0 | O138: =F138-june!H138 -> 0 | Q138: 0 | R138: 129 | U138: =S138-june!G138 -> 0 | V138: =T138-june!H138 -> 0
A139: 130 | B139: HEATH | C139: 0 | D139: 0 | E139: =S139+(0.83*I139)+0.59*J139 -> 0 | F139: =T139+(0.83*I139)*6700+0.59*J139*6700 -> 0 | H139: 130 | L139: =C139-june!E139 -> 0 | M139: =D139-june!F139 -> 0 | N139: =E139-june!G139 -> 0 | O139: =F139-june!H139 -> 0 | Q139: =R139-A139 -> 0 | R139: 130 | U139: =S139-june!G139 -> 0 | V139: =T139-june!H139 -> 0
A140: 131 | B140: HINGHAM | C140: 0 | D140: 0 | E140: 0 | F140: 0 | H140: 131 | L140: =C140-june!E140 -> 0 | M140: =D140-june!F140 -> 0 | N140: =E140-june!G140 -> -3.48 | O140: =F140-june!H140 -> -24172 | Q140: 0 | R140: 131 | U140: =S140-june!G140 -> -3.48 | V140: =T140-june!H140 -> -24172
A141: 132 | B141: HINSDALE | C141: 0 | D141: 0 | E141: 0 | F141: 0 | H141: 132 | L141: =C141-june!E141 -> 0 | M141: =D141-june!F141 -> 0 | N141: =E141-june!G141 -> 0 | O141: =F141-june!H141 -> 0 | Q141: 0 | R141: 132 | U141: =S141-june!G141 -> 0 | V141: =T141-june!H141 -> 0
A142: 133 | B142: HOLBROOK | C142: 57.48 | D142: 305871 | E142: 14.07 | F142: 76997 | H142: 133 | I142: 4 | J142: 1 | L142: =C142-june!E142 -> -0.39 | M142: =D142-june!F142 -> -10225 | N142: =E142-june!G142 -> -3.43 | O142: =F142-june!H142 -> -43807 | Q142: 0 | R142: 133 | S142: 10.16 | T142: 50800 | U142: =S142-june!G142 -> -7.34 | V142: =T142-june!H142 -> -70004
A143: 134 | B143: HOLDEN | C143: 0 | D143: 0 | E143: 0 | F143: 0 | H143: 134 | L143: =C143-june!E143 -> 0 | M143: =D143-june!F143 -> 0 | N143: =E143-june!G143 -> 0 | O143: =F143-june!H143 -> 0 | Q143: 0 | R143: 134 | U143: =S143-june!G143 -> 0 | V143: =T143-june!H143 -> 0
A144: 135 | B144: HOLLAND | C144: 40.31 | D144: 246248 | E144: 1.59 | F144: 8953 | H144: 135 | J144: 1 | L144: =C144-june!E144 -> -12.62 | M144: =D144-june!F144 -> -53033 | N144: =E144-june!G144 -> -0.93 | O144: =F144-june!H144 -> -4567 | Q144: 0 | R144: 135 | S144: 1 | T144: 5000 | U144: =S144-june!G144 -> -1.52 | V144: =T144-june!H144 -> -8520
A145: 136 | B145: HOLLISTON | C145: 158.83 | D145: 1038241 | E145: 7.41 | F145: 49554 | H145: 136 | J145: 3 | L145: =C145-june!E145 -> 0.37 | M145: =D145-june!F145 -> -39186 | N145: =E145-june!G145 -> -6.92 | O145: =F145-june!H145 -> -34660 | Q145: 0 | R145: 136 | S145: 5.64 | T145: 37695 | U145: =S145-june!G145 -> -8.69 | V145: =T145-june!H145 -> -46519
A146: 137 | B146: HOLYOKE | C146: 51.7 | D146: 274673 | E146: 337.2 | F146: 2055893 | H146: 137 | I146: 3 | J146: 8 | L146: =C146-june!E146 -> -0.99 | M146: =D146-june!F146 -> -18393 | N146: =E146-june!G146 -> 0.18 | O146: =F146-june!H146 -> -78684 | Q146: 0 | R146: 137 | S146: 329.99 | T146: 2007586 | U146: =S146-june!G146 -> -7.03 | V146: =T146-june!H146 -> -126991
A147: 138 | B147: HOPEDALE | C147: 129.58 | D147: 709439 | E147: 48.32 | F147: 290034 | H147: 138 | J147: 3 | L147: =C147-june!E147 -> 6.81 | M147: =D147-june!F147 -> 14905 | N147: =E147-june!G147 -> -0.24 | O147: =F147-june!H147 -> -3769 | Q147: 0 | R147: 138 | S147: 46.55 | T147: 278175 | U147: =S147-june!G147 -> -2.01 | V147: =T147-june!H147 -> -15628
A148: 139 | B148: HOPKINTON | C148: 0 | D148: 0 | E148: 16.64 | F148: 88021 | H148: 139 | J148: 2 | L148: =C148-june!E148 -> 0 | M148: =D148-june!F148 -> 0 | N148: =E148-june!G148 -> -1.73 | O148: =F148-june!H148 -> -23443 | Q148: 0 | R148: 139 | S148: 15.46 | T148: 80115 | U148: =S148-june!G148 -> -2.91 | V148: =T148-june!H148 -> -31349
A149: 140 | B149: HUBBARDSTON | C149: 0 | D149: 0 | E149: 0 | F149: 0 | H149: 140 | L149: =C149-june!E149 -> 0 | M149: =D149-june!F149 -> 0 | N149: =E149-june!G149 -> 0 | O149: =F149-june!H149 -> 0 | Q149: 0 | R149: 140 | U149: =S149-june!G149 -> 0 | V149: =T149-june!H149 -> 0
A150: 141 | B150: HUDSON | C150: 101.62 | D150: 546944 | E150: 19.65 | F150: 111154 | H150: 141 | J150: 6 | L150: =C150-june!E150 -> 5.48 | M150: =D150-june!F150 -> -70539 | N150: =E150-june!G150 -> -1.61 | O150: =F150-june!H150 -> -29086 | Q150: 0 | R150: 141 | S150: 16.11 | T150: 87436 | U150: =S150-june!G150 -> -5.15 | V150: =T150-june!H150 -> -52804
A151: 142 | B151: HULL | C151: 0 | D151: 0 | E151: 3.43 | F151: 22981 | H151: 142 | I151: 2 | J151: 3 | L151: =C151-june!E151 -> 0 | M151: =D151-june!F151 -> 0 | N151: =E151-june!G151 -> -2.57 | O151: =F151-june!H151 -> -19297 | Q151: 0 | R151: 142 | U151: =S151-june!G151 -> -6 | V151: =T151-june!H151 -> -42278
A152: 143 | B152: HUNTINGTON | C152: 0 | D152: 0 | E152: 0 | F152: 0 | H152: 143 | L152: =C152-june!E152 -> 0 | M152: =D152-june!F152 -> 0 | N152: =E152-june!G152 -> 0 | O152: =F152-june!H152 -> 0 | Q152: 0 | R152: 143 | U152: =S152-june!G152 -> 0 | V152: =T152-june!H152 -> 0
A153: 144 | B153: IPSWICH | C153: 70 | D153: 383036 | E153: 19.43 | F153: 109839 | H153: 144 | J153: 2 | L153: =C153-june!E153 -> 2.03 | M153: =D153-june!F153 -> 15962 | N153: =E153-june!G153 -> 2.77 | O153: =F153-june!H153 -> 14600 | Q153: 0 | R153: 144 | S153: 18.25 | T153: 101933 | U153: =S153-june!G153 -> 1.59 | V153: =T153-june!H153 -> 6694
A154: 145 | B154: KINGSTON | C154: 0 | D154: 0 | E154: 0.59 | F154: 3953 | H154: 145 | J154: 1 | L154: =C154-june!E154 -> 0 | M154: =D154-june!F154 -> 0 | N154: =E154-june!G154 -> 0.59 | O154: =F154-june!H154 -> 3953 | Q154: 0 | R154: 145 | U154: =S154-june!G154 -> 0 | V154: =T154-june!H154 -> 0
A155: 146 | B155: LAKEVILLE | C155: 0 | D155: 0 | E155: 0 | F155: 0 | H155: 146 | L155: =C155-june!E155 -> 0 | M155: =D155-june!F155 -> 0 | N155: =E155-june!G155 -> 0 | O155: =F155-june!H155 -> 0 | Q155: 0 | R155: 146 | U155: =S155-june!G155 -> 0 | V155: =T155-june!H155 -> 0
A156: 147 | B156: LANCASTER | C156: 0 | D156: 0 | E156: 0 | F156: 0 | H156: 147 | L156: =C156-june!E156 -> 0 | M156: =D156-june!F156 -> 0 | N156: =E156-june!G156 -> 0 | O156: =F156-june!H156 -> 0 | Q156: 0 | R156: 147 | U156: =S156-june!G156 -> 0 | V156: =T156-june!H156 -> 0
A157: 148 | B157: LANESBOROUGH | C157: 20 | D157: 120999 | E157: 22.11 | F157: 114496 | H157: 148 | I157: 1 | L157: =C157-june!E157 -> 1 | M157: =D157-june!F157 -> 11195 | N157: =E157-june!G157 -> -1.98 | O157: =F157-june!H157 -> -17612 | Q157: 0 | R157: 148 | S157: 21.28 | T157: 108935 | U157: =S157-june!G157 -> -2.81 | V157: =T157-june!H157 -> -23173
A158: 149 | B158: LAWRENCE | C158: 0 | D158: 0 | E158: 59.06 | F158: 372271 | H158: 149 | I158: 7 | J158: 14 | L158: =C158-june!E158 -> 0 | M158: =D158-june!F158 -> 0 | N158: =E158-june!G158 -> -6.87 | O158: =F158-june!H158 -> -53756 | Q158: 0 | R158: 149 | S158: 44.99 | T158: 278002 | U158: =S158-june!G158 -> -20.94 | V158: =T158-june!H158 -> -148025
A159: 150 | B159: LEE | C159: 127.98 | D159: 731075 | E159: 89.25 | F159: 482824 | H159: 150 | I159: 1 | J159: 1 | L159: =C159-june!E159 -> -0.56 | M159: =D159-june!F159 -> -12379 | N159: =E159-june!G159 -> -9.13 | O159: =F159-june!H159 -> -76559 | Q159: 0 | R159: 150 | S159: 87.83 | T159: 473310 | U159: =S159-june!G159 -> -10.55 | V159: =T159-june!H159 -> -86073
A160: 151 | B160: LEICESTER | C160: 92 | D160: 544663 | E160: 31.58 | F160: 162376 | H160: 151 | J160: 1 | L160: =C160-june!E160 -> -11.14 | M160: =D160-june!F160 -> -20218 | N160: =E160-june!G160 -> -3.76 | O160: =F160-june!H160 -> -37414 | Q160: 0 | R160: 151 | S160: 30.99 | T160: 158423 | U160: =S160-june!G160 -> -4.35 | V160: =T160-june!H160 -> -41367
A161: 152 | B161: LENOX | C161: 246.79 | D161: 1279101 | E161: 50.23 | F161: 308326 | H161: 152 | J161: 1 | L161: =C161-june!E161 -> -6.37 | M161: =D161-june!F161 -> -31093 | N161: =E161-june!G161 -> 3.21 | O161: =F161-june!H161 -> 41967 | Q161: 0 | R161: 152 | S161: 49.64 | T161: 304373 | U161: =S161-june!G161 -> 2.62 | V161: =T161-june!H161 -> 38014
A162: 153 | B162: LEOMINSTER | C162: 246.88 | D162: 1401012 | E162: 324.63 | F162: 1875141 | H162: 153 | I162: 2 | J162: 8 | L162: =C162-june!E162 -> 0.72 | M162: =D162-june!F162 -> 50516 | N162: =E162-june!G162 -> 0.93 | O162: =F162-june!H162 -> -3793 | Q162: 0 | R162: 153 | S162: 318.25 | T162: 1832395 | U162: =S162-june!G162 -> -5.45 | V162: =T162-june!H162 -> -46539
A163: 154 | B163: LEVERETT | C163: 20.49 | D163: 163072 | E163: 7 | F163: 35971 | H163: 154 | L163: =C163-june!E163 -> -0.71 | M163: =D163-june!F163 -> 17912 | N163: =E163-june!G163 -> 1.63 | O163: =F163-june!H163 -> 8445 | Q163: 0 | R163: 154 | S163: 7 | T163: 35971 | U163: =S163-june!G163 -> 1.63 | V163: =T163-june!H163 -> 8445
A164: 155 | B164: LEXINGTON | C164: 0 | D164: 0 | E164: 2.77 | F164: 16859 | H164: 155 | J164: 3 | L164: =C164-june!E164 -> 0 | M164: =D164-june!F164 -> 0 | N164: =E164-june!G164 -> -3.57 | O164: =F164-june!H164 -> -23969 | Q164: 0 | R164: 155 | S164: 1 | T164: 5000 | U164: =S164-june!G164 -> -5.34 | V164: =T164-june!H164 -> -35828
A165: 156 | B165: LEYDEN | C165: 0 | D165: 0 | E165: 0 | F165: 0 | H165: 156 | L165: =C165-june!E165 -> 0 | M165: =D165-june!F165 -> 0 | N165: =E165-june!G165 -> 0 | O165: =F165-june!H165 -> 0 | Q165: 0 | R165: 156 | U165: =S165-june!G165 -> 0 | V165: =T165-june!H165 -> 0
A166: 157 | B166: LINCOLN | C166: 0 | D166: 0 | E166: 0 | F166: 0 | H166: 157 | L166: =C166-june!E166 -> 0 | M166: =D166-june!F166 -> 0 | N166: =E166-june!G166 -> -2.22 | O166: =F166-june!H166 -> -14933 | Q166: 0 | R166: 157 | U166: =S166-june!G166 -> -2.22 | V166: =T166-june!H166 -> -14933
A167: 158 | B167: LITTLETON | C167: 68.49 | D167: 373331 | E167: 19.01 | F167: 102084 | H167: 158 | I167: 1 | L167: =C167-june!E167 -> -9.9 | M167: =D167-june!F167 -> -58241 | N167: =E167-june!G167 -> -3.15 | O167: =F167-june!H167 -> -41790 | Q167: 0 | R167: 158 | S167: 18.18 | T167: 96523 | U167: =S167-june!G167 -> -3.98 | V167: =T167-june!H167 -> -47351
A168: 159 | B168: LONGMEADOW | C168: 45 | D168: 364404 | E168: 1.59 | F168: 8953 | H168: 159 | J168: 1 | L168: =C168-june!E168 -> 5.37 | M168: =D168-june!F168 -> 36248 | N168: =E168-june!G168 -> -0.47 | O168: =F168-june!H168 -> -3295 | Q168: 0 | R168: 159 | S168: 1 | T168: 5000 | U168: =S168-june!G168 -> -1.06 | V168: =T168-june!H168 -> -7248
A169: 160 | B169: LOWELL | C169: 0 | D169: 0 | E169: 102.59 | F169: 685289 | H169: 160 | I169: 10 | J169: 9 | L169: =C169-june!E169 -> 0 | M169: =D169-june!F169 -> 0 | N169: =E169-june!G169 -> -39.36 | O169: =F169-june!H169 -> -259786 | Q169: 0 | R169: 160 | S169: 88.98 | T169: 594102 | U169: =S169-june!G169 -> -52.97 | V169: =T169-june!H169 -> -350973
A170: 161 | B170: LUDLOW | C170: 80.17 | D170: 499229 | E170: 38.59 | F170: 204660 | H170: 161 | I170: 1 | J170: 3 | L170: =C170-june!E170 -> -13.82 | M170: =D170-june!F170 -> -63175 | N170: =E170-june!G170 -> -1.49 | O170: =F170-june!H170 -> -15180 | Q170: 0 | R170: 161 | S170: 35.99 | T170: 187240 | U170: =S170-june!G170 -> -4.09 | V170: =T170-june!H170 -> -32600
A171: 162 | B171: LUNENBURG | C171: 38.94 | D171: 227741 | E171: 84.48 | F171: 517649 | H171: 162 | L171: =C171-june!E171 -> -12.33 | M171: =D171-june!F171 -> -58932 | N171: =E171-june!G171 -> 4.3 | O171: =F171-june!H171 -> 40747 | Q171: 0 | R171: 162 | S171: 84.48 | T171: 517649 | U171: =S171-june!G171 -> 4.3 | V171: =T171-june!H171 -> 40747
A172: 163 | B172: LYNN | C172: 0 | D172: 0 | E172: 78.77 | F172: 457634 | H172: 163 | I172: 9 | J172: 28 | L172: =C172-june!E172 -> 0 | M172: =D172-june!F172 -> 0 | N172: =E172-june!G172 -> -20.48 | O172: =F172-june!H172 -> -146579 | Q172: 0 | R172: 163 | S172: 54.78 | T172: 296901 | U172: =S172-june!G172 -> -44.47 | V172: =T172-june!H172 -> -307312
A173: 164 | B173: LYNNFIELD | C173: 0 | D173: 0 | E173: 0 | F173: 0 | H173: 164 | L173: =C173-june!E173 -> 0 | M173: =D173-june!F173 -> 0 | N173: =E173-june!G173 -> 0 | O173: =F173-june!H173 -> 0 | Q173: 0 | R173: 164 | U173: =S173-june!G173 -> 0 | V173: =T173-june!H173 -> 0
A174: 165 | B174: MALDEN | C174: 0 | D174: 0 | E174: 5.43 | F174: 32981 | H174: 165 | I174: 2 | J174: 3 | L174: =C174-june!E174 -> 0 | M174: =D174-june!F174 -> 0 | N174: =E174-june!G174 -> -4.51 | O174: =F174-june!H174 -> -28416 | Q174: 0 | R174: 165 | S174: 2 | T174: 10000 | U174: =S174-june!G174 -> -7.94 | V174: =T174-june!H174 -> -51397
A175: 166 | B175: MANCHESTER | C175: 0 | D175: 0 | E175: 0 | F175: 0 | H175: 166 | L175: =C175-june!E175 -> 0 | M175: =D175-june!F175 -> 0 | N175: =E175-june!G175 -> 0 | O175: =F175-june!H175 -> 0 | Q175: 0 | R175: 166 | U175: =S175-june!G175 -> 0 | V175: =T175-june!H175 -> 0
A176: 167 | B176: MANSFIELD | C176: 0 | D176: 0 | E176: 5.84 | F176: 34028 | H176: 167 | I176: 2 | J176: 2 | L176: =C176-june!E176 -> 0 | M176: =D176-june!F176 -> 0 | N176: =E176-june!G176 -> -0.59 | O176: =F176-june!H176 -> -3222 | Q176: 0 | R176: 167 | S176: 3 | T176: 15000 | U176: =S176-june!G176 -> -3.43 | V176: =T176-june!H176 -> -22250
A177: 168 | B177: MARBLEHEAD | C177: 0 | D177: 0 | E177: 2.01 | F177: 13467 | H177: 168 | I177: 1 | J177: 2 | L177: =C177-june!E177 -> 0 | M177: =D177-june!F177 -> 0 | N177: =E177-june!G177 -> -3.4 | O177: =F177-june!H177 -> -20657 | Q177: 0 | R177: 168 | U177: =S177-june!G177 -> -5.41 | V177: =T177-june!H177 -> -34124
A178: 169 | B178: MARION | C178: 0 | D178: 0 | E178: 1.42 | F178: 9514 | H178: 169 | I178: 1 | J178: 1 | L178: =C178-june!E178 -> 0 | M178: =D178-june!F178 -> 0 | N178: =E178-june!G178 -> 0.7 | O178: =F178-june!H178 -> 4418 | Q178: 0 | R178: 169 | U178: =S178-june!G178 -> -0.72 | V178: =T178-june!H178 -> -5096
A179: 170 | B179: MARLBOROUGH | C179: 0 | D179: 0 | E179: 93.31 | F179: 560509 | H179: 170 | I179: 5 | J179: 7 | L179: =C179-june!E179 -> 0 | M179: =D179-june!F179 -> 0 | N179: =E179-june!G179 -> 1.95 | O179: =F179-june!H179 -> 27562 | Q179: 0 | R179: 170 | S179: 85.03 | T179: 505033 | U179: =S179-june!G179 -> -6.33 | V179: =T179-june!H179 -> -27914
A180: 171 | B180: MARSHFIELD | C180: 6 | D180: 34000 | E180: 6.19 | F180: 37942 | H180: 171 | I180: 1 | J180: 4 | L180: =C180-june!E180 -> 1 | M180: =D180-june!F180 -> 9000 | N180: =E180-june!G180 -> 0.05 | O180: =F180-june!H180 -> -5180 | Q180: 0 | R180: 171 | S180: 3 | T180: 16569 | U180: =S180-june!G180 -> -3.14 | V180: =T180-june!H180 -> -26553
A181: 172 | B181: MASHPEE | C181: 72.42 | D181: 442050 | E181: 65.45 | F181: 389807 | H181: 172 | I181: 2 | J181: 1 | L181: =C181-june!E181 -> 7.67 | M181: =D181-june!F181 -> 57030 | N181: =E181-june!G181 -> -15.65 | O181: =F181-june!H181 -> -53979 | Q181: 0 | R181: 172 | S181: 63.2 | T181: 374732 | U181: =S181-june!G181 -> -17.9 | V181: =T181-june!H181 -> -69054
A182: 173 | B182: MATTAPOISETT | C182: 3 | D182: 42512 | E182: 1.77 | F182: 11859 | H182: 173 | J182: 3 | L182: =C182-june!E182 -> 1 | M182: =D182-june!F182 -> 3935 | N182: =E182-june!G182 -> 0.44 | O182: =F182-june!H182 -> 1651 | Q182: 0 | R182: 173 | U182: =S182-june!G182 -> -1.33 | V182: =T182-june!H182 -> -10208
A183: 174 | B183: MAYNARD | C183: 35.16 | D183: 264647 | E183: 15.63 | F183: 80595 | H183: 174 | L183: =C183-june!E183 -> -4.36 | M183: =D183-june!F183 -> -23476 | N183: =E183-june!G183 -> 6.63 | O183: =F183-june!H183 -> 34123 | Q183: 0 | R183: 174 | S183: 15.63 | T183: 80595 | U183: =S183-june!G183 -> 6.63 | V183: =T183-june!H183 -> 34123
A184: 175 | B184: MEDFIELD | C184: 0 | D184: 0 | E184: 5.69 | F184: 28450 | H184: 175 | L184: =C184-june!E184 -> 0 | M184: =D184-june!F184 -> 0 | N184: =E184-june!G184 -> -1.76 | O184: =F184-june!H184 -> -18352 | Q184: 0 | R184: 175 | S184: 5.69 | T184: 28450 | U184: =S184-june!G184 -> -1.76 | V184: =T184-june!H184 -> -18352
A185: 176 | B185: MEDFORD | C185: 0 | D185: 0 | E185: 2.54 | F185: 16712 | H185: 176 | J185: 4 | L185: =C185-june!E185 -> 0 | M185: =D185-june!F185 -> 0 | N185: =E185-june!G185 -> -4.87 | O185: =F185-june!H185 -> -35659 | Q185: 0 | R185: 176 | S185: 0.18 | T185: 900 | U185: =S185-june!G185 -> -7.23 | V185: =T185-june!H185 -> -51471
A186: 177 | B186: MEDWAY | C186: 61.65 | D186: 347095 | E186: 43.68 | F186: 265066 | H186: 177 | J186: 4 | L186: =C186-june!E186 -> -27.53 | M186: =D186-june!F186 -> -152135 | N186: =E186-june!G186 -> -5.95 | O186: =F186-june!H186 -> -51399 | Q186: 0 | R186: 177 | S186: 41.32 | T186: 249254 | U186: =S186-june!G186 -> -8.31 | V186: =T186-june!H186 -> -67211
A187: 178 | B187: MELROSE | C187: 10.63 | D187: 53150 | E187: 2.42 | F187: 14514 | H187: 178 | I187: 1 | J187: 1 | L187: =C187-june!E187 -> -14.66 | M187: =D187-june!F187 -> -86905 | N187: =E187-june!G187 -> 0.34 | O187: =F187-june!H187 -> 413 | Q187: 0 | R187: 178 | S187: 1 | T187: 5000 | U187: =S187-june!G187 -> -1.08 | V187: =T187-june!H187 -> -9101
A188: 179 | B188: MENDON | C188: 0 | D188: 0 | E188: 0 | F188: 0 | H188: 179 | L188: =C188-june!E188 -> 0 | M188: =D188-june!F188 -> 0 | N188: =E188-june!G188 -> 0 | O188: =F188-june!H188 -> 0 | Q188: 0 | R188: 179 | U188: =S188-june!G188 -> 0 | V188: =T188-june!H188 -> 0
A189: 180 | B189: MERRIMAC | C189: 0 | D189: 0 | E189: 0 | F189: 0 | H189: 180 | L189: =C189-june!E189 -> 0 | M189: =D189-june!F189 -> 0 | N189: =E189-june!G189 -> 0 | O189: =F189-june!H189 -> 0 | Q189: 0 | R189: 180 | U189: =S189-june!G189 -> 0 | V189: =T189-june!H189 -> 0
A190: 181 | B190: METHUEN | C190: 0 | D190: 0 | E190: 17.01 | F190: 95709 | H190: 181 | I190: 4 | J190: 5 | L190: =C190-june!E190 -> 0 | M190: =D190-june!F190 -> 0 | N190: =E190-june!G190 -> -7.68 | O190: =F190-june!H190 -> -53629 | Q190: 0 | R190: 181 | S190: 10.74 | T190: 53700 | U190: =S190-june!G190 -> -13.95 | V190: =T190-june!H190 -> -95638
A191: 182 | B191: MIDDLEBOROUGH | C191: 3 | D191: 15000 | E191: 43.78 | F191: 231623 | H191: 182 | I191: 2 | J191: 4 | L191: =C191-june!E191 -> 0 | M191: =D191-june!F191 -> 0 | N191: =E191-june!G191 -> -7.95 | O191: =F191-june!H191 -> -66503 | Q191: 0 | R191: 182 | S191: 39.76 | T191: 204689 | U191: =S191-june!G191 -> -11.97 | V191: =T191-june!H191 -> -93437
A192: 183 | B192: MIDDLEFIELD | C192: 0 | D192: 0 | E192: 0 | F192: 0 | H192: 183 | L192: =C192-june!E192 -> 0 | M192: =D192-june!F192 -> 0 | N192: =E192-june!G192 -> 0 | O192: =F192-june!H192 -> 0 | Q192: 0 | R192: 183 | U192: =S192-june!G192 -> 0 | V192: =T192-june!H192 -> 0
A193: 184 | B193: MIDDLETON | C193: 0 | D193: 0 | E193: 0.83 | F193: 5561 | H193: 184 | I193: 1 | L193: =C193-june!E193 -> 0 | M193: =D193-june!F193 -> 0 | N193: =E193-june!G193 -> -0.17 | O193: =F193-june!H193 -> -1139 | Q193: 0 | R193: 184 | U193: =S193-june!G193 -> -1 | V193: =T193-june!H193 -> -6700
A194: 185 | B194: MILFORD | C194: 82.65 | D194: 459014 | E194: 182.01 | F194: 1042782 | H194: 185 | I194: 1 | J194: 9 | L194: =C194-june!E194 -> -4.15 | M194: =D194-june!F194 -> -54094 | N194: =E194-june!G194 -> -16.75 | O194: =F194-june!H194 -> -139467 | Q194: 0 | R194: 185 | S194: 175.87 | T194: 1001644 | U194: =S194-june!G194 -> -22.89 | V194: =T194-june!H194 -> -180605
A195: 186 | B195: MILLBURY | C195: 0 | D195: 0 | E195: 19.5 | F195: 118671 | H195: 186 | I195: 2 | J195: 3 | L195: =C195-june!E195 -> 0 | M195: =D195-june!F195 -> 0 | N195: =E195-june!G195 -> -4.84 | O195: =F195-june!H195 -> -38958 | Q195: 0 | R195: 186 | S195: 16.07 | T195: 95690 | U195: =S195-june!G195 -> -8.27 | V195: =T195-june!H195 -> -61939
A196: 187 | B196: MILLIS | C196: 76.03 | D196: 419555 | E196: 28.34 | F196: 168883 | H196: 187 | J196: 2 | L196: =C196-june!E196 -> -3.23 | M196: =D196-june!F196 -> -4365 | N196: =E196-june!G196 -> -0.27 | O196: =F196-june!H196 -> -1900 | Q196: 0 | R196: 187 | S196: 27.16 | T196: 160977 | U196: =S196-june!G196 -> -1.45 | V196: =T196-june!H196 -> -9806
A197: 188 | B197: MILLVILLE | C197: 0 | D197: 0 | E197: 0 | F197: 0 | H197: 188 | L197: =C197-june!E197 -> 0 | M197: =D197-june!F197 -> 0 | N197: =E197-june!G197 -> 0 | O197: =F197-june!H197 -> 0 | Q197: 0 | R197: 188 | U197: =S197-june!G197 -> 0 | V197: =T197-june!H197 -> 0
A198: 189 | B198: MILTON | C198: 0 | D198: 0 | E198: 2.84 | F198: 19028 | H198: 189 | I198: 2 | J198: 2 | L198: =C198-june!E198 -> 0 | M198: =D198-june!F198 -> 0 | N198: =E198-june!G198 -> -1.16 | O198: =F198-june!H198 -> -7772 | Q198: 0 | R198: 189 | U198: =S198-june!G198 -> -4 | V198: =T198-june!H198 -> -26800
A199: 190 | B199: MONROE | C199: 0 | D199: 0 | E199: 0.37 | F199: 1850 | H199: 190 | L199: =C199-june!E199 -> 0 | M199: =D199-june!F199 -> 0 | N199: =E199-june!G199 -> -0.37 | O199: =F199-june!H199 -> -2134 | Q199: 0 | R199: 190 | S199: 0.37 | T199: 1850 | U199: =S199-june!G199 -> -0.37 | V199: =T199-june!H199 -> -2134
A200: 191 | B200: MONSON | C200: 42.96 | D200: 239656 | E200: 31.33 | F200: 170503 | H200: 191 | I200: 6 | L200: =C200-june!E200 -> -9.04 | M200: =D200-june!F200 -> -84072 | N200: =E200-june!G200 -> -5.35 | O200: =F200-june!H200 -> -31474 | Q200: 0 | R200: 191 | S200: 26.35 | T200: 137137 | U200: =S200-june!G200 -> -10.33 | V200: =T200-june!H200 -> -64840
A201: 192 | B201: MONTAGUE | C201: 0 | D201: 0 | E201: 0 | F201: 0 | H201: 192 | L201: =C201-june!E201 -> 0 | M201: =D201-june!F201 -> 0 | N201: =E201-june!G201 -> 0 | O201: =F201-june!H201 -> 0 | Q201: 0 | R201: 192 | U201: =S201-june!G201 -> 0 | V201: =T201-june!H201 -> 0
A202: 193 | B202: MONTEREY | C202: 0 | D202: 0 | E202: 0 | F202: 0 | H202: 193 | L202: =C202-june!E202 -> 0 | M202: =D202-june!F202 -> 0 | N202: =E202-june!G202 -> 0 | O202: =F202-june!H202 -> 0 | Q202: 0 | R202: 193 | U202: =S202-june!G202 -> 0 | V202: =T202-june!H202 -> 0
A203: 194 | B203: MONTGOMERY | C203: 0 | D203: 0 | E203: =S203+(0.83*I203)+0.59*J203 -> 0 | F203: =T203+(0.83*I203)*6700+0.59*J203*6700 -> 0 | H203: 194 | L203: =C203-june!E203 -> 0 | M203: =D203-june!F203 -> 0 | N203: =E203-june!G203 -> 0 | O203: =F203-june!H203 -> 0 | Q203: =R203-A203 -> 0 | R203: 194 | U203: =S203-june!G203 -> 0 | V203: =T203-june!H203 -> 0
... 251 more rows

Sheet proj16aug (hidden)
J1: choicecalc15final, aug 7 2015
A2: Massachusetts Department of Elementary and Secondary Education
A3: Office of School Finance
A5: School Choice Pupils and Tuition, Projected FY16, Aug 2015
A6: reflecting Worthington and Gateway adjustments | J6: adjustment | K6: adjustment | M6: net | N6: net
E7: FY16 | F7: FY16 | G7: FY16 | H7: FY16 | J7: FY15 | K7: FY15 | M7: FY16 | N7: FY16 | AA7: choicecalc15jun, after removing mava and tecca
E8: receiving | F8: receiving | G8: sending | H8: sending | J8: receiving | K8: receiving | M8: receiving | N8: receiving | Q8: mava | T8: ffte chg | U8: tuition chg | V8: ffte chg | W8: tuition chg
A9: LEA | B9: district | C9: dor | E9: fte | F9: tuition | G9: fte | H9: tuition | J9: tuition | K9: tuition | M9: tuition | N9: tuition | P9: lea | Q9: n of kids | R9: tecca | T9: june to proj | U9: proj to june | V9: june to proj | W9: proj to june
A10: 1 | B10: ABINGTON | C10: 1 | E10: 2 | F10: 10000 | G10: =AA10+(0.83*Q10)+0.59*R10 -> 26.25 | H10: =AB10+(0.83*Q10)*6700+0.59*R10*6700 -> 141707 | J10: 0 | K10: 0 | M10: =F10+J10 -> 10000 | N10: =H10+K10 -> 141707 | P10: 1 | Q10: 3 | R10: 4 | T10: =E10-june!E10 -> 1 | U10: =F10-june!F10 -> 5000 | V10: =G10-june!G10 -> -7.24 | W10: =H10-june!H10 -> -60914 | Y10: =Z10-A10 -> 0 | Z10: 1 | AA10: 21.4 | AB10: 109212 | AC10: =AA10-june!G10 -> -12.09 | AD10: =AB10-june!H10 -> -93409
A11: 2 | B11: ACTON | C11: 2 | E11: 0 | F11: 0 | G11: =AA11+(0.83*Q11)+0.59*R11 -> 0.83 | H11: =AB11+(0.83*Q11)*6700+0.59*R11*6700 -> 5561 | J11: 0 | K11: 0 | M11: =F11+J11 -> 0 | N11: =H11+K11 -> 5561 | P11: 2 | Q11: 1 | T11: =E11-june!E11 -> 0 | U11: =F11-june!F11 -> 0 | V11: =G11-june!G11 -> 0.83 | W11: =H11-june!H11 -> 5561 | Y11: 0 | Z11: 2 | AC11: =AA11-june!G11 -> 0 | AD11: =AB11-june!H11 -> 0
A12: 3 | B12: ACUSHNET | C12: 3 | E12: 0 | F12: 0 | G12: 11.12 | H12: 62652 | J12: 0 | K12: 0 | M12: 0 | N12: 62652 | P12: 3 | T12: =E12-june!E12 -> 0 | U12: =F12-june!F12 -> 0 | V12: =G12-june!G12 -> -7.51 | W12: =H12-june!H12 -> -35933 | Y12: 0 | Z12: 3 | AA12: 11.12 | AB12: 62652 | AC12: =AA12-june!G12 -> -7.51 | AD12: =AB12-june!H12 -> -35933
A13: 4 | B13: ADAMS | C13: 4 | E13: 0 | F13: 0 | G13: 0 | H13: 0 | J13: 0 | K13: 0 | M13: 0 | N13: 0 | P13: 4 | T13: =E13-june!E13 -> 0 | U13: =F13-june!F13 -> 0 | V13: =G13-june!G13 -> 0 | W13: =H13-june!H13 -> 0 | Y13: 0 | Z13: 4 | AC13: =AA13-june!G13 -> 0 | AD13: =AB13-june!H13 -> 0
A14: 5 | B14: AGAWAM | C14: 5 | E14: 80.57 | F14: 425326 | G14: 42.49 | H14: 290838 | J14: 0 | K14: 0 | M14: 425326 | N14: 290838 | P14: 5 | Q14: 3 | R14: 2 | T14: =E14-june!E14 -> 4.55 | U14: =F14-june!F14 -> -12590 | V14: =G14-june!G14 -> -3.61 | W14: =H14-june!H14 -> -1221 | Y14: 0 | Z14: 5 | AA14: 38.82 | AB14: 266249 | AC14: =AA14-june!G14 -> -7.28 | AD14: =AB14-june!H14 -> -25810
A15: 6 | B15: ALFORD | C15: 6 | E15: 0 | F15: 0 | G15: 0 | H15: 0 | J15: 0 | K15: 0 | M15: 0 | N15: 0 | P15: 6 | T15: =E15-june!E15 -> 0 | U15: =F15-june!F15 -> 0 | V15: =G15-june!G15 -> 0 | W15: =H15-june!H15 -> 0 | Y15: 0 | Z15: 6 | AC15: =AA15-june!G15 -> 0 | AD15: =AB15-june!H15 -> 0
A16: 7 | B16: AMESBURY | C16: 7 | E16: 30 | F16: 196514 | G16: 74.48 | H16: 494598 | J16: 0 | K16: 0 | M16: 196514 | N16: 494598 | P16: 7 | Q16: 2 | R16: 8 | T16: =E16-june!E16 -> 17.64 | U16: =F16-june!F16 -> 102001 | V16: =G16-june!G16 -> 14.79 | W16: =H16-june!H16 -> 115117 | Y16: 0 | Z16: 7 | AA16: 68.1 | AB16: 451852 | AC16: =AA16-june!G16 -> 8.41 | AD16: =AB16-june!H16 -> 72371
A17: 8 | B17: AMHERST | C17: 8 | E17: 53.85 | F17: 338073 | G17: 23.91 | H17: 157400 | J17: 0 | K17: 0 | M17: 338073 | N17: 157400 | P17: 8 | Q17: 2 | R17: 1 | T17: =E17-june!E17 -> 3.89 | U17: =F17-june!F17 -> 1940 | V17: =G17-june!G17 -> -1.16 | W17: =H17-june!H17 -> -81488 | Y17: 0 | Z17: 8 | AA17: 21.66 | AB17: 142325 | AC17: =AA17-june!G17 -> -3.41 | AD17: =AB17-june!H17 -> -96563
A18: 9 | B18: ANDOVER | C18: 9 | E18: 0 | F18: 0 | G18: 3.78 | H18: 25326 | J18: 0 | K18: 0 | M18: 0 | N18: 25326 | P18: 9 | Q18: 1 | R18: 5 | T18: =E18-june!E18 -> 0 | U18: =F18-june!F18 -> 0 | V18: =G18-june!G18 -> -0.22 | W18: =H18-june!H18 -> -1141 | Y18: 0 | Z18: 9 | AC18: =AA18-june!G18 -> -4 | AD18: =AB18-june!H18 -> -26467
A19: 10 | B19: ARLINGTON | C19: 10 | E19: 0 | F19: 0 | G19: 0.83 | H19: 5561 | J19: 0 | K19: 0 | M19: 0 | N19: 5561 | P19: 10 | Q19: 1 | T19: =E19-june!E19 -> 0 | U19: =F19-june!F19 -> 0 | V19: =G19-june!G19 -> -1.13 | W19: =H19-june!H19 -> -9245 | Y19: 0 | Z19: 10 | AC19: =AA19-june!G19 -> -1.96 | AD19: =AB19-june!H19 -> -14806
A20: 11 | B20: ASHBURNHAM | C20: 11 | E20: 0 | F20: 0 | G20: 0 | H20: 0 | J20: 0 | K20: 0 | M20: 0 | N20: 0 | P20: 11 | T20: =E20-june!E20 -> 0 | U20: =F20-june!F20 -> 0 | V20: =G20-june!G20 -> 0 | W20: =H20-june!H20 -> 0 | Y20: 0 | Z20: 11 | AC20: =AA20-june!G20 -> 0 | AD20: =AB20-june!H20 -> 0
A21: 12 | B21: ASHBY | C21: 12 | E21: 0 | F21: 0 | G21: 0 | H21: 0 | J21: 0 | K21: 0 | M21: 0 | N21: 0 | P21: 12 | T21: =E21-june!E21 -> 0 | U21: =F21-june!F21 -> 0 | V21: =G21-june!G21 -> 0 | W21: =H21-june!H21 -> 0 | Y21: 0 | Z21: 12 | AC21: =AA21-june!G21 -> 0 | AD21: =AB21-june!H21 -> 0
A22: 13 | B22: ASHFIELD | C22: 13 | E22: 0 | F22: 0 | G22: 0 | H22: 0 | J22: 0 | K22: 0 | M22: 0 | N22: 0 | P22: 13 | T22: =E22-june!E22 -> 0 | U22: =F22-june!F22 -> 0 | V22: =G22-june!G22 -> 0 | W22: =H22-june!H22 -> 0 | Y22: 0 | Z22: 13 | AC22: =AA22-june!G22 -> 0 | AD22: =AB22-june!H22 -> 0
A23: 14 | B23: ASHLAND | C23: 14 | E23: 31.76 | F23: 212748 | G23: 15.37 | H23: 91418 | J23: 0 | K23: 0 | M23: 212748 | N23: 91418 | P23: 14 | R23: 1 | T23: =E23-june!E23 -> -11.67 | U23: =F23-june!F23 -> -53867 | V23: =G23-june!G23 -> 1.51 | W23: =H23-june!H23 -> 1487 | Y23: 0 | Z23: 14 | AA23: 14.78 | AB23: 87465 | AC23: =AA23-june!G23 -> 0.92 | AD23: =AB23-june!H23 -> -2466
A24: 15 | B24: ATHOL | C24: 15 | E24: 0 | F24: 0 | G24: 0 | H24: 0 | J24: 0 | K24: 0 | M24: 0 | N24: 0 | P24: 15 | T24: =E24-june!E24 -> 0 | U24: =F24-june!F24 -> 0 | V24: =G24-june!G24 -> 0 | W24: =H24-june!H24 -> 0 | Y24: 0 | Z24: 15 | AC24: =AA24-june!G24 -> 0 | AD24: =AB24-june!H24 -> 0
A25: 16 | B25: ATTLEBORO | C25: 16 | E25: 0 | F25: 0 | G25: 16.89 | H25: 98305 | J25: 0 | K25: 0 | M25: 0 | N25: 98305 | P25: 16 | Q25: 2 | R25: 11 | T25: =E25-june!E25 -> 0 | U25: =F25-june!F25 -> 0 | V25: =G25-june!G25 -> -9.44 | W25: =H25-june!H25 -> -65086 | Y25: 0 | Z25: 16 | AA25: 8.74 | AB25: 43700 | AC25: =AA25-june!G25 -> -17.59 | AD25: =AB25-june!H25 -> -119691
A26: 17 | B26: AUBURN | C26: 17 | E26: 46.91 | F26: 249438 | G26: 20.36 | H26: 127289 | J26: 0 | K26: 0 | M26: 249438 | N26: 127289 | P26: 17 | T26: =E26-june!E26 -> -15.18 | U26: =F26-june!F26 -> -78172 | V26: =G26-june!G26 -> 2.56 | W26: =H26-june!H26 -> 24866 | Y26: 0 | Z26: 17 | AA26: 20.36 | AB26: 127289 | AC26: =AA26-june!G26 -> 2.56 | AD26: =AB26-june!H26 -> 24866
A27: 18 | B27: AVON | C27: 18 | E27: 182.16 | F27: 949225 | G27: 5 | H27: 25000 | J27: 0 | K27: 0 | M27: 949225 | N27: 25000 | P27: 18 | T27: =E27-june!E27 -> -6.02 | U27: =F27-june!F27 -> -31445 | V27: =G27-june!G27 -> 3.31 | W27: =H27-june!H27 -> 14933 | Y27: 0 | Z27: 18 | AA27: 5 | AB27: 25000 | AC27: =AA27-june!G27 -> 3.31 | AD27: =AB27-june!H27 -> 14933
A28: 19 | B28: AYER | C28: 19 | E28: 0 | F28: 0 | G28: 0 | H28: 0 | J28: 0 | K28: 0 | M28: 0 | N28: 0 | P28: 19 | T28: =E28-june!E28 -> 0 | U28: =F28-june!F28 -> 0 | V28: =G28-june!G28 -> 0 | W28: =H28-june!H28 -> 0 | Y28: 0 | Z28: 19 | AC28: =AA28-june!G28 -> 0 | AD28: =AB28-june!H28 -> 0
A29: 20 | B29: BARNSTABLE | C29: 20 | E29: 104.86 | F29: 616894 | G29: 155.75 | H29: 918231 | J29: 0 | K29: 0 | M29: 616894 | N29: 918231 | P29: 20 | Q29: 1 | R29: 14 | T29: =E29-june!E29 -> 3.08 | U29: =F29-june!F29 -> -33824 | V29: =G29-june!G29 -> 0.3 | W29: =H29-june!H29 -> 13338 | Y29: 0 | Z29: 20 | AA29: 146.66 | AB29: 857328 | AC29: =AA29-june!G29 -> -8.79 | AD29: =AB29-june!H29 -> -47565
A30: 21 | B30: BARRE | C30: 21 | E30: 0 | F30: 0 | G30: 0 | H30: 0 | J30: 0 | K30: 0 | M30: 0 | N30: 0 | P30: 21 | T30: =E30-june!E30 -> 0 | U30: =F30-june!F30 -> 0 | V30: =G30-june!G30 -> 0 | W30: =H30-june!H30 -> 0 | Y30: 0 | Z30: 21 | AC30: =AA30-june!G30 -> 0 | AD30: =AB30-june!H30 -> 0
A31: 22 | B31: BECKET | C31: 22 | E31: 0 | F31: 0 | G31: 2 | H31: 10000 | J31: 0 | K31: 0 | M31: 0 | N31: 10000 | P31: 22 | T31: =E31-june!E31 -> 0 | U31: =F31-june!F31 -> 0 | V31: =G31-june!G31 -> -1 | W31: =H31-june!H31 -> -5000 | Y31: 0 | Z31: 22 | AA31: 2 | AB31: 10000 | AC31: =AA31-june!G31 -> -1 | AD31: =AB31-june!H31 -> -5000
A32: 23 | B32: BEDFORD | C32: 23 | E32: 0 | F32: 0 | G32: 1 | H32: 5000 | J32: 0 | K32: 0 | M32: 0 | N32: 5000 | P32: 23 | T32: =E32-june!E32 -> 0 | U32: =F32-june!F32 -> 0 | V32: =G32-june!G32 -> -3.16 | W32: =H32-june!H32 -> -21665 | Y32: 0 | Z32: 23 | AA32: 1 | AB32: 5000 | AC32: =AA32-june!G32 -> -3.16 | AD32: =AB32-june!H32 -> -21665
A33: 24 | B33: BELCHERTOWN | C33: 24 | E33: 99.51 | F33: 580989 | G33: 82.73 | H33: 544940 | J33: 0 | K33: 0 | M33: 580989 | N33: 544940 | P33: 24 | R33: 4 | T33: =E33-june!E33 -> -23.98 | U33: =F33-june!F33 -> -168322 | V33: =G33-june!G33 -> -12.96 | W33: =H33-june!H33 -> -116779 | Y33: 0 | Z33: 24 | AA33: 80.37 | AB33: 529128 | AC33: =AA33-june!G33 -> -15.32 | AD33: =AB33-june!H33 -> -132591
A34: 25 | B34: BELLINGHAM | C34: 25 | E34: 45.33 | F34: 257806 | G34: 115.14 | H34: 703458 | J34: 0 | K34: 12500 | M34: 257806 | N34: 715958 | P34: 25 | R34: 8 | T34: =E34-june!E34 -> 6.14 | U34: =F34-june!F34 -> 39136 | V34: =G34-june!G34 -> -20.71 | W34: =H34-june!H34 -> -140935 | Y34: 0 | Z34: 25 | AA34: 110.42 | AB34: 671834 | AC34: =AA34-june!G34 -> -25.43 | AD34: =AB34-june!H34 -> -172559
A35: 26 | B35: BELMONT | C35: 26 | E35: 0 | F35: 0 | G35: 0.73 | H35: 4653 | J35: 0 | K35: 0 | M35: 0 | N35: 4653 | P35: 26 | R35: 1 | T35: =E35-june!E35 -> 0 | U35: =F35-june!F35 -> 0 | V35: =G35-june!G35 -> -0.57 | W35: =H35-june!H35 -> -4267 | Y35: 0 | Z35: 26 | AA35: 0.14 | AB35: 700 | AC35: =AA35-june!G35 -> -1.16 | AD35: =AB35-june!H35 -> -8220
A36: 27 | B36: BERKLEY | C36: 27 | E36: 78.6 | F36: 396688 | G36: 2 | H36: 10000 | J36: 0 | K36: 0 | M36: 396688 | N36: 10000 | P36: 27 | T36: =E36-june!E36 -> -25.56 | U36: =F36-june!F36 -> -124112 | V36: =G36-june!G36 -> 0.15 | W36: =H36-june!H36 -> 750 | Y36: 0 | Z36: 27 | AA36: 2 | AB36: 10000 | AC36: =AA36-june!G36 -> 0.15 | AD36: =AB36-june!H36 -> 750
A37: 28 | B37: BERLIN | C37: 28 | E37: 18 | F37: 145629 | G37: 0 | H37: 0 | J37: 0 | K37: 0 | M37: 145629 | N37: 0 | P37: 28 | T37: =E37-june!E37 -> -1.41 | U37: =F37-june!F37 -> -2192 | V37: =G37-june!G37 -> -1 | W37: =H37-june!H37 -> -5000 | Y37: 0 | Z37: 28 | AC37: =AA37-june!G37 -> -1 | AD37: =AB37-june!H37 -> -5000
A38: 29 | B38: BERNARDSTON | C38: 29 | E38: 0 | F38: 0 | G38: 0 | H38: 0 | J38: 0 | K38: 0 | M38: 0 | N38: 0 | P38: 29 | T38: =E38-june!E38 -> 0 | U38: =F38-june!F38 -> 0 | V38: =G38-june!G38 -> 0 | W38: =H38-june!H38 -> 0 | Y38: 0 | Z38: 29 | AC38: =AA38-june!G38 -> 0 | AD38: =AB38-june!H38 -> 0
A39: 30 | B39: BEVERLY | C39: 30 | E39: 95.32 | F39: 524477 | G39: 62.12 | H39: 336687 | J39: 0 | K39: 0 | M39: 524477 | N39: 336687 | P39: 30 | Q39: 7 | R39: 9 | T39: =E39-june!E39 -> -7.98 | U39: =F39-june!F39 -> -71601 | V39: =G39-june!G39 -> 2.78 | W39: =H39-june!H39 -> -1997 | Y39: 0 | Z39: 30 | AA39: 51 | AB39: 262183 | AC39: =AA39-june!G39 -> -8.34 | AD39: =AB39-june!H39 -> -76501
A40: 31 | B40: BILLERICA | C40: 31 | E40: 0 | F40: 0 | G40: 13.56 | H40: 74634 | J40: 0 | K40: 0 | M40: 0 | N40: 74634 | P40: 31 | Q40: 2 | R40: 4 | T40: =E40-june!E40 -> 0 | U40: =F40-june!F40 -> 0 | V40: =G40-june!G40 -> -4.41 | W40: =H40-june!H40 -> -42618 | Y40: 0 | Z40: 31 | AA40: 9.54 | AB40: 47700 | AC40: =AA40-june!G40 -> -8.43 | AD40: =AB40-june!H40 -> -69552
A41: 32 | B41: BLACKSTONE | C41: 32 | E41: 0 | F41: 0 | G41: 0 | H41: 0 | J41: 0 | K41: 0 | M41: 0 | N41: 0 | P41: 32 | T41: =E41-june!E41 -> 0 | U41: =F41-june!F41 -> 0 | V41: =G41-june!G41 -> 0 | W41: =H41-june!H41 -> 0 | Y41: 0 | Z41: 32 | AC41: =AA41-june!G41 -> 0 | AD41: =AB41-june!H41 -> 0
A42: 33 | B42: BLANDFORD | C42: 33 | E42: 0 | F42: 0 | G42: 0 | H42: 0 | J42: 0 | K42: 0 | M42: 0 | N42: 0 | P42: 33 | T42: =E42-june!E42 -> 0 | U42: =F42-june!F42 -> 0 | V42: =G42-june!G42 -> -2 | W42: =H42-june!H42 -> -11951 | Y42: 0 | Z42: 33 | AC42: =AA42-june!G42 -> -2 | AD42: =AB42-june!H42 -> -11951
A43: 34 | B43: BOLTON | C43: 34 | E43: 0 | F43: 0 | G43: 0 | H43: 0 | J43: 0 | K43: 0 | M43: 0 | N43: 0 | P43: 34 | T43: =E43-june!E43 -> 0 | U43: =F43-june!F43 -> 0 | V43: =G43-june!G43 -> 0 | W43: =H43-june!H43 -> 0 | Y43: 0 | Z43: 34 | AC43: =AA43-june!G43 -> 0 | AD43: =AB43-june!H43 -> 0
A44: 35 | B44: BOSTON | C44: 35 | E44: 0 | F44: 0 | G44: 86.54 | H44: 555312 | J44: 0 | K44: 0 | M44: 0 | N44: 555312 | P44: 35 | Q44: 24 | R44: 76 | T44: =E44-june!E44 -> 0 | U44: =F44-june!F44 -> 0 | V44: =G44-june!G44 -> -6.54 | W44: =H44-june!H44 -> -61463 | Y44: 0 | Z44: 35 | AA44: 21.78 | AB44: 121420 | AC44: =AA44-june!G44 -> -71.3 | AD44: =AB44-june!H44 -> -495355
A45: 36 | B45: BOURNE | C45: 36 | E45: 126.46 | F45: 723869 | G45: 91.77 | H45: 622519 | J45: 0 | K45: 0 | M45: 723869 | N45: 622519 | P45: 36 | Q45: 2 | R45: 1 | T45: =E45-june!E45 -> -8.44 | U45: =F45-june!F45 -> -76651 | V45: =G45-june!G45 -> -3.81 | W45: =H45-june!H45 -> 57602 | Y45: 0 | Z45: 36 | AA45: 89.52 | AB45: 607444 | AC45: =AA45-june!G45 -> -6.06 | AD45: =AB45-june!H45 -> 42527
A46: 37 | B46: BOXBOROUGH | C46: 37 | E46: 0 | F46: 0 | G46: 0 | H46: 0 | J46: 0 | K46: 0 | M46: 0 | N46: 0 | P46: 37 | T46: =E46-june!E46 -> 0 | U46: =F46-june!F46 -> 0 | V46: =G46-june!G46 -> 0 | W46: =H46-june!H46 -> 0 | Y46: 0 | Z46: 37 | AC46: =AA46-june!G46 -> 0 | AD46: =AB46-june!H46 -> 0
A47: 38 | B47: BOXFORD | C47: 38 | E47: 0 | F47: 0 | G47: 0.83 | H47: 5561 | J47: 0 | K47: 0 | M47: 0 | N47: 5561 | P47: 38 | Q47: 1 | T47: =E47-june!E47 -> 0 | U47: =F47-june!F47 -> 0 | V47: =G47-june!G47 -> -2.17 | W47: =H47-june!H47 -> -11139 | Y47: 0 | Z47: 38 | AC47: =AA47-june!G47 -> -3 | AD47: =AB47-june!H47 -> -16700
A48: 39 | B48: BOYLSTON | C48: 39 | E48: 13 | F48: 70513 | G48: 7.4 | H48: 83867 | J48: 0 | K48: 0 | M48: 70513 | N48: 83867 | P48: 39 | Q48: 2 | T48: =E48-june!E48 -> -4 | U48: =F48-june!F48 -> -24252 | V48: =G48-june!G48 -> 1.8 | W48: =H48-june!H48 -> 10179 | Y48: 0 | Z48: 39 | AA48: 5.74 | AB48: 72745 | AC48: =AA48-june!G48 -> 0.14 | AD48: =AB48-june!H48 -> -943
A49: 40 | B49: BRAINTREE | C49: 40 | E49: 0 | F49: 0 | G49: 4.6 | H49: 27420 | J49: 0 | K49: 0 | M49: 0 | N49: 27420 | P49: 40 | Q49: 1 | R49: 3 | T49: =E49-june!E49 -> 0 | U49: =F49-june!F49 -> 0 | V49: =G49-june!G49 -> -0.59 | W49: =H49-june!H49 -> -5910 | Y49: 0 | Z49: 40 | AA49: 2 | AB49: 10000 | AC49: =AA49-june!G49 -> -3.19 | AD49: =AB49-june!H49 -> -23330
A50: 41 | B50: BREWSTER | C50: 41 | E50: 0 | F50: 0 | G50: 23.39 | H50: 158226 | J50: 0 | K50: 0 | M50: 0 | N50: 158226 | P50: 41 | R50: 1 | T50: =E50-june!E50 -> 0 | U50: =F50-june!F50 -> 0 | V50: =G50-june!G50 -> -8.86 | W50: =H50-june!H50 -> -37170 | Y50: 0 | Z50: 41 | AA50: 22.8 | AB50: 154273 | AC50: =AA50-june!G50 -> -9.45 | AD50: =AB50-june!H50 -> -41123
A51: 42 | B51: BRIDGEWATER | C51: 42 | E51: 0 | F51: 0 | G51: 0 | H51: 0 | J51: 0 | K51: 0 | M51: 0 | N51: 0 | P51: 42 | T51: =E51-june!E51 -> 0 | U51: =F51-june!F51 -> 0 | V51: =G51-june!G51 -> 0 | W51: =H51-june!H51 -> 0 | Y51: 0 | Z51: 42 | AC51: =AA51-june!G51 -> 0 | AD51: =AB51-june!H51 -> 0
A52: 43 | B52: BRIMFIELD | C52: 43 | E52: 0 | F52: 0 | G52: 9.37 | H52: 102550 | J52: 0 | K52: 0 | M52: 0 | N52: 102550 | P52: 43 | T52: =E52-june!E52 -> 0 | U52: =F52-june!F52 -> 0 | V52: =G52-june!G52 -> 2.24 | W52: =H52-june!H52 -> 39790 | Y52: 0 | Z52: 43 | AA52: 9.37 | AB52: 102550 | AC52: =AA52-june!G52 -> 2.24 | AD52: =AB52-june!H52 -> 39790
A53: 44 | B53: BROCKTON | C53: 44 | E53: 23 | F53: 115000 | G53: 188.57 | H53: 1037038 | J53: 0 | K53: 0 | M53: 115000 | N53: 1037038 | P53: 44 | Q53: 10 | R53: 24 | T53: =E53-june!E53 -> -0.43 | U53: =F53-june!F53 -> -112944 | V53: =G53-june!G53 -> -47.1 | W53: =H53-june!H53 -> -231930 | Y53: 0 | Z53: 44 | AA53: 166.11 | AB53: 886556 | AC53: =AA53-june!G53 -> -69.56 | AD53: =AB53-june!H53 -> -382412
A54: 45 | B54: BROOKFIELD | C54: 45 | E54: 60.86 | F54: 389284 | G54: 2.28 | H54: 14677 | J54: 0 | K54: 0 | M54: 389284 | N54: 14677 | P54: 45 | T54: =E54-june!E54 -> 3.95 | U54: =F54-june!F54 -> 34511 | V54: =G54-june!G54 -> -0.35 | W54: =H54-june!H54 -> -8107 | Y54: 0 | Z54: 45 | AA54: 2.28 | AB54: 14677 | AC54: =AA54-june!G54 -> -0.35 | AD54: =AB54-june!H54 -> -8107
A55: 46 | B55: BROOKLINE | C55: 46 | E55: 0 | F55: 0 | G55: 0.59 | H55: 3953 | J55: 0 | K55: 0 | M55: 0 | N55: 3953 | P55: 46 | R55: 1 | T55: =E55-june!E55 -> 0 | U55: =F55-june!F55 -> 0 | V55: =G55-june!G55 -> -0.72 | W55: =H55-june!H55 -> -4876 | Y55: 0 | Z55: 46 | AC55: =AA55-june!G55 -> -1.31 | AD55: =AB55-june!H55 -> -8829
A56: 47 | B56: BUCKLAND | C56: 47 | E56: 0 | F56: 0 | G56: 0 | H56: 0 | J56: 0 | K56: 0 | M56: 0 | N56: 0 | P56: 47 | T56: =E56-june!E56 -> 0 | U56: =F56-june!F56 -> 0 | V56: =G56-june!G56 -> 0 | W56: =H56-june!H56 -> 0 | Y56: 0 | Z56: 47 | AC56: =AA56-june!G56 -> 0 | AD56: =AB56-june!H56 -> 0
A57: 48 | B57: BURLINGTON | C57: 48 | E57: 25.02 | F57: 125100 | G57: 2.36 | H57: 15812 | J57: 0 | K57: 0 | M57: 125100 | N57: 15812 | P57: 48 | R57: 4 | T57: =E57-june!E57 -> -3.91 | U57: =F57-june!F57 -> -19550 | V57: =G57-june!G57 -> -1.52 | W57: =H57-june!H57 -> -10193 | Y57: 0 | Z57: 48 | AC57: =AA57-june!G57 -> -3.88 | AD57: =AB57-june!H57 -> -26005
A58: 49 | B58: CAMBRIDGE | C58: 49 | E58: 0 | F58: 0 | G58: 2.84 | H58: 19028 | J58: 0 | K58: 0 | M58: 0 | N58: 19028 | P58: 49 | Q58: 2 | R58: 2 | T58: =E58-june!E58 -> 0 | U58: =F58-june!F58 -> 0 | V58: =G58-june!G58 -> -2.57 | W58: =H58-june!H58 -> -17263 | Y58: 0 | Z58: 49 | AC58: =AA58-june!G58 -> -5.41 | AD58: =AB58-june!H58 -> -36291
A59: 50 | B59: CANTON | C59: 50 | E59: 0 | F59: 0 | G59: 1.18 | H59: 7906 | J59: 0 | K59: 0 | M59: 0 | N59: 7906 | P59: 50 | R59: 2 | T59: =E59-june!E59 -> 0 | U59: =F59-june!F59 -> 0 | V59: =G59-june!G59 -> -0.22 | W59: =H59-june!H59 -> -1930 | Y59: 0 | Z59: 50 | AC59: =AA59-june!G59 -> -1.4 | AD59: =AB59-june!H59 -> -9836
A60: 51 | B60: CARLISLE | C60: 51 | E60: 0 | F60: 0 | G60: 0 | H60: 0 | J60: 0 | K60: 0 | M60: 0 | N60: 0 | P60: 51 | T60: =E60-june!E60 -> 0 | U60: =F60-june!F60 -> 0 | V60: =G60-june!G60 -> 0 | W60: =H60-june!H60 -> 0 | Y60: 0 | Z60: 51 | AC60: =AA60-june!G60 -> 0 | AD60: =AB60-june!H60 -> 0
A61: 52 | B61: CARVER | C61: 52 | E61: 20.64 | F61: 155991 | G61: 5.25 | H61: 30075 | J61: 0 | K61: 0 | M61: 155991 | N61: 30075 | P61: 52 | Q61: 2 | R61: 1 | T61: =E61-june!E61 -> -1.92 | U61: =F61-june!F61 -> -18151 | V61: =G61-june!G61 -> 0.44 | W61: =H61-june!H61 -> 24 | Y61: 0 | Z61: 52 | AA61: 3 | AB61: 15000 | AC61: =AA61-june!G61 -> -1.81 | AD61: =AB61-june!H61 -> -15051
A62: 53 | B62: CHARLEMONT | C62: 53 | E62: 0 | F62: 0 | G62: 0 | H62: 0 | J62: 0 | K62: 0 | M62: 0 | N62: 0 | P62: 53 | T62: =E62-june!E62 -> 0 | U62: =F62-june!F62 -> 0 | V62: =G62-june!G62 -> 0 | W62: =H62-june!H62 -> 0 | Y62: 0 | Z62: 53 | AC62: =AA62-june!G62 -> 0 | AD62: =AB62-june!H62 -> 0
A63: 54 | B63: CHARLTON | C63: 54 | E63: 0 | F63: 0 | G63: 0 | H63: 0 | J63: 0 | K63: 0 | M63: 0 | N63: 0 | P63: 54 | T63: =E63-june!E63 -> 0 | U63: =F63-june!F63 -> 0 | V63: =G63-june!G63 -> 0 | W63: =H63-june!H63 -> 0 | Y63: 0 | Z63: 54 | AC63: =AA63-june!G63 -> 0 | AD63: =AB63-june!H63 -> 0
A64: 55 | B64: CHATHAM | C64: 55 | E64: 0 | F64: 0 | G64: 0 | H64: 0 | J64: 0 | K64: 0 | M64: 0 | N64: 0 | P64: 55 | T64: =E64-june!E64 -> 0 | U64: =F64-june!F64 -> 0 | V64: =G64-june!G64 -> 0 | W64: =H64-june!H64 -> 0 | Y64: 0 | Z64: 55 | AC64: =AA64-june!G64 -> 0 | AD64: =AB64-june!H64 -> 0
A65: 56 | B65: CHELMSFORD | C65: 56 | E65: 44 | F65: 326523 | G65: 27.68 | H65: 193494 | J65: 0 | K65: 0 | M65: 326523 | N65: 193494 | P65: 56 | Q65: 2 | R65: 4 | T65: =E65-june!E65 -> -13.89 | U65: =F65-june!F65 -> -99198 | V65: =G65-june!G65 -> -1.98 | W65: =H65-june!H65 -> -21435 | Y65: 0 | Z65: 56 | AA65: 23.66 | AB65: 166560 | AC65: =AA65-june!G65 -> -6 | AD65: =AB65-june!H65 -> -48369
A66: 57 | B66: CHELSEA | C66: 57 | E66: 0 | F66: 0 | G66: 4.26 | H66: 28542 | J66: 0 | K66: 0 | M66: 0 | N66: 28542 | P66: 57 | Q66: 3 | R66: 3 | T66: =E66-june!E66 -> 0 | U66: =F66-june!F66 -> 0 | V66: =G66-june!G66 -> -6.01 | W66: =H66-june!H66 -> -38848 | Y66: 0 | Z66: 57 | AC66: =AA66-june!G66 -> -10.27 | AD66: =AB66-june!H66 -> -67390
A67: 58 | B67: CHESHIRE | C67: 58 | E67: 0 | F67: 0 | G67: 0 | H67: 0 | J67: 0 | K67: 0 | M67: 0 | N67: 0 | P67: 58 | T67: =E67-june!E67 -> 0 | U67: =F67-june!F67 -> 0 | V67: =G67-june!G67 -> 0 | W67: =H67-june!H67 -> 0 | Y67: 0 | Z67: 58 | AC67: =AA67-june!G67 -> 0 | AD67: =AB67-june!H67 -> 0
A68: 59 | B68: CHESTER | C68: 59 | E68: 0 | F68: 0 | G68: 0 | H68: 0 | J68: 0 | K68: 0 | M68: 0 | N68: 0 | P68: 59 | T68: =E68-june!E68 -> 0 | U68: =F68-june!F68 -> 0 | V68: =G68-june!G68 -> 0 | W68: =H68-june!H68 -> 0 | Y68: 0 | Z68: 59 | AC68: =AA68-june!G68 -> 0 | AD68: =AB68-june!H68 -> 0
A69: 60 | B69: CHESTERFIELD | C69: 60 | E69: 0 | F69: 0 | G69: 0 | H69: 0 | J69: 0 | K69: 0 | M69: 0 | N69: 0 | P69: 60 | T69: =E69-june!E69 -> 0 | U69: =F69-june!F69 -> 0 | V69: =G69-june!G69 -> 0 | W69: =H69-june!H69 -> 0 | Y69: 0 | Z69: 60 | AC69: =AA69-june!G69 -> 0 | AD69: =AB69-june!H69 -> 0
A70: 61 | B70: CHICOPEE | C70: 61 | E70: 179.17 | F70: 941627 | G70: 130.28 | H70: 754391 | J70: 0 | K70: 0 | M70: 941627 | N70: 754391 | P70: 61 | Q70: 6 | R70: 11 | T70: =E70-june!E70 -> -11.27 | U70: =F70-june!F70 -> -47282 | V70: =G70-june!G70 -> -9.39 | W70: =H70-june!H70 -> -84583 | Y70: 0 | Z70: 61 | AA70: 118.81 | AB70: 677542 | AC70: =AA70-june!G70 -> -20.86 | AD70: =AB70-june!H70 -> -161432
A71: 62 | B71: CHILMARK | C71: 62 | E71: 0 | F71: 0 | G71: 0 | H71: 0 | J71: 0 | K71: 0 | M71: 0 | N71: 0 | P71: 62 | T71: =E71-june!E71 -> 0 | U71: =F71-june!F71 -> 0 | V71: =G71-june!G71 -> 0 | W71: =H71-june!H71 -> 0 | Y71: 0 | Z71: 62 | AC71: =AA71-june!G71 -> 0 | AD71: =AB71-june!H71 -> 0
A72: 63 | B72: CLARKSBURG | C72: 63 | E72: 26.96 | F72: 159657 | G72: 13.03 | H72: 90681 | J72: 0 | K72: 0 | M72: 159657 | N72: 90681 | P72: 63 | T72: =E72-june!E72 -> -8.43 | U72: =F72-june!F72 -> -43356 | V72: =G72-june!G72 -> -4.75 | W72: =H72-june!H72 -> -43253 | Y72: 0 | Z72: 63 | AA72: 13.03 | AB72: 90681 | AC72: =AA72-june!G72 -> -4.75 | AD72: =AB72-june!H72 -> -43253
A73: 64 | B73: CLINTON | C73: 64 | E73: 115.25 | F73: 843868 | G73: 113.7 | H73: 637998 | J73: 0 | K73: 0 | M73: 843868 | N73: 637998 | P73: 64 | Q73: 4 | R73: 3 | T73: =E73-june!E73 -> 32.82 | U73: =F73-june!F73 -> 203716 | V73: =G73-june!G73 -> -3.67 | W73: =H73-june!H73 -> -47599 | Y73: 0 | Z73: 64 | AA73: 108.61 | AB73: 603895 | AC73: =AA73-june!G73 -> -8.76 | AD73: =AB73-june!H73 -> -81702
A74: 65 | B74: COHASSET | C74: 65 | E74: 0 | F74: 0 | G74: 0 | H74: 0 | J74: 0 | K74: 0 | M74: 0 | N74: 0 | P74: 65 | T74: =E74-june!E74 -> 0 | U74: =F74-june!F74 -> 0 | V74: =G74-june!G74 -> 0 | W74: =H74-june!H74 -> 0 | Y74: =Z74-A74 -> 0 | Z74: 65 | AC74: =AA74-june!G74 -> 0 | AD74: =AB74-june!H74 -> 0
A75: 66 | B75: COLRAIN | C75: 66 | E75: 0 | F75: 0 | G75: =AA75+(0.83*Q75)+0.59*R75 -> 0 | H75: =AB75+(0.83*Q75)*6700+0.59*R75*6700 -> 0 | J75: 0 | K75: 0 | M75: =F75+J75 -> 0 | N75: =H75+K75 -> 0 | P75: 66 | T75: =E75-june!E75 -> 0 | U75: =F75-june!F75 -> 0 | V75: =G75-june!G75 -> 0 | W75: =H75-june!H75 -> 0 | Y75: 0 | Z75: 66 | AC75: =AA75-june!G75 -> 0 | AD75: =AB75-june!H75 -> 0
A76: 67 | B76: CONCORD | C76: 67 | E76: 0 | F76: 0 | G76: 3.36 | H76: 20812 | J76: 0 | K76: 0 | M76: 0 | N76: 20812 | P76: 67 | R76: 4 | T76: =E76-june!E76 -> 0 | U76: =F76-june!F76 -> 0 | V76: =G76-june!G76 -> 1.36 | W76: =H76-june!H76 -> 7412 | Y76: 0 | Z76: 67 | AA76: 1 | AB76: 5000 | AC76: =AA76-june!G76 -> -1 | AD76: =AB76-june!H76 -> -8400
A77: 68 | B77: CONWAY | C77: 68 | E77: 19.82 | F77: 126837 | G77: 8 | H77: 76433 | J77: 0 | K77: 0 | M77: 126837 | N77: 76433 | P77: 68 | T77: =E77-june!E77 -> 0.61 | U77: =F77-june!F77 -> 2742 | V77: =G77-june!G77 -> -2.58 | W77: =H77-june!H77 -> -10760 | Y77: 0 | Z77: 68 | AA77: 8 | AB77: 76433 | AC77: =AA77-june!G77 -> -2.58 | AD77: =AB77-june!H77 -> -10760
A78: 69 | B78: CUMMINGTON | C78: 69 | E78: 0 | F78: 0 | G78: 0 | H78: 0 | J78: 0 | K78: 0 | M78: 0 | N78: 0 | P78: 69 | T78: =E78-june!E78 -> 0 | U78: =F78-june!F78 -> 0 | V78: =G78-june!G78 -> 0 | W78: =H78-june!H78 -> 0 | Y78: 0 | Z78: 69 | AC78: =AA78-june!G78 -> 0 | AD78: =AB78-june!H78 -> 0
A79: 70 | B79: DALTON | C79: 70 | E79: 0 | F79: 0 | G79: 0 | H79: 0 | J79: 0 | K79: 0 | M79: 0 | N79: 0 | P79: 70 | T79: =E79-june!E79 -> 0 | U79: =F79-june!F79 -> 0 | V79: =G79-june!G79 -> 0 | W79: =H79-june!H79 -> 0 | Y79: 0 | Z79: 70 | AC79: =AA79-june!G79 -> 0 | AD79: =AB79-june!H79 -> 0
A80: 71 | B80: DANVERS | C80: 71 | E80: 0 | F80: 0 | G80: 42.83 | H80: 223719 | J80: 0 | K80: 0 | M80: 0 | N80: 223719 | P80: 71 | R80: 6 | T80: =E80-june!E80 -> 0 | U80: =F80-june!F80 -> 0 | V80: =G80-june!G80 -> -12.27 | W80: =H80-june!H80 -> -79756 | Y80: 0 | Z80: 71 | AA80: 39.29 | AB80: 200001 | AC80: =AA80-june!G80 -> -15.81 | AD80: =AB80-june!H80 -> -103474
A81: 72 | B81: DARTMOUTH | C81: 72 | E81: 0 | F81: 0 | G81: 3.6 | H81: 22420 | J81: 0 | K81: 0 | M81: 0 | N81: 22420 | P81: 72 | Q81: 1 | R81: 3 | T81: =E81-june!E81 -> 0 | U81: =F81-june!F81 -> 0 | V81: =G81-june!G81 -> -1.87 | W81: =H81-june!H81 -> -12644 | Y81: 0 | Z81: 72 | AA81: 1 | AB81: 5000 | AC81: =AA81-june!G81 -> -4.47 | AD81: =AB81-june!H81 -> -30064
A82: 73 | B82: DEDHAM | C82: 73 | E82: 0 | F82: 0 | G82: 1.42 | H82: 9514 | J82: 0 | K82: 0 | M82: 0 | N82: 9514 | P82: 73 | Q82: 1 | R82: 1 | T82: =E82-june!E82 -> 0 | U82: =F82-june!F82 -> 0 | V82: =G82-june!G82 -> -1.75 | W82: =H82-june!H82 -> -8339 | Y82: 0 | Z82: 73 | AC82: =AA82-june!G82 -> -3.17 | AD82: =AB82-june!H82 -> -17853
A83: 74 | B83: DEERFIELD | C83: 74 | E83: 100.67 | F83: 711861 | G83: 19.62 | H83: 114130 | J83: 0 | K83: 0 | M83: 711861 | N83: 114130 | P83: 74 | Q83: 2 | R83: 1 | T83: =E83-june!E83 -> 10.88 | U83: =F83-june!F83 -> 64237 | V83: =G83-june!G83 -> -2.79 | W83: =H83-june!H83 -> -13809 | Y83: 0 | Z83: 74 | AA83: 17.37 | AB83: 99055 | AC83: =AA83-june!G83 -> -5.04 | AD83: =AB83-june!H83 -> -28884
A84: 75 | B84: DENNIS | C84: 75 | E84: 0 | F84: 0 | G84: 0 | H84: 0 | J84: 0 | K84: 0 | M84: 0 | N84: 0 | P84: 75 | T84: =E84-june!E84 -> 0 | U84: =F84-june!F84 -> 0 | V84: =G84-june!G84 -> 0 | W84: =H84-june!H84 -> 0 | Y84: 0 | Z84: 75 | AC84: =AA84-june!G84 -> 0 | AD84: =AB84-june!H84 -> 0
A85: 76 | B85: DIGHTON | C85: 76 | E85: 0 | F85: 0 | G85: 0 | H85: 0 | J85: 0 | K85: 0 | M85: 0 | N85: 0 | P85: 76 | T85: =E85-june!E85 -> 0 | U85: =F85-june!F85 -> 0 | V85: =G85-june!G85 -> 0 | W85: =H85-june!H85 -> 0 | Y85: 0 | Z85: 76 | AC85: =AA85-june!G85 -> 0 | AD85: =AB85-june!H85 -> 0
A86: 77 | B86: DOUGLAS | C86: 77 | E86: 121.81 | F86: 677565 | G86: 47.39 | H86: 265630 | J86: 0 | K86: 0 | M86: 677565 | N86: 265630 | P86: 77 | Q86: 3 | R86: 2 | T86: =E86-june!E86 -> 5.2 | U86: =F86-june!F86 -> 21277 | V86: =G86-june!G86 -> 0.27 | W86: =H86-june!H86 -> -11623 | Y86: 0 | Z86: 77 | AA86: 43.72 | AB86: 241041 | AC86: =AA86-june!G86 -> -3.4 | AD86: =AB86-june!H86 -> -36212
A87: 78 | B87: DOVER | C87: 78 | E87: 0 | F87: 0 | G87: 1.42 | H87: 9514 | J87: 0 | K87: 0 | M87: 0 | N87: 9514 | P87: 78 | Q87: 1 | R87: 1 | T87: =E87-june!E87 -> 0 | U87: =F87-june!F87 -> 0 | V87: =G87-june!G87 -> 1.42 | W87: =H87-june!H87 -> 9514 | Y87: 0 | Z87: 78 | AC87: =AA87-june!G87 -> 0 | AD87: =AB87-june!H87 -> 0
A88: 79 | B88: DRACUT | C88: 79 | E88: 26.94 | F88: 140340 | G88: 19.6 | H88: 108837 | J88: 0 | K88: 0 | M88: 140340 | N88: 108837 | P88: 79 | Q88: 1 | R88: 3 | T88: =E88-june!E88 -> -8.91 | U88: =F88-june!F88 -> -61030 | V88: =G88-june!G88 -> -6.01 | W88: =H88-june!H88 -> -60658 | Y88: 0 | Z88: 79 | AA88: 17 | AB88: 91417 | AC88: =AA88-june!G88 -> -8.61 | AD88: =AB88-june!H88 -> -78078
A89: 80 | B89: DUDLEY | C89: 80 | E89: 0 | F89: 0 | G89: 0 | H89: 0 | J89: 0 | K89: 0 | M89: 0 | N89: 0 | P89: 80 | T89: =E89-june!E89 -> 0 | U89: =F89-june!F89 -> 0 | V89: =G89-june!G89 -> 0 | W89: =H89-june!H89 -> 0 | Y89: 0 | Z89: 80 | AC89: =AA89-june!G89 -> 0 | AD89: =AB89-june!H89 -> 0
A90: 81 | B90: DUNSTABLE | C90: 81 | E90: 0 | F90: 0 | G90: 0 | H90: 0 | J90: 0 | K90: 0 | M90: 0 | N90: 0 | P90: 81 | T90: =E90-june!E90 -> 0 | U90: =F90-june!F90 -> 0 | V90: =G90-june!G90 -> 0 | W90: =H90-june!H90 -> 0 | Y90: 0 | Z90: 81 | AC90: =AA90-june!G90 -> 0 | AD90: =AB90-june!H90 -> 0
A91: 82 | B91: DUXBURY | C91: 82 | E91: 0 | F91: 0 | G91: 1.18 | H91: 7906 | J91: 0 | K91: 0 | M91: 0 | N91: 7906 | P91: 82 | R91: 2 | T91: =E91-june!E91 -> 0 | U91: =F91-june!F91 -> 0 | V91: =G91-june!G91 -> -0.59 | W91: =H91-june!H91 -> -4571 | Y91: 0 | Z91: 82 | AC91: =AA91-june!G91 -> -1.77 | AD91: =AB91-june!H91 -> -12477
A92: 83 | B92: EAST BRIDGEWATER | C92: 83 | E92: 14.69 | F92: 73450 | G92: 22.44 | H92: 167141 | J92: 0 | K92: 0 | M92: 73450 | N92: 167141 | P92: 83 | Q92: 3 | R92: 2 | T92: =E92-june!E92 -> -11.32 | U92: =F92-june!F92 -> -56600 | V92: =G92-june!G92 -> 2.76 | W92: =H92-june!H92 -> 14364 | Y92: 0 | Z92: 83 | AA92: 18.77 | AB92: 142552 | AC92: =AA92-june!G92 -> -0.91 | AD92: =AB92-june!H92 -> -10225
A93: 84 | B93: EAST BROOKFIELD | C93: 84 | E93: 0 | F93: 0 | G93: 6 | H93: 30000 | J93: 0 | K93: 0 | M93: 0 | N93: 30000 | P93: 84 | T93: =E93-june!E93 -> 0 | U93: =F93-june!F93 -> 0 | V93: =G93-june!G93 -> 1 | W93: =H93-june!H93 -> 5000 | Y93: 0 | Z93: 84 | AA93: 6 | AB93: 30000 | AC93: =AA93-june!G93 -> 1 | AD93: =AB93-june!H93 -> 5000
A94: 85 | B94: EASTHAM | C94: 86 | E94: 0 | F94: 0 | G94: 6.14 | H94: 36124 | J94: 0 | K94: 0 | M94: 0 | N94: 36124 | P94: 85 | T94: =E94-june!E94 -> 0 | U94: =F94-june!F94 -> 0 | V94: =G94-june!G94 -> -1.77 | W94: =H94-june!H94 -> -10155 | Y94: 0 | Z94: 85 | AA94: 6.14 | AB94: 36124 | AC94: =AA94-june!G94 -> -1.77 | AD94: =AB94-june!H94 -> -10155
A95: 86 | B95: EASTHAMPTON | C95: 87 | E95: 84.16 | F95: 429763 | G95: 189.24 | H95: 1291064 | J95: 0 | K95: 0 | M95: 429763 | N95: 1291064 | P95: 86 | Q95: 3 | R95: 2 | T95: =E95-june!E95 -> -1.94 | U95: =F95-june!F95 -> -61001 | V95: =G95-june!G95 -> 14.26 | W95: =H95-june!H95 -> 107888 | Y95: 0 | Z95: 86 | AA95: 185.57 | AB95: 1266475 | AC95: =AA95-june!G95 -> 10.59 | AD95: =AB95-june!H95 -> 83299
A96: 87 | B96: EAST LONGMEADOW | C96: 85 | E96: 0 | F96: 0 | G96: 6.01 | H96: 33467 | J96: 0 | K96: 0 | M96: 0 | N96: 33467 | P96: 87 | Q96: 1 | R96: 2 | T96: =E96-june!E96 -> 0 | U96: =F96-june!F96 -> 0 | V96: =G96-june!G96 -> -3.96 | W96: =H96-june!H96 -> -58058 | Y96: 0 | Z96: 87 | AA96: 4 | AB96: 20000 | AC96: =AA96-june!G96 -> -5.97 | AD96: =AB96-june!H96 -> -71525
A97: 88 | B97: EASTON | C97: 88 | E97: 0 | F97: 0 | G97: 4.9 | H97: 26914 | J97: 0 | K97: 0 | M97: 0 | N97: 26914 | P97: 88 | Q97: 1 | R97: 1 | T97: =E97-june!E97 -> 0 | U97: =F97-june!F97 -> 0 | V97: =G97-june!G97 -> -3.74 | W97: =H97-june!H97 -> -26869 | Y97: 0 | Z97: 88 | AA97: 3.48 | AB97: 17400 | AC97: =AA97-june!G97 -> -5.16 | AD97: =AB97-june!H97 -> -36383
A98: 89 | B98: EDGARTOWN | C98: 89 | E98: 12.64 | F98: 74997 | G98: 32.45 | H98: 180161 | J98: 0 | K98: 0 | M98: 74997 | N98: 180161 | P98: 89 | T98: =E98-june!E98 -> 4.64 | U98: =F98-june!F98 -> 11185 | V98: =G98-june!G98 -> -0.55 | W98: =H98-june!H98 -> -9103 | Y98: 0 | Z98: 89 | AA98: 32.45 | AB98: 180161 | AC98: =AA98-june!G98 -> -0.55 | AD98: =AB98-june!H98 -> -9103
A99: 90 | B99: EGREMONT | C99: 90 | E99: 0 | F99: 0 | G99: 0 | H99: 0 | J99: 0 | K99: 0 | M99: 0 | N99: 0 | P99: 90 | T99: =E99-june!E99 -> 0 | U99: =F99-june!F99 -> 0 | V99: =G99-june!G99 -> 0 | W99: =H99-june!H99 -> 0 | Y99: 0 | Z99: 90 | AC99: =AA99-june!G99 -> 0 | AD99: =AB99-june!H99 -> 0
A100: 91 | B100: ERVING | C100: 91 | E100: 0 | F100: 0 | G100: 40.84 | H100: 289481 | J100: 0 | K100: 0 | M100: 0 | N100: 289481 | P100: 91 | Q100: 1 | T100: =E100-june!E100 -> 0 | U100: =F100-june!F100 -> 0 | V100: =G100-june!G100 -> 5.68 | W100: =H100-june!H100 -> 97683 | Y100: 0 | Z100: 91 | AA100: 40.01 | AB100: 283920 | AC100: =AA100-june!G100 -> 4.85 | AD100: =AB100-june!H100 -> 92122
A101: 92 | B101: ESSEX | C101: 92 | E101: 0 | F101: 0 | G101: 0 | H101: 0 | J101: 0 | K101: 0 | M101: 0 | N101: 0 | P101: 92 | T101: =E101-june!E101 -> 0 | U101: =F101-june!F101 -> 0 | V101: =G101-june!G101 -> 0 | W101: =H101-june!H101 -> 0 | Y101: 0 | Z101: 92 | AC101: =AA101-june!G101 -> 0 | AD101: =AB101-june!H101 -> 0
A102: 93 | B102: EVERETT | C102: 93 | E102: 0 | F102: 0 | G102: 15.81 | H102: 93873 | J102: 0 | K102: 0 | M102: 0 | N102: 93873 | P102: 93 | R102: 5 | T102: =E102-june!E102 -> 0 | U102: =F102-june!F102 -> 0 | V102: =G102-june!G102 -> -0.41 | W102: =H102-june!H102 -> -5603 | Y102: 0 | Z102: 93 | AA102: 12.86 | AB102: 74108 | AC102: =AA102-june!G102 -> -3.36 | AD102: =AB102-june!H102 -> -25368
A103: 94 | B103: FAIRHAVEN | C103: 94 | E103: 0 | F103: 0 | G103: 12.78 | H103: 75861 | J103: 0 | K103: 0 | M103: 0 | N103: 75861 | P103: 94 | R103: 5 | T103: =E103-june!E103 -> 0 | U103: =F103-june!F103 -> 0 | V103: =G103-june!G103 -> -0.57 | W103: =H103-june!H103 -> -272 | Y103: 0 | Z103: 94 | AA103: 9.83 | AB103: 56096 | AC103: =AA103-june!G103 -> -3.52 | AD103: =AB103-june!H103 -> -20037
A104: 95 | B104: FALL RIVER | C104: 95 | E104: 16.41 | F104: 82050 | G104: 67.86 | H104: 394695 | J104: 0 | K104: 0 | M104: 82050 | N104: 394695 | P104: 95 | Q104: 7 | R104: 11 | T104: =E104-june!E104 -> -9.94 | U104: =F104-june!F104 -> -49700 | V104: =G104-june!G104 -> -34.48 | W104: =H104-june!H104 -> -212989 | Y104: 0 | Z104: 95 | AA104: 55.56 | AB104: 312285 | AC104: =AA104-june!G104 -> -46.78 | AD104: =AB104-june!H104 -> -295399
A105: 96 | B105: FALMOUTH | C105: 96 | E105: 91.45 | F105: 581601 | G105: 46.58 | H105: 261955 | J105: 0 | K105: 0 | M105: 581601 | N105: 261955 | P105: 96 | R105: 3 | T105: =E105-june!E105 -> -20.7 | U105: =F105-june!F105 -> -80748 | V105: =G105-june!G105 -> 6.39 | W105: =H105-june!H105 -> 22606 | Y105: 0 | Z105: 96 | AA105: 44.81 | AB105: 250096 | AC105: =AA105-june!G105 -> 4.62 | AD105: =AB105-june!H105 -> 10747
A106: 97 | B106: FITCHBURG | C106: 97 | E106: 180.12 | F106: 1048411 | G106: 419.85 | H106: 2451589 | J106: 0 | K106: 0 | M106: 1048411 | N106: 2451589 | P106: 97 | Q106: 4 | R106: 12 | T106: =E106-june!E106 -> 4.37 | U106: =F106-june!F106 -> 33853 | V106: =G106-june!G106 -> -10.76 | W106: =H106-june!H106 -> 863 | Y106: 0 | Z106: 97 | AA106: 409.45 | AB106: 2381909 | AC106: =AA106-june!G106 -> -21.16 | AD106: =AB106-june!H106 -> -68817
A107: 98 | B107: FLORIDA | C107: 98 | E107: 2 | F107: 11708 | G107: 4 | H107: 20000 | J107: 0 | K107: 0 | M107: 11708 | N107: 20000 | P107: 98 | T107: =E107-june!E107 -> -1.42 | U107: =F107-june!F107 -> -7798 | V107: =G107-june!G107 -> -3 | W107: =H107-june!H107 -> -19198 | Y107: 0 | Z107: 98 | AA107: 4 | AB107: 20000 | AC107: =AA107-june!G107 -> -3 | AD107: =AB107-june!H107 -> -19198
A108: 99 | B108: FOXBOROUGH | C108: 99 | E108: 0 | F108: 0 | G108: 0.59 | H108: 3953 | J108: 0 | K108: 0 | M108: 0 | N108: 3953 | P108: 99 | R108: 1 | T108: =E108-june!E108 -> 0 | U108: =F108-june!F108 -> 0 | V108: =G108-june!G108 -> -4.11 | W108: =H108-june!H108 -> -24436 | Y108: 0 | Z108: 99 | AC108: =AA108-june!G108 -> -4.7 | AD108: =AB108-june!H108 -> -28389
A109: 100 | B109: FRAMINGHAM | C109: 100 | E109: 0 | F109: 0 | G109: 52.2 | H109: 312643 | J109: 0 | K109: 0 | M109: 0 | N109: 312643 | P109: 100 | R109: 19 | T109: =E109-june!E109 -> 0 | U109: =F109-june!F109 -> 0 | V109: =G109-june!G109 -> -2.49 | W109: =H109-june!H109 -> -15245 | Y109: 0 | Z109: 100 | AA109: 40.99 | AB109: 237536 | AC109: =AA109-june!G109 -> -13.7 | AD109: =AB109-june!H109 -> -90352
A110: 101 | B110: FRANKLIN | C110: 101 | E110: 10 | F110: 50468 | G110: 26.06 | H110: 141344 | J110: 0 | K110: 10000 | M110: 50468 | N110: 151344 | P110: 101 | R110: 8 | T110: =E110-june!E110 -> 3 | U110: =F110-june!F110 -> 10451 | V110: =G110-june!G110 -> -8.23 | W110: =H110-june!H110 -> -67321 | Y110: 0 | Z110: 101 | AA110: 21.34 | AB110: 109720 | AC110: =AA110-june!G110 -> -12.95 | AD110: =AB110-june!H110 -> -98945
A111: 102 | B111: FREETOWN | C111: 102 | E111: 0 | F111: 0 | G111: 0 | H111: 0 | J111: 0 | K111: 0 | M111: 0 | N111: 0 | P111: 102 | T111: =E111-june!E111 -> 0 | U111: =F111-june!F111 -> 0 | V111: =G111-june!G111 -> -2 | W111: =H111-june!H111 -> -10000 | Y111: 0 | Z111: 102 | AC111: =AA111-june!G111 -> -2 | AD111: =AB111-june!H111 -> -10000
A112: 103 | B112: GARDNER | C112: 103 | E112: 140.23 | F112: 773133 | G112: 188.07 | H112: 1002576 | J112: 0 | K112: 0 | M112: 773133 | N112: 1002576 | P112: 103 | Q112: 7 | R112: 4 | T112: =E112-june!E112 -> 18.25 | U112: =F112-june!F112 -> 91184 | V112: =G112-june!G112 -> -64.33 | W112: =H112-june!H112 -> -431869 | Y112: 0 | Z112: 103 | AA112: 179.9 | AB112: 947837 | AC112: =AA112-june!G112 -> -72.5 | AD112: =AB112-june!H112 -> -486608
A113: 104 | B113: GAY HEAD | C113: 104 | E113: 0 | F113: 0 | G113: 0 | H113: 0 | J113: 0 | K113: 0 | M113: 0 | N113: 0 | P113: 104 | T113: =E113-june!E113 -> 0 | U113: =F113-june!F113 -> 0 | V113: =G113-june!G113 -> 0 | W113: =H113-june!H113 -> 0 | Y113: 0 | Z113: 104 | AC113: =AA113-june!G113 -> 0 | AD113: =AB113-june!H113 -> 0
A114: 105 | B114: GEORGETOWN | C114: 105 | E114: 38 | F114: 196130 | G114: 22.77 | H114: 197267 | J114: 0 | K114: 0 | M114: 196130 | N114: 197267 | P114: 105 | R114: 3 | T114: =E114-june!E114 -> -2 | U114: =F114-june!F114 -> -7693 | V114: =G114-june!G114 -> -1.1 | W114: =H114-june!H114 -> 7069 | Y114: 0 | Z114: 105 | AA114: 21 | AB114: 185408 | AC114: =AA114-june!G114 -> -2.87 | AD114: =AB114-june!H114 -> -4790
A115: 106 | B115: GILL | C115: 106 | E115: 0 | F115: 0 | G115: 0 | H115: 0 | J115: 0 | K115: 0 | M115: 0 | N115: 0 | P115: 106 | T115: =E115-june!E115 -> 0 | U115: =F115-june!F115 -> 0 | V115: =G115-june!G115 -> 0 | W115: =H115-june!H115 -> 0 | Y115: 0 | Z115: 106 | AC115: =AA115-june!G115 -> 0 | AD115: =AB115-june!H115 -> 0
A116: 107 | B116: GLOUCESTER | C116: 107 | E116: 39.2 | F116: 214791 | G116: 303.86 | H116: 1651567 | J116: 0 | K116: 0 | M116: 214791 | N116: 1651567 | P116: 107 | Q116: 1 | R116: 3 | T116: =E116-june!E116 -> 0.66 | U116: =F116-june!F116 -> 12916 | V116: =G116-june!G116 -> -8.28 | W116: =H116-june!H116 -> -222109 | Y116: 0 | Z116: 107 | AA116: 301.26 | AB116: 1634147 | AC116: =AA116-june!G116 -> -10.88 | AD116: =AB116-june!H116 -> -239529
A117: 108 | B117: GOSHEN | C117: 108 | E117: 0 | F117: 0 | G117: 0 | H117: 0 | J117: 0 | K117: 0 | M117: 0 | N117: 0 | P117: 108 | T117: =E117-june!E117 -> 0 | U117: =F117-june!F117 -> 0 | V117: =G117-june!G117 -> 0 | W117: =H117-june!H117 -> 0 | Y117: 0 | Z117: 108 | AC117: =AA117-june!G117 -> 0 | AD117: =AB117-june!H117 -> 0
A118: 109 | B118: GOSNOLD | C118: 109 | E118: 0 | F118: 0 | G118: 0 | H118: 0 | J118: 0 | K118: 0 | M118: 0 | N118: 0 | P118: 109 | T118: =E118-june!E118 -> 0 | U118: =F118-june!F118 -> 0 | V118: =G118-june!G118 -> 0 | W118: =H118-june!H118 -> 0 | Y118: 0 | Z118: 109 | AC118: =AA118-june!G118 -> 0 | AD118: =AB118-june!H118 -> 0
A119: 110 | B119: GRAFTON | C119: 110 | E119: 31.53 | F119: 191757 | G119: 25.52 | H119: 143393 | J119: 0 | K119: 0 | M119: 191757 | N119: 143393 | P119: 110 | Q119: 1 | R119: 5 | T119: =E119-june!E119 -> -11.03 | U119: =F119-june!F119 -> -94423 | V119: =G119-june!G119 -> -11.58 | W119: =H119-june!H119 -> -65901 | Y119: 0 | Z119: 110 | AA119: 21.74 | AB119: 118067 | AC119: =AA119-june!G119 -> -15.36 | AD119: =AB119-june!H119 -> -91227
A120: 111 | B120: GRANBY | C120: 111 | E120: 132.75 | F120: 750306 | G120: 48.22 | H120: 286171 | J120: 0 | K120: 0 | M120: 750306 | N120: 286171 | P120: 111 | R120: 1 | T120: =E120-june!E120 -> 15.66 | U120: =F120-june!F120 -> 87493 | V120: =G120-june!G120 -> -3.87 | W120: =H120-june!H120 -> -24688 | Y120: 0 | Z120: 111 | AA120: 47.63 | AB120: 282218 | AC120: =AA120-june!G120 -> -4.46 | AD120: =AB120-june!H120 -> -28641
A121: 112 | B121: GRANVILLE | C121: 112 | E121: 0 | F121: 0 | G121: 0 | H121: 0 | J121: 0 | K121: 0 | M121: 0 | N121: 0 | P121: 112 | T121: =E121-june!E121 -> 0 | U121: =F121-june!F121 -> 0 | V121: =G121-june!G121 -> 0 | W121: =H121-june!H121 -> 0 | Y121: 0 | Z121: 112 | AC121: =AA121-june!G121 -> 0 | AD121: =AB121-june!H121 -> 0
A122: 113 | B122: GREAT BARRINGTON | C122: 113 | E122: 0 | F122: 0 | G122: 0 | H122: 0 | J122: 0 | K122: 0 | M122: 0 | N122: 0 | P122: 113 | T122: =E122-june!E122 -> 0 | U122: =F122-june!F122 -> 0 | V122: =G122-june!G122 -> 0 | W122: =H122-june!H122 -> 0 | Y122: 0 | Z122: 113 | AC122: =AA122-june!G122 -> 0 | AD122: =AB122-june!H122 -> 0
A123: 114 | B123: GREENFIELD | C123: 114 | E123: 92.59 | F123: 578152 | G123: 326.22 | H123: 2309748 | J123: 0 | K123: 0 | M123: 578152 | N123: 2309748 | P123: 114 | Q123: 13 | R123: 3 | T123: =E123-june!E123 -> -23.96 | U123: =F123-june!F123 -> -132783 | V123: =G123-june!G123 -> 3.06 | W123: =H123-june!H123 -> -193701 | Y123: 0 | Z123: 114 | AA123: 313.66 | AB123: 2225596 | AC123: =AA123-june!G123 -> -9.5 | AD123: =AB123-june!H123 -> -277853
A124: 115 | B124: GROTON | C124: 115 | E124: 0 | F124: 0 | G124: 0 | H124: 0 | J124: 0 | K124: 0 | M124: 0 | N124: 0 | P124: 115 | T124: =E124-june!E124 -> 0 | U124: =F124-june!F124 -> 0 | V124: =G124-june!G124 -> 0 | W124: =H124-june!H124 -> 0 | Y124: 0 | Z124: 115 | AC124: =AA124-june!G124 -> 0 | AD124: =AB124-june!H124 -> 0
A125: 116 | B125: GROVELAND | C125: 116 | E125: 0 | F125: 0 | G125: 0 | H125: 0 | J125: 0 | K125: 0 | M125: 0 | N125: 0 | P125: 116 | T125: =E125-june!E125 -> 0 | U125: =F125-june!F125 -> 0 | V125: =G125-june!G125 -> 0 | W125: =H125-june!H125 -> 0 | Y125: 0 | Z125: 116 | AC125: =AA125-june!G125 -> 0 | AD125: =AB125-june!H125 -> 0
A126: 117 | B126: HADLEY | C126: 117 | E126: 102.43 | F126: 589766 | G126: 57.59 | H126: 385346 | J126: 0 | K126: 0 | M126: 589766 | N126: 385346 | P126: 117 | R126: 4 | T126: =E126-june!E126 -> 3.96 | U126: =F126-june!F126 -> -32913 | V126: =G126-june!G126 -> 10.11 | W126: =H126-june!H126 -> 82369 | Y126: 0 | Z126: 117 | AA126: 55.23 | AB126: 369534 | AC126: =AA126-june!G126 -> 7.75 | AD126: =AB126-june!H126 -> 66557
A127: 118 | B127: HALIFAX | C127: 118 | E127: 0 | F127: 0 | G127: 1 | H127: 5000 | J127: 0 | K127: 0 | M127: 0 | N127: 5000 | P127: 118 | T127: =E127-june!E127 -> 0 | U127: =F127-june!F127 -> 0 | V127: =G127-june!G127 -> 0 | W127: =H127-june!H127 -> 0 | Y127: 0 | Z127: 118 | AA127: 1 | AB127: 5000 | AC127: =AA127-june!G127 -> 0 | AD127: =AB127-june!H127 -> 0
A128: 119 | B128: HAMILTON | C128: 119 | E128: 0 | F128: 0 | G128: 0 | H128: 0 | J128: 0 | K128: 0 | M128: 0 | N128: 0 | P128: 119 | T128: =E128-june!E128 -> 0 | U128: =F128-june!F128 -> 0 | V128: =G128-june!G128 -> 0 | W128: =H128-june!H128 -> 0 | Y128: 0 | Z128: 119 | AC128: =AA128-june!G128 -> 0 | AD128: =AB128-june!H128 -> 0
A129: 120 | B129: HAMPDEN | C129: 120 | E129: 0 | F129: 0 | G129: 0 | H129: 0 | J129: 0 | K129: 0 | M129: 0 | N129: 0 | P129: 120 | T129: =E129-june!E129 -> 0 | U129: =F129-june!F129 -> 0 | V129: =G129-june!G129 -> 0 | W129: =H129-june!H129 -> 0 | Y129: 0 | Z129: 120 | AC129: =AA129-june!G129 -> 0 | AD129: =AB129-june!H129 -> 0
A130: 121 | B130: HANCOCK | C130: 121 | E130: 3 | F130: 15000 | G130: 11 | H130: 55000 | J130: 0 | K130: 0 | M130: 15000 | N130: 55000 | P130: 121 | T130: =E130-june!E130 -> -2 | U130: =F130-june!F130 -> -13564 | V130: =G130-june!G130 -> 6.31 | W130: =H130-june!H130 -> 31550 | Y130: 0 | Z130: 121 | AA130: 11 | AB130: 55000 | AC130: =AA130-june!G130 -> 6.31 | AD130: =AB130-june!H130 -> 31550
A131: 122 | B131: HANOVER | C131: 122 | E131: 0 | F131: 0 | G131: 0 | H131: 0 | J131: 0 | K131: 0 | M131: 0 | N131: 0 | P131: 122 | T131: =E131-june!E131 -> 0 | U131: =F131-june!F131 -> 0 | V131: =G131-june!G131 -> -2.74 | W131: =H131-june!H131 -> -13700 | Y131: 0 | Z131: 122 | AC131: =AA131-june!G131 -> -2.74 | AD131: =AB131-june!H131 -> -13700
A132: 123 | B132: HANSON | C132: 123 | E132: 0 | F132: 0 | G132: 0 | H132: 0 | J132: 0 | K132: 0 | M132: 0 | N132: 0 | P132: 123 | T132: =E132-june!E132 -> 0 | U132: =F132-june!F132 -> 0 | V132: =G132-june!G132 -> 0 | W132: =H132-june!H132 -> 0 | Y132: 0 | Z132: 123 | AC132: =AA132-june!G132 -> 0 | AD132: =AB132-june!H132 -> 0
A133: 124 | B133: HARDWICK | C133: 124 | E133: 0 | F133: 0 | G133: 0 | H133: 0 | J133: 0 | K133: 0 | M133: 0 | N133: 0 | P133: 124 | T133: =E133-june!E133 -> 0 | U133: =F133-june!F133 -> 0 | V133: =G133-june!G133 -> 0 | W133: =H133-june!H133 -> 0 | Y133: 0 | Z133: 124 | AC133: =AA133-june!G133 -> 0 | AD133: =AB133-june!H133 -> 0
A134: 125 | B134: HARVARD | C134: 125 | E134: 70 | F134: 368354 | G134: 5 | H134: 31314 | J134: 0 | K134: 0 | M134: 368354 | N134: 31314 | P134: 125 | T134: =E134-june!E134 -> 2.62 | U134: =F134-june!F134 -> 12462 | V134: =G134-june!G134 -> 2 | W134: =H134-june!H134 -> 16314 | Y134: 0 | Z134: 125 | AA134: 5 | AB134: 31314 | AC134: =AA134-june!G134 -> 2 | AD134: =AB134-june!H134 -> 16314
A135: 126 | B135: HARWICH | C135: 126 | E135: 0 | F135: 0 | G135: 1.18 | H135: 7906 | J135: 0 | K135: 0 | M135: 0 | N135: 7906 | P135: 126 | R135: 2 | T135: =E135-june!E135 -> 0 | U135: =F135-june!F135 -> 0 | V135: =G135-june!G135 -> 1.18 | W135: =H135-june!H135 -> 7906 | Y135: 0 | Z135: 126 | AC135: =AA135-june!G135 -> 0 | AD135: =AB135-june!H135 -> 0
A136: 127 | B136: HATFIELD | C136: 127 | E136: 124 | F136: 838623 | G136: 28.3 | H136: 202217 | J136: 0 | K136: 0 | M136: 838623 | N136: 202217 | P136: 127 | Q136: 6 | T136: =E136-june!E136 -> -6.8 | U136: =F136-june!F136 -> -80568 | V136: =G136-june!G136 -> -2.48 | W136: =H136-june!H136 -> 7303 | Y136: 0 | Z136: 127 | AA136: 23.32 | AB136: 168851 | AC136: =AA136-june!G136 -> -7.46 | AD136: =AB136-june!H136 -> -26063
A137: 128 | B137: HAVERHILL | C137: 128 | E137: 42.49 | F137: 247501 | G137: 211.74 | H137: 1190061 | J137: 0 | K137: 0 | M137: 247501 | N137: 1190061 | P137: 128 | Q137: 3 | R137: 16 | T137: =E137-june!E137 -> 5.89 | U137: =F137-june!F137 -> 40726 | V137: =G137-june!G137 -> 21.92 | W137: =H137-june!H137 -> 105922 | Y137: 0 | Z137: 128 | AA137: 199.81 | AB137: 1110130 | AC137: =AA137-june!G137 -> 9.99 | AD137: =AB137-june!H137 -> 25991
A138: 129 | B138: HAWLEY | C138: 129 | E138: 0 | F138: 0 | G138: 0 | H138: 0 | J138: 0 | K138: 0 | M138: 0 | N138: 0 | P138: 129 | T138: =E138-june!E138 -> 0 | U138: =F138-june!F138 -> 0 | V138: =G138-june!G138 -> 0 | W138: =H138-june!H138 -> 0 | Y138: =Z138-A138 -> 0 | Z138: 129 | AC138: =AA138-june!G138 -> 0 | AD138: =AB138-june!H138 -> 0
A139: 130 | B139: HEATH | C139: 130 | E139: 0 | F139: 0 | G139: =AA139+(0.83*Q139)+0.59*R139 -> 0 | H139: =AB139+(0.83*Q139)*6700+0.59*R139*6700 -> 0 | J139: 0 | K139: 0 | M139: =F139+J139 -> 0 | N139: =H139+K139 -> 0 | P139: 130 | T139: =E139-june!E139 -> 0 | U139: =F139-june!F139 -> 0 | V139: =G139-june!G139 -> 0 | W139: =H139-june!H139 -> 0 | Y139: 0 | Z139: 130 | AC139: =AA139-june!G139 -> 0 | AD139: =AB139-june!H139 -> 0
A140: 131 | B140: HINGHAM | C140: 131 | E140: 0 | F140: 0 | G140: 0 | H140: 0 | J140: 0 | K140: 0 | M140: 0 | N140: 0 | P140: 131 | T140: =E140-june!E140 -> 0 | U140: =F140-june!F140 -> 0 | V140: =G140-june!G140 -> -3.48 | W140: =H140-june!H140 -> -24172 | Y140: 0 | Z140: 131 | AC140: =AA140-june!G140 -> -3.48 | AD140: =AB140-june!H140 -> -24172
A141: 132 | B141: HINSDALE | C141: 132 | E141: 0 | F141: 0 | G141: 0 | H141: 0 | J141: 0 | K141: 0 | M141: 0 | N141: 0 | P141: 132 | T141: =E141-june!E141 -> 0 | U141: =F141-june!F141 -> 0 | V141: =G141-june!G141 -> 0 | W141: =H141-june!H141 -> 0 | Y141: 0 | Z141: 132 | AC141: =AA141-june!G141 -> 0 | AD141: =AB141-june!H141 -> 0
A142: 133 | B142: HOLBROOK | C142: 133 | E142: 57.48 | F142: 305871 | G142: 14.07 | H142: 76997 | J142: 0 | K142: 0 | M142: 305871 | N142: 76997 | P142: 133 | Q142: 4 | R142: 1 | T142: =E142-june!E142 -> -0.39 | U142: =F142-june!F142 -> -10225 | V142: =G142-june!G142 -> -3.43 | W142: =H142-june!H142 -> -43807 | Y142: 0 | Z142: 133 | AA142: 10.16 | AB142: 50800 | AC142: =AA142-june!G142 -> -7.34 | AD142: =AB142-june!H142 -> -70004
A143: 134 | B143: HOLDEN | C143: 134 | E143: 0 | F143: 0 | G143: 0 | H143: 0 | J143: 0 | K143: 0 | M143: 0 | N143: 0 | P143: 134 | T143: =E143-june!E143 -> 0 | U143: =F143-june!F143 -> 0 | V143: =G143-june!G143 -> 0 | W143: =H143-june!H143 -> 0 | Y143: 0 | Z143: 134 | AC143: =AA143-june!G143 -> 0 | AD143: =AB143-june!H143 -> 0
A144: 135 | B144: HOLLAND | C144: 135 | E144: 40.31 | F144: 246248 | G144: 1.59 | H144: 8953 | J144: 0 | K144: 0 | M144: 246248 | N144: 8953 | P144: 135 | R144: 1 | T144: =E144-june!E144 -> -12.62 | U144: =F144-june!F144 -> -53033 | V144: =G144-june!G144 -> -0.93 | W144: =H144-june!H144 -> -4567 | Y144: 0 | Z144: 135 | AA144: 1 | AB144: 5000 | AC144: =AA144-june!G144 -> -1.52 | AD144: =AB144-june!H144 -> -8520
A145: 136 | B145: HOLLISTON | C145: 136 | E145: 158.83 | F145: 1038241 | G145: 7.41 | H145: 49554 | J145: 0 | K145: 0 | M145: 1038241 | N145: 49554 | P145: 136 | R145: 3 | T145: =E145-june!E145 -> 0.37 | U145: =F145-june!F145 -> -39186 | V145: =G145-june!G145 -> -6.92 | W145: =H145-june!H145 -> -34660 | Y145: 0 | Z145: 136 | AA145: 5.64 | AB145: 37695 | AC145: =AA145-june!G145 -> -8.69 | AD145: =AB145-june!H145 -> -46519
A146: 137 | B146: HOLYOKE | C146: 137 | E146: 51.7 | F146: 274673 | G146: 337.2 | H146: 2055893 | J146: 0 | K146: 0 | M146: 274673 | N146: 2055893 | P146: 137 | Q146: 3 | R146: 8 | T146: =E146-june!E146 -> -0.99 | U146: =F146-june!F146 -> -18393 | V146: =G146-june!G146 -> 0.18 | W146: =H146-june!H146 -> -78684 | Y146: 0 | Z146: 137 | AA146: 329.99 | AB146: 2007586 | AC146: =AA146-june!G146 -> -7.03 | AD146: =AB146-june!H146 -> -126991
A147: 138 | B147: HOPEDALE | C147: 138 | E147: 129.58 | F147: 709439 | G147: 48.32 | H147: 290034 | J147: 0 | K147: 0 | M147: 709439 | N147: 290034 | P147: 138 | R147: 3 | T147: =E147-june!E147 -> 6.81 | U147: =F147-june!F147 -> 14905 | V147: =G147-june!G147 -> -0.24 | W147: =H147-june!H147 -> -3769 | Y147: 0 | Z147: 138 | AA147: 46.55 | AB147: 278175 | AC147: =AA147-june!G147 -> -2.01 | AD147: =AB147-june!H147 -> -15628
A148: 139 | B148: HOPKINTON | C148: 139 | E148: 0 | F148: 0 | G148: 16.64 | H148: 88021 | J148: 0 | K148: 0 | M148: 0 | N148: 88021 | P148: 139 | R148: 2 | T148: =E148-june!E148 -> 0 | U148: =F148-june!F148 -> 0 | V148: =G148-june!G148 -> -1.73 | W148: =H148-june!H148 -> -23443 | Y148: 0 | Z148: 139 | AA148: 15.46 | AB148: 80115 | AC148: =AA148-june!G148 -> -2.91 | AD148: =AB148-june!H148 -> -31349
A149: 140 | B149: HUBBARDSTON | C149: 140 | E149: 0 | F149: 0 | G149: 0 | H149: 0 | J149: 0 | K149: 0 | M149: 0 | N149: 0 | P149: 140 | T149: =E149-june!E149 -> 0 | U149: =F149-june!F149 -> 0 | V149: =G149-june!G149 -> 0 | W149: =H149-june!H149 -> 0 | Y149: 0 | Z149: 140 | AC149: =AA149-june!G149 -> 0 | AD149: =AB149-june!H149 -> 0
A150: 141 | B150: HUDSON | C150: 141 | E150: 101.62 | F150: 546944 | G150: 19.65 | H150: 111154 | J150: 0 | K150: 0 | M150: 546944 | N150: 111154 | P150: 141 | R150: 6 | T150: =E150-june!E150 -> 5.48 | U150: =F150-june!F150 -> -70539 | V150: =G150-june!G150 -> -1.61 | W150: =H150-june!H150 -> -29086 | Y150: 0 | Z150: 141 | AA150: 16.11 | AB150: 87436 | AC150: =AA150-june!G150 -> -5.15 | AD150: =AB150-june!H150 -> -52804
A151: 142 | B151: HULL | C151: 142 | E151: 0 | F151: 0 | G151: 3.43 | H151: 22981 | J151: 0 | K151: 0 | M151: 0 | N151: 22981 | P151: 142 | Q151: 2 | R151: 3 | T151: =E151-june!E151 -> 0 | U151: =F151-june!F151 -> 0 | V151: =G151-june!G151 -> -2.57 | W151: =H151-june!H151 -> -19297 | Y151: 0 | Z151: 142 | AC151: =AA151-june!G151 -> -6 | AD151: =AB151-june!H151 -> -42278
A152: 143 | B152: HUNTINGTON | C152: 143 | E152: 0 | F152: 0 | G152: 0 | H152: 0 | J152: 0 | K152: 0 | M152: 0 | N152: 0 | P152: 143 | T152: =E152-june!E152 -> 0 | U152: =F152-june!F152 -> 0 | V152: =G152-june!G152 -> 0 | W152: =H152-june!H152 -> 0 | Y152: 0 | Z152: 143 | AC152: =AA152-june!G152 -> 0 | AD152: =AB152-june!H152 -> 0
A153: 144 | B153: IPSWICH | C153: 144 | E153: 70 | F153: 383036 | G153: 19.43 | H153: 109839 | J153: 0 | K153: 0 | M153: 383036 | N153: 109839 | P153: 144 | R153: 2 | T153: =E153-june!E153 -> 2.03 | U153: =F153-june!F153 -> 15962 | V153: =G153-june!G153 -> 2.77 | W153: =H153-june!H153 -> 14600 | Y153: 0 | Z153: 144 | AA153: 18.25 | AB153: 101933 | AC153: =AA153-june!G153 -> 1.59 | AD153: =AB153-june!H153 -> 6694
A154: 145 | B154: KINGSTON | C154: 145 | E154: 0 | F154: 0 | G154: 0.59 | H154: 3953 | J154: 0 | K154: 0 | M154: 0 | N154: 3953 | P154: 145 | R154: 1 | T154: =E154-june!E154 -> 0 | U154: =F154-june!F154 -> 0 | V154: =G154-june!G154 -> 0.59 | W154: =H154-june!H154 -> 3953 | Y154: 0 | Z154: 145 | AC154: =AA154-june!G154 -> 0 | AD154: =AB154-june!H154 -> 0
A155: 146 | B155: LAKEVILLE | C155: 146 | E155: 0 | F155: 0 | G155: 0 | H155: 0 | J155: 0 | K155: 0 | M155: 0 | N155: 0 | P155: 146 | T155: =E155-june!E155 -> 0 | U155: =F155-june!F155 -> 0 | V155: =G155-june!G155 -> 0 | W155: =H155-june!H155 -> 0 | Y155: 0 | Z155: 146 | AC155: =AA155-june!G155 -> 0 | AD155: =AB155-june!H155 -> 0
A156: 147 | B156: LANCASTER | C156: 147 | E156: 0 | F156: 0 | G156: 0 | H156: 0 | J156: 0 | K156: 0 | M156: 0 | N156: 0 | P156: 147 | T156: =E156-june!E156 -> 0 | U156: =F156-june!F156 -> 0 | V156: =G156-june!G156 -> 0 | W156: =H156-june!H156 -> 0 | Y156: 0 | Z156: 147 | AC156: =AA156-june!G156 -> 0 | AD156: =AB156-june!H156 -> 0
A157: 148 | B157: LANESBOROUGH | C157: 148 | E157: 20 | F157: 120999 | G157: 22.11 | H157: 114496 | J157: 0 | K157: 0 | M157: 120999 | N157: 114496 | P157: 148 | Q157: 1 | T157: =E157-june!E157 -> 1 | U157: =F157-june!F157 -> 11195 | V157: =G157-june!G157 -> -1.98 | W157: =H157-june!H157 -> -17612 | Y157: 0 | Z157: 148 | AA157: 21.28 | AB157: 108935 | AC157: =AA157-june!G157 -> -2.81 | AD157: =AB157-june!H157 -> -23173
A158: 149 | B158: LAWRENCE | C158: 149 | E158: 0 | F158: 0 | G158: 59.06 | H158: 372271 | J158: 0 | K158: 0 | M158: 0 | N158: 372271 | P158: 149 | Q158: 7 | R158: 14 | T158: =E158-june!E158 -> 0 | U158: =F158-june!F158 -> 0 | V158: =G158-june!G158 -> -6.87 | W158: =H158-june!H158 -> -53756 | Y158: 0 | Z158: 149 | AA158: 44.99 | AB158: 278002 | AC158: =AA158-june!G158 -> -20.94 | AD158: =AB158-june!H158 -> -148025
A159: 150 | B159: LEE | C159: 150 | E159: 127.98 | F159: 731075 | G159: 89.25 | H159: 482824 | J159: 0 | K159: 0 | M159: 731075 | N159: 482824 | P159: 150 | Q159: 1 | R159: 1 | T159: =E159-june!E159 -> -0.56 | U159: =F159-june!F159 -> -12379 | V159: =G159-june!G159 -> -9.13 | W159: =H159-june!H159 -> -76559 | Y159: 0 | Z159: 150 | AA159: 87.83 | AB159: 473310 | AC159: =AA159-june!G159 -> -10.55 | AD159: =AB159-june!H159 -> -86073
A160: 151 | B160: LEICESTER | C160: 151 | E160: 92 | F160: 544663 | G160: 31.58 | H160: 162376 | J160: 0 | K160: 0 | M160: 544663 | N160: 162376 | P160: 151 | R160: 1 | T160: =E160-june!E160 -> -11.14 | U160: =F160-june!F160 -> -20218 | V160: =G160-june!G160 -> -3.76 | W160: =H160-june!H160 -> -37414 | Y160: 0 | Z160: 151 | AA160: 30.99 | AB160: 158423 | AC160: =AA160-june!G160 -> -4.35 | AD160: =AB160-june!H160 -> -41367
A161: 152 | B161: LENOX | C161: 152 | E161: 246.79 | F161: 1279101 | G161: 50.23 | H161: 308326 | J161: 0 | K161: -1050 | M161: 1279101 | N161: 307276 | P161: 152 | R161: 1 | T161: =E161-june!E161 -> -6.37 | U161: =F161-june!F161 -> -31093 | V161: =G161-june!G161 -> 3.21 | W161: =H161-june!H161 -> 41967 | Y161: 0 | Z161: 152 | AA161: 49.64 | AB161: 304373 | AC161: =AA161-june!G161 -> 2.62 | AD161: =AB161-june!H161 -> 38014
A162: 153 | B162: LEOMINSTER | C162: 153 | E162: 246.88 | F162: 1401012 | G162: 324.63 | H162: 1875141 | J162: 0 | K162: 0 | M162: 1401012 | N162: 1875141 | P162: 153 | Q162: 2 | R162: 8 | T162: =E162-june!E162 -> 0.72 | U162: =F162-june!F162 -> 50516 | V162: =G162-june!G162 -> 0.93 | W162: =H162-june!H162 -> -3793 | Y162: 0 | Z162: 153 | AA162: 318.25 | AB162: 1832395 | AC162: =AA162-june!G162 -> -5.45 | AD162: =AB162-june!H162 -> -46539
A163: 154 | B163: LEVERETT | C163: 154 | E163: 20.49 | F163: 163072 | G163: 7 | H163: 35971 | J163: 0 | K163: 0 | M163: 163072 | N163: 35971 | P163: 154 | T163: =E163-june!E163 -> -0.71 | U163: =F163-june!F163 -> 17912 | V163: =G163-june!G163 -> 1.63 | W163: =H163-june!H163 -> 8445 | Y163: 0 | Z163: 154 | AA163: 7 | AB163: 35971 | AC163: =AA163-june!G163 -> 1.63 | AD163: =AB163-june!H163 -> 8445
A164: 155 | B164: LEXINGTON | C164: 155 | E164: 0 | F164: 0 | G164: 2.77 | H164: 16859 | J164: 0 | K164: 0 | M164: 0 | N164: 16859 | P164: 155 | R164: 3 | T164: =E164-june!E164 -> 0 | U164: =F164-june!F164 -> 0 | V164: =G164-june!G164 -> -3.57 | W164: =H164-june!H164 -> -23969 | Y164: 0 | Z164: 155 | AA164: 1 | AB164: 5000 | AC164: =AA164-june!G164 -> -5.34 | AD164: =AB164-june!H164 -> -35828
A165: 156 | B165: LEYDEN | C165: 156 | E165: 0 | F165: 0 | G165: 0 | H165: 0 | J165: 0 | K165: 0 | M165: 0 | N165: 0 | P165: 156 | T165: =E165-june!E165 -> 0 | U165: =F165-june!F165 -> 0 | V165: =G165-june!G165 -> 0 | W165: =H165-june!H165 -> 0 | Y165: 0 | Z165: 156 | AC165: =AA165-june!G165 -> 0 | AD165: =AB165-june!H165 -> 0
A166: 157 | B166: LINCOLN | C166: 157 | E166: 0 | F166: 0 | G166: 0 | H166: 0 | J166: 0 | K166: 0 | M166: 0 | N166: 0 | P166: 157 | T166: =E166-june!E166 -> 0 | U166: =F166-june!F166 -> 0 | V166: =G166-june!G166 -> -2.22 | W166: =H166-june!H166 -> -14933 | Y166: 0 | Z166: 157 | AC166: =AA166-june!G166 -> -2.22 | AD166: =AB166-june!H166 -> -14933
A167: 158 | B167: LITTLETON | C167: 158 | E167: 68.49 | F167: 373331 | G167: 19.01 | H167: 102084 | J167: 0 | K167: 0 | M167: 373331 | N167: 102084 | P167: 158 | Q167: 1 | T167: =E167-june!E167 -> -9.9 | U167: =F167-june!F167 -> -58241 | V167: =G167-june!G167 -> -3.15 | W167: =H167-june!H167 -> -41790 | Y167: 0 | Z167: 158 | AA167: 18.18 | AB167: 96523 | AC167: =AA167-june!G167 -> -3.98 | AD167: =AB167-june!H167 -> -47351
A168: 159 | B168: LONGMEADOW | C168: 159 | E168: 45 | F168: 364404 | G168: 1.59 | H168: 8953 | J168: 0 | K168: 0 | M168: 364404 | N168: 8953 | P168: 159 | R168: 1 | T168: =E168-june!E168 -> 5.37 | U168: =F168-june!F168 -> 36248 | V168: =G168-june!G168 -> -0.47 | W168: =H168-june!H168 -> -3295 | Y168: 0 | Z168: 159 | AA168: 1 | AB168: 5000 | AC168: =AA168-june!G168 -> -1.06 | AD168: =AB168-june!H168 -> -7248
A169: 160 | B169: LOWELL | C169: 160 | E169: 0 | F169: 0 | G169: 102.59 | H169: 685289 | J169: 0 | K169: 0 | M169: 0 | N169: 685289 | P169: 160 | Q169: 10 | R169: 9 | T169: =E169-june!E169 -> 0 | U169: =F169-june!F169 -> 0 | V169: =G169-june!G169 -> -39.36 | W169: =H169-june!H169 -> -259786 | Y169: 0 | Z169: 160 | AA169: 88.98 | AB169: 594102 | AC169: =AA169-june!G169 -> -52.97 | AD169: =AB169-june!H169 -> -350973
A170: 161 | B170: LUDLOW | C170: 161 | E170: 80.17 | F170: 499229 | G170: 38.59 | H170: 204660 | J170: 0 | K170: 0 | M170: 499229 | N170: 204660 | P170: 161 | Q170: 1 | R170: 3 | T170: =E170-june!E170 -> -13.82 | U170: =F170-june!F170 -> -63175 | V170: =G170-june!G170 -> -1.49 | W170: =H170-june!H170 -> -15180 | Y170: 0 | Z170: 161 | AA170: 35.99 | AB170: 187240 | AC170: =AA170-june!G170 -> -4.09 | AD170: =AB170-june!H170 -> -32600
A171: 162 | B171: LUNENBURG | C171: 162 | E171: 38.94 | F171: 227741 | G171: 84.48 | H171: 517649 | J171: 0 | K171: 0 | M171: 227741 | N171: 517649 | P171: 162 | T171: =E171-june!E171 -> -12.33 | U171: =F171-june!F171 -> -58932 | V171: =G171-june!G171 -> 4.3 | W171: =H171-june!H171 -> 40747 | Y171: 0 | Z171: 162 | AA171: 84.48 | AB171: 517649 | AC171: =AA171-june!G171 -> 4.3 | AD171: =AB171-june!H171 -> 40747
A172: 163 | B172: LYNN | C172: 163 | E172: 0 | F172: 0 | G172: 78.77 | H172: 457634 | J172: 0 | K172: 0 | M172: 0 | N172: 457634 | P172: 163 | Q172: 9 | R172: 28 | T172: =E172-june!E172 -> 0 | U172: =F172-june!F172 -> 0 | V172: =G172-june!G172 -> -20.48 | W172: =H172-june!H172 -> -146579 | Y172: 0 | Z172: 163 | AA172: 54.78 | AB172: 296901 | AC172: =AA172-june!G172 -> -44.47 | AD172: =AB172-june!H172 -> -307312
A173: 164 | B173: LYNNFIELD | C173: 164 | E173: 0 | F173: 0 | G173: 0 | H173: 0 | J173: 0 | K173: 0 | M173: 0 | N173: 0 | P173: 164 | T173: =E173-june!E173 -> 0 | U173: =F173-june!F173 -> 0 | V173: =G173-june!G173 -> 0 | W173: =H173-june!H173 -> 0 | Y173: 0 | Z173: 164 | AC173: =AA173-june!G173 -> 0 | AD173: =AB173-june!H173 -> 0
A174: 165 | B174: MALDEN | C174: 165 | E174: 0 | F174: 0 | G174: 5.43 | H174: 32981 | J174: 0 | K174: 0 | M174: 0 | N174: 32981 | P174: 165 | Q174: 2 | R174: 3 | T174: =E174-june!E174 -> 0 | U174: =F174-june!F174 -> 0 | V174: =G174-june!G174 -> -4.51 | W174: =H174-june!H174 -> -28416 | Y174: 0 | Z174: 165 | AA174: 2 | AB174: 10000 | AC174: =AA174-june!G174 -> -7.94 | AD174: =AB174-june!H174 -> -51397
A175: 166 | B175: MANCHESTER | C175: 166 | E175: 0 | F175: 0 | G175: 0 | H175: 0 | J175: 0 | K175: 0 | M175: 0 | N175: 0 | P175: 166 | T175: =E175-june!E175 -> 0 | U175: =F175-june!F175 -> 0 | V175: =G175-june!G175 -> 0 | W175: =H175-june!H175 -> 0 | Y175: 0 | Z175: 166 | AC175: =AA175-june!G175 -> 0 | AD175: =AB175-june!H175 -> 0
A176: 167 | B176: MANSFIELD | C176: 167 | E176: 0 | F176: 0 | G176: 5.84 | H176: 34028 | J176: 0 | K176: 0 | M176: 0 | N176: 34028 | P176: 167 | Q176: 2 | R176: 2 | T176: =E176-june!E176 -> 0 | U176: =F176-june!F176 -> 0 | V176: =G176-june!G176 -> -0.59 | W176: =H176-june!H176 -> -3222 | Y176: 0 | Z176: 167 | AA176: 3 | AB176: 15000 | AC176: =AA176-june!G176 -> -3.43 | AD176: =AB176-june!H176 -> -22250
A177: 168 | B177: MARBLEHEAD | C177: 168 | E177: 0 | F177: 0 | G177: 2.01 | H177: 13467 | J177: 0 | K177: 0 | M177: 0 | N177: 13467 | P177: 168 | Q177: 1 | R177: 2 | T177: =E177-june!E177 -> 0 | U177: =F177-june!F177 -> 0 | V177: =G177-june!G177 -> -3.4 | W177: =H177-june!H177 -> -20657 | Y177: 0 | Z177: 168 | AC177: =AA177-june!G177 -> -5.41 | AD177: =AB177-june!H177 -> -34124
A178: 169 | B178: MARION | C178: 169 | E178: 0 | F178: 0 | G178: 1.42 | H178: 9514 | J178: 0 | K178: 0 | M178: 0 | N178: 9514 | P178: 169 | Q178: 1 | R178: 1 | T178: =E178-june!E178 -> 0 | U178: =F178-june!F178 -> 0 | V178: =G178-june!G178 -> 0.7 | W178: =H178-june!H178 -> 4418 | Y178: 0 | Z178: 169 | AC178: =AA178-june!G178 -> -0.72 | AD178: =AB178-june!H178 -> -5096
A179: 170 | B179: MARLBOROUGH | C179: 170 | E179: 0 | F179: 0 | G179: 93.31 | H179: 560509 | J179: 0 | K179: 0 | M179: 0 | N179: 560509 | P179: 170 | Q179: 5 | R179: 7 | T179: =E179-june!E179 -> 0 | U179: =F179-june!F179 -> 0 | V179: =G179-june!G179 -> 1.95 | W179: =H179-june!H179 -> 27562 | Y179: 0 | Z179: 170 | AA179: 85.03 | AB179: 505033 | AC179: =AA179-june!G179 -> -6.33 | AD179: =AB179-june!H179 -> -27914
A180: 171 | B180: MARSHFIELD | C180: 171 | E180: 6 | F180: 34000 | G180: 6.19 | H180: 37942 | J180: 0 | K180: 0 | M180: 34000 | N180: 37942 | P180: 171 | Q180: 1 | R180: 4 | T180: =E180-june!E180 -> 1 | U180: =F180-june!F180 -> 9000 | V180: =G180-june!G180 -> 0.05 | W180: =H180-june!H180 -> -5180 | Y180: 0 | Z180: 171 | AA180: 3 | AB180: 16569 | AC180: =AA180-june!G180 -> -3.14 | AD180: =AB180-june!H180 -> -26553
A181: 172 | B181: MASHPEE | C181: 172 | E181: 72.42 | F181: 442050 | G181: 65.45 | H181: 389807 | J181: 0 | K181: 0 | M181: 442050 | N181: 389807 | P181: 172 | Q181: 2 | R181: 1 | T181: =E181-june!E181 -> 7.67 | U181: =F181-june!F181 -> 57030 | V181: =G181-june!G181 -> -15.65 | W181: =H181-june!H181 -> -53979 | Y181: 0 | Z181: 172 | AA181: 63.2 | AB181: 374732 | AC181: =AA181-june!G181 -> -17.9 | AD181: =AB181-june!H181 -> -69054
A182: 173 | B182: MATTAPOISETT | C182: 173 | E182: 3 | F182: 42512 | G182: 1.77 | H182: 11859 | J182: 0 | K182: 0 | M182: 42512 | N182: 11859 | P182: 173 | R182: 3 | T182: =E182-june!E182 -> 1 | U182: =F182-june!F182 -> 3935 | V182: =G182-june!G182 -> 0.44 | W182: =H182-june!H182 -> 1651 | Y182: 0 | Z182: 173 | AC182: =AA182-june!G182 -> -1.33 | AD182: =AB182-june!H182 -> -10208
A183: 174 | B183: MAYNARD | C183: 174 | E183: 35.16 | F183: 264647 | G183: 15.63 | H183: 80595 | J183: 0 | K183: 0 | M183: 264647 | N183: 80595 | P183: 174 | T183: =E183-june!E183 -> -4.36 | U183: =F183-june!F183 -> -23476 | V183: =G183-june!G183 -> 6.63 | W183: =H183-june!H183 -> 34123 | Y183: 0 | Z183: 174 | AA183: 15.63 | AB183: 80595 | AC183: =AA183-june!G183 -> 6.63 | AD183: =AB183-june!H183 -> 34123
A184: 175 | B184: MEDFIELD | C184: 175 | E184: 0 | F184: 0 | G184: 5.69 | H184: 28450 | J184: 0 | K184: 0 | M184: 0 | N184: 28450 | P184: 175 | T184: =E184-june!E184 -> 0 | U184: =F184-june!F184 -> 0 | V184: =G184-june!G184 -> -1.76 | W184: =H184-june!H184 -> -18352 | Y184: 0 | Z184: 175 | AA184: 5.69 | AB184: 28450 | AC184: =AA184-june!G184 -> -1.76 | AD184: =AB184-june!H184 -> -18352
A185: 176 | B185: MEDFORD | C185: 176 | E185: 0 | F185: 0 | G185: 2.54 | H185: 16712 | J185: 0 | K185: 0 | M185: 0 | N185: 16712 | P185: 176 | R185: 4 | T185: =E185-june!E185 -> 0 | U185: =F185-june!F185 -> 0 | V185: =G185-june!G185 -> -4.87 | W185: =H185-june!H185 -> -35659 | Y185: 0 | Z185: 176 | AA185: 0.18 | AB185: 900 | AC185: =AA185-june!G185 -> -7.23 | AD185: =AB185-june!H185 -> -51471
A186: 177 | B186: MEDWAY | C186: 177 | E186: 61.65 | F186: 347095 | G186: 43.68 | H186: 265066 | J186: 47500 | K186: 0 | M186: 394595 | N186: 265066 | P186: 177 | R186: 4 | T186: =E186-june!E186 -> -27.53 | U186: =F186-june!F186 -> -152135 | V186: =G186-june!G186 -> -5.95 | W186: =H186-june!H186 -> -51399 | Y186: 0 | Z186: 177 | AA186: 41.32 | AB186: 249254 | AC186: =AA186-june!G186 -> -8.31 | AD186: =AB186-june!H186 -> -67211
A187: 178 | B187: MELROSE | C187: 178 | E187: 10.63 | F187: 53150 | G187: 2.42 | H187: 14514 | J187: 0 | K187: 0 | M187: 53150 | N187: 14514 | P187: 178 | Q187: 1 | R187: 1 | T187: =E187-june!E187 -> -14.66 | U187: =F187-june!F187 -> -86905 | V187: =G187-june!G187 -> 0.34 | W187: =H187-june!H187 -> 413 | Y187: 0 | Z187: 178 | AA187: 1 | AB187: 5000 | AC187: =AA187-june!G187 -> -1.08 | AD187: =AB187-june!H187 -> -9101
A188: 179 | B188: MENDON | C188: 179 | E188: 0 | F188: 0 | G188: 0 | H188: 0 | J188: 0 | K188: 0 | M188: 0 | N188: 0 | P188: 179 | T188: =E188-june!E188 -> 0 | U188: =F188-june!F188 -> 0 | V188: =G188-june!G188 -> 0 | W188: =H188-june!H188 -> 0 | Y188: 0 | Z188: 179 | AC188: =AA188-june!G188 -> 0 | AD188: =AB188-june!H188 -> 0
A189: 180 | B189: MERRIMAC | C189: 180 | E189: 0 | F189: 0 | G189: 0 | H189: 0 | J189: 0 | K189: 0 | M189: 0 | N189: 0 | P189: 180 | T189: =E189-june!E189 -> 0 | U189: =F189-june!F189 -> 0 | V189: =G189-june!G189 -> 0 | W189: =H189-june!H189 -> 0 | Y189: 0 | Z189: 180 | AC189: =AA189-june!G189 -> 0 | AD189: =AB189-june!H189 -> 0
A190: 181 | B190: METHUEN | C190: 181 | E190: 0 | F190: 0 | G190: 17.01 | H190: 95709 | J190: 0 | K190: 0 | M190: 0 | N190: 95709 | P190: 181 | Q190: 4 | R190: 5 | T190: =E190-june!E190 -> 0 | U190: =F190-june!F190 -> 0 | V190: =G190-june!G190 -> -7.68 | W190: =H190-june!H190 -> -53629 | Y190: 0 | Z190: 181 | AA190: 10.74 | AB190: 53700 | AC190: =AA190-june!G190 -> -13.95 | AD190: =AB190-june!H190 -> -95638
A191: 182 | B191: MIDDLEBOROUGH | C191: 182 | E191: 3 | F191: 15000 | G191: 43.78 | H191: 231623 | J191: 0 | K191: 0 | M191: 15000 | N191: 231623 | P191: 182 | Q191: 2 | R191: 4 | T191: =E191-june!E191 -> 0 | U191: =F191-june!F191 -> 0 | V191: =G191-june!G191 -> -7.95 | W191: =H191-june!H191 -> -66503 | Y191: 0 | Z191: 182 | AA191: 39.76 | AB191: 204689 | AC191: =AA191-june!G191 -> -11.97 | AD191: =AB191-june!H191 -> -93437
A192: 183 | B192: MIDDLEFIELD | C192: 183 | E192: 0 | F192: 0 | G192: 0 | H192: 0 | J192: 0 | K192: 0 | M192: 0 | N192: 0 | P192: 183 | T192: =E192-june!E192 -> 0 | U192: =F192-june!F192 -> 0 | V192: =G192-june!G192 -> 0 | W192: =H192-june!H192 -> 0 | Y192: 0 | Z192: 183 | AC192: =AA192-june!G192 -> 0 | AD192: =AB192-june!H192 -> 0
A193: 184 | B193: MIDDLETON | C193: 184 | E193: 0 | F193: 0 | G193: 0.83 | H193: 5561 | J193: 0 | K193: 0 | M193: 0 | N193: 5561 | P193: 184 | Q193: 1 | T193: =E193-june!E193 -> 0 | U193: =F193-june!F193 -> 0 | V193: =G193-june!G193 -> -0.17 | W193: =H193-june!H193 -> -1139 | Y193: 0 | Z193: 184 | AC193: =AA193-june!G193 -> -1 | AD193: =AB193-june!H193 -> -6700
A194: 185 | B194: MILFORD | C194: 185 | E194: 82.65 | F194: 459014 | G194: 182.01 | H194: 1042782 | J194: 0 | K194: 10000 | M194: 459014 | N194: 1052782 | P194: 185 | Q194: 1 | R194: 9 | T194: =E194-june!E194 -> -4.15 | U194: =F194-june!F194 -> -54094 | V194: =G194-june!G194 -> -16.75 | W194: =H194-june!H194 -> -139467 | Y194: 0 | Z194: 185 | AA194: 175.87 | AB194: 1001644 | AC194: =AA194-june!G194 -> -22.89 | AD194: =AB194-june!H194 -> -180605
A195: 186 | B195: MILLBURY | C195: 186 | E195: 0 | F195: 0 | G195: 19.5 | H195: 118671 | J195: 0 | K195: 0 | M195: 0 | N195: 118671 | P195: 186 | Q195: 2 | R195: 3 | T195: =E195-june!E195 -> 0 | U195: =F195-june!F195 -> 0 | V195: =G195-june!G195 -> -4.84 | W195: =H195-june!H195 -> -38958 | Y195: 0 | Z195: 186 | AA195: 16.07 | AB195: 95690 | AC195: =AA195-june!G195 -> -8.27 | AD195: =AB195-june!H195 -> -61939
A196: 187 | B196: MILLIS | C196: 187 | E196: 76.03 | F196: 419555 | G196: 28.34 | H196: 168883 | J196: 0 | K196: 15000 | M196: 419555 | N196: 183883 | P196: 187 | R196: 2 | T196: =E196-june!E196 -> -3.23 | U196: =F196-june!F196 -> -4365 | V196: =G196-june!G196 -> -0.27 | W196: =H196-june!H196 -> -1900 | Y196: 0 | Z196: 187 | AA196: 27.16 | AB196: 160977 | AC196: =AA196-june!G196 -> -1.45 | AD196: =AB196-june!H196 -> -9806
A197: 188 | B197: MILLVILLE | C197: 188 | E197: 0 | F197: 0 | G197: 0 | H197: 0 | J197: 0 | K197: 0 | M197: 0 | N197: 0 | P197: 188 | T197: =E197-june!E197 -> 0 | U197: =F197-june!F197 -> 0 | V197: =G197-june!G197 -> 0 | W197: =H197-june!H197 -> 0 | Y197: 0 | Z197: 188 | AC197: =AA197-june!G197 -> 0 | AD197: =AB197-june!H197 -> 0
A198: 189 | B198: MILTON | C198: 189 | E198: 0 | F198: 0 | G198: 2.84 | H198: 19028 | J198: 0 | K198: 0 | M198: 0 | N198: 19028 | P198: 189 | Q198: 2 | R198: 2 | T198: =E198-june!E198 -> 0 | U198: =F198-june!F198 -> 0 | V198: =G198-june!G198 -> -1.16 | W198: =H198-june!H198 -> -7772 | Y198: 0 | Z198: 189 | AC198: =AA198-june!G198 -> -4 | AD198: =AB198-june!H198 -> -26800
A199: 190 | B199: MONROE | C199: 190 | E199: 0 | F199: 0 | G199: 0.37 | H199: 1850 | J199: 0 | K199: 0 | M199: 0 | N199: 1850 | P199: 190 | T199: =E199-june!E199 -> 0 | U199: =F199-june!F199 -> 0 | V199: =G199-june!G199 -> -0.37 | W199: =H199-june!H199 -> -2134 | Y199: 0 | Z199: 190 | AA199: 0.37 | AB199: 1850 | AC199: =AA199-june!G199 -> -0.37 | AD199: =AB199-june!H199 -> -2134
A200: 191 | B200: MONSON | C200: 191 | E200: 42.96 | F200: 239656 | G200: 31.33 | H200: 170503 | J200: 0 | K200: 0 | M200: 239656 | N200: 170503 | P200: 191 | Q200: 6 | T200: =E200-june!E200 -> -9.04 | U200: =F200-june!F200 -> -84072 | V200: =G200-june!G200 -> -5.35 | W200: =H200-june!H200 -> -31474 | Y200: 0 | Z200: 191 | AA200: 26.35 | AB200: 137137 | AC200: =AA200-june!G200 -> -10.33 | AD200: =AB200-june!H200 -> -64840
A201: 192 | B201: MONTAGUE | C201: 192 | E201: 0 | F201: 0 | G201: 0 | H201: 0 | J201: 0 | K201: 0 | M201: 0 | N201: 0 | P201: 192 | T201: =E201-june!E201 -> 0 | U201: =F201-june!F201 -> 0 | V201: =G201-june!G201 -> 0 | W201: =H201-june!H201 -> 0 | Y201: 0 | Z201: 192 | AC201: =AA201-june!G201 -> 0 | AD201: =AB201-june!H201 -> 0
... 251 more rows

Sheet dec (hidden)
J1: choicefinal15aug, through proj16aug | T1: choicecalc15dec dec7 700pm | Z1: choicecalc15dec dec7 730pm | AJ1: choicecalc15nov dec7 715pm | AN1: choicecalc15nov dec7 815pm
A2: Massachusetts Department of Elementary and Secondary Education | AJ2: no sped tuition yet | AN2: no sped tuition yet
A3: Office of School Finance
A5: School Choice Pupils and Tuition, FY16 Preliminary as of December 2015
J6: Adjustment | K6: Adjustment | N6: Net | O6: Net | AJ6: nov | AK6: nov | AN6: nov | AO6: nov
E7: FY16 | F7: FY16 | G7: FY16 | H7: FY16 | J7: FY15 | K7: FY15 | N7: Receiving | O7: Sending | T7: incoming | U7: incoming | V7: jun proj | W7: jun proj | AA7: incoming | AB7: incoming | AC7: jun proj | AD7: jun proj | AE7: chg | AJ7: incoming | AK7: incoming | AN7: incoming | AO7: incoming
E8: Receiving | F8: Receiving | G8: Sending | H8: Sending | J8: Receiving | K8: Sending | N8: Tuition | O8: Tuition | T8: Receiving | U8: Receiving | V8: receiving | W8: receiving | X8: change in | AA8: Sending | AB8: Sending | AC8: sending | AD8: sending | AE8: sending | AJ8: Receiving | AK8: Receiving | AN8: Sending | AO8: Sending
A9: LEA | B9: district | C9: dor | E9: FTE | F9: Tuition | G9: FTE | H9: Tuition | J9: Tuition | K9: Tuition | N9: FY16 | O9: FY16 | R9: =SUM(R10:R450) -> 0 | S9: lea | T9: FTE | U9: Tuition | V9: fte | W9: tuition | X9: tuition | Y9: =SUM(Y10:Y450) -> 0 | Z9: lea | AA9: FTE | AB9: Tuition | AC9: fte | AD9: Tuition | AE9: Tuition | AJ9: FTE | AK9: Tuition | AN9: FTE | AO9: Tuition
A10: 1 | B10: ABINGTON | C10: 1 | E10: =T10 -> 1 | F10: =U10 -> 5000 | G10: =AA10 -> 36 | H10: =AB10 -> 231077 | J10: =proj16aug!J10 -> 0 | K10: =proj16aug!K10 -> 0 | N10: =F10+J10 -> 5000 | O10: =H10+K10 -> 231077 | Q10: =SUM(E10:O10) -> 472191 | R10: =ABS(A10-S10) -> 0 | S10: 1 | T10: 1 | U10: 5000 | V10: =proj16jul!C10 -> 2 | W10: =proj16jul!D10 -> 10000 | X10: =U10-W10 -> -5000 | Y10: =ABS(Z10-A10) -> 0 | Z10: 1 | AA10: 36 | AB10: 231077 | AC10: =proj16jul!E10 -> 26.25 | AD10: =proj16jul!F10 -> 141707 | AE10: =AB10-AD10 -> 89370 | AG10: =AI10-A10 -> 0 | AI10: 1 | AJ10: 2 | AK10: 10000 | AL10: =AJ10-T10 -> 1 | AM10: 1 | AN10: 36 | AO10: 190200 | AP10: =AN10-AA10 -> 0
A11: 2 | B11: ACTON | C11: 2 | E11: =T11 -> 0 | F11: =U11 -> 0 | G11: =AA11 -> 0 | H11: =AB11 -> 0 | J11: =proj16aug!J11 -> 0 | K11: =proj16aug!K11 -> 0 | N11: =F11+J11 -> 0 | O11: =H11+K11 -> 0 | Q11: =SUM(E11:O11) -> 0 | R11: 0 | S11: 2 | V11: =proj16jul!C11 -> 0 | W11: =proj16jul!D11 -> 0 | X11: =U11-W11 -> 0 | Y11: 0 | Z11: 2 | AC11: =proj16jul!E11 -> 0.83 | AD11: =proj16jul!F11 -> 5561 | AE11: -5561 | AG11: =AI11-A11 -> 0 | AI11: 2 | AL11: =AJ11-T11 -> 0 | AM11: 2 | AP11: =AN11-AA11 -> 0
A12: 3 | B12: ACUSHNET | C12: 3 | E12: 0 | F12: 0 | G12: 15 | H12: 76700 | J12: =proj16aug!J12 -> 0 | K12: =proj16aug!K12 -> 0 | N12: 0 | O12: 76700 | Q12: 153415 | R12: 0 | S12: 3 | V12: =proj16jul!C12 -> 0 | W12: =proj16jul!D12 -> 0 | X12: 0 | Y12: 0 | Z12: 3 | AA12: 15 | AB12: 76700 | AC12: =proj16jul!E12 -> 11.12 | AD12: =proj16jul!F12 -> 62652 | AE12: 14048 | AG12: 0 | AI12: 3 | AL12: 0 | AM12: 3 | AN12: 15 | AO12: 76700 | AP12: 0
A13: 4 | B13: ADAMS | C13: 4 | E13: 0 | F13: 0 | G13: 0 | H13: 0 | J13: =proj16aug!J13 -> 0 | K13: =proj16aug!K13 -> 0 | N13: 0 | O13: 0 | Q13: 0 | R13: 0 | S13: 4 | V13: =proj16jul!C13 -> 0 | W13: =proj16jul!D13 -> 0 | X13: 0 | Y13: 0 | Z13: 4 | AC13: =proj16jul!E13 -> 0 | AD13: =proj16jul!F13 -> 0 | AE13: 0 | AG13: 0 | AI13: 4 | AL13: 0 | AM13: 4 | AP13: 0
A14: 5 | B14: AGAWAM | C14: 5 | E14: 79 | F14: 429476 | G14: 45 | H14: 294983 | J14: =proj16aug!J14 -> 0 | K14: =proj16aug!K14 -> 0 | N14: 429476 | O14: 294983 | Q14: 1449042 | R14: 0 | S14: 5 | T14: 79 | U14: 429476 | V14: =proj16jul!C14 -> 80.57 | W14: =proj16jul!D14 -> 425326 | X14: 4150 | Y14: 0 | Z14: 5 | AA14: 45 | AB14: 294983 | AC14: =proj16jul!E14 -> 42.49 | AD14: =proj16jul!F14 -> 290838 | AE14: 4145 | AG14: 0 | AI14: 5 | AJ14: 79 | AK14: 395000 | AL14: 0 | AM14: 5 | AN14: 45 | AO14: 233500 | AP14: 0
A15: 6 | B15: ALFORD | C15: 6 | E15: 0 | F15: 0 | G15: 0 | H15: 0 | J15: =proj16aug!J15 -> 0 | K15: =proj16aug!K15 -> 0 | N15: 0 | O15: 0 | Q15: 0 | R15: 0 | S15: 6 | V15: =proj16jul!C15 -> 0 | W15: =proj16jul!D15 -> 0 | X15: 0 | Y15: 0 | Z15: 6 | AC15: =proj16jul!E15 -> 0 | AD15: =proj16jul!F15 -> 0 | AE15: 0 | AG15: 0 | AI15: 6 | AL15: 0 | AM15: 6 | AP15: 0
A16: 7 | B16: AMESBURY | C16: 7 | E16: 16 | F16: 121524 | G16: 63 | H16: 394457 | J16: =proj16aug!J16 -> 0 | K16: =proj16aug!K16 -> 0 | N16: 121524 | O16: 394457 | Q16: 1032041 | R16: 0 | S16: 7 | T16: 16 | U16: 121524 | V16: =proj16jul!C16 -> 30 | W16: =proj16jul!D16 -> 196514 | X16: -74990 | Y16: 0 | Z16: 7 | AA16: 63 | AB16: 394457 | AC16: =proj16jul!E16 -> 74.48 | AD16: =proj16jul!F16 -> 494598 | AE16: -100141 | AG16: 0 | AI16: 7 | AJ16: 16 | AK16: 80000 | AL16: 0 | AM16: 7 | AN16: 63 | AO16: 332000 | AP16: 0
A17: 8 | B17: AMHERST | C17: 8 | E17: 49 | F17: 319432 | G17: 21 | H17: 134194 | J17: =proj16aug!J17 -> 0 | K17: =proj16aug!K17 -> 0 | N17: 319432 | O17: 134194 | Q17: 907322 | R17: 0 | S17: 8 | T17: 49 | U17: 319432 | V17: =proj16jul!C17 -> 53.85 | W17: =proj16jul!D17 -> 338073 | X17: -18641 | Y17: 0 | Z17: 8 | AA17: 21 | AB17: 134194 | AC17: =proj16jul!E17 -> 23.91 | AD17: =proj16jul!F17 -> 157400 | AE17: -23206 | AG17: 0 | AI17: 8 | AJ17: 49 | AK17: 245000 | AL17: 0 | AM17: 8 | AN17: 21 | AO17: 105000 | AP17: 0
A18: 9 | B18: ANDOVER | C18: 9 | E18: 0 | F18: 0 | G18: 4 | H18: 29100 | J18: =proj16aug!J18 -> 0 | K18: =proj16aug!K18 -> 0 | N18: 0 | O18: 29100 | Q18: 58204 | R18: 0 | S18: 9 | V18: =proj16jul!C18 -> 0 | W18: =proj16jul!D18 -> 0 | X18: 0 | Y18: 0 | Z18: 9 | AA18: 4 | AB18: 29100 | AC18: =proj16jul!E18 -> 3.78 | AD18: =proj16jul!F18 -> 25326 | AE18: 3774 | AG18: 0 | AI18: 9 | AL18: 0 | AM18: 9 | AN18: 4 | AO18: 25100 | AP18: 0
A19: 10 | B19: ARLINGTON | C19: 10 | E19: 0 | F19: 0 | G19: 2 | H19: 21400 | J19: =proj16aug!J19 -> 0 | K19: =proj16aug!K19 -> 0 | N19: 0 | O19: 21400 | Q19: 42802 | R19: 0 | S19: 10 | V19: =proj16jul!C19 -> 0 | W19: =proj16jul!D19 -> 0 | X19: 0 | Y19: 0 | Z19: 10 | AA19: 2 | AB19: 21400 | AC19: =proj16jul!E19 -> 0.83 | AD19: =proj16jul!F19 -> 5561 | AE19: 15839 | AG19: 0 | AI19: 10 | AL19: 0 | AM19: 10 | AN19: 3 | AO19: 13400 | AP19: 1
A20: 11 | B20: ASHBURNHAM | C20: 11 | E20: 0 | F20: 0 | G20: 0 | H20: 0 | J20: =proj16aug!J20 -> 0 | K20: =proj16aug!K20 -> 0 | N20: 0 | O20: 0 | Q20: 0 | R20: 0 | S20: 11 | V20: =proj16jul!C20 -> 0 | W20: =proj16jul!D20 -> 0 | X20: 0 | Y20: 0 | Z20: 11 | AC20: =proj16jul!E20 -> 0 | AD20: =proj16jul!F20 -> 0 | AE20: 0 | AG20: 0 | AI20: 11 | AL20: 0 | AM20: 11 | AP20: 0
A21: 12 | B21: ASHBY | C21: 12 | E21: 0 | F21: 0 | G21: 0 | H21: 0 | J21: =proj16aug!J21 -> 0 | K21: =proj16aug!K21 -> 0 | N21: 0 | O21: 0 | Q21: 0 | R21: 0 | S21: 12 | V21: =proj16jul!C21 -> 0 | W21: =proj16jul!D21 -> 0 | X21: 0 | Y21: 0 | Z21: 12 | AC21: =proj16jul!E21 -> 0 | AD21: =proj16jul!F21 -> 0 | AE21: 0 | AG21: 0 | AI21: 12 | AL21: 0 | AM21: 12 | AP21: 0
A22: 13 | B22: ASHFIELD | C22: 13 | E22: 0 | F22: 0 | G22: 0 | H22: 0 | J22: =proj16aug!J22 -> 0 | K22: =proj16aug!K22 -> 0 | N22: 0 | O22: 0 | Q22: 0 | R22: 0 | S22: 13 | V22: =proj16jul!C22 -> 0 | W22: =proj16jul!D22 -> 0 | X22: 0 | Y22: 0 | Z22: 13 | AC22: =proj16jul!E22 -> 0 | AD22: =proj16jul!F22 -> 0 | AE22: 0 | AG22: 0 | AI22: 13 | AL22: 0 | AM22: 13 | AP22: 0
A23: 14 | B23: ASHLAND | C23: 14 | E23: 45 | F23: 287724 | G23: 12.5 | H23: 84632 | J23: =proj16aug!J23 -> 0 | K23: =proj16aug!K23 -> 0 | N23: 287724 | O23: 84632 | Q23: 744769.5 | R23: 0 | S23: 14 | T23: 45 | U23: 287724 | V23: =proj16jul!C23 -> 31.76 | W23: =proj16jul!D23 -> 212748 | X23: 74976 | Y23: 0 | Z23: 14 | AA23: 12.5 | AB23: 84632 | AC23: =proj16jul!E23 -> 15.37 | AD23: =proj16jul!F23 -> 91418 | AE23: -6786 | AG23: 0 | AI23: 14 | AJ23: 45 | AK23: 225000 | AL23: 0 | AM23: 14 | AN23: 12.5 | AO23: 63388 | AP23: 0
A24: 15 | B24: ATHOL | C24: 15 | E24: 0 | F24: 0 | G24: 0 | H24: 0 | J24: =proj16aug!J24 -> 0 | K24: =proj16aug!K24 -> 0 | N24: 0 | O24: 0 | Q24: 0 | R24: 0 | S24: 15 | V24: =proj16jul!C24 -> 0 | W24: =proj16jul!D24 -> 0 | X24: 0 | Y24: 0 | Z24: 15 | AC24: =proj16jul!E24 -> 0 | AD24: =proj16jul!F24 -> 0 | AE24: 0 | AG24: 0 | AI24: 15 | AL24: 0 | AM24: 15 | AP24: 0
A25: 16 | B25: ATTLEBORO | C25: 16 | E25: 0 | F25: 0 | G25: 28 | H25: 183900 | J25: =proj16aug!J25 -> 0 | K25: =proj16aug!K25 -> 0 | N25: 0 | O25: 183900 | Q25: 367828 | R25: 0 | S25: 16 | V25: =proj16jul!C25 -> 0 | W25: =proj16jul!D25 -> 0 | X25: 0 | Y25: 0 | Z25: 16 | AA25: 28 | AB25: 183900 | AC25: =proj16jul!E25 -> 16.89 | AD25: =proj16jul!F25 -> 98305 | AE25: 85595 | AG25: 0 | AI25: 16 | AL25: 0 | AM25: 16 | AN25: 28 | AO25: 168900 | AP25: 0
A26: 17 | B26: AUBURN | C26: 17 | E26: 63 | F26: 327404 | G26: 20 | H26: 112071 | J26: =proj16aug!J26 -> 0 | K26: =proj16aug!K26 -> 0 | N26: 327404 | O26: 112071 | Q26: 879033 | R26: 0 | S26: 17 | T26: 63 | U26: 327404 | V26: =proj16jul!C26 -> 46.91 | W26: =proj16jul!D26 -> 249438 | X26: 77966 | Y26: 0 | Z26: 17 | AA26: 20 | AB26: 112071 | AC26: =proj16jul!E26 -> 20.36 | AD26: =proj16jul!F26 -> 127289 | AE26: -15218 | AG26: 0 | AI26: 17 | AJ26: 63 | AK26: 315000 | AL26: 0 | AM26: 17 | AN26: 20 | AO26: 105100 | AP26: 0
A27: 18 | B27: AVON | C27: 18 | E27: 193 | F27: 1024920 | G27: 2 | H27: 10000 | J27: =proj16aug!J27 -> 0 | K27: =proj16aug!K27 -> 0 | N27: 1024920 | O27: 10000 | Q27: 2070035 | R27: 0 | S27: 18 | T27: 193 | U27: 1024920 | V27: =proj16jul!C27 -> 182.16 | W27: =proj16jul!D27 -> 949225 | X27: 75695 | Y27: 0 | Z27: 18 | AA27: 2 | AB27: 10000 | AC27: =proj16jul!E27 -> 5 | AD27: =proj16jul!F27 -> 25000 | AE27: -15000 | AG27: 0 | AI27: 18 | AJ27: 193 | AK27: 965000 | AL27: 0 | AM27: 18 | AN27: 2 | AO27: 10000 | AP27: 0
A28: 19 | B28: AYER | C28: 19 | E28: 0 | F28: 0 | G28: 0 | H28: 0 | J28: =proj16aug!J28 -> 0 | K28: =proj16aug!K28 -> 0 | N28: 0 | O28: 0 | Q28: 0 | R28: 0 | S28: 19 | V28: =proj16jul!C28 -> 0 | W28: =proj16jul!D28 -> 0 | X28: 0 | Y28: 0 | Z28: 19 | AC28: =proj16jul!E28 -> 0 | AD28: =proj16jul!F28 -> 0 | AE28: 0 | AG28: 0 | AI28: 19 | AL28: 0 | AM28: 19 | AP28: 0
A29: 20 | B29: BARNSTABLE | C29: 20 | E29: 104 | F29: 658306 | G29: 155 | H29: 934327 | J29: =proj16aug!J29 -> 0 | K29: =proj16aug!K29 -> 0 | N29: 658306 | O29: 934327 | Q29: 3185525 | R29: 0 | S29: 20 | T29: 104 | U29: 658306 | V29: =proj16jul!C29 -> 104.86 | W29: =proj16jul!D29 -> 616894 | X29: 41412 | Y29: 0 | Z29: 20 | AA29: 155 | AB29: 934327 | AC29: =proj16jul!E29 -> 155.75 | AD29: =proj16jul!F29 -> 918231 | AE29: 16096 | AG29: 0 | AI29: 20 | AJ29: 104 | AK29: 520000 | AL29: 0 | AM29: 20 | AN29: 155 | AO29: 795400 | AP29: 0
A30: 21 | B30: BARRE | C30: 21 | E30: 0 | F30: 0 | G30: 0 | H30: 0 | J30: =proj16aug!J30 -> 0 | K30: =proj16aug!K30 -> 0 | N30: 0 | O30: 0 | Q30: 0 | R30: 0 | S30: 21 | V30: =proj16jul!C30 -> 0 | W30: =proj16jul!D30 -> 0 | X30: 0 | Y30: 0 | Z30: 21 | AC30: =proj16jul!E30 -> 0 | AD30: =proj16jul!F30 -> 0 | AE30: 0 | AG30: 0 | AI30: 21 | AL30: 0 | AM30: 21 | AP30: 0
A31: 22 | B31: BECKET | C31: 22 | E31: 0 | F31: 0 | G31: 3 | H31: 15000 | J31: =proj16aug!J31 -> 0 | K31: =proj16aug!K31 -> 0 | N31: 0 | O31: 15000 | Q31: 30003 | R31: 0 | S31: 22 | V31: =proj16jul!C31 -> 0 | W31: =proj16jul!D31 -> 0 | X31: 0 | Y31: 0 | Z31: 22 | AA31: 3 | AB31: 15000 | AC31: =proj16jul!E31 -> 2 | AD31: =proj16jul!F31 -> 10000 | AE31: 5000 | AG31: 0 | AI31: 22 | AL31: 0 | AM31: 22 | AN31: 3 | AO31: 15000 | AP31: 0
A32: 23 | B32: BEDFORD | C32: 23 | E32: 0 | F32: 0 | G32: 4 | H32: 23400 | J32: =proj16aug!J32 -> 0 | K32: =proj16aug!K32 -> 0 | N32: 0 | O32: 23400 | Q32: 46804 | R32: 0 | S32: 23 | V32: =proj16jul!C32 -> 0 | W32: =proj16jul!D32 -> 0 | X32: 0 | Y32: 0 | Z32: 23 | AA32: 4 | AB32: 23400 | AC32: =proj16jul!E32 -> 1 | AD32: =proj16jul!F32 -> 5000 | AE32: 18400 | AG32: 0 | AI32: 23 | AL32: 0 | AM32: 23 | AN32: 4.5 | AO32: 25900 | AP32: 0.5
A33: 24 | B33: BELCHERTOWN | C33: 24 | E33: 122 | F33: 760087 | G33: 96 | H33: 659834 | J33: =proj16aug!J33 -> 0 | K33: =proj16aug!K33 -> 0 | N33: 760087 | O33: 659834 | Q33: 2840060 | R33: 0 | S33: 24 | T33: 122 | U33: 760087 | V33: =proj16jul!C33 -> 99.51 | W33: =proj16jul!D33 -> 580989 | X33: 179098 | Y33: 0 | Z33: 24 | AA33: 96 | AB33: 659834 | AC33: =proj16jul!E33 -> 82.73 | AD33: =proj16jul!F33 -> 544940 | AE33: 114894 | AG33: 0 | AI33: 24 | AJ33: 122 | AK33: 605000 | AL33: 0 | AM33: 24 | AN33: 94.5 | AO33: 486100 | AP33: -1.5
A34: 25 | B34: BELLINGHAM | C34: 25 | E34: 33 | F34: 202459 | G34: 132.5 | H34: 818894 | J34: =proj16aug!J34 -> 0 | K34: =proj16aug!K34 -> 12500 | N34: 202459 | O34: 831394 | Q34: 2067871.5 | R34: 0 | S34: 25 | T34: 33 | U34: 202459 | V34: =proj16jul!C34 -> 45.33 | W34: =proj16jul!D34 -> 257806 | X34: -55347 | Y34: 0 | Z34: 25 | AA34: 132.5 | AB34: 818894 | AC34: =proj16jul!E34 -> 115.14 | AD34: =proj16jul!F34 -> 703458 | AE34: 115436 | AG34: 0 | AI34: 25 | AJ34: 33 | AK34: 165000 | AL34: 0 | AM34: 25 | AN34: 133.5 | AO34: 684500 | AP34: 1
A35: 26 | B35: BELMONT | C35: 26 | E35: 0 | F35: 0 | G35: 0 | H35: 0 | J35: =proj16aug!J35 -> 0 | K35: =proj16aug!K35 -> 0 | N35: 0 | O35: 0 | Q35: 0 | R35: 0 | S35: 26 | V35: =proj16jul!C35 -> 0 | W35: =proj16jul!D35 -> 0 | X35: 0 | Y35: 0 | Z35: 26 | AC35: =proj16jul!E35 -> 0.73 | AD35: =proj16jul!F35 -> 4653 | AE35: -4653 | AG35: 0 | AI35: 26 | AL35: 0 | AM35: 26 | AP35: 0
A36: 27 | B36: BERKLEY | C36: 27 | E36: 108 | F36: 582114 | G36: 2 | H36: 10000 | J36: =proj16aug!J36 -> 0 | K36: =proj16aug!K36 -> 0 | N36: 582114 | O36: 10000 | Q36: 1184338 | R36: 0 | S36: 27 | T36: 108 | U36: 582114 | V36: =proj16jul!C36 -> 78.6 | W36: =proj16jul!D36 -> 396688 | X36: 185426 | Y36: 0 | Z36: 27 | AA36: 2 | AB36: 10000 | AC36: =proj16jul!E36 -> 2 | AD36: =proj16jul!F36 -> 10000 | AE36: 0 | AG36: 0 | AI36: 27 | AJ36: 108.5 | AK36: 542500 | AL36: 0.5 | AM36: 27 | AN36: 2 | AO36: 10000 | AP36: 0
A37: 28 | B37: BERLIN | C37: 28 | E37: 20 | F37: 149051 | G37: 0 | H37: 0 | J37: =proj16aug!J37 -> 0 | K37: =proj16aug!K37 -> 0 | N37: 149051 | O37: 0 | Q37: 298122 | R37: 0 | S37: 28 | T37: 20 | U37: 149051 | V37: =proj16jul!C37 -> 18 | W37: =proj16jul!D37 -> 145629 | X37: 3422 | Y37: 0 | Z37: 28 | AC37: =proj16jul!E37 -> 0 | AD37: =proj16jul!F37 -> 0 | AE37: 0 | AG37: 0 | AI37: 28 | AJ37: 20 | AK37: 100000 | AL37: 0 | AM37: 28 | AP37: 0
A38: 29 | B38: BERNARDSTON | C38: 29 | E38: 0 | F38: 0 | G38: 0 | H38: 0 | J38: =proj16aug!J38 -> 0 | K38: =proj16aug!K38 -> 0 | N38: 0 | O38: 0 | Q38: 0 | R38: 0 | S38: 29 | V38: =proj16jul!C38 -> 0 | W38: =proj16jul!D38 -> 0 | X38: 0 | Y38: 0 | Z38: 29 | AC38: =proj16jul!E38 -> 0 | AD38: =proj16jul!F38 -> 0 | AE38: 0 | AG38: 0 | AI38: 29 | AL38: 0 | AM38: 29 | AP38: 0
A39: 30 | B39: BEVERLY | C39: 30 | E39: 106 | F39: 601926 | G39: 60 | H39: 340184 | J39: =proj16aug!J39 -> 0 | K39: =proj16aug!K39 -> 0 | N39: 601926 | O39: 340184 | Q39: 1884386 | R39: 0 | S39: 30 | T39: 106 | U39: 601926 | V39: =proj16jul!C39 -> 95.32 | W39: =proj16jul!D39 -> 524477 | X39: 77449 | Y39: 0 | Z39: 30 | AA39: 60 | AB39: 340184 | AC39: =proj16jul!E39 -> 62.12 | AD39: =proj16jul!F39 -> 336687 | AE39: 3497 | AG39: 0 | AI39: 30 | AJ39: 106 | AK39: 530000 | AL39: 0 | AM39: 30 | AN39: 60 | AO39: 330600 | AP39: 0
A40: 31 | B40: BILLERICA | C40: 31 | E40: 0 | F40: 0 | G40: 16 | H40: 105600 | J40: =proj16aug!J40 -> 0 | K40: =proj16aug!K40 -> 0 | N40: 0 | O40: 105600 | Q40: 211216 | R40: 0 | S40: 31 | V40: =proj16jul!C40 -> 0 | W40: =proj16jul!D40 -> 0 | X40: 0 | Y40: 0 | Z40: 31 | AA40: 16 | AB40: 105600 | AC40: =proj16jul!E40 -> 13.56 | AD40: =proj16jul!F40 -> 74634 | AE40: 30966 | AG40: 0 | AI40: 31 | AL40: 0 | AM40: 31 | AN40: 16.5 | AO40: 96100 | AP40: 0.5
A41: 32 | B41: BLACKSTONE | C41: 32 | E41: 0 | F41: 0 | G41: 0 | H41: 0 | J41: =proj16aug!J41 -> 0 | K41: =proj16aug!K41 -> 0 | N41: 0 | O41: 0 | Q41: 0 | R41: 0 | S41: 32 | V41: =proj16jul!C41 -> 0 | W41: =proj16jul!D41 -> 0 | X41: 0 | Y41: 0 | Z41: 32 | AC41: =proj16jul!E41 -> 0 | AD41: =proj16jul!F41 -> 0 | AE41: 0 | AG41: 0 | AI41: 32 | AL41: 0 | AM41: 32 | AP41: 0
A42: 33 | B42: BLANDFORD | C42: 33 | E42: 0 | F42: 0 | G42: 2 | H42: 12120 | J42: =proj16aug!J42 -> 0 | K42: =proj16aug!K42 -> 0 | N42: 0 | O42: 12120 | Q42: 24242 | R42: 0 | S42: 33 | V42: =proj16jul!C42 -> 0 | W42: =proj16jul!D42 -> 0 | X42: 0 | Y42: 0 | Z42: 33 | AA42: 2 | AB42: 12120 | AC42: =proj16jul!E42 -> 0 | AD42: =proj16jul!F42 -> 0 | AE42: 12120 | AG42: 0 | AI42: 33 | AL42: 0 | AM42: 33 | AN42: 2 | AO42: 10000 | AP42: 0
A43: 34 | B43: BOLTON | C43: 34 | E43: 0 | F43: 0 | G43: 0 | H43: 0 | J43: =proj16aug!J43 -> 0 | K43: =proj16aug!K43 -> 0 | N43: 0 | O43: 0 | Q43: 0 | R43: 0 | S43: 34 | V43: =proj16jul!C43 -> 0 | W43: =proj16jul!D43 -> 0 | X43: 0 | Y43: 0 | Z43: 34 | AC43: =proj16jul!E43 -> 0 | AD43: =proj16jul!F43 -> 0 | AE43: 0 | AG43: 0 | AI43: 34 | AL43: 0 | AM43: 34 | AP43: 0
A44: 35 | B44: BOSTON | C44: 35 | E44: 0 | F44: 0 | G44: 88 | H44: 608120 | J44: =proj16aug!J44 -> 0 | K44: =proj16aug!K44 -> 0 | N44: 0 | O44: 608120 | Q44: 1216328 | R44: 0 | S44: 35 | V44: =proj16jul!C44 -> 0 | W44: =proj16jul!D44 -> 0 | X44: 0 | Y44: 0 | Z44: 35 | AA44: 88 | AB44: 608120 | AC44: =proj16jul!E44 -> 86.54 | AD44: =proj16jul!F44 -> 555312 | AE44: 52808 | AG44: 0 | AI44: 35 | AL44: 0 | AM44: 35 | AN44: 90 | AO44: 572552 | AP44: 2
A45: 36 | B45: BOURNE | C45: 36 | E45: 118.5 | F45: 696677 | G45: 98 | H45: 584253 | J45: =proj16aug!J45 -> 0 | K45: =proj16aug!K45 -> 0 | N45: 696677 | O45: 584253 | Q45: 2562076.5 | R45: 0 | S45: 36 | T45: 118.5 | U45: 696677 | V45: =proj16jul!C45 -> 126.46 | W45: =proj16jul!D45 -> 723869 | X45: -27192 | Y45: 0 | Z45: 36 | AA45: 98 | AB45: 584253 | AC45: =proj16jul!E45 -> 91.77 | AD45: =proj16jul!F45 -> 622519 | AE45: -38266 | AG45: 0 | AI45: 36 | AJ45: 119 | AK45: 595000 | AL45: 0.5 | AM45: 36 | AN45: 98 | AO45: 491700 | AP45: 0
A46: 37 | B46: BOXBOROUGH | C46: 37 | E46: 0 | F46: 0 | G46: 0 | H46: 0 | J46: =proj16aug!J46 -> 0 | K46: =proj16aug!K46 -> 0 | N46: 0 | O46: 0 | Q46: 0 | R46: 0 | S46: 37 | V46: =proj16jul!C46 -> 0 | W46: =proj16jul!D46 -> 0 | X46: 0 | Y46: 0 | Z46: 37 | AC46: =proj16jul!E46 -> 0 | AD46: =proj16jul!F46 -> 0 | AE46: 0 | AG46: 0 | AI46: 37 | AL46: 0 | AM46: 37 | AP46: 0
A47: 38 | B47: BOXFORD | C47: 38 | E47: 0 | F47: 0 | G47: 3 | H47: 16700 | J47: =proj16aug!J47 -> 0 | K47: =proj16aug!K47 -> 0 | N47: 0 | O47: 16700 | Q47: 33403 | R47: 0 | S47: 38 | V47: =proj16jul!C47 -> 0 | W47: =proj16jul!D47 -> 0 | X47: 0 | Y47: 0 | Z47: 38 | AA47: 3 | AB47: 16700 | AC47: =proj16jul!E47 -> 0.83 | AD47: =proj16jul!F47 -> 5561 | AE47: 11139 | AG47: 0 | AI47: 38 | AL47: 0 | AM47: 38 | AN47: 3 | AO47: 16700 | AP47: 0
A48: 39 | B48: BOYLSTON | C48: 39 | E48: 17 | F48: 90513 | G48: 8 | H48: 91045 | J48: =proj16aug!J48 -> 0 | K48: =proj16aug!K48 -> 0 | N48: 90513 | O48: 91045 | Q48: 363141 | R48: 0 | S48: 39 | T48: 17 | U48: 90513 | V48: =proj16jul!C48 -> 13 | W48: =proj16jul!D48 -> 70513 | X48: 20000 | Y48: 0 | Z48: 39 | AA48: 8 | AB48: 91045 | AC48: =proj16jul!E48 -> 7.4 | AD48: =proj16jul!F48 -> 83867 | AE48: 7178 | AG48: 0 | AI48: 39 | AJ48: 17 | AK48: 85000 | AL48: 0 | AM48: 39 | AN48: 8 | AO48: 40000 | AP48: 0
A49: 40 | B49: BRAINTREE | C49: 40 | E49: 0 | F49: 0 | G49: 3 | H49: 18400 | J49: =proj16aug!J49 -> 0 | K49: =proj16aug!K49 -> 0 | N49: 0 | O49: 18400 | Q49: 36803 | R49: 0 | S49: 40 | V49: =proj16jul!C49 -> 0 | W49: =proj16jul!D49 -> 0 | X49: 0 | Y49: 0 | Z49: 40 | AA49: 3 | AB49: 18400 | AC49: =proj16jul!E49 -> 4.6 | AD49: =proj16jul!F49 -> 27420 | AE49: -9020 | AG49: 0 | AI49: 40 | AL49: 0 | AM49: 40 | AN49: 3 | AO49: 18400 | AP49: 0
A50: 41 | B50: BREWSTER | C50: 41 | E50: 0 | F50: 0 | G50: 27 | H50: 166964 | J50: =proj16aug!J50 -> 0 | K50: =proj16aug!K50 -> 0 | N50: 0 | O50: 166964 | Q50: 333955 | R50: 0 | S50: 41 | V50: =proj16jul!C50 -> 0 | W50: =proj16jul!D50 -> 0 | X50: 0 | Y50: 0 | Z50: 41 | AA50: 27 | AB50: 166964 | AC50: =proj16jul!E50 -> 23.39 | AD50: =proj16jul!F50 -> 158226 | AE50: 8738 | AG50: 0 | AI50: 41 | AL50: 0 | AM50: 41 | AN50: 27 | AO50: 135000 | AP50: 0
A51: 42 | B51: BRIDGEWATER | C51: 42 | E51: 0 | F51: 0 | G51: 0 | H51: 0 | J51: =proj16aug!J51 -> 0 | K51: =proj16aug!K51 -> 0 | N51: 0 | O51: 0 | Q51: 0 | R51: 0 | S51: 42 | V51: =proj16jul!C51 -> 0 | W51: =proj16jul!D51 -> 0 | X51: 0 | Y51: 0 | Z51: 42 | AC51: =proj16jul!E51 -> 0 | AD51: =proj16jul!F51 -> 0 | AE51: 0 | AG51: 0 | AI51: 42 | AL51: 0 | AM51: 42 | AP51: 0
A52: 43 | B52: BRIMFIELD | C52: 43 | E52: 0 | F52: 0 | G52: 6 | H52: 64508 | J52: =proj16aug!J52 -> 0 | K52: =proj16aug!K52 -> 0 | N52: 0 | O52: 64508 | Q52: 129022 | R52: 0 | S52: 43 | V52: =proj16jul!C52 -> 0 | W52: =proj16jul!D52 -> 0 | X52: 0 | Y52: 0 | Z52: 43 | AA52: 6 | AB52: 64508 | AC52: =proj16jul!E52 -> 9.37 | AD52: =proj16jul!F52 -> 102550 | AE52: -38042 | AG52: 0 | AI52: 43 | AL52: 0 | AM52: 43 | AN52: 6 | AO52: 30000 | AP52: 0
A53: 44 | B53: BROCKTON | C53: 44 | E53: 25 | F53: 136000 | G53: 239 | H53: 1328445 | J53: =proj16aug!J53 -> 0 | K53: =proj16aug!K53 -> 0 | N53: 136000 | O53: 1328445 | Q53: 2929154 | R53: 0 | S53: 44 | T53: 25 | U53: 136000 | V53: =proj16jul!C53 -> 23 | W53: =proj16jul!D53 -> 115000 | X53: 21000 | Y53: 0 | Z53: 44 | AA53: 239 | AB53: 1328445 | AC53: =proj16jul!E53 -> 188.57 | AD53: =proj16jul!F53 -> 1037038 | AE53: 291407 | AG53: 0 | AI53: 44 | AJ53: 25 | AK53: 125000 | AL53: 0 | AM53: 44 | AN53: 234 | AO53: 1212500 | AP53: -5
A54: 45 | B54: BROOKFIELD | C54: 45 | E54: 57 | F54: 350618 | G54: 1 | H54: 5000 | J54: =proj16aug!J54 -> 0 | K54: =proj16aug!K54 -> 0 | N54: 350618 | O54: 5000 | Q54: 711294 | R54: 0 | S54: 45 | T54: 57 | U54: 350618 | V54: =proj16jul!C54 -> 60.86 | W54: =proj16jul!D54 -> 389284 | X54: -38666 | Y54: 0 | Z54: 45 | AA54: 1 | AB54: 5000 | AC54: =proj16jul!E54 -> 2.28 | AD54: =proj16jul!F54 -> 14677 | AE54: -9677 | AG54: 0 | AI54: 45 | AJ54: 57 | AK54: 285000 | AL54: 0 | AM54: 45 | AN54: 1 | AO54: 5000 | AP54: 0
A55: 46 | B55: BROOKLINE | C55: 46 | E55: 0 | F55: 0 | G55: 1 | H55: 6700 | J55: =proj16aug!J55 -> 0 | K55: =proj16aug!K55 -> 0 | N55: 0 | O55: 6700 | Q55: 13401 | R55: 0 | S55: 46 | V55: =proj16jul!C55 -> 0 | W55: =proj16jul!D55 -> 0 | X55: 0 | Y55: 0 | Z55: 46 | AA55: 1 | AB55: 6700 | AC55: =proj16jul!E55 -> 0.59 | AD55: =proj16jul!F55 -> 3953 | AE55: 2747 | AG55: 0 | AI55: 46 | AL55: 0 | AM55: 46 | AN55: 1 | AO55: 6700 | AP55: 0
A56: 47 | B56: BUCKLAND | C56: 47 | E56: 0 | F56: 0 | G56: 0 | H56: 0 | J56: =proj16aug!J56 -> 0 | K56: =proj16aug!K56 -> 0 | N56: 0 | O56: 0 | Q56: 0 | R56: 0 | S56: 47 | V56: =proj16jul!C56 -> 0 | W56: =proj16jul!D56 -> 0 | X56: 0 | Y56: 0 | Z56: 47 | AC56: =proj16jul!E56 -> 0 | AD56: =proj16jul!F56 -> 0 | AE56: 0 | AG56: 0 | AI56: 47 | AL56: 0 | AM56: 47 | AP56: 0
A57: 48 | B57: BURLINGTON | C57: 48 | E57: 29 | F57: 153000 | G57: 3 | H57: 20100 | J57: =proj16aug!J57 -> 0 | K57: =proj16aug!K57 -> 0 | N57: 153000 | O57: 20100 | Q57: 346232 | R57: 0 | S57: 48 | T57: 29 | U57: 153000 | V57: =proj16jul!C57 -> 25.02 | W57: =proj16jul!D57 -> 125100 | X57: 27900 | Y57: 0 | Z57: 48 | AA57: 3 | AB57: 20100 | AC57: =proj16jul!E57 -> 2.36 | AD57: =proj16jul!F57 -> 15812 | AE57: 4288 | AG57: 0 | AI57: 48 | AJ57: 29 | AK57: 145000 | AL57: 0 | AM57: 48 | AN57: 3 | AO57: 20100 | AP57: 0
A58: 49 | B58: CAMBRIDGE | C58: 49 | E58: 0 | F58: 0 | G58: 5 | H58: 33500 | J58: =proj16aug!J58 -> 0 | K58: =proj16aug!K58 -> 0 | N58: 0 | O58: 33500 | Q58: 67005 | R58: 0 | S58: 49 | V58: =proj16jul!C58 -> 0 | W58: =proj16jul!D58 -> 0 | X58: 0 | Y58: 0 | Z58: 49 | AA58: 5 | AB58: 33500 | AC58: =proj16jul!E58 -> 2.84 | AD58: =proj16jul!F58 -> 19028 | AE58: 14472 | AG58: 0 | AI58: 49 | AL58: 0 | AM58: 49 | AN58: 5 | AO58: 33500 | AP58: 0
A59: 50 | B59: CANTON | C59: 50 | E59: 0 | F59: 0 | G59: 1 | H59: 6700 | J59: =proj16aug!J59 -> 0 | K59: =proj16aug!K59 -> 0 | N59: 0 | O59: 6700 | Q59: 13401 | R59: 0 | S59: 50 | V59: =proj16jul!C59 -> 0 | W59: =proj16jul!D59 -> 0 | X59: 0 | Y59: 0 | Z59: 50 | AA59: 1 | AB59: 6700 | AC59: =proj16jul!E59 -> 1.18 | AD59: =proj16jul!F59 -> 7906 | AE59: -1206 | AG59: 0 | AI59: 50 | AL59: 0 | AM59: 50 | AN59: 1 | AO59: 6700 | AP59: 0
A60: 51 | B60: CARLISLE | C60: 51 | E60: 0 | F60: 0 | G60: 0 | H60: 0 | J60: =proj16aug!J60 -> 0 | K60: =proj16aug!K60 -> 0 | N60: 0 | O60: 0 | Q60: 0 | R60: 0 | S60: 51 | V60: =proj16jul!C60 -> 0 | W60: =proj16jul!D60 -> 0 | X60: 0 | Y60: 0 | Z60: 51 | AC60: =proj16jul!E60 -> 0 | AD60: =proj16jul!F60 -> 0 | AE60: 0 | AG60: 0 | AI60: 51 | AL60: 0 | AM60: 51 | AP60: 0
A61: 52 | B61: CARVER | C61: 52 | E61: 23 | F61: 167791 | G61: 6 | H61: 40200 | J61: =proj16aug!J61 -> 0 | K61: =proj16aug!K61 -> 0 | N61: 167791 | O61: 40200 | Q61: 416011 | R61: 0 | S61: 52 | T61: 23 | U61: 167791 | V61: =proj16jul!C61 -> 20.64 | W61: =proj16jul!D61 -> 155991 | X61: 11800 | Y61: 0 | Z61: 52 | AA61: 6 | AB61: 40200 | AC61: =proj16jul!E61 -> 5.25 | AD61: =proj16jul!F61 -> 30075 | AE61: 10125 | AG61: 0 | AI61: 52 | AJ61: 23 | AK61: 115000 | AL61: 0 | AM61: 52 | AN61: 6 | AO61: 40200 | AP61: 0
A62: 53 | B62: CHARLEMONT | C62: 53 | E62: 0 | F62: 0 | G62: 0 | H62: 0 | J62: =proj16aug!J62 -> 0 | K62: =proj16aug!K62 -> 0 | N62: 0 | O62: 0 | Q62: 0 | R62: 0 | S62: 53 | V62: =proj16jul!C62 -> 0 | W62: =proj16jul!D62 -> 0 | X62: 0 | Y62: 0 | Z62: 53 | AC62: =proj16jul!E62 -> 0 | AD62: =proj16jul!F62 -> 0 | AE62: 0 | AG62: 0 | AI62: 53 | AL62: 0 | AM62: 53 | AP62: 0
A63: 54 | B63: CHARLTON | C63: 54 | E63: 0 | F63: 0 | G63: 0 | H63: 0 | J63: =proj16aug!J63 -> 0 | K63: =proj16aug!K63 -> 0 | N63: 0 | O63: 0 | Q63: 0 | R63: 0 | S63: 54 | V63: =proj16jul!C63 -> 0 | W63: =proj16jul!D63 -> 0 | X63: 0 | Y63: 0 | Z63: 54 | AC63: =proj16jul!E63 -> 0 | AD63: =proj16jul!F63 -> 0 | AE63: 0 | AG63: 0 | AI63: 54 | AL63: 0 | AM63: 54 | AP63: 0
A64: 55 | B64: CHATHAM | C64: 55 | E64: 0 | F64: 0 | G64: 0 | H64: 0 | J64: =proj16aug!J64 -> 0 | K64: =proj16aug!K64 -> 0 | N64: 0 | O64: 0 | Q64: 0 | R64: 0 | S64: 55 | V64: =proj16jul!C64 -> 0 | W64: =proj16jul!D64 -> 0 | X64: 0 | Y64: 0 | Z64: 55 | AC64: =proj16jul!E64 -> 0 | AD64: =proj16jul!F64 -> 0 | AE64: 0 | AG64: 0 | AI64: 55 | AL64: 0 | AM64: 55 | AP64: 0
A65: 56 | B65: CHELMSFORD | C65: 56 | E65: 59 | F65: 375373 | G65: 29.5 | H65: 207601 | J65: =proj16aug!J65 -> 0 | K65: =proj16aug!K65 -> 0 | N65: 375373 | O65: 207601 | Q65: 1166036.5 | R65: 0 | S65: 56 | T65: 59 | U65: 375373 | V65: =proj16jul!C65 -> 44 | W65: =proj16jul!D65 -> 326523 | X65: 48850 | Y65: 0 | Z65: 56 | AA65: 29.5 | AB65: 207601 | AC65: =proj16jul!E65 -> 27.68 | AD65: =proj16jul!F65 -> 193494 | AE65: 14107 | AG65: 0 | AI65: 56 | AJ65: 59 | AK65: 295000 | AL65: 0 | AM65: 56 | AN65: 31 | AO65: 165300 | AP65: 1.5
A66: 57 | B66: CHELSEA | C66: 57 | E66: 0 | F66: 0 | G66: 8 | H66: 51900 | J66: =proj16aug!J66 -> 0 | K66: =proj16aug!K66 -> 0 | N66: 0 | O66: 51900 | Q66: 103808 | R66: 0 | S66: 57 | V66: =proj16jul!C66 -> 0 | W66: =proj16jul!D66 -> 0 | X66: 0 | Y66: 0 | Z66: 57 | AA66: 8 | AB66: 51900 | AC66: =proj16jul!E66 -> 4.26 | AD66: =proj16jul!F66 -> 28542 | AE66: 23358 | AG66: 0 | AI66: 57 | AL66: 0 | AM66: 57 | AN66: 8 | AO66: 51900 | AP66: 0
A67: 58 | B67: CHESHIRE | C67: 58 | E67: 0 | F67: 0 | G67: 0 | H67: 0 | J67: =proj16aug!J67 -> 0 | K67: =proj16aug!K67 -> 0 | N67: 0 | O67: 0 | Q67: 0 | R67: 0 | S67: 58 | V67: =proj16jul!C67 -> 0 | W67: =proj16jul!D67 -> 0 | X67: 0 | Y67: 0 | Z67: 58 | AC67: =proj16jul!E67 -> 0 | AD67: =proj16jul!F67 -> 0 | AE67: 0 | AG67: 0 | AI67: 58 | AL67: 0 | AM67: 58 | AP67: 0
A68: 59 | B68: CHESTER | C68: 59 | E68: 0 | F68: 0 | G68: 0 | H68: 0 | J68: =proj16aug!J68 -> 0 | K68: =proj16aug!K68 -> 0 | N68: 0 | O68: 0 | Q68: 0 | R68: 0 | S68: 59 | V68: =proj16jul!C68 -> 0 | W68: =proj16jul!D68 -> 0 | X68: 0 | Y68: 0 | Z68: 59 | AC68: =proj16jul!E68 -> 0 | AD68: =proj16jul!F68 -> 0 | AE68: 0 | AG68: 0 | AI68: 59 | AL68: 0 | AM68: 59 | AP68: 0
A69: 60 | B69: CHESTERFIELD | C69: 60 | E69: 0 | F69: 0 | G69: 0 | H69: 0 | J69: =proj16aug!J69 -> 0 | K69: =proj16aug!K69 -> 0 | N69: 0 | O69: 0 | Q69: 0 | R69: 0 | S69: 60 | V69: =proj16jul!C69 -> 0 | W69: =proj16jul!D69 -> 0 | X69: 0 | Y69: 0 | Z69: 60 | AC69: =proj16jul!E69 -> 0 | AD69: =proj16jul!F69 -> 0 | AE69: 0 | AG69: 0 | AI69: 60 | AL69: 0 | AM69: 60 | AP69: 0
A70: 61 | B70: CHICOPEE | C70: 61 | E70: 195 | F70: 1009093 | G70: 136 | H70: 777720 | J70: =proj16aug!J70 -> 0 | K70: =proj16aug!K70 -> 0 | N70: 1009093 | O70: 777720 | Q70: 3573957 | R70: 0 | S70: 61 | T70: 195 | U70: 1009093 | V70: =proj16jul!C70 -> 179.17 | W70: =proj16jul!D70 -> 941627 | X70: 67466 | Y70: 0 | Z70: 61 | AA70: 136 | AB70: 777720 | AC70: =proj16jul!E70 -> 130.28 | AD70: =proj16jul!F70 -> 754391 | AE70: 23329 | AG70: 0 | AI70: 61 | AJ70: 195 | AK70: 975000 | AL70: 0 | AM70: 61 | AN70: 82.5 | AO70: 447388 | AP70: -53.5
A71: 62 | B71: CHILMARK | C71: 62 | E71: 0 | F71: 0 | G71: 0 | H71: 0 | J71: =proj16aug!J71 -> 0 | K71: =proj16aug!K71 -> 0 | N71: 0 | O71: 0 | Q71: 0 | R71: 0 | S71: 62 | V71: =proj16jul!C71 -> 0 | W71: =proj16jul!D71 -> 0 | X71: 0 | Y71: 0 | Z71: 62 | AC71: =proj16jul!E71 -> 0 | AD71: =proj16jul!F71 -> 0 | AE71: 0 | AG71: 0 | AI71: 62 | AL71: 0 | AM71: 62 | AP71: 0
A72: 63 | B72: CLARKSBURG | C72: 63 | E72: 33 | F72: 203974 | G72: 16 | H72: 107823 | J72: =proj16aug!J72 -> 0 | K72: =proj16aug!K72 -> 0 | N72: 203974 | O72: 107823 | Q72: 623643 | R72: 0 | S72: 63 | T72: 33 | U72: 203974 | V72: =proj16jul!C72 -> 26.96 | W72: =proj16jul!D72 -> 159657 | X72: 44317 | Y72: 0 | Z72: 63 | AA72: 16 | AB72: 107823 | AC72: =proj16jul!E72 -> 13.03 | AD72: =proj16jul!F72 -> 90681 | AE72: 17142 | AG72: 0 | AI72: 63 | AJ72: 33 | AK72: 165000 | AL72: 0 | AM72: 63 | AN72: 16 | AO72: 80000 | AP72: 0
A73: 64 | B73: CLINTON | C73: 64 | E73: 79 | F73: 585285 | G73: 121.5 | H73: 675727 | J73: =proj16aug!J73 -> 0 | K73: =proj16aug!K73 -> 0 | N73: 585285 | O73: 675727 | Q73: 2522224.5 | R73: 0 | S73: 64 | T73: 79 | U73: 585285 | V73: =proj16jul!C73 -> 115.25 | W73: =proj16jul!D73 -> 843868 | X73: -258583 | Y73: 0 | Z73: 64 | AA73: 121.5 | AB73: 675727 | AC73: =proj16jul!E73 -> 113.7 | AD73: =proj16jul!F73 -> 637998 | AE73: 37729 | AG73: 0 | AI73: 64 | AJ73: 79 | AK73: 395000 | AL73: 0 | AM73: 64 | AN73: 121.5 | AO73: 617700 | AP73: 0
A74: 65 | B74: COHASSET | C74: 65 | E74: 0 | F74: 0 | G74: 0 | H74: 0 | J74: =proj16aug!J74 -> 0 | K74: =proj16aug!K74 -> 0 | N74: 0 | O74: 0 | Q74: 0 | R74: =ABS(A74-S74) -> 0 | S74: 65 | V74: =proj16jul!C74 -> 0 | W74: =proj16jul!D74 -> 0 | X74: 0 | Y74: =ABS(Z74-A74) -> 0 | Z74: 65 | AC74: =proj16jul!E74 -> 0 | AD74: =proj16jul!F74 -> 0 | AE74: =AB74-AD74 -> 0 | AG74: 0 | AI74: 65 | AL74: 0 | AM74: 65 | AP74: 0
A75: 66 | B75: COLRAIN | C75: 66 | E75: =T75 -> 0 | F75: =U75 -> 0 | G75: =AA75 -> 0 | H75: =AB75 -> 0 | J75: =proj16aug!J75 -> 0 | K75: =proj16aug!K75 -> 0 | N75: =F75+J75 -> 0 | O75: =H75+K75 -> 0 | Q75: =SUM(E75:O75) -> 0 | R75: 0 | S75: 66 | V75: =proj16jul!C75 -> 0 | W75: =proj16jul!D75 -> 0 | X75: =U75-W75 -> 0 | Y75: 0 | Z75: 66 | AC75: =proj16jul!E75 -> 0 | AD75: =proj16jul!F75 -> 0 | AE75: 0 | AG75: =AI75-A75 -> 0 | AI75: 66 | AL75: =AJ75-T75 -> 0 | AM75: 66 | AP75: =AN75-AA75 -> 0
A76: 67 | B76: CONCORD | C76: 67 | E76: 0 | F76: 0 | G76: 3 | H76: 18400 | J76: =proj16aug!J76 -> 0 | K76: =proj16aug!K76 -> 0 | N76: 0 | O76: 18400 | Q76: 36803 | R76: 0 | S76: 67 | V76: =proj16jul!C76 -> 0 | W76: =proj16jul!D76 -> 0 | X76: 0 | Y76: 0 | Z76: 67 | AA76: 3 | AB76: 18400 | AC76: =proj16jul!E76 -> 3.36 | AD76: =proj16jul!F76 -> 20812 | AE76: -2412 | AG76: 0 | AI76: 67 | AL76: 0 | AM76: 67 | AN76: 3 | AO76: 18400 | AP76: 0
A77: 68 | B77: CONWAY | C77: 68 | E77: 21 | F77: 148737 | G77: 9 | H77: 72060 | J77: =proj16aug!J77 -> 0 | K77: =proj16aug!K77 -> 0 | N77: 148737 | O77: 72060 | Q77: 441624 | R77: 0 | S77: 68 | T77: 21 | U77: 148737 | V77: =proj16jul!C77 -> 19.82 | W77: =proj16jul!D77 -> 126837 | X77: 21900 | Y77: 0 | Z77: 68 | AA77: 9 | AB77: 72060 | AC77: =proj16jul!E77 -> 8 | AD77: =proj16jul!F77 -> 76433 | AE77: -4373 | AG77: 0 | AI77: 68 | AJ77: 21 | AK77: 105000 | AL77: 0 | AM77: 68 | AN77: 9 | AO77: 45000 | AP77: 0
A78: 69 | B78: CUMMINGTON | C78: 69 | E78: 0 | F78: 0 | G78: 0 | H78: 0 | J78: =proj16aug!J78 -> 0 | K78: =proj16aug!K78 -> 0 | N78: 0 | O78: 0 | Q78: 0 | R78: 0 | S78: 69 | V78: =proj16jul!C78 -> 0 | W78: =proj16jul!D78 -> 0 | X78: 0 | Y78: 0 | Z78: 69 | AC78: =proj16jul!E78 -> 0 | AD78: =proj16jul!F78 -> 0 | AE78: 0 | AG78: 0 | AI78: 69 | AL78: 0 | AM78: 69 | AP78: 0
A79: 70 | B79: DALTON | C79: 70 | E79: 0 | F79: 0 | G79: 0 | H79: 0 | J79: =proj16aug!J79 -> 0 | K79: =proj16aug!K79 -> 0 | N79: 0 | O79: 0 | Q79: 0 | R79: 0 | S79: 70 | V79: =proj16jul!C79 -> 0 | W79: =proj16jul!D79 -> 0 | X79: 0 | Y79: 0 | Z79: 70 | AC79: =proj16jul!E79 -> 0 | AD79: =proj16jul!F79 -> 0 | AE79: 0 | AG79: 0 | AI79: 70 | AL79: 0 | AM79: 70 | AP79: 0
A80: 71 | B80: DANVERS | C80: 71 | E80: 0 | F80: 0 | G80: 52 | H80: 278474 | J80: =proj16aug!J80 -> 0 | K80: =proj16aug!K80 -> 0 | N80: 0 | O80: 278474 | Q80: 557000 | R80: 0 | S80: 71 | V80: =proj16jul!C80 -> 0 | W80: =proj16jul!D80 -> 0 | X80: 0 | Y80: 0 | Z80: 71 | AA80: 52 | AB80: 278474 | AC80: =proj16jul!E80 -> 42.83 | AD80: =proj16jul!F80 -> 223719 | AE80: 54755 | AG80: 0 | AI80: 71 | AL80: 0 | AM80: 71 | AN80: 52 | AO80: 270200 | AP80: 0
A81: 72 | B81: DARTMOUTH | C81: 72 | E81: 0 | F81: 0 | G81: 3 | H81: 20100 | J81: =proj16aug!J81 -> 0 | K81: =proj16aug!K81 -> 0 | N81: 0 | O81: 20100 | Q81: 40203 | R81: 0 | S81: 72 | V81: =proj16jul!C81 -> 0 | W81: =proj16jul!D81 -> 0 | X81: 0 | Y81: 0 | Z81: 72 | AA81: 3 | AB81: 20100 | AC81: =proj16jul!E81 -> 3.6 | AD81: =proj16jul!F81 -> 22420 | AE81: -2320 | AG81: 0 | AI81: 72 | AL81: 0 | AM81: 72 | AN81: 3 | AO81: 20100 | AP81: 0
A82: 73 | B82: DEDHAM | C82: 73 | E82: 0 | F82: 0 | G82: 5 | H82: 36400 | J82: =proj16aug!J82 -> 0 | K82: =proj16aug!K82 -> 0 | N82: 0 | O82: 36400 | Q82: 72805 | R82: 0 | S82: 73 | V82: =proj16jul!C82 -> 0 | W82: =proj16jul!D82 -> 0 | X82: 0 | Y82: 0 | Z82: 73 | AA82: 5 | AB82: 36400 | AC82: =proj16jul!E82 -> 1.42 | AD82: =proj16jul!F82 -> 9514 | AE82: 26886 | AG82: 0 | AI82: 73 | AL82: 0 | AM82: 73 | AN82: 5 | AO82: 28400 | AP82: 0
A83: 74 | B83: DEERFIELD | C83: 74 | E83: 88 | F83: 572511 | G83: 22 | H83: 126100 | J83: =proj16aug!J83 -> 0 | K83: =proj16aug!K83 -> 0 | N83: 572511 | O83: 126100 | Q83: 1397332 | R83: 0 | S83: 74 | T83: 88 | U83: 572511 | V83: =proj16jul!C83 -> 100.67 | W83: =proj16jul!D83 -> 711861 | X83: -139350 | Y83: 0 | Z83: 74 | AA83: 22 | AB83: 126100 | AC83: =proj16jul!E83 -> 19.62 | AD83: =proj16jul!F83 -> 114130 | AE83: 11970 | AG83: 0 | AI83: 74 | AJ83: 88 | AK83: 440000 | AL83: 0 | AM83: 74 | AN83: 22 | AO83: 115100 | AP83: 0
A84: 75 | B84: DENNIS | C84: 75 | E84: 0 | F84: 0 | G84: 0 | H84: 0 | J84: =proj16aug!J84 -> 0 | K84: =proj16aug!K84 -> 0 | N84: 0 | O84: 0 | Q84: 0 | R84: 0 | S84: 75 | V84: =proj16jul!C84 -> 0 | W84: =proj16jul!D84 -> 0 | X84: 0 | Y84: 0 | Z84: 75 | AC84: =proj16jul!E84 -> 0 | AD84: =proj16jul!F84 -> 0 | AE84: 0 | AG84: 0 | AI84: 75 | AL84: 0 | AM84: 75 | AP84: 0
A85: 76 | B85: DIGHTON | C85: 76 | E85: 0 | F85: 0 | G85: 0 | H85: 0 | J85: =proj16aug!J85 -> 0 | K85: =proj16aug!K85 -> 0 | N85: 0 | O85: 0 | Q85: 0 | R85: 0 | S85: 76 | V85: =proj16jul!C85 -> 0 | W85: =proj16jul!D85 -> 0 | X85: 0 | Y85: 0 | Z85: 76 | AC85: =proj16jul!E85 -> 0 | AD85: =proj16jul!F85 -> 0 | AE85: 0 | AG85: 0 | AI85: 76 | AL85: 0 | AM85: 76 | AP85: 0
A86: 77 | B86: DOUGLAS | C86: 77 | E86: 111 | F86: 614852 | G86: 49 | H86: 284393 | J86: =proj16aug!J86 -> 0 | K86: =proj16aug!K86 -> 0 | N86: 614852 | O86: 284393 | Q86: 1798650 | R86: 0 | S86: 77 | T86: 111 | U86: 614852 | V86: =proj16jul!C86 -> 121.81 | W86: =proj16jul!D86 -> 677565 | X86: -62713 | Y86: 0 | Z86: 77 | AA86: 49 | AB86: 284393 | AC86: =proj16jul!E86 -> 47.39 | AD86: =proj16jul!F86 -> 265630 | AE86: 18763 | AG86: 0 | AI86: 77 | AJ86: 112 | AK86: 560000 | AL86: 1 | AM86: 77 | AN86: 49 | AO86: 253500 | AP86: 0
A87: 78 | B87: DOVER | C87: 78 | E87: 0 | F87: 0 | G87: 0 | H87: 0 | J87: =proj16aug!J87 -> 0 | K87: =proj16aug!K87 -> 0 | N87: 0 | O87: 0 | Q87: 0 | R87: 0 | S87: 78 | V87: =proj16jul!C87 -> 0 | W87: =proj16jul!D87 -> 0 | X87: 0 | Y87: 0 | Z87: 78 | AC87: =proj16jul!E87 -> 1.42 | AD87: =proj16jul!F87 -> 9514 | AE87: -9514 | AG87: 0 | AI87: 78 | AL87: 0 | AM87: 78 | AP87: 0
A88: 79 | B88: DRACUT | C88: 79 | E88: 29 | F88: 157640 | G88: 26 | H88: 158017 | J88: =proj16aug!J88 -> 0 | K88: =proj16aug!K88 -> 0 | N88: 157640 | O88: 158017 | Q88: 631369 | R88: 0 | S88: 79 | T88: 29 | U88: 157640 | V88: =proj16jul!C88 -> 26.94 | W88: =proj16jul!D88 -> 140340 | X88: 17300 | Y88: 0 | Z88: 79 | AA88: 26 | AB88: 158017 | AC88: =proj16jul!E88 -> 19.6 | AD88: =proj16jul!F88 -> 108837 | AE88: 49180 | AG88: 0 | AI88: 79 | AJ88: 29 | AK88: 145000 | AL88: 0 | AM88: 79 | AN88: 26 | AO88: 143600 | AP88: 0
A89: 80 | B89: DUDLEY | C89: 80 | E89: 0 | F89: 0 | G89: 0 | H89: 0 | J89: =proj16aug!J89 -> 0 | K89: =proj16aug!K89 -> 0 | N89: 0 | O89: 0 | Q89: 0 | R89: 0 | S89: 80 | V89: =proj16jul!C89 -> 0 | W89: =proj16jul!D89 -> 0 | X89: 0 | Y89: 0 | Z89: 80 | AC89: =proj16jul!E89 -> 0 | AD89: =proj16jul!F89 -> 0 | AE89: 0 | AG89: 0 | AI89: 80 | AL89: 0 | AM89: 80 | AP89: 0
A90: 81 | B90: DUNSTABLE | C90: 81 | E90: 0 | F90: 0 | G90: 0 | H90: 0 | J90: =proj16aug!J90 -> 0 | K90: =proj16aug!K90 -> 0 | N90: 0 | O90: 0 | Q90: 0 | R90: 0 | S90: 81 | V90: =proj16jul!C90 -> 0 | W90: =proj16jul!D90 -> 0 | X90: 0 | Y90: 0 | Z90: 81 | AC90: =proj16jul!E90 -> 0 | AD90: =proj16jul!F90 -> 0 | AE90: 0 | AG90: 0 | AI90: 81 | AL90: 0 | AM90: 81 | AP90: 0
A91: 82 | B91: DUXBURY | C91: 82 | E91: 0 | F91: 0 | G91: 1 | H91: 6700 | J91: =proj16aug!J91 -> 0 | K91: =proj16aug!K91 -> 0 | N91: 0 | O91: 6700 | Q91: 13401 | R91: 0 | S91: 82 | V91: =proj16jul!C91 -> 0 | W91: =proj16jul!D91 -> 0 | X91: 0 | Y91: 0 | Z91: 82 | AA91: 1 | AB91: 6700 | AC91: =proj16jul!E91 -> 1.18 | AD91: =proj16jul!F91 -> 7906 | AE91: -1206 | AG91: 0 | AI91: 82 | AL91: 0 | AM91: 82 | AN91: 1 | AO91: 6700 | AP91: 0
A92: 83 | B92: EAST BRIDGEWATER | C92: 83 | E92: 27 | F92: 201000 | G92: 22 | H92: 154021 | J92: =proj16aug!J92 -> 0 | K92: =proj16aug!K92 -> 0 | N92: 201000 | O92: 154021 | Q92: 710091 | R92: 0 | S92: 83 | T92: 27 | U92: 201000 | V92: =proj16jul!C92 -> 14.69 | W92: =proj16jul!D92 -> 73450 | X92: 127550 | Y92: 0 | Z92: 83 | AA92: 22 | AB92: 154021 | AC92: =proj16jul!E92 -> 22.44 | AD92: =proj16jul!F92 -> 167141 | AE92: -13120 | AG92: 0 | AI92: 83 | AJ92: 27 | AK92: 135000 | AL92: 0 | AM92: 83 | AN92: 20 | AO92: 96700 | AP92: -2
A93: 84 | B93: EAST BROOKFIELD | C93: 84 | E93: 0 | F93: 0 | G93: 6 | H93: 30000 | J93: =proj16aug!J93 -> 0 | K93: =proj16aug!K93 -> 0 | N93: 0 | O93: 30000 | Q93: 60006 | R93: 0 | S93: 84 | V93: =proj16jul!C93 -> 0 | W93: =proj16jul!D93 -> 0 | X93: 0 | Y93: 0 | Z93: 84 | AA93: 6 | AB93: 30000 | AC93: =proj16jul!E93 -> 6 | AD93: =proj16jul!F93 -> 30000 | AE93: 0 | AG93: 0 | AI93: 84 | AL93: 0 | AM93: 84 | AN93: 6 | AO93: 30000 | AP93: 0
A94: 85 | B94: EASTHAM | C94: 86 | E94: 0 | F94: 0 | G94: 7 | H94: 37560 | J94: =proj16aug!J94 -> 0 | K94: =proj16aug!K94 -> 0 | N94: 0 | O94: 37560 | Q94: 75127 | R94: 0 | S94: 85 | V94: =proj16jul!C94 -> 0 | W94: =proj16jul!D94 -> 0 | X94: 0 | Y94: 0 | Z94: 85 | AA94: 7 | AB94: 37560 | AC94: =proj16jul!E94 -> 6.14 | AD94: =proj16jul!F94 -> 36124 | AE94: 1436 | AG94: 0 | AI94: 85 | AL94: 0 | AM94: 85 | AN94: 7 | AO94: 35000 | AP94: 0
A95: 86 | B95: EASTHAMPTON | C95: 87 | E95: 86 | F95: 467402 | G95: 173 | H95: 1154611 | J95: =proj16aug!J95 -> 0 | K95: =proj16aug!K95 -> 0 | N95: 467402 | O95: 1154611 | Q95: 3244285 | R95: 0 | S95: 86 | T95: 86 | U95: 467402 | V95: =proj16jul!C95 -> 84.16 | W95: =proj16jul!D95 -> 429763 | X95: 37639 | Y95: 0 | Z95: 86 | AA95: 173 | AB95: 1154611 | AC95: =proj16jul!E95 -> 189.24 | AD95: =proj16jul!F95 -> 1291064 | AE95: -136453 | AG95: 0 | AI95: 86 | AJ95: 86 | AK95: 430000 | AL95: 0 | AM95: 86 | AN95: 169 | AO95: 850100 | AP95: -4
A96: 87 | B96: EAST LONGMEADOW | C96: 85 | E96: 0 | F96: 0 | G96: 9 | H96: 62800 | J96: =proj16aug!J96 -> 0 | K96: =proj16aug!K96 -> 0 | N96: 0 | O96: 62800 | Q96: 125609 | R96: 0 | S96: 87 | V96: =proj16jul!C96 -> 0 | W96: =proj16jul!D96 -> 0 | X96: 0 | Y96: 0 | Z96: 87 | AA96: 9 | AB96: 62800 | AC96: =proj16jul!E96 -> 6.01 | AD96: =proj16jul!F96 -> 33467 | AE96: 29333 | AG96: 0 | AI96: 87 | AL96: 0 | AM96: 87 | AN96: 8 | AO96: 46800 | AP96: -1
A97: 88 | B97: EASTON | C97: 88 | E97: 0 | F97: 0 | G97: 9 | H97: 54921 | J97: =proj16aug!J97 -> 0 | K97: =proj16aug!K97 -> 0 | N97: 0 | O97: 54921 | Q97: 109851 | R97: 0 | S97: 88 | V97: =proj16jul!C97 -> 0 | W97: =proj16jul!D97 -> 0 | X97: 0 | Y97: 0 | Z97: 88 | AA97: 9 | AB97: 54921 | AC97: =proj16jul!E97 -> 4.9 | AD97: =proj16jul!F97 -> 26914 | AE97: 28007 | AG97: 0 | AI97: 88 | AL97: 0 | AM97: 88 | AN97: 9 | AO97: 50100 | AP97: 0
A98: 89 | B98: EDGARTOWN | C98: 89 | E98: 8 | F98: 51028 | G98: 33 | H98: 189337 | J98: =proj16aug!J98 -> 0 | K98: =proj16aug!K98 -> 0 | N98: 51028 | O98: 189337 | Q98: 480771 | R98: 0 | S98: 89 | T98: 8 | U98: 51028 | V98: =proj16jul!C98 -> 12.64 | W98: =proj16jul!D98 -> 74997 | X98: -23969 | Y98: 0 | Z98: 89 | AA98: 33 | AB98: 189337 | AC98: =proj16jul!E98 -> 32.45 | AD98: =proj16jul!F98 -> 180161 | AE98: 9176 | AG98: 0 | AI98: 89 | AJ98: 9 | AK98: 45000 | AL98: 1 | AM98: 89 | AN98: 33 | AO98: 165000 | AP98: 0
A99: 90 | B99: EGREMONT | C99: 90 | E99: 0 | F99: 0 | G99: 0 | H99: 0 | J99: =proj16aug!J99 -> 0 | K99: =proj16aug!K99 -> 0 | N99: 0 | O99: 0 | Q99: 0 | R99: 0 | S99: 90 | V99: =proj16jul!C99 -> 0 | W99: =proj16jul!D99 -> 0 | X99: 0 | Y99: 0 | Z99: 90 | AC99: =proj16jul!E99 -> 0 | AD99: =proj16jul!F99 -> 0 | AE99: 0 | AG99: 0 | AI99: 90 | AL99: 0 | AM99: 90 | AP99: 0
A100: 91 | B100: ERVING | C100: 91 | E100: 0 | F100: 0 | G100: 34 | H100: 183768 | J100: =proj16aug!J100 -> 0 | K100: =proj16aug!K100 -> 0 | N100: 0 | O100: 183768 | Q100: 367570 | R100: 0 | S100: 91 | V100: =proj16jul!C100 -> 0 | W100: =proj16jul!D100 -> 0 | X100: 0 | Y100: 0 | Z100: 91 | AA100: 34 | AB100: 183768 | AC100: =proj16jul!E100 -> 40.84 | AD100: =proj16jul!F100 -> 289481 | AE100: -105713 | AG100: 0 | AI100: 91 | AL100: 0 | AM100: 91 | AN100: 32 | AO100: 160000 | AP100: -2
A101: 92 | B101: ESSEX | C101: 92 | E101: 0 | F101: 0 | G101: 0 | H101: 0 | J101: =proj16aug!J101 -> 0 | K101: =proj16aug!K101 -> 0 | N101: 0 | O101: 0 | Q101: 0 | R101: 0 | S101: 92 | V101: =proj16jul!C101 -> 0 | W101: =proj16jul!D101 -> 0 | X101: 0 | Y101: 0 | Z101: 92 | AC101: =proj16jul!E101 -> 0 | AD101: =proj16jul!F101 -> 0 | AE101: 0 | AG101: 0 | AI101: 92 | AL101: 0 | AM101: 92 | AP101: 0
A102: 93 | B102: EVERETT | C102: 93 | E102: 0 | F102: 0 | G102: 16 | H102: 100274 | J102: =proj16aug!J102 -> 0 | K102: =proj16aug!K102 -> 0 | N102: 0 | O102: 100274 | Q102: 200564 | R102: 0 | S102: 93 | V102: =proj16jul!C102 -> 0 | W102: =proj16jul!D102 -> 0 | X102: 0 | Y102: 0 | Z102: 93 | AA102: 16 | AB102: 100274 | AC102: =proj16jul!E102 -> 15.81 | AD102: =proj16jul!F102 -> 93873 | AE102: 6401 | AG102: 0 | AI102: 93 | AL102: 0 | AM102: 93 | AN102: 17 | AO102: 91876 | AP102: 1
A103: 94 | B103: FAIRHAVEN | C103: 94 | E103: 0 | F103: 0 | G103: 12 | H103: 72646 | J103: =proj16aug!J103 -> 0 | K103: =proj16aug!K103 -> 0 | N103: 0 | O103: 72646 | Q103: 145304 | R103: 0 | S103: 94 | V103: =proj16jul!C103 -> 0 | W103: =proj16jul!D103 -> 0 | X103: 0 | Y103: 0 | Z103: 94 | AA103: 12 | AB103: 72646 | AC103: =proj16jul!E103 -> 12.78 | AD103: =proj16jul!F103 -> 75861 | AE103: -3215 | AG103: 0 | AI103: 94 | AL103: 0 | AM103: 94 | AN103: 13 | AO103: 66700 | AP103: 1
A104: 95 | B104: FALL RIVER | C104: 95 | E104: 33 | F104: 213000 | G104: 106 | H104: 633074 | J104: =proj16aug!J104 -> 0 | K104: =proj16aug!K104 -> 0 | N104: 213000 | O104: 633074 | Q104: 1692287 | R104: 0 | S104: 95 | T104: 33 | U104: 213000 | V104: =proj16jul!C104 -> 16.41 | W104: =proj16jul!D104 -> 82050 | X104: 130950 | Y104: 0 | Z104: 95 | AA104: 106 | AB104: 633074 | AC104: =proj16jul!E104 -> 67.86 | AD104: =proj16jul!F104 -> 394695 | AE104: 238379 | AG104: 0 | AI104: 95 | AJ104: 34.5 | AK104: 172500 | AL104: 1.5 | AM104: 95 | AN104: 106 | AO104: 572500 | AP104: 0
A105: 96 | B105: FALMOUTH | C105: 96 | E105: 112 | F105: 696289 | G105: 35 | H105: 200977 | J105: =proj16aug!J105 -> 0 | K105: =proj16aug!K105 -> 0 | N105: 696289 | O105: 200977 | Q105: 1794679 | R105: 0 | S105: 96 | T105: 112 | U105: 696289 | V105: =proj16jul!C105 -> 91.45 | W105: =proj16jul!D105 -> 581601 | X105: 114688 | Y105: 0 | Z105: 96 | AA105: 35 | AB105: 200977 | AC105: =proj16jul!E105 -> 46.58 | AD105: =proj16jul!F105 -> 261955 | AE105: -60978 | AG105: 0 | AI105: 96 | AJ105: 112 | AK105: 560000 | AL105: 0 | AM105: 96 | AN105: 36 | AO105: 186800 | AP105: 1
A106: 97 | B106: FITCHBURG | C106: 97 | E106: 170 | F106: 973989 | G106: 426 | H106: 2504850 | J106: =proj16aug!J106 -> 0 | K106: =proj16aug!K106 -> 0 | N106: 973989 | O106: 2504850 | Q106: 6958274 | R106: 0 | S106: 97 | T106: 170 | U106: 973989 | V106: =proj16jul!C106 -> 180.12 | W106: =proj16jul!D106 -> 1048411 | X106: -74422 | Y106: 0 | Z106: 97 | AA106: 426 | AB106: 2504850 | AC106: =proj16jul!E106 -> 419.85 | AD106: =proj16jul!F106 -> 2451589 | AE106: 53261 | AG106: 0 | AI106: 97 | AJ106: 170 | AK106: 850000 | AL106: 0 | AM106: 97 | AN106: 377 | AO106: 1908800 | AP106: -49
A107: 98 | B107: FLORIDA | C107: 98 | E107: 1 | F107: 5000 | G107: 7 | H107: 47000 | J107: =proj16aug!J107 -> 0 | K107: =proj16aug!K107 -> 0 | N107: 5000 | O107: 47000 | Q107: 104008 | R107: 0 | S107: 98 | T107: 1 | U107: 5000 | V107: =proj16jul!C107 -> 2 | W107: =proj16jul!D107 -> 11708 | X107: -6708 | Y107: 0 | Z107: 98 | AA107: 7 | AB107: 47000 | AC107: =proj16jul!E107 -> 4 | AD107: =proj16jul!F107 -> 20000 | AE107: 27000 | AG107: 0 | AI107: 98 | AJ107: 1 | AK107: 5000 | AL107: 0 | AM107: 98 | AN107: 7 | AO107: 35000 | AP107: 0
A108: 99 | B108: FOXBOROUGH | C108: 99 | E108: 0 | F108: 0 | G108: 5 | H108: 28400 | J108: =proj16aug!J108 -> 0 | K108: =proj16aug!K108 -> 0 | N108: 0 | O108: 28400 | Q108: 56805 | R108: 0 | S108: 99 | V108: =proj16jul!C108 -> 0 | W108: =proj16jul!D108 -> 0 | X108: 0 | Y108: 0 | Z108: 99 | AA108: 5 | AB108: 28400 | AC108: =proj16jul!E108 -> 0.59 | AD108: =proj16jul!F108 -> 3953 | AE108: 24447 | AG108: 0 | AI108: 99 | AL108: 0 | AM108: 99 | AN108: 5 | AO108: 28400 | AP108: 0
A109: 100 | B109: FRAMINGHAM | C109: 100 | E109: 0 | F109: 0 | G109: 61 | H109: 377803 | J109: =proj16aug!J109 -> 0 | K109: =proj16aug!K109 -> 0 | N109: 0 | O109: 377803 | Q109: 755667 | R109: 0 | S109: 100 | V109: =proj16jul!C109 -> 0 | W109: =proj16jul!D109 -> 0 | X109: 0 | Y109: 0 | Z109: 100 | AA109: 61 | AB109: 377803 | AC109: =proj16jul!E109 -> 52.2 | AD109: =proj16jul!F109 -> 312643 | AE109: 65160 | AG109: 0 | AI109: 100 | AL109: 0 | AM109: 100 | AN109: 61 | AO109: 333900 | AP109: 0
A110: 101 | B110: FRANKLIN | C110: 101 | E110: 7 | F110: 39000 | G110: 31.5 | H110: 193953 | J110: =proj16aug!J110 -> 0 | K110: =proj16aug!K110 -> 10000 | N110: 39000 | O110: 203953 | Q110: 485944.5 | R110: 0 | S110: 101 | T110: 7 | U110: 39000 | V110: =proj16jul!C110 -> 10 | W110: =proj16jul!D110 -> 50468 | X110: -11468 | Y110: 0 | Z110: 101 | AA110: 31.5 | AB110: 193953 | AC110: =proj16jul!E110 -> 26.06 | AD110: =proj16jul!F110 -> 141344 | AE110: 52609 | AG110: 0 | AI110: 101 | AJ110: 7 | AK110: 35000 | AL110: 0 | AM110: 101 | AN110: 31.5 | AO110: 172800 | AP110: 0
A111: 102 | B111: FREETOWN | C111: 102 | E111: 0 | F111: 0 | G111: 1 | H111: 5000 | J111: =proj16aug!J111 -> 0 | K111: =proj16aug!K111 -> 0 | N111: 0 | O111: 5000 | Q111: 10001 | R111: 0 | S111: 102 | V111: =proj16jul!C111 -> 0 | W111: =proj16jul!D111 -> 0 | X111: 0 | Y111: 0 | Z111: 102 | AA111: 1 | AB111: 5000 | AC111: =proj16jul!E111 -> 0 | AD111: =proj16jul!F111 -> 0 | AE111: 5000 | AG111: 0 | AI111: 102 | AL111: 0 | AM111: 102 | AN111: 1 | AO111: 5000 | AP111: 0
A112: 103 | B112: GARDNER | C112: 103 | E112: 116 | F112: 667591 | G112: 241 | H112: 1311559 | J112: =proj16aug!J112 -> 0 | K112: =proj16aug!K112 -> 0 | N112: 667591 | O112: 1311559 | Q112: 3958657 | R112: 0 | S112: 103 | T112: 116 | U112: 667591 | V112: =proj16jul!C112 -> 140.23 | W112: =proj16jul!D112 -> 773133 | X112: -105542 | Y112: 0 | Z112: 103 | AA112: 241 | AB112: 1311559 | AC112: =proj16jul!E112 -> 188.07 | AD112: =proj16jul!F112 -> 1002576 | AE112: 308983 | AG112: 0 | AI112: 103 | AJ112: 117 | AK112: 575000 | AL112: 1 | AM112: 103 | AN112: 130.5 | AO112: 674600 | AP112: -110.5
A113: 104 | B113: GAY HEAD | C113: 104 | E113: 0 | F113: 0 | G113: 0 | H113: 0 | J113: =proj16aug!J113 -> 0 | K113: =proj16aug!K113 -> 0 | N113: 0 | O113: 0 | Q113: 0 | R113: 0 | S113: 104 | V113: =proj16jul!C113 -> 0 | W113: =proj16jul!D113 -> 0 | X113: 0 | Y113: 0 | Z113: 104 | AC113: =proj16jul!E113 -> 0 | AD113: =proj16jul!F113 -> 0 | AE113: 0 | AG113: 0 | AI113: 104 | AL113: 0 | AM113: 104 | AP113: 0
A114: 105 | B114: GEORGETOWN | C114: 105 | E114: 37 | F114: 190439 | G114: 22 | H114: 191661 | J114: =proj16aug!J114 -> 0 | K114: =proj16aug!K114 -> 0 | N114: 190439 | O114: 191661 | Q114: 764259 | R114: 0 | S114: 105 | T114: 37 | U114: 190439 | V114: =proj16jul!C114 -> 38 | W114: =proj16jul!D114 -> 196130 | X114: -5691 | Y114: 0 | Z114: 105 | AA114: 22 | AB114: 191661 | AC114: =proj16jul!E114 -> 22.77 | AD114: =proj16jul!F114 -> 197267 | AE114: -5606 | AG114: 0 | AI114: 105 | AJ114: 37 | AK114: 185000 | AL114: 0 | AM114: 105 | AN114: 22.5 | AO114: 112600 | AP114: 0.5
A115: 106 | B115: GILL | C115: 106 | E115: 0 | F115: 0 | G115: 0 | H115: 0 | J115: =proj16aug!J115 -> 0 | K115: =proj16aug!K115 -> 0 | N115: 0 | O115: 0 | Q115: 0 | R115: 0 | S115: 106 | V115: =proj16jul!C115 -> 0 | W115: =proj16jul!D115 -> 0 | X115: 0 | Y115: 0 | Z115: 106 | AC115: =proj16jul!E115 -> 0 | AD115: =proj16jul!F115 -> 0 | AE115: 0 | AG115: 0 | AI115: 106 | AL115: 0 | AM115: 106 | AP115: 0
A116: 107 | B116: GLOUCESTER | C116: 107 | E116: 36 | F116: 193525 | G116: 303 | H116: 1675296 | J116: =proj16aug!J116 -> 0 | K116: =proj16aug!K116 -> 0 | N116: 193525 | O116: 1675296 | Q116: 3737981 | R116: 0 | S116: 107 | T116: 36 | U116: 193525 | V116: =proj16jul!C116 -> 39.2 | W116: =proj16jul!D116 -> 214791 | X116: -21266 | Y116: 0 | Z116: 107 | AA116: 303 | AB116: 1675296 | AC116: =proj16jul!E116 -> 303.86 | AD116: =proj16jul!F116 -> 1651567 | AE116: 23729 | AG116: 0 | AI116: 107 | AJ116: 36 | AK116: 180000 | AL116: 0 | AM116: 107 | AN116: 303 | AO116: 1520100 | AP116: 0
A117: 108 | B117: GOSHEN | C117: 108 | E117: 0 | F117: 0 | G117: 0 | H117: 0 | J117: =proj16aug!J117 -> 0 | K117: =proj16aug!K117 -> 0 | N117: 0 | O117: 0 | Q117: 0 | R117: 0 | S117: 108 | V117: =proj16jul!C117 -> 0 | W117: =proj16jul!D117 -> 0 | X117: 0 | Y117: 0 | Z117: 108 | AC117: =proj16jul!E117 -> 0 | AD117: =proj16jul!F117 -> 0 | AE117: 0 | AG117: 0 | AI117: 108 | AL117: 0 | AM117: 108 | AP117: 0
A118: 109 | B118: GOSNOLD | C118: 109 | E118: 0 | F118: 0 | G118: 0 | H118: 0 | J118: =proj16aug!J118 -> 0 | K118: =proj16aug!K118 -> 0 | N118: 0 | O118: 0 | Q118: 0 | R118: 0 | S118: 109 | V118: =proj16jul!C118 -> 0 | W118: =proj16jul!D118 -> 0 | X118: 0 | Y118: 0 | Z118: 109 | AC118: =proj16jul!E118 -> 0 | AD118: =proj16jul!F118 -> 0 | AE118: 0 | AG118: 0 | AI118: 109 | AL118: 0 | AM118: 109 | AP118: 0
A119: 110 | B119: GRAFTON | C119: 110 | E119: 42 | F119: 266367 | G119: 35 | H119: 202296 | J119: =proj16aug!J119 -> 0 | K119: =proj16aug!K119 -> 0 | N119: 266367 | O119: 202296 | Q119: 937403 | R119: 0 | S119: 110 | T119: 42 | U119: 266367 | V119: =proj16jul!C119 -> 31.53 | W119: =proj16jul!D119 -> 191757 | X119: 74610 | Y119: 0 | Z119: 110 | AA119: 35 | AB119: 202296 | AC119: =proj16jul!E119 -> 25.52 | AD119: =proj16jul!F119 -> 143393 | AE119: 58903 | AG119: 0 | AI119: 110 | AJ119: 42 | AK119: 210000 | AL119: 0 | AM119: 110 | AN119: 35 | AO119: 186900 | AP119: 0
A120: 111 | B120: GRANBY | C120: 111 | E120: 116 | F120: 667038 | G120: 48 | H120: 303479 | J120: =proj16aug!J120 -> 0 | K120: =proj16aug!K120 -> 0 | N120: 667038 | O120: 303479 | Q120: 1941198 | R120: 0 | S120: 111 | T120: 116 | U120: 667038 | V120: =proj16jul!C120 -> 132.75 | W120: =proj16jul!D120 -> 750306 | X120: -83268 | Y120: 0 | Z120: 111 | AA120: 48 | AB120: 303479 | AC120: =proj16jul!E120 -> 48.22 | AD120: =proj16jul!F120 -> 286171 | AE120: 17308 | AG120: 0 | AI120: 111 | AJ120: 116 | AK120: 580000 | AL120: 0 | AM120: 111 | AN120: 30 | AO120: 148400 | AP120: -18
A121: 112 | B121: GRANVILLE | C121: 112 | E121: 0 | F121: 0 | G121: 0 | H121: 0 | J121: =proj16aug!J121 -> 0 | K121: =proj16aug!K121 -> 0 | N121: 0 | O121: 0 | Q121: 0 | R121: 0 | S121: 112 | V121: =proj16jul!C121 -> 0 | W121: =proj16jul!D121 -> 0 | X121: 0 | Y121: 0 | Z121: 112 | AC121: =proj16jul!E121 -> 0 | AD121: =proj16jul!F121 -> 0 | AE121: 0 | AG121: 0 | AI121: 112 | AL121: 0 | AM121: 112 | AP121: 0
A122: 113 | B122: GREAT BARRINGTON | C122: 113 | E122: 0 | F122: 0 | G122: 0 | H122: 0 | J122: =proj16aug!J122 -> 0 | K122: =proj16aug!K122 -> 0 | N122: 0 | O122: 0 | Q122: 0 | R122: 0 | S122: 113 | V122: =proj16jul!C122 -> 0 | W122: =proj16jul!D122 -> 0 | X122: 0 | Y122: 0 | Z122: 113 | AC122: =proj16jul!E122 -> 0 | AD122: =proj16jul!F122 -> 0 | AE122: 0 | AG122: 0 | AI122: 113 | AL122: 0 | AM122: 113 | AP122: 0
A123: 114 | B123: GREENFIELD | C123: 114 | E123: 109 | F123: 661041 | G123: 319.5 | H123: 2219044 | J123: =proj16aug!J123 -> 0 | K123: =proj16aug!K123 -> 0 | N123: 661041 | O123: 2219044 | Q123: 5760598.5 | R123: 0 | S123: 114 | T123: 109 | U123: 661041 | V123: =proj16jul!C123 -> 92.59 | W123: =proj16jul!D123 -> 578152 | X123: 82889 | Y123: 0 | Z123: 114 | AA123: 319.5 | AB123: 2219044 | AC123: =proj16jul!E123 -> 326.22 | AD123: =proj16jul!F123 -> 2309748 | AE123: -90704 | AG123: 0 | AI123: 114 | AJ123: 109 | AK123: 545000 | AL123: 0 | AM123: 114 | AN123: 319.5 | AO123: 1627388 | AP123: 0
A124: 115 | B124: GROTON | C124: 115 | E124: 0 | F124: 0 | G124: 0 | H124: 0 | J124: =proj16aug!J124 -> 0 | K124: =proj16aug!K124 -> 0 | N124: 0 | O124: 0 | Q124: 0 | R124: 0 | S124: 115 | V124: =proj16jul!C124 -> 0 | W124: =proj16jul!D124 -> 0 | X124: 0 | Y124: 0 | Z124: 115 | AC124: =proj16jul!E124 -> 0 | AD124: =proj16jul!F124 -> 0 | AE124: 0 | AG124: 0 | AI124: 115 | AL124: 0 | AM124: 115 | AP124: 0
A125: 116 | B125: GROVELAND | C125: 116 | E125: 0 | F125: 0 | G125: 0 | H125: 0 | J125: =proj16aug!J125 -> 0 | K125: =proj16aug!K125 -> 0 | N125: 0 | O125: 0 | Q125: 0 | R125: 0 | S125: 116 | V125: =proj16jul!C125 -> 0 | W125: =proj16jul!D125 -> 0 | X125: 0 | Y125: 0 | Z125: 116 | AC125: =proj16jul!E125 -> 0 | AD125: =proj16jul!F125 -> 0 | AE125: 0 | AG125: 0 | AI125: 116 | AL125: 0 | AM125: 116 | AP125: 0
A126: 117 | B126: HADLEY | C126: 117 | E126: 97 | F126: 545205 | G126: 48 | H126: 314228 | J126: =proj16aug!J126 -> 0 | K126: =proj16aug!K126 -> 0 | N126: 545205 | O126: 314228 | Q126: 1719011 | R126: 0 | S126: 117 | T126: 97 | U126: 545205 | V126: =proj16jul!C126 -> 102.43 | W126: =proj16jul!D126 -> 589766 | X126: -44561 | Y126: 0 | Z126: 117 | AA126: 48 | AB126: 314228 | AC126: =proj16jul!E126 -> 57.59 | AD126: =proj16jul!F126 -> 385346 | AE126: -71118 | AG126: 0 | AI126: 117 | AJ126: 98 | AK126: 485000 | AL126: 1 | AM126: 117 | AN126: 48 | AO126: 246800 | AP126: 0
A127: 118 | B127: HALIFAX | C127: 118 | E127: 0 | F127: 0 | G127: 1 | H127: 5000 | J127: =proj16aug!J127 -> 0 | K127: =proj16aug!K127 -> 0 | N127: 0 | O127: 5000 | Q127: 10001 | R127: 0 | S127: 118 | V127: =proj16jul!C127 -> 0 | W127: =proj16jul!D127 -> 0 | X127: 0 | Y127: 0 | Z127: 118 | AA127: 1 | AB127: 5000 | AC127: =proj16jul!E127 -> 1 | AD127: =proj16jul!F127 -> 5000 | AE127: 0 | AG127: 0 | AI127: 118 | AL127: 0 | AM127: 118 | AN127: 1 | AO127: 5000 | AP127: 0
A128: 119 | B128: HAMILTON | C128: 119 | E128: 0 | F128: 0 | G128: 0 | H128: 0 | J128: =proj16aug!J128 -> 0 | K128: =proj16aug!K128 -> 0 | N128: 0 | O128: 0 | Q128: 0 | R128: 0 | S128: 119 | V128: =proj16jul!C128 -> 0 | W128: =proj16jul!D128 -> 0 | X128: 0 | Y128: 0 | Z128: 119 | AC128: =proj16jul!E128 -> 0 | AD128: =proj16jul!F128 -> 0 | AE128: 0 | AG128: 0 | AI128: 119 | AL128: 0 | AM128: 119 | AP128: 0
A129: 120 | B129: HAMPDEN | C129: 120 | E129: 0 | F129: 0 | G129: 0 | H129: 0 | J129: =proj16aug!J129 -> 0 | K129: =proj16aug!K129 -> 0 | N129: 0 | O129: 0 | Q129: 0 | R129: 0 | S129: 120 | V129: =proj16jul!C129 -> 0 | W129: =proj16jul!D129 -> 0 | X129: 0 | Y129: 0 | Z129: 120 | AC129: =proj16jul!E129 -> 0 | AD129: =proj16jul!F129 -> 0 | AE129: 0 | AG129: 0 | AI129: 120 | AL129: 0 | AM129: 120 | AP129: 0
A130: 121 | B130: HANCOCK | C130: 121 | E130: 4 | F130: 24000 | G130: 5 | H130: 25000 | J130: =proj16aug!J130 -> 0 | K130: =proj16aug!K130 -> 0 | N130: 24000 | O130: 25000 | Q130: 98009 | R130: 0 | S130: 121 | T130: 4 | U130: 24000 | V130: =proj16jul!C130 -> 3 | W130: =proj16jul!D130 -> 15000 | X130: 9000 | Y130: 0 | Z130: 121 | AA130: 5 | AB130: 25000 | AC130: =proj16jul!E130 -> 11 | AD130: =proj16jul!F130 -> 55000 | AE130: -30000 | AG130: 0 | AI130: 121 | AJ130: 4 | AK130: 20000 | AL130: 0 | AM130: 121 | AN130: 5 | AO130: 25000 | AP130: 0
A131: 122 | B131: HANOVER | C131: 122 | E131: 0 | F131: 0 | G131: 2 | H131: 10000 | J131: =proj16aug!J131 -> 0 | K131: =proj16aug!K131 -> 0 | N131: 0 | O131: 10000 | Q131: 20002 | R131: 0 | S131: 122 | V131: =proj16jul!C131 -> 0 | W131: =proj16jul!D131 -> 0 | X131: 0 | Y131: 0 | Z131: 122 | AA131: 2 | AB131: 10000 | AC131: =proj16jul!E131 -> 0 | AD131: =proj16jul!F131 -> 0 | AE131: 10000 | AG131: 0 | AI131: 122 | AL131: 0 | AM131: 122 | AN131: 2 | AO131: 10000 | AP131: 0
A132: 123 | B132: HANSON | C132: 123 | E132: 0 | F132: 0 | G132: 0 | H132: 0 | J132: =proj16aug!J132 -> 0 | K132: =proj16aug!K132 -> 0 | N132: 0 | O132: 0 | Q132: 0 | R132: 0 | S132: 123 | V132: =proj16jul!C132 -> 0 | W132: =proj16jul!D132 -> 0 | X132: 0 | Y132: 0 | Z132: 123 | AC132: =proj16jul!E132 -> 0 | AD132: =proj16jul!F132 -> 0 | AE132: 0 | AG132: 0 | AI132: 123 | AL132: 0 | AM132: 123 | AP132: 0
A133: 124 | B133: HARDWICK | C133: 124 | E133: 0 | F133: 0 | G133: 0 | H133: 0 | J133: =proj16aug!J133 -> 0 | K133: =proj16aug!K133 -> 0 | N133: 0 | O133: 0 | Q133: 0 | R133: 0 | S133: 124 | V133: =proj16jul!C133 -> 0 | W133: =proj16jul!D133 -> 0 | X133: 0 | Y133: 0 | Z133: 124 | AC133: =proj16jul!E133 -> 0 | AD133: =proj16jul!F133 -> 0 | AE133: 0 | AG133: 0 | AI133: 124 | AL133: 0 | AM133: 124 | AP133: 0
A134: 125 | B134: HARVARD | C134: 125 | E134: 68 | F134: 358354 | G134: 4 | H134: 20000 | J134: =proj16aug!J134 -> 0 | K134: =proj16aug!K134 -> 0 | N134: 358354 | O134: 20000 | Q134: 756780 | R134: 0 | S134: 125 | T134: 68 | U134: 358354 | V134: =proj16jul!C134 -> 70 | W134: =proj16jul!D134 -> 368354 | X134: -10000 | Y134: 0 | Z134: 125 | AA134: 4 | AB134: 20000 | AC134: =proj16jul!E134 -> 5 | AD134: =proj16jul!F134 -> 31314 | AE134: -11314 | AG134: 0 | AI134: 125 | AJ134: 68 | AK134: 340000 | AL134: 0 | AM134: 125 | AN134: 4 | AO134: 20000 | AP134: 0
A135: 126 | B135: HARWICH | C135: 126 | E135: 0 | F135: 0 | G135: 0 | H135: 0 | J135: =proj16aug!J135 -> 0 | K135: =proj16aug!K135 -> 0 | N135: 0 | O135: 0 | Q135: 0 | R135: 0 | S135: 126 | V135: =proj16jul!C135 -> 0 | W135: =proj16jul!D135 -> 0 | X135: 0 | Y135: 0 | Z135: 126 | AC135: =proj16jul!E135 -> 1.18 | AD135: =proj16jul!F135 -> 7906 | AE135: -7906 | AG135: 0 | AI135: 126 | AL135: 0 | AM135: 126 | AP135: 0
A136: 127 | B136: HATFIELD | C136: 127 | E136: 131 | F136: 850119 | G136: 30 | H136: 205121 | J136: =proj16aug!J136 -> 0 | K136: =proj16aug!K136 -> 0 | N136: 850119 | O136: 205121 | Q136: 2110641 | R136: 0 | S136: 127 | T136: 131 | U136: 850119 | V136: =proj16jul!C136 -> 124 | W136: =proj16jul!D136 -> 838623 | X136: 11496 | Y136: 0 | Z136: 127 | AA136: 30 | AB136: 205121 | AC136: =proj16jul!E136 -> 28.3 | AD136: =proj16jul!F136 -> 202217 | AE136: 2904 | AG136: 0 | AI136: 127 | AJ136: 131 | AK136: 655000 | AL136: 0 | AM136: 127 | AN136: 30 | AO136: 160200 | AP136: 0
A137: 128 | B137: HAVERHILL | C137: 128 | E137: 36 | F137: 191343 | G137: 189 | H137: 1095599 | J137: =proj16aug!J137 -> 0 | K137: =proj16aug!K137 -> 0 | N137: 191343 | O137: 1095599 | Q137: 2574109 | R137: 0 | S137: 128 | T137: 36 | U137: 191343 | V137: =proj16jul!C137 -> 42.49 | W137: =proj16jul!D137 -> 247501 | X137: -56158 | Y137: 0 | Z137: 128 | AA137: 189 | AB137: 1095599 | AC137: =proj16jul!E137 -> 211.74 | AD137: =proj16jul!F137 -> 1190061 | AE137: -94462 | AG137: 0 | AI137: 128 | AJ137: 36 | AK137: 180000 | AL137: 0 | AM137: 128 | AN137: 189 | AO137: 974788 | AP137: 0
A138: 129 | B138: HAWLEY | C138: 129 | E138: 0 | F138: 0 | G138: 0 | H138: 0 | J138: =proj16aug!J138 -> 0 | K138: =proj16aug!K138 -> 0 | N138: 0 | O138: 0 | Q138: 0 | R138: =ABS(A138-S138) -> 0 | S138: 129 | V138: =proj16jul!C138 -> 0 | W138: =proj16jul!D138 -> 0 | X138: 0 | Y138: =ABS(Z138-A138) -> 0 | Z138: 129 | AC138: =proj16jul!E138 -> 0 | AD138: =proj16jul!F138 -> 0 | AE138: =AB138-AD138 -> 0 | AG138: 0 | AI138: 129 | AL138: 0 | AM138: 129 | AP138: 0
A139: 130 | B139: HEATH | C139: 130 | E139: =T139 -> 0 | F139: =U139 -> 0 | G139: =AA139 -> 0 | H139: =AB139 -> 0 | J139: =proj16aug!J139 -> 0 | K139: =proj16aug!K139 -> 0 | N139: =F139+J139 -> 0 | O139: =H139+K139 -> 0 | Q139: =SUM(E139:O139) -> 0 | R139: 0 | S139: 130 | V139: =proj16jul!C139 -> 0 | W139: =proj16jul!D139 -> 0 | X139: =U139-W139 -> 0 | Y139: 0 | Z139: 130 | AC139: =proj16jul!E139 -> 0 | AD139: =proj16jul!F139 -> 0 | AE139: 0 | AG139: =AI139-A139 -> 0 | AI139: 130 | AL139: =AJ139-T139 -> 0 | AM139: 130 | AP139: =AN139-AA139 -> 0
A140: 131 | B140: HINGHAM | C140: 131 | E140: 0 | F140: 0 | G140: 3 | H140: 28100 | J140: =proj16aug!J140 -> 0 | K140: =proj16aug!K140 -> 0 | N140: 0 | O140: 28100 | Q140: 56203 | R140: 0 | S140: 131 | V140: =proj16jul!C140 -> 0 | W140: =proj16jul!D140 -> 0 | X140: 0 | Y140: 0 | Z140: 131 | AA140: 3 | AB140: 28100 | AC140: =proj16jul!E140 -> 0 | AD140: =proj16jul!F140 -> 0 | AE140: 28100 | AG140: 0 | AI140: 131 | AL140: 0 | AM140: 131 | AN140: 3 | AO140: 20100 | AP140: 0
A141: 132 | B141: HINSDALE | C141: 132 | E141: 0 | F141: 0 | G141: 0 | H141: 0 | J141: =proj16aug!J141 -> 0 | K141: =proj16aug!K141 -> 0 | N141: 0 | O141: 0 | Q141: 0 | R141: 0 | S141: 132 | V141: =proj16jul!C141 -> 0 | W141: =proj16jul!D141 -> 0 | X141: 0 | Y141: 0 | Z141: 132 | AC141: =proj16jul!E141 -> 0 | AD141: =proj16jul!F141 -> 0 | AE141: 0 | AG141: 0 | AI141: 132 | AL141: 0 | AM141: 132 | AP141: 0
A142: 133 | B142: HOLBROOK | C142: 133 | E142: 57 | F142: 306291 | G142: 15 | H142: 85200 | J142: =proj16aug!J142 -> 0 | K142: =proj16aug!K142 -> 0 | N142: 306291 | O142: 85200 | Q142: 783054 | R142: 0 | S142: 133 | T142: 57 | U142: 306291 | V142: =proj16jul!C142 -> 57.48 | W142: =proj16jul!D142 -> 305871 | X142: 420 | Y142: 0 | Z142: 133 | AA142: 15 | AB142: 85200 | AC142: =proj16jul!E142 -> 14.07 | AD142: =proj16jul!F142 -> 76997 | AE142: 8203 | AG142: 0 | AI142: 133 | AJ142: 58 | AK142: 290000 | AL142: 1 | AM142: 133 | AN142: 15 | AO142: 85200 | AP142: 0
A143: 134 | B143: HOLDEN | C143: 134 | E143: 0 | F143: 0 | G143: 0 | H143: 0 | J143: =proj16aug!J143 -> 0 | K143: =proj16aug!K143 -> 0 | N143: 0 | O143: 0 | Q143: 0 | R143: 0 | S143: 134 | V143: =proj16jul!C143 -> 0 | W143: =proj16jul!D143 -> 0 | X143: 0 | Y143: 0 | Z143: 134 | AC143: =proj16jul!E143 -> 0 | AD143: =proj16jul!F143 -> 0 | AE143: 0 | AG143: 0 | AI143: 134 | AL143: 0 | AM143: 134 | AP143: 0
A144: 135 | B144: HOLLAND | C144: 135 | E144: 50 | F144: 275872 | G144: 1 | H144: 5000 | J144: =proj16aug!J144 -> 0 | K144: =proj16aug!K144 -> 0 | N144: 275872 | O144: 5000 | Q144: 561795 | R144: 0 | S144: 135 | T144: 50 | U144: 275872 | V144: =proj16jul!C144 -> 40.31 | W144: =proj16jul!D144 -> 246248 | X144: 29624 | Y144: 0 | Z144: 135 | AA144: 1 | AB144: 5000 | AC144: =proj16jul!E144 -> 1.59 | AD144: =proj16jul!F144 -> 8953 | AE144: -3953 | AG144: 0 | AI144: 135 | AJ144: 50 | AK144: 250000 | AL144: 0 | AM144: 135 | AN144: 2 | AO144: 10000 | AP144: 1
A145: 136 | B145: HOLLISTON | C145: 136 | E145: 163 | F145: 1058438 | G145: 14 | H145: 94295 | J145: =proj16aug!J145 -> 0 | K145: =proj16aug!K145 -> 0 | N145: 1058438 | O145: 94295 | Q145: 2305643 | R145: 0 | S145: 136 | T145: 163 | U145: 1058438 | V145: =proj16jul!C145 -> 158.83 | W145: =proj16jul!D145 -> 1038241 | X145: 20197 | Y145: 0 | Z145: 136 | AA145: 14 | AB145: 94295 | AC145: =proj16jul!E145 -> 7.41 | AD145: =proj16jul!F145 -> 49554 | AE145: 44741 | AG145: 0 | AI145: 136 | AJ145: 163 | AK145: 815000 | AL145: 0 | AM145: 136 | AN145: 14 | AO145: 76800 | AP145: 0
A146: 137 | B146: HOLYOKE | C146: 137 | E146: 56 | F146: 316976 | G146: 339 | H146: 2020196 | J146: =proj16aug!J146 -> 0 | K146: =proj16aug!K146 -> 0 | N146: 316976 | O146: 2020196 | Q146: 4674739 | R146: 0 | S146: 137 | T146: 56 | U146: 316976 | V146: =proj16jul!C146 -> 51.7 | W146: =proj16jul!D146 -> 274673 | X146: 42303 | Y146: 0 | Z146: 137 | AA146: 339 | AB146: 2020196 | AC146: =proj16jul!E146 -> 337.2 | AD146: =proj16jul!F146 -> 2055893 | AE146: -35697 | AG146: 0 | AI146: 137 | AL146: -56 | AM146: 137 | AN146: 269 | AO146: 1353700 | AP146: -70
